Workbook

Sheet Select School
B3: =VLOOKUP(C3,SchList!$I$1:$J$500,2,FALSE) -> 9999 | C3: 1 | D3: =VLOOKUP(C3,SchList!$I$1:$K$500,3,FALSE) -> K | H3: =D3 -> K

Sheet Cover
A1: ='Select School'!$B$3 -> 9999
C3: Miami-Dade County Public Schools
A5: 2013-14 System Accreditation
A13: Student Performance Data Document
A19: =TEXT(A1,"0000")&"-"&VLOOKUP(A1,SchList!$A$1:$B$363,2,FALSE) -> 9999-District

Sheet Introduction
A1: Click here to return to the school selection sheet

Sheet AssessmentQuality
A1: Click here to return to the school selection sheet

Sheet TestAdministration
A1: Click here to return to the school selection sheet

Sheet QualityOfLearning
A1: Click here to return to the school selection sheet

Sheet EquityOfLearning
A1: Click here to return to the school selection sheet

Sheet Primary Grades
A1: ='Select School'!$B$3 -> 9999
A3: Click here to return to the school selection sheet
A4: % of Students Scoring Above the National Median on the Stanford Achievement Test, 10th Edition (SAT10) Grades K to 2
A5: =TEXT(A1,"0000")&"-"&VLOOKUP(A1,SchList!$A$1:$B$500,2,FALSE) -> 9999-District
A6: Subgroup | B6: Reading-SAT10 | E6: Math-SAT10
B7: 2010-11 | C7: 2011-12 | D7: 2012-13 | E7: 2010-11 | F7: 2011-12 | G7: 2012-13 | H7: Annual Increment
A8: All Students | B8: =IFERROR(IF(VLOOKUP(TEXT($A$1,"0000"),'2011 Reading SAT10 All'!$A$2:$G$500,6,FALSE)<10,#N/A,ROUND(VLOOKUP(TEXT($A$1,"0000"),'2011 Reading SAT10 All'!$A$2:$G$500,5,FALSE)*100,0)),#N/A) -> 61 | C8: =IFERROR(IF(VLOOKUP(TEXT($A$1,"0000"),'2012 Reading SAT10 All'!$A$2:$G$500,6,FALSE)<10,#N/A,ROUND(VLOOKUP(TEXT($A$1,"0000"),'2012 Reading SAT10 All'!$A$2:$G$500,5,FALSE)*100,0)),#N/A) -> 69 | D8: =IFERROR(IF(VLOOKUP(TEXT($A$1,"0000"),'2013 Reading SAT10 ALL'!$A$2:$G$500,6,FALSE)<10,#N/A,ROUND(VLOOKUP(TEXT($A$1,"0000"),'2013 Reading SAT10 ALL'!$A$2:$G$500,5,FALSE)*100,0)),#N/A) -> 70 | E8: =IFERROR(IF(VLOOKUP(TEXT($A$1,"0000"),'2011 Math SAT10 All'!$A$2:$G$500,6,FALSE)<10,#N/A,ROUND(VLOOKUP(TEXT($A$1,"0000"),'2011 Math SAT10 All'!$A$2:$G$500,5,FALSE)*100,0)),#N/A) -> 62 | F8: =IFERROR(IF(VLOOKUP(TEXT($A$1,"0000"),'2012 Math SAT10 ALL'!$A$2:$G$500,6,FALSE)<10,#N/A,ROUND(VLOOKUP(TEXT($A$1,"0000"),'2012 Math SAT10 ALL'!$A$2:$G$500,5,FALSE)*100,0)),#N/A) -> 64 | G8: =IFERROR(IF(VLOOKUP(TEXT($A$1,"0000"),'2013 Math SAT10 ALL'!$A$2:$G$500,6,FALSE)<10,#N/A,ROUND(VLOOKUP(TEXT($A$1,"0000"),'2013 Math SAT10 ALL'!$A$2:$G$500,5,FALSE)*100,0)),#N/A) -> 66 | H8: =IF(#REF!="NA","NA",IF(#REF! >#REF!,0,(100-#REF!)/12)) -> 
A9: Am. Ind. | B9: =IFERROR(IF(VLOOKUP(TEXT($A$1,"0000"),'2011 Reading SAT10 I'!$A$2:$G$500,6,FALSE)<10,#N/A,ROUND(VLOOKUP(TEXT($A$1,"0000"),'2011 Reading SAT10 I'!$A$2:$G$500,5,FALSE)*100,0)),#N/A) -> 63 | C9: =IFERROR(IF(VLOOKUP(TEXT($A$1,"0000"),'2012 Reading SAT10 I'!$A$2:$G$500,6,FALSE)<10,#N/A,ROUND(VLOOKUP(TEXT($A$1,"0000"),'2012 Reading SAT10 I'!$A$2:$G$500,5,FALSE)*100,0)),#N/A) -> 82 | D9: =IFERROR(IF(VLOOKUP(TEXT($A$1,"0000"),'2013 Reading SAT10 I'!$A$2:$G$500,6,FALSE)<10,#N/A,ROUND(VLOOKUP(TEXT($A$1,"0000"),'2013 Reading SAT10 I'!$A$2:$G$500,5,FALSE)*100,0)),#N/A) -> 78 | E9: =IFERROR(IF(VLOOKUP(TEXT($A$1,"0000"),'2011 Math SAT10 I'!$A$2:$G$500,6,FALSE)<10,#N/A,ROUND(VLOOKUP(TEXT($A$1,"0000"),'2011 Math SAT10 I'!$A$2:$G$500,5,FALSE)*100,0)),#N/A) -> 74 | F9: =IFERROR(IF(VLOOKUP(TEXT($A$1,"0000"),'2012 Math SAT10 I'!$A$2:$G$500,6,FALSE)<10,#N/A,ROUND(VLOOKUP(TEXT($A$1,"0000"),'2012 Math SAT10 I'!$A$2:$G$500,5,FALSE)*100,0)),#N/A) -> 71 | G9: =IFERROR(IF(VLOOKUP(TEXT($A$1,"0000"),'2013 Math SAT10 I'!$A$2:$G$500,6,FALSE)<10,#N/A,ROUND(VLOOKUP(TEXT($A$1,"0000"),'2013 Math SAT10 I'!$A$2:$G$500,5,FALSE)*100,0)),#N/A) -> 78 | H9: =IF(#REF!="NA","NA",IF(#REF! >#REF!,0,(100-#REF!)/12)) -> 
A10: Asian | B10: =IFERROR(IF(VLOOKUP(TEXT($A$1,"0000"),'2011 Reading SAT10 A'!$A$2:$G$500,6,FALSE)<10,#N/A,ROUND(VLOOKUP(TEXT($A$1,"0000"),'2011 Reading SAT10 A'!$A$2:$G$500,5,FALSE)*100,0)),#N/A) -> 81 | C10: =IFERROR(IF(VLOOKUP(TEXT($A$1,"0000"),'2012 Reading SAT10 A'!$A$2:$G$500,6,FALSE)<10,#N/A,ROUND(VLOOKUP(TEXT($A$1,"0000"),'2012 Reading SAT10 A'!$A$2:$G$500,5,FALSE)*100,0)),#N/A) -> 82 | D10: =IFERROR(IF(VLOOKUP(TEXT($A$1,"0000"),'2013 Reading SAT10 A'!$A$2:$G$500,6,FALSE)<10,#N/A,ROUND(VLOOKUP(TEXT($A$1,"0000"),'2013 Reading SAT10 A'!$A$2:$G$500,5,FALSE)*100,0)),#N/A) -> 84 | E10: =IFERROR(IF(VLOOKUP(TEXT($A$1,"0000"),'2011 Math SAT10 A'!$A$2:$G$500,6,FALSE)<10,#N/A,ROUND(VLOOKUP(TEXT($A$1,"0000"),'2011 Math SAT10 A'!$A$2:$G$500,5,FALSE)*100,0)),#N/A) -> 82 | F10: =IFERROR(IF(VLOOKUP(TEXT($A$1,"0000"),'2012 Math SAT10 A'!$A$2:$G$500,6,FALSE)<10,#N/A,ROUND(VLOOKUP(TEXT($A$1,"0000"),'2012 Math SAT10 A'!$A$2:$G$500,5,FALSE)*100,0)),#N/A) -> 82 | G10: =IFERROR(IF(VLOOKUP(TEXT($A$1,"0000"),'2013 Math SAT10 A'!$A$2:$G$500,6,FALSE)<10,#N/A,ROUND(VLOOKUP(TEXT($A$1,"0000"),'2013 Math SAT10 A'!$A$2:$G$500,5,FALSE)*100,0)),#N/A) -> 84 | H10: =IF(#REF!="NA","NA",IF(#REF! >#REF!,0,(100-#REF!)/12)) -> 
A11: Black | B11: =IFERROR(IF(VLOOKUP(TEXT($A$1,"0000"),'2011 Reading SAT10 B'!$A$2:$G$500,6,FALSE)<10,#N/A,ROUND(VLOOKUP(TEXT($A$1,"0000"),'2011 Reading SAT10 B'!$A$2:$G$500,5,FALSE)*100,0)),#N/A) -> 49 | C11: =IFERROR(IF(VLOOKUP(TEXT($A$1,"0000"),'2012 Reading SAT10 B'!$A$2:$G$500,6,FALSE)<10,#N/A,ROUND(VLOOKUP(TEXT($A$1,"0000"),'2012 Reading SAT10 B'!$A$2:$G$500,5,FALSE)*100,0)),#N/A) -> 58 | D11: =IFERROR(IF(VLOOKUP(TEXT($A$1,"0000"),'2013 Reading SAT10 B'!$A$2:$G$500,6,FALSE)<10,#N/A,ROUND(VLOOKUP(TEXT($A$1,"0000"),'2013 Reading SAT10 B'!$A$2:$G$500,5,FALSE)*100,0)),#N/A) -> 60 | E11: =IFERROR(IF(VLOOKUP(TEXT($A$1,"0000"),'2011 Math SAT10 B'!$A$2:$G$500,6,FALSE)<10,#N/A,ROUND(VLOOKUP(TEXT($A$1,"0000"),'2011 Math SAT10 B'!$A$2:$G$500,5,FALSE)*100,0)),#N/A) -> 45 | F11: =IFERROR(IF(VLOOKUP(TEXT($A$1,"0000"),'2012 Math SAT10 B'!$A$2:$G$500,6,FALSE)<10,#N/A,ROUND(VLOOKUP(TEXT($A$1,"0000"),'2012 Math SAT10 B'!$A$2:$G$500,5,FALSE)*100,0)),#N/A) -> 48 | G11: =IFERROR(IF(VLOOKUP(TEXT($A$1,"0000"),'2013 Math SAT10 B'!$A$2:$G$500,6,FALSE)<10,#N/A,ROUND(VLOOKUP(TEXT($A$1,"0000"),'2013 Math SAT10 B'!$A$2:$G$500,5,FALSE)*100,0)),#N/A) -> 51 | H11: =IF(#REF!="NA","NA",IF(#REF! >#REF!,0,(100-#REF!)/12)) -> 
A12: Hispanic | B12: =IFERROR(IF(VLOOKUP(TEXT($A$1,"0000"),'2011 Reading SAT10 H'!$A$2:$G$500,6,FALSE)<10,#N/A,ROUND(VLOOKUP(TEXT($A$1,"0000"),'2011 Reading SAT10 H'!$A$2:$G$500,5,FALSE)*100,0)),#N/A) -> 62 | C12: =IFERROR(IF(VLOOKUP(TEXT($A$1,"0000"),'2012 Reading SAT10 H'!$A$2:$G$500,6,FALSE)<10,#N/A,ROUND(VLOOKUP(TEXT($A$1,"0000"),'2012 Reading SAT10 H'!$A$2:$G$500,5,FALSE)*100,0)),#N/A) -> 70 | D12: =IFERROR(IF(VLOOKUP(TEXT($A$1,"0000"),'2013 Reading SAT10 H'!$A$2:$G$500,6,FALSE)<10,#N/A,ROUND(VLOOKUP(TEXT($A$1,"0000"),'2013 Reading SAT10 H'!$A$2:$G$500,5,FALSE)*100,0)),#N/A) -> 71 | E12: =IFERROR(IF(VLOOKUP(TEXT($A$1,"0000"),'2011 Math SAT10 H'!$A$2:$G$500,6,FALSE)<10,#N/A,ROUND(VLOOKUP(TEXT($A$1,"0000"),'2011 Math SAT10 H'!$A$2:$G$500,5,FALSE)*100,0)),#N/A) -> 65 | F12: =IFERROR(IF(VLOOKUP(TEXT($A$1,"0000"),'2012 Math SAT10 H'!$A$2:$G$500,6,FALSE)<10,#N/A,ROUND(VLOOKUP(TEXT($A$1,"0000"),'2012 Math SAT10 H'!$A$2:$G$500,5,FALSE)*100,0)),#N/A) -> 67 | G12: =IFERROR(IF(VLOOKUP(TEXT($A$1,"0000"),'2013 Math SAT10 H'!$A$2:$G$500,6,FALSE)<10,#N/A,ROUND(VLOOKUP(TEXT($A$1,"0000"),'2013 Math SAT10 H'!$A$2:$G$500,5,FALSE)*100,0)),#N/A) -> 69 | H12: =IF(#REF!="NA","NA",IF(#REF! >#REF!,0,(100-#REF!)/12)) -> 
A13: White | B13: =IFERROR(IF(VLOOKUP(TEXT($A$1,"0000"),'2011 Reading SAT10 W'!$A$2:$G$500,6,FALSE)<10,#N/A,ROUND(VLOOKUP(TEXT($A$1,"0000"),'2011 Reading SAT10 W'!$A$2:$G$500,5,FALSE)*100,0)),#N/A) -> 80 | C13: =IFERROR(IF(VLOOKUP(TEXT($A$1,"0000"),'2012 Reading SAT10 W'!$A$2:$G$500,6,FALSE)<10,#N/A,ROUND(VLOOKUP(TEXT($A$1,"0000"),'2012 Reading SAT10 W'!$A$2:$G$500,5,FALSE)*100,0)),#N/A) -> 83 | D13: =IFERROR(IF(VLOOKUP(TEXT($A$1,"0000"),'2013 Reading SAT10 W'!$A$2:$G$500,6,FALSE)<10,#N/A,ROUND(VLOOKUP(TEXT($A$1,"0000"),'2013 Reading SAT10 W'!$A$2:$G$500,5,FALSE)*100,0)),#N/A) -> 83 | E13: =IFERROR(IF(VLOOKUP(TEXT($A$1,"0000"),'2011 Math SAT10 W'!$A$2:$G$500,6,FALSE)<10,#N/A,ROUND(VLOOKUP(TEXT($A$1,"0000"),'2011 Math SAT10 W'!$A$2:$G$500,5,FALSE)*100,0)),#N/A) -> 81 | F13: =IFERROR(IF(VLOOKUP(TEXT($A$1,"0000"),'2012 Math SAT10 W'!$A$2:$G$500,6,FALSE)<10,#N/A,ROUND(VLOOKUP(TEXT($A$1,"0000"),'2012 Math SAT10 W'!$A$2:$G$500,5,FALSE)*100,0)),#N/A) -> 81 | G13: =IFERROR(IF(VLOOKUP(TEXT($A$1,"0000"),'2013 Math SAT10 W'!$A$2:$G$500,6,FALSE)<10,#N/A,ROUND(VLOOKUP(TEXT($A$1,"0000"),'2013 Math SAT10 W'!$A$2:$G$500,5,FALSE)*100,0)),#N/A) -> 83 | H13: =IF(#REF!="NA","NA",IF(#REF! >#REF!,0,(100-#REF!)/12)) -> 
A14: English Language Learners | B14: =IFERROR(IF(VLOOKUP(TEXT($A$1,"0000"),'2011 Reading SAT10 ELL'!$A$2:$G$500,6,FALSE)<10,#N/A,ROUND(VLOOKUP(TEXT($A$1,"0000"),'2011 Reading SAT10 ELL'!$A$2:$G$500,5,FALSE)*100,0)),#N/A) -> 50 | C14: =IFERROR(IF(VLOOKUP(TEXT($A$1,"0000"),'2012 Reading SAT10 ELL'!$A$2:$G$500,6,FALSE)<10,#N/A,ROUND(VLOOKUP(TEXT($A$1,"0000"),'2012 Reading SAT10 ELL'!$A$2:$G$500,5,FALSE)*100,0)),#N/A) -> 60 | D14: =IFERROR(IF(VLOOKUP(TEXT($A$1,"0000"),'2013 Reading SAT10 ELL'!$A$2:$G$500,6,FALSE)<10,#N/A,ROUND(VLOOKUP(TEXT($A$1,"0000"),'2013 Reading SAT10 ELL'!$A$2:$G$500,5,FALSE)*100,0)),#N/A) -> 61 | E14: =IFERROR(IF(VLOOKUP(TEXT($A$1,"0000"),'2011 Math SAT10 ELL'!$A$2:$G$500,6,FALSE)<10,#N/A,ROUND(VLOOKUP(TEXT($A$1,"0000"),'2011 Math SAT10 ELL'!$A$2:$G$500,5,FALSE)*100,0)),#N/A) -> 55 | F14: =IFERROR(IF(VLOOKUP(TEXT($A$1,"0000"),'2012 Math SAT10 ELL'!$A$2:$G$500,6,FALSE)<10,#N/A,ROUND(VLOOKUP(TEXT($A$1,"0000"),'2012 Math SAT10 ELL'!$A$2:$G$500,5,FALSE)*100,0)),#N/A) -> 57 | G14: =IFERROR(IF(VLOOKUP(TEXT($A$1,"0000"),'2013 Math SAT10 ELL'!$A$2:$G$500,6,FALSE)<10,#N/A,ROUND(VLOOKUP(TEXT($A$1,"0000"),'2013 Math SAT10 ELL'!$A$2:$G$500,5,FALSE)*100,0)),#N/A) -> 59 | H14: =IF(#REF!="NA","NA",IF(#REF! >#REF!,0,(100-#REF!)/12)) -> 
A15: Students w/ Disabilities | B15: =IFERROR(IF(VLOOKUP(TEXT($A$1,"0000"),'2011 Reading SAT10 SWD'!$A$2:$G$500,6,FALSE)<10,#N/A,ROUND(VLOOKUP(TEXT($A$1,"0000"),'2011 Reading SAT10 SWD'!$A$2:$G$500,5,FALSE)*100,0)),#N/A) -> 28 | C15: =IFERROR(IF(VLOOKUP(TEXT($A$1,"0000"),'2012 Reading SAT10 SWD'!$A$2:$G$500,6,FALSE)<10,#N/A,ROUND(VLOOKUP(TEXT($A$1,"0000"),'2012 Reading SAT10 SWD'!$A$2:$G$500,5,FALSE)*100,0)),#N/A) -> 38 | D15: =IFERROR(IF(VLOOKUP(TEXT($A$1,"0000"),'2013 Reading SAT10 SWD'!$A$2:$G$500,6,FALSE)<10,#N/A,ROUND(VLOOKUP(TEXT($A$1,"0000"),'2013 Reading SAT10 SWD'!$A$2:$G$500,5,FALSE)*100,0)),#N/A) -> 41 | E15: =IFERROR(IF(VLOOKUP(TEXT($A$1,"0000"),'2011 Math SAT10 SWD'!$A$2:$G$500,6,FALSE)<10,#N/A,ROUND(VLOOKUP(TEXT($A$1,"0000"),'2011 Math SAT10 SWD'!$A$2:$G$500,5,FALSE)*100,0)),#N/A) -> 32 | F15: =IFERROR(IF(VLOOKUP(TEXT($A$1,"0000"),'2012 Math SAT10 SWD'!$A$2:$G$500,6,FALSE)<10,#N/A,ROUND(VLOOKUP(TEXT($A$1,"0000"),'2012 Math SAT10 SWD'!$A$2:$G$500,5,FALSE)*100,0)),#N/A) -> 34 | G15: =IFERROR(IF(VLOOKUP(TEXT($A$1,"0000"),'2013 Math SAT10 SWD'!$A$2:$G$500,6,FALSE)<10,#N/A,ROUND(VLOOKUP(TEXT($A$1,"0000"),'2013 Math SAT10 SWD'!$A$2:$G$500,5,FALSE)*100,0)),#N/A) -> 37 | H15: =IF(OR(#REF!="NA",#REF!="***"),"NA",IF(#REF! >#REF!,0,(100-#REF!)/12)) -> 
A16: Economics Disadvtages | B16: =IFERROR(IF(VLOOKUP(TEXT($A$1,"0000"),'2011 Reading SAT10 ED'!$A$2:$G$500,6,FALSE)<10,#N/A,ROUND(VLOOKUP(TEXT($A$1,"0000"),'2011 Reading SAT10 ED'!$A$2:$G$500,5,FALSE)*100,0)),#N/A) -> 55 | C16: =IFERROR(IF(VLOOKUP(TEXT($A$1,"0000"),'2012 Reading SAT10 ED'!$A$2:$G$500,6,FALSE)<10,#N/A,ROUND(VLOOKUP(TEXT($A$1,"0000"),'2012 Reading SAT10 ED'!$A$2:$G$500,5,FALSE)*100,0)),#N/A) -> 63 | D16: =IFERROR(IF(VLOOKUP(TEXT($A$1,"0000"),'2013 Reading SAT10 ED'!$A$2:$G$500,6,FALSE)<10,#N/A,ROUND(VLOOKUP(TEXT($A$1,"0000"),'2013 Reading SAT10 ED'!$A$2:$G$500,5,FALSE)*100,0)),#N/A) -> 64 | E16: =IFERROR(IF(VLOOKUP(TEXT($A$1,"0000"),'2011 Math SAT10 ED'!$A$2:$G$500,6,FALSE)<10,#N/A,ROUND(VLOOKUP(TEXT($A$1,"0000"),'2011 Math SAT10 ED'!$A$2:$G$500,5,FALSE)*100,0)),#N/A) -> 55 | F16: =IFERROR(IF(VLOOKUP(TEXT($A$1,"0000"),'2012 Math SAT10 ED'!$A$2:$G$500,6,FALSE)<10,#N/A,ROUND(VLOOKUP(TEXT($A$1,"0000"),'2012 Math SAT10 ED'!$A$2:$G$500,5,FALSE)*100,0)),#N/A) -> 58 | G16: =IFERROR(IF(VLOOKUP(TEXT($A$1,"0000"),'2013 Math SAT10 ED'!$A$2:$G$500,6,FALSE)<10,#N/A,ROUND(VLOOKUP(TEXT($A$1,"0000"),'2013 Math SAT10 ED'!$A$2:$G$500,5,FALSE)*100,0)),#N/A) -> 60 | H16: =IF(#REF!="NA","NA",IF(#REF! >#REF!,0,(100-#REF!)/12)) -> 

Sheet Performance
A1: ='Select School'!$B$3 -> 9999
A2: Click here to return to the school selection sheet
A3: School Performance Grade, Learning Gains, and Annual Measurable Objectives, Grades 3 to 10
A4: =TEXT(A1,"0000")&"-"&VLOOKUP(A1,SchList!$A$1:$B$500,2,FALSE) -> 9999-District
A5: School Grade and Learning Gains | C5: % of Students Making Learning Gains | G5: % of Students Making Learning Gains >= 50% | J5: 2013 LG Progress Met for Low25%?
C6: 2010-11 | D6: 2011-12 | E6: 2012-13 | F6: High Performing (95% or higher) | G6: 2010-11 | H6: 2011-12 | I6: 2012-13 | K6: Annual Increment
A7: School Grade | C7: =VLOOKUP(TEXT($A$1,"0000"),'2013 SG'!$D$7:$AJ$500,32,FALSE) -> B | D7: =VLOOKUP(TEXT($A$1,"0000"),'2013 SG'!$D$7:$AJ$500,31,FALSE) -> B | E7: =VLOOKUP(TEXT($A$1,"0000"),'2013 SG'!$D$7:$AJ$500,30,FALSE) -> B | G7: NA | H7: NA | I7: NA | J7: NA
A8: Overall Learning - Reading | C8: =VLOOKUP(TEXT($A$1,"0000"),'2011 SG'!$A$2:$AJ$500,7,FALSE) -> 61 | D8: =VLOOKUP(TEXT($A$1,"0000"),'2012 SG'!$D$2:$AJ$500,7,FALSE) -> 68 | E8: =VLOOKUP(TEXT($A$1,"0000"),'2013 SG'!$D$2:$AJ$500,7,FALSE) -> 68 | G8: =IFERROR(IF(C8="","",IF(C8>=50,"Y","N")),"NA") -> Y | H8: =IFERROR(IF(D8="","",IF(D8>=50,"Y","N")),"NA") -> Y | I8: Y | J8: NA
A9: Overall Learning - Math | C9: =VLOOKUP(TEXT($A$1,"0000"),'2011 SG'!$A$2:$AJ$500,8,FALSE) -> 67 | D9: =VLOOKUP(TEXT($A$1,"0000"),'2012 SG'!$D$2:$AJ$500,8,FALSE) -> 68 | E9: =VLOOKUP(TEXT($A$1,"0000"),'2013 SG'!$D$2:$AJ$500,8,FALSE) -> 67 | G9: =IFERROR(IF(C9="","",IF(C9>=50,"Y","N")),"NA") -> Y | H9: =IFERROR(IF(D9="","",IF(D9>=50,"Y","N")),"NA") -> Y | I9: =IFERROR(IF(E9="","",IF(E9>=50,"Y","N")),"NA") -> Y | J9: NA
A10: Learning Gains for Low 25% - Reading | C10: =VLOOKUP(TEXT($A$1,"0000"),'2011 SG'!$A$2:$AJ$500,9,FALSE) -> 60 | D10: =VLOOKUP(TEXT($A$1,"0000"),'2012 SG'!$D$2:$AJ$500,9,FALSE) -> 70 | E10: =VLOOKUP(TEXT($A$1,"0000"),'2013 SG'!$D$2:$AJ$500,9,FALSE) -> 67 | G10: Y | H10: Y | I10: Y | J10: =IFERROR(IF(OR(VLOOKUP(TEXT($A$1,"0000"),'2013 SG'!$D$7:$AJ$500,19,FALSE)="",VLOOKUP(TEXT($A$1,"0000"),'2013 SG'!$D$7:$AJ$500,19,FALSE)="yes"),"Y","N"),"NA") -> Y
A11: Learning Gains for Low 25% - Math | C11: =VLOOKUP(TEXT($A$1,"0000"),'2011 SG'!$A$2:$AJ$500,10,FALSE) -> 66 | D11: =VLOOKUP(TEXT($A$1,"0000"),'2012 SG'!$D$2:$AJ$500,10,FALSE) -> 66 | E11: =VLOOKUP(TEXT($A$1,"0000"),'2013 SG'!$D$2:$AJ$500,10,FALSE) -> 65 | G11: Y | H11: Y | I11: Y | J11: =IFERROR(IF(OR(VLOOKUP(TEXT($A$1,"0000"),'2013 SG'!$D$7:$AJ$500,22,FALSE)="",VLOOKUP(TEXT($A$1,"0000"),'2013 SG'!$D$7:$AJ$500,22,FALSE)="yes"),"Y","N"),"NA") -> Y
A12: Annual Measurable Objectives | B12: % of Students Meeting Satisfactory Performance by Subgroup | G12: Annual Performance Target
B13: Subgroup | C13: 2010-11 | D13: 2011-12 | E13: 2012-13 | F13: High Performing (95% or higher) | G13: 2012 Target | H13: 2012 Met Target? | I13: 2013 Target | J13: 2013 Met Target? | K13: Annual Increment
A14: Reading (% Satisfactory or higher) | B14: All Students | C14: =IFERROR(IF(VLOOKUP(TEXT($A$1,"0000"),'2013 AMO MDCPS'!$C$6:$BC$460,11,FALSE)="",#N/A,IF(VLOOKUP(TEXT($A$1,"0000"),'2013 AMO MDCPS'!$C$6:$BC$460,11,FALSE)="***","<5%",VLOOKUP(TEXT($A$1,"0000"),'2013 AMO MDCPS'!$C$6:$BC$460,11,FALSE))),#N/A) -> 54 | D14: =IFERROR(IF(VLOOKUP(TEXT($A$1,"0000"),'2013 AMO MDCPS'!$C$6:$BC$460,12,FALSE)="",#N/A,IF(VLOOKUP(TEXT($A$1,"0000"),'2013 AMO MDCPS'!$C$6:$BC$460,12,FALSE)="***","<5%",VLOOKUP(TEXT($A$1,"0000"),'2013 AMO MDCPS'!$C$6:$BC$460,12,FALSE))),#N/A) -> 55 | E14: =IFERROR(IF(VLOOKUP(TEXT($A$1,"0000"),'2013 AMO MDCPS'!$C$6:$BC$460,13,FALSE)="",#N/A,IF(VLOOKUP(TEXT($A$1,"0000"),'2013 AMO MDCPS'!$C$6:$BC$460,13,FALSE)="***","<5%",VLOOKUP(TEXT($A$1,"0000"),'2013 AMO MDCPS'!$C$6:$BC$460,13,FALSE))),#N/A) -> 57 | F14: =IFERROR(IF(VLOOKUP(TEXT($A$1,"0000"),'2012 AMO'!$C$6:$AT$450,13,FALSE)="",#N/A,VLOOKUP(TEXT($A$1,"0000"),'2012 AMO'!$C$6:$AT$450,13,FALSE)),#N/A) -> N | G14: =IFERROR(IF(VLOOKUP(TEXT($A$1,"0000"),'2012 AMO'!$C$6:$AT$450,14,FALSE)="",#N/A,VLOOKUP(TEXT($A$1,"0000"),'2012 AMO'!$C$6:$AT$450,14,FALSE)),#N/A) -> 58 | H14: =IFERROR(IF(D14="Y","Y",IF(VLOOKUP(TEXT($A$1,"0000"),'2012 AMO'!$C$6:$AT$450,15,FALSE)="",#N/A,VLOOKUP(TEXT($A$1,"0000"),'2012 AMO'!$C$6:$AT$450,15,FALSE))),#N/A) -> N | I14: =IFERROR(IF(VLOOKUP(TEXT($A$1,"0000"),'2013 AMO MDCPS'!$C$6:$BC$460,15,FALSE)="",#N/A,IF(VLOOKUP(TEXT($A$1,"0000"),'2013 AMO MDCPS'!$C$6:$BC$460,15,FALSE)="***","<5%",VLOOKUP(TEXT($A$1,"0000"),'2013 AMO MDCPS'!$C$6:$BC$460,15,FALSE))),#N/A) -> 62 | J14: =IFERROR(IF(VLOOKUP(TEXT($A$1,"0000"),'2013 AMO MDCPS'!$C$6:$BC$460,16,FALSE)="",#N/A,IF(VLOOKUP(TEXT($A$1,"0000"),'2013 AMO MDCPS'!$C$6:$BC$460,16,FALSE)="***","<5%",VLOOKUP(TEXT($A$1,"0000"),'2013 AMO MDCPS'!$C$6:$BC$460,16,FALSE))),#N/A) -> N | K14: =IF(#REF!="NA","NA",IF(#REF! >#REF!,0,(100-#REF!)/12)) -> 
B15: American Indian | C15: =IFERROR(IF(VLOOKUP(TEXT($A$1,"0000"),'2013 AMO MDCPS'!$C$461:$BC$915,11,FALSE)="",#N/A,IF(VLOOKUP(TEXT($A$1,"0000"),'2013 AMO MDCPS'!$C$461:$BC$915,11,FALSE)="***","<5%",VLOOKUP(TEXT($A$1,"0000"),'2013 AMO MDCPS'!$C$461:$BC$915,11,FALSE))),#N/A) -> 60 | D15: =IFERROR(IF(VLOOKUP(TEXT($A$1,"0000"),'2013 AMO MDCPS'!$C$461:$BC$915,12,FALSE)="",#N/A,IF(VLOOKUP(TEXT($A$1,"0000"),'2013 AMO MDCPS'!$C$461:$BC$915,12,FALSE)="***","<5%",VLOOKUP(TEXT($A$1,"0000"),'2013 AMO MDCPS'!$C$461:$BC$915,12,FALSE))),#N/A) -> 64 | E15: =IFERROR(IF(VLOOKUP(TEXT($A$1,"0000"),'2013 AMO MDCPS'!$C$461:$BC$915,13,FALSE)="",#N/A,IF(VLOOKUP(TEXT($A$1,"0000"),'2013 AMO MDCPS'!$C$461:$BC$915,13,FALSE)="***","<5%",VLOOKUP(TEXT($A$1,"0000"),'2013 AMO MDCPS'!$C$461:$BC$915,13,FALSE))),#N/A) -> 65 | F15: =IFERROR(IF(VLOOKUP(TEXT($A$1,"0000"),'2012 AMO'!$C$3566:$AT$4010,13,FALSE)="",#N/A,VLOOKUP(TEXT($A$1,"0000"),'2012 AMO'!$C$3566:$AT$4010,13,FALSE)),#N/A) -> N | G15: =IFERROR(IF(VLOOKUP(TEXT($A$1,"0000"),'2012 AMO'!$C$451:$AT$895,14,FALSE)="",#N/A,VLOOKUP(TEXT($A$1,"0000"),'2012 AMO'!$C$451:$AT$895,14,FALSE)),#N/A) -> 63 | H15: =IFERROR(IF(D15="Y","Y",IF(VLOOKUP(TEXT($A$1,"0000"),'2012 AMO'!$C$451:$AT$895,15,FALSE)="",#N/A,VLOOKUP(TEXT($A$1,"0000"),'2012 AMO'!$C$451:$AT$895,15,FALSE))),#N/A) -> Y | I15: =IFERROR(IF(VLOOKUP(TEXT($A$1,"0000"),'2013 AMO MDCPS'!$C$461:$BC$915,15,FALSE)="",#N/A,IF(VLOOKUP(TEXT($A$1,"0000"),'2013 AMO MDCPS'!$C$461:$BC$915,15,FALSE)="***","<5%",VLOOKUP(TEXT($A$1,"0000"),'2013 AMO MDCPS'!$C$461:$BC$915,15,FALSE))),#N/A) -> 67 | J15: =IFERROR(IF(VLOOKUP(TEXT($A$1,"0000"),'2013 AMO MDCPS'!$C$461:$BC$915,16,FALSE)="",#N/A,IF(VLOOKUP(TEXT($A$1,"0000"),'2013 AMO MDCPS'!$C$461:$BC$915,16,FALSE)="***","<5%",VLOOKUP(TEXT($A$1,"0000"),'2013 AMO MDCPS'!$C$461:$BC$915,16,FALSE))),#N/A) -> N | K15: =IF(#REF!="NA","NA",IF(#REF! >#REF!,0,(100-#REF!)/12)) -> 
B16: Asian | C16: =IFERROR(IF(VLOOKUP(TEXT($A$1,"0000"),'2013 AMO MDCPS'!$C$916:$BC$1370,11,FALSE)="",#N/A,IF(VLOOKUP(TEXT($A$1,"0000"),'2013 AMO MDCPS'!$C$916:$BC$1370,11,FALSE)="***","<5%",VLOOKUP(TEXT($A$1,"0000"),'2013 AMO MDCPS'!$C$916:$BC$1370,11,FALSE))),#N/A) -> 77 | D16: =IFERROR(IF(VLOOKUP(TEXT($A$1,"0000"),'2013 AMO MDCPS'!$C$916:$BC$1370,12,FALSE)="",#N/A,IF(VLOOKUP(TEXT($A$1,"0000"),'2013 AMO MDCPS'!$C$916:$BC$1370,12,FALSE)="***","<5%",VLOOKUP(TEXT($A$1,"0000"),'2013 AMO MDCPS'!$C$916:$BC$1370,12,FALSE))),#N/A) -> 79 | E16: =IFERROR(IF(VLOOKUP(TEXT($A$1,"0000"),'2013 AMO MDCPS'!$C$916:$BC$1370,13,FALSE)="",#N/A,IF(VLOOKUP(TEXT($A$1,"0000"),'2013 AMO MDCPS'!$C$916:$BC$1370,13,FALSE)="***","<5%",VLOOKUP(TEXT($A$1,"0000"),'2013 AMO MDCPS'!$C$916:$BC$1370,13,FALSE))),#N/A) -> 79 | F16: =IFERROR(IF(VLOOKUP(TEXT($A$1,"0000"),'2012 AMO'!$C$1341:$AT$1785,13,FALSE)="",#N/A,VLOOKUP(TEXT($A$1,"0000"),'2012 AMO'!$C$1341:$AT$1785,13,FALSE)),#N/A) -> N | G16: =IFERROR(IF(VLOOKUP(TEXT($A$1,"0000"),'2012 AMO'!$C$896:$AT$1340,14,FALSE)="",#N/A,VLOOKUP(TEXT($A$1,"0000"),'2012 AMO'!$C$896:$AT$1340,14,FALSE)),#N/A) -> 79 | H16: =IFERROR(IF(D16="Y","Y",IF(VLOOKUP(TEXT($A$1,"0000"),'2012 AMO'!$C$896:$AT$1340,15,FALSE)="",#N/A,VLOOKUP(TEXT($A$1,"0000"),'2012 AMO'!$C$896:$AT$1340,15,FALSE))),#N/A) -> Y | I16: =IFERROR(IF(VLOOKUP(TEXT($A$1,"0000"),'2013 AMO MDCPS'!$C$916:$BC$1370,15,FALSE)="",#N/A,IF(VLOOKUP(TEXT($A$1,"0000"),'2013 AMO MDCPS'!$C$916:$BC$1370,15,FALSE)="***","<5%",VLOOKUP(TEXT($A$1,"0000"),'2013 AMO MDCPS'!$C$916:$BC$1370,15,FALSE))),#N/A) -> 81 | J16: =IFERROR(IF(VLOOKUP(TEXT($A$1,"0000"),'2013 AMO MDCPS'!$C$916:$BC$1370,16,FALSE)="",#N/A,IF(VLOOKUP(TEXT($A$1,"0000"),'2013 AMO MDCPS'!$C$916:$BC$1370,16,FALSE)="***","<5%",VLOOKUP(TEXT($A$1,"0000"),'2013 AMO MDCPS'!$C$916:$BC$1370,16,FALSE))),#N/A) -> N | K16: =IF(#REF!="NA","NA",IF(#REF! >#REF!,0,(100-#REF!)/12)) -> 
B17: Black | C17: =IFERROR(IF(VLOOKUP(TEXT($A$1,"0000"),'2013 AMO MDCPS'!$C$1371:$BC$1825,11,FALSE)="",#N/A,IF(VLOOKUP(TEXT($A$1,"0000"),'2013 AMO MDCPS'!$C$1371:$BC$1825,11,FALSE)="***","<5%",VLOOKUP(TEXT($A$1,"0000"),'2013 AMO MDCPS'!$C$1371:$BC$1825,11,FALSE))),#N/A) -> 37 | D17: =IFERROR(IF(VLOOKUP(TEXT($A$1,"0000"),'2013 AMO MDCPS'!$C$1371:$BC$1825,12,FALSE)="",#N/A,IF(VLOOKUP(TEXT($A$1,"0000"),'2013 AMO MDCPS'!$C$1371:$BC$1825,12,FALSE)="***","<5%",VLOOKUP(TEXT($A$1,"0000"),'2013 AMO MDCPS'!$C$1371:$BC$1825,12,FALSE))),#N/A) -> 38 | E17: =IFERROR(IF(VLOOKUP(TEXT($A$1,"0000"),'2013 AMO MDCPS'!$C$1371:$BC$1825,13,FALSE)="",#N/A,IF(VLOOKUP(TEXT($A$1,"0000"),'2013 AMO MDCPS'!$C$1371:$BC$1825,13,FALSE)="***","<5%",VLOOKUP(TEXT($A$1,"0000"),'2013 AMO MDCPS'!$C$1371:$BC$1825,13,FALSE))),#N/A) -> 39 | F17: =IFERROR(IF(VLOOKUP(TEXT($A$1,"0000"),'2012 AMO'!$C$2676:$AT$3120,13,FALSE)="",#N/A,VLOOKUP(TEXT($A$1,"0000"),'2012 AMO'!$C$2676:$AT$3120,13,FALSE)),#N/A) -> N | G17: =IFERROR(IF(VLOOKUP(TEXT($A$1,"0000"),'2012 AMO'!$C$1341:$AT$1785,14,FALSE)="",#N/A,VLOOKUP(TEXT($A$1,"0000"),'2012 AMO'!$C$1341:$AT$1785,14,FALSE)),#N/A) -> 42 | H17: =IFERROR(IF(D17="Y","Y",IF(VLOOKUP(TEXT($A$1,"0000"),'2012 AMO'!$C$1341:$AT$1785,15,FALSE)="",#N/A,VLOOKUP(TEXT($A$1,"0000"),'2012 AMO'!$C$1341:$AT$1785,15,FALSE))),#N/A) -> N | I17: =IFERROR(IF(VLOOKUP(TEXT($A$1,"0000"),'2013 AMO MDCPS'!$C$1371:$BC$1825,15,FALSE)="",#N/A,IF(VLOOKUP(TEXT($A$1,"0000"),'2013 AMO MDCPS'!$C$1371:$BC$1825,15,FALSE)="***","<5%",VLOOKUP(TEXT($A$1,"0000"),'2013 AMO MDCPS'!$C$1371:$BC$1825,15,FALSE))),#N/A) -> 48 | J17: =IFERROR(IF(VLOOKUP(TEXT($A$1,"0000"),'2013 AMO MDCPS'!$C$1371:$BC$1825,16,FALSE)="",#N/A,IF(VLOOKUP(TEXT($A$1,"0000"),'2013 AMO MDCPS'!$C$1371:$BC$1825,16,FALSE)="***","<5%",VLOOKUP(TEXT($A$1,"0000"),'2013 AMO MDCPS'!$C$1371:$BC$1825,16,FALSE))),#N/A) -> N | K17: =IF(#REF!="NA","NA",IF(#REF! >#REF!,0,(100-#REF!)/12)) -> 
B18: Hispanic | C18: =IFERROR(IF(VLOOKUP(TEXT($A$1,"0000"),'2013 AMO MDCPS'!$C$2736:$BC$3190,11,FALSE)="",#N/A,IF(VLOOKUP(TEXT($A$1,"0000"),'2013 AMO MDCPS'!$C$2736:$BC$3190,11,FALSE)="***","<5%",VLOOKUP(TEXT($A$1,"0000"),'2013 AMO MDCPS'!$C$2736:$BC$3190,11,FALSE))),#N/A) -> 57 | D18: =IFERROR(IF(VLOOKUP(TEXT($A$1,"0000"),'2013 AMO MDCPS'!$C$2736:$BC$3190,12,FALSE)="",#N/A,IF(VLOOKUP(TEXT($A$1,"0000"),'2013 AMO MDCPS'!$C$2736:$BC$3190,12,FALSE)="***","<5%",VLOOKUP(TEXT($A$1,"0000"),'2013 AMO MDCPS'!$C$2736:$BC$3190,12,FALSE))),#N/A) -> 58 | E18: =IFERROR(IF(VLOOKUP(TEXT($A$1,"0000"),'2013 AMO MDCPS'!$C$2736:$BC$3190,13,FALSE)="",#N/A,IF(VLOOKUP(TEXT($A$1,"0000"),'2013 AMO MDCPS'!$C$2736:$BC$3190,13,FALSE)="***","<5%",VLOOKUP(TEXT($A$1,"0000"),'2013 AMO MDCPS'!$C$2736:$BC$3190,13,FALSE))),#N/A) -> 59 | F18: =IFERROR(IF(VLOOKUP(TEXT($A$1,"0000"),'2012 AMO'!$C$896:$AT$1340,13,FALSE)="",#N/A,VLOOKUP(TEXT($A$1,"0000"),'2012 AMO'!$C$896:$AT$1340,13,FALSE)),#N/A) -> N | G18: =IFERROR(IF(VLOOKUP(TEXT($A$1,"0000"),'2012 AMO'!$C$2676:$AT$3120,14,FALSE)="",#N/A,VLOOKUP(TEXT($A$1,"0000"),'2012 AMO'!$C$2676:$AT$3120,14,FALSE)),#N/A) -> 61 | H18: =IFERROR(IF(D18="Y","Y",IF(VLOOKUP(TEXT($A$1,"0000"),'2012 AMO'!$C$2676:$AT$3120,15,FALSE)="",#N/A,VLOOKUP(TEXT($A$1,"0000"),'2012 AMO'!$C$2676:$AT$3120,15,FALSE))),#N/A) -> N | I18: =IFERROR(IF(VLOOKUP(TEXT($A$1,"0000"),'2013 AMO MDCPS'!$C$2736:$BC$3190,15,FALSE)="",#N/A,IF(VLOOKUP(TEXT($A$1,"0000"),'2013 AMO MDCPS'!$C$2736:$BC$3190,15,FALSE)="***","<5%",VLOOKUP(TEXT($A$1,"0000"),'2013 AMO MDCPS'!$C$2736:$BC$3190,15,FALSE))),#N/A) -> 64 | J18: =IFERROR(IF(VLOOKUP(TEXT($A$1,"0000"),'2013 AMO MDCPS'!$C$2736:$BC$3190,16,FALSE)="",#N/A,IF(VLOOKUP(TEXT($A$1,"0000"),'2013 AMO MDCPS'!$C$2736:$BC$3190,16,FALSE)="***","<5%",VLOOKUP(TEXT($A$1,"0000"),'2013 AMO MDCPS'!$C$2736:$BC$3190,16,FALSE))),#N/A) -> N | K18: =IF(#REF!="NA","NA",IF(#REF! >#REF!,0,(100-#REF!)/12)) -> 
B19: White | C19: =IFERROR(IF(VLOOKUP(TEXT($A$1,"0000"),'2013 AMO MDCPS'!$C$3646:$AT$4100,11,FALSE)="",#N/A,IF(VLOOKUP(TEXT($A$1,"0000"),'2013 AMO MDCPS'!$C$3646:$AT$4100,11,FALSE)="***","<5%",VLOOKUP(TEXT($A$1,"0000"),'2013 AMO MDCPS'!$C$3646:$AT$4100,11,FALSE))),#N/A) -> 75 | D19: =IFERROR(IF(VLOOKUP(TEXT($A$1,"0000"),'2013 AMO MDCPS'!$C$3646:$AT$4100,12,FALSE)="",#N/A,IF(VLOOKUP(TEXT($A$1,"0000"),'2013 AMO MDCPS'!$C$3646:$AT$4100,12,FALSE)="***","<5%",VLOOKUP(TEXT($A$1,"0000"),'2013 AMO MDCPS'!$C$3646:$AT$4100,12,FALSE))),#N/A) -> 76 | E19: =IFERROR(IF(VLOOKUP(TEXT($A$1,"0000"),'2013 AMO MDCPS'!$C$3646:$AT$4100,13,FALSE)="",#N/A,IF(VLOOKUP(TEXT($A$1,"0000"),'2013 AMO MDCPS'!$C$3646:$AT$4100,13,FALSE)="***","<5%",VLOOKUP(TEXT($A$1,"0000"),'2013 AMO MDCPS'!$C$3646:$AT$4100,13,FALSE))),#N/A) -> 77 | F19: =IFERROR(IF(VLOOKUP(TEXT($A$1,"0000"),'2012 AMO'!$C$451:$AT$895,13,FALSE)="",#N/A,VLOOKUP(TEXT($A$1,"0000"),'2012 AMO'!$C$451:$AT$895,13,FALSE)),#N/A) -> N | G19: =IFERROR(IF(VLOOKUP(TEXT($A$1,"0000"),'2012 AMO'!$C$3566:$AT$4100,14,FALSE)="",#N/A,VLOOKUP(TEXT($A$1,"0000"),'2012 AMO'!$C$3566:$AT$4100,14,FALSE)),#N/A) -> 77 | H19: =IFERROR(IF(D19="Y","Y",IF(VLOOKUP(TEXT($A$1,"0000"),'2012 AMO'!$C$3566:$AT$4100,15,FALSE)="",#N/A,VLOOKUP(TEXT($A$1,"0000"),'2012 AMO'!$C$3566:$AT$4100,15,FALSE))),#N/A) -> N | I19: =IFERROR(IF(VLOOKUP(TEXT($A$1,"0000"),'2013 AMO MDCPS'!$C$3646:$AT$4100,15,FALSE)="",#N/A,IF(VLOOKUP(TEXT($A$1,"0000"),'2013 AMO MDCPS'!$C$3646:$AT$4100,15,FALSE)="***","<5%",VLOOKUP(TEXT($A$1,"0000"),'2013 AMO MDCPS'!$C$3646:$AT$4100,15,FALSE))),#N/A) -> 79 | J19: =IFERROR(IF(VLOOKUP(TEXT($A$1,"0000"),'2013 AMO MDCPS'!$C$3646:$AT$4100,16,FALSE)="",#N/A,IF(VLOOKUP(TEXT($A$1,"0000"),'2013 AMO MDCPS'!$C$3646:$AT$4100,16,FALSE)="***","<5%",VLOOKUP(TEXT($A$1,"0000"),'2013 AMO MDCPS'!$C$3646:$AT$4100,16,FALSE))),#N/A) -> N | K19: =IF(#REF!="NA","NA",IF(#REF! >#REF!,0,(100-#REF!)/12)) -> 
B20: ELL | C20: =IFERROR(IF(VLOOKUP(TEXT($A$1,"0000"),'2013 AMO MDCPS'!$C$2281:$BC$2735,11,FALSE)="",#N/A,IF(VLOOKUP(TEXT($A$1,"0000"),'2013 AMO MDCPS'!$C$2281:$BC$2735,11,FALSE)="***","<5%",VLOOKUP(TEXT($A$1,"0000"),'2013 AMO MDCPS'!$C$2281:$BC$2735,11,FALSE))),#N/A) -> 37 | D20: =IFERROR(IF(VLOOKUP(TEXT($A$1,"0000"),'2013 AMO MDCPS'!$C$2281:$BC$2735,12,FALSE)="",#N/A,IF(VLOOKUP(TEXT($A$1,"0000"),'2013 AMO MDCPS'!$C$2281:$BC$2735,12,FALSE)="***","<5%",VLOOKUP(TEXT($A$1,"0000"),'2013 AMO MDCPS'!$C$2281:$BC$2735,12,FALSE))),#N/A) -> 39 | E20: =IFERROR(IF(VLOOKUP(TEXT($A$1,"0000"),'2013 AMO MDCPS'!$C$2281:$BC$2735,13,FALSE)="",#N/A,IF(VLOOKUP(TEXT($A$1,"0000"),'2013 AMO MDCPS'!$C$2281:$BC$2735,13,FALSE)="***","<5%",VLOOKUP(TEXT($A$1,"0000"),'2013 AMO MDCPS'!$C$2281:$BC$2735,13,FALSE))),#N/A) -> 37 | F20: =IFERROR(IF(VLOOKUP(TEXT($A$1,"0000"),'2012 AMO'!$C$2231:$AT$2675,13,FALSE)="",#N/A,VLOOKUP(TEXT($A$1,"0000"),'2012 AMO'!$C$2231:$AT$2675,13,FALSE)),#N/A) -> N | G20: =IFERROR(IF(VLOOKUP(TEXT($A$1,"0000"),'2012 AMO'!$C$2231:$AT$2675,14,FALSE)="",#N/A,VLOOKUP(TEXT($A$1,"0000"),'2012 AMO'!$C$2231:$AT$2675,14,FALSE)),#N/A) -> 42 | H20: =IFERROR(IF(D20="Y","Y",IF(VLOOKUP(TEXT($A$1,"0000"),'2012 AMO'!$C$2231:$AT$2675,15,FALSE)="",#N/A,VLOOKUP(TEXT($A$1,"0000"),'2012 AMO'!$C$2231:$AT$2675,15,FALSE))),#N/A) -> N | I20: =IFERROR(IF(VLOOKUP(TEXT($A$1,"0000"),'2013 AMO MDCPS'!$C$2281:$BC$2735,15,FALSE)="",#N/A,IF(VLOOKUP(TEXT($A$1,"0000"),'2013 AMO MDCPS'!$C$2281:$BC$2735,15,FALSE)="***","<5%",VLOOKUP(TEXT($A$1,"0000"),'2013 AMO MDCPS'!$C$2281:$BC$2735,15,FALSE))),#N/A) -> 48 | J20: =IFERROR(IF(VLOOKUP(TEXT($A$1,"0000"),'2013 AMO MDCPS'!$C$2281:$BC$2735,16,FALSE)="",#N/A,IF(VLOOKUP(TEXT($A$1,"0000"),'2013 AMO MDCPS'!$C$2281:$BC$2735,16,FALSE)="***","<5%",VLOOKUP(TEXT($A$1,"0000"),'2013 AMO MDCPS'!$C$2281:$BC$2735,16,FALSE))),#N/A) -> N | K20: =IF(#REF!="NA","NA",IF(#REF! >#REF!,0,(100-#REF!)/12)) -> 
B21: SWD | C21: =IFERROR(IF(VLOOKUP(TEXT($A$1,"0000"),'2013 AMO MDCPS'!$C$3191:$BC$3645,11,FALSE)="",#N/A,IF(VLOOKUP(TEXT($A$1,"0000"),'2013 AMO MDCPS'!$C$3191:$BC$3645,11,FALSE)="***","<5%",VLOOKUP(TEXT($A$1,"0000"),'2013 AMO MDCPS'!$C$3191:$BC$3645,11,FALSE))),#N/A) -> 26 | D21: =IFERROR(IF(VLOOKUP(TEXT($A$1,"0000"),'2013 AMO MDCPS'!$C$3191:$BC$3645,12,FALSE)="",#N/A,IF(VLOOKUP(TEXT($A$1,"0000"),'2013 AMO MDCPS'!$C$3191:$BC$3645,12,FALSE)="***","<5%",VLOOKUP(TEXT($A$1,"0000"),'2013 AMO MDCPS'!$C$3191:$BC$3645,12,FALSE))),#N/A) -> 28 | E21: =IFERROR(IF(VLOOKUP(TEXT($A$1,"0000"),'2013 AMO MDCPS'!$C$3191:$BC$3645,13,FALSE)="",#N/A,IF(VLOOKUP(TEXT($A$1,"0000"),'2013 AMO MDCPS'!$C$3191:$BC$3645,13,FALSE)="***","<5%",VLOOKUP(TEXT($A$1,"0000"),'2013 AMO MDCPS'!$C$3191:$BC$3645,13,FALSE))),#N/A) -> 28 | F21: =IFERROR(IF(VLOOKUP(TEXT($A$1,"0000"),'2012 AMO'!$C$3121:$AT$3565,13,FALSE)="",#N/A,VLOOKUP(TEXT($A$1,"0000"),'2012 AMO'!$C$3121:$AT$3565,13,FALSE)),#N/A) -> N | G21: =IFERROR(IF(VLOOKUP(TEXT($A$1,"0000"),'2012 AMO'!$C$3121:$AT$3565,14,FALSE)="",#N/A,VLOOKUP(TEXT($A$1,"0000"),'2012 AMO'!$C$3121:$AT$3565,14,FALSE)),#N/A) -> 32 | H21: =IFERROR(IF(D21="Y","Y",IF(VLOOKUP(TEXT($A$1,"0000"),'2012 AMO'!$C$3121:$AT$3565,15,FALSE)="",#N/A,VLOOKUP(TEXT($A$1,"0000"),'2012 AMO'!$C$3121:$AT$3565,15,FALSE))),#N/A) -> N | I21: =IFERROR(IF(VLOOKUP(TEXT($A$1,"0000"),'2013 AMO MDCPS'!$C$3191:$BC$3645,15,FALSE)="",#N/A,IF(VLOOKUP(TEXT($A$1,"0000"),'2013 AMO MDCPS'!$C$3191:$BC$3645,15,FALSE)="***","<5%",VLOOKUP(TEXT($A$1,"0000"),'2013 AMO MDCPS'!$C$3191:$BC$3645,15,FALSE))),#N/A) -> 38 | J21: =IFERROR(IF(VLOOKUP(TEXT($A$1,"0000"),'2013 AMO MDCPS'!$C$3191:$BC$3645,16,FALSE)="",#N/A,IF(VLOOKUP(TEXT($A$1,"0000"),'2013 AMO MDCPS'!$C$3191:$BC$3645,16,FALSE)="***","<5%",VLOOKUP(TEXT($A$1,"0000"),'2013 AMO MDCPS'!$C$3191:$BC$3645,16,FALSE))),#N/A) -> N | K21: =IF(OR(#REF!="NA",#REF!="***"),"NA",IF(#REF! >#REF!,0,(100-#REF!)/12)) -> 
B22: ED | C22: =IFERROR(IF(VLOOKUP(TEXT($A$1,"0000"),'2013 AMO MDCPS'!$C$1826:$BC$2280,11,FALSE)="",#N/A,IF(VLOOKUP(TEXT($A$1,"0000"),'2013 AMO MDCPS'!$C$1826:$BC$2280,11,FALSE)="***","<5%",VLOOKUP(TEXT($A$1,"0000"),'2013 AMO MDCPS'!$C$1826:$BC$2280,11,FALSE))),#N/A) -> 47 | D22: =IFERROR(IF(VLOOKUP(TEXT($A$1,"0000"),'2013 AMO MDCPS'!$C$1826:$BC$2280,12,FALSE)="",#N/A,IF(VLOOKUP(TEXT($A$1,"0000"),'2013 AMO MDCPS'!$C$1826:$BC$2280,12,FALSE)="***","<5%",VLOOKUP(TEXT($A$1,"0000"),'2013 AMO MDCPS'!$C$1826:$BC$2280,12,FALSE))),#N/A) -> 49 | E22: =IFERROR(IF(VLOOKUP(TEXT($A$1,"0000"),'2013 AMO MDCPS'!$C$1826:$BC$2280,13,FALSE)="",#N/A,IF(VLOOKUP(TEXT($A$1,"0000"),'2013 AMO MDCPS'!$C$1826:$BC$2280,13,FALSE)="***","<5%",VLOOKUP(TEXT($A$1,"0000"),'2013 AMO MDCPS'!$C$1826:$BC$2280,13,FALSE))),#N/A) -> 50 | F22: =IFERROR(IF(VLOOKUP(TEXT($A$1,"0000"),'2012 AMO'!$C$1786:$AT$2230,13,FALSE)="",#N/A,VLOOKUP(TEXT($A$1,"0000"),'2012 AMO'!$C$1786:$AT$2230,13,FALSE)),#N/A) -> N | G22: =IFERROR(IF(VLOOKUP(TEXT($A$1,"0000"),'2012 AMO'!$C$1786:$AT$2230,14,FALSE)="",#N/A,VLOOKUP(TEXT($A$1,"0000"),'2012 AMO'!$C$1786:$AT$2230,14,FALSE)),#N/A) -> 51 | H22: =IFERROR(IF(D22="Y","Y",IF(VLOOKUP(TEXT($A$1,"0000"),'2012 AMO'!$C$1786:$AT$2230,15,FALSE)="",#N/A,VLOOKUP(TEXT($A$1,"0000"),'2012 AMO'!$C$1786:$AT$2230,15,FALSE))),#N/A) -> N | I22: =IFERROR(IF(VLOOKUP(TEXT($A$1,"0000"),'2013 AMO MDCPS'!$C$1826:$BC$2280,15,FALSE)="",#N/A,IF(VLOOKUP(TEXT($A$1,"0000"),'2013 AMO MDCPS'!$C$1826:$BC$2280,15,FALSE)="***","<5%",VLOOKUP(TEXT($A$1,"0000"),'2013 AMO MDCPS'!$C$1826:$BC$2280,15,FALSE))),#N/A) -> 56 | J22: =IFERROR(IF(VLOOKUP(TEXT($A$1,"0000"),'2013 AMO MDCPS'!$C$1826:$BC$2280,16,FALSE)="",#N/A,IF(VLOOKUP(TEXT($A$1,"0000"),'2013 AMO MDCPS'!$C$1826:$BC$2280,16,FALSE)="***","<5%",VLOOKUP(TEXT($A$1,"0000"),'2013 AMO MDCPS'!$C$1826:$BC$2280,16,FALSE))),#N/A) -> N | K22: =IF(#REF!="NA","NA",IF(#REF! >#REF!,0,(100-#REF!)/12)) -> 
A23: Math (% Satisfactory or higher) | B23: All Students | C23: =IFERROR(IF(VLOOKUP(TEXT($A$1,"0000"),'2013 AMO MDCPS'!$C$6:$BC$460,22,FALSE)="",#N/A,IF(VLOOKUP(TEXT($A$1,"0000"),'2013 AMO MDCPS'!$C$6:$BC$460,22,FALSE)="***","<5%",VLOOKUP(TEXT($A$1,"0000"),'2013 AMO MDCPS'!$C$6:$BC$460,22,FALSE))),#N/A) -> 53 | D23: =IFERROR(IF(VLOOKUP(TEXT($A$1,"0000"),'2013 AMO MDCPS'!$C$6:$BC$460,23,FALSE)="",#N/A,IF(VLOOKUP(TEXT($A$1,"0000"),'2013 AMO MDCPS'!$C$6:$BC$460,23,FALSE)="***","<5%",VLOOKUP(TEXT($A$1,"0000"),'2013 AMO MDCPS'!$C$6:$BC$460,23,FALSE))),#N/A) -> 57 | E23: =IFERROR(IF(VLOOKUP(TEXT($A$1,"0000"),'2013 AMO MDCPS'!$C$6:$BC$460,24,FALSE)="",#N/A,IF(VLOOKUP(TEXT($A$1,"0000"),'2013 AMO MDCPS'!$C$6:$BC$460,24,FALSE)="***","<5%",VLOOKUP(TEXT($A$1,"0000"),'2013 AMO MDCPS'!$C$6:$BC$460,24,FALSE))),#N/A) -> 59 | F23: =IFERROR(IF(VLOOKUP(TEXT($A$1,"0000"),'2012 AMO'!$C$6:$AT$450,23,FALSE)="",#N/A,VLOOKUP(TEXT($A$1,"0000"),'2012 AMO'!$C$6:$AT$450,23,FALSE)),#N/A) -> N | G23: =IFERROR(IF(VLOOKUP(TEXT($A$1,"0000"),'2012 AMO'!$C$6:$AT$450,24,FALSE)="",#N/A,VLOOKUP(TEXT($A$1,"0000"),'2012 AMO'!$C$6:$AT$450,24,FALSE)),#N/A) -> 57 | H23: =IFERROR(IF(D23="Y","Y",IF(VLOOKUP(TEXT($A$1,"0000"),'2012 AMO'!$C$6:$AT$450,25,FALSE)="",#N/A,VLOOKUP(TEXT($A$1,"0000"),'2012 AMO'!$C$6:$AT$450,25,FALSE))),#N/A) -> Y | I23: =IFERROR(IF(VLOOKUP(TEXT($A$1,"0000"),'2013 AMO MDCPS'!$C$6:$BC$460,26,FALSE)="",#N/A,IF(VLOOKUP(TEXT($A$1,"0000"),'2013 AMO MDCPS'!$C$6:$BC$460,26,FALSE)="***","<5%",VLOOKUP(TEXT($A$1,"0000"),'2013 AMO MDCPS'!$C$6:$BC$460,26,FALSE))),#N/A) -> 61 | J23: =IFERROR(IF(VLOOKUP(TEXT($A$1,"0000"),'2013 AMO MDCPS'!$C$6:$BC$460,27,FALSE)="",#N/A,IF(VLOOKUP(TEXT($A$1,"0000"),'2013 AMO MDCPS'!$C$6:$BC$460,27,FALSE)="***","<5%",VLOOKUP(TEXT($A$1,"0000"),'2013 AMO MDCPS'!$C$6:$BC$460,27,FALSE))),#N/A) -> N | K23: =IF(#REF!="NA","NA",IF(#REF! >#REF!,0,(100-#REF!)/12)) -> 
B24: American Indian | C24: =IFERROR(IF(VLOOKUP(TEXT($A$1,"0000"),'2013 AMO MDCPS'!$C$461:$BC$915,22,FALSE)="",#N/A,IF(VLOOKUP(TEXT($A$1,"0000"),'2013 AMO MDCPS'!$C$461:$BC$915,22,FALSE)="***","<5%",VLOOKUP(TEXT($A$1,"0000"),'2013 AMO MDCPS'!$C$461:$BC$915,22,FALSE))),#N/A) -> 59 | D24: =IFERROR(IF(VLOOKUP(TEXT($A$1,"0000"),'2013 AMO MDCPS'!$C$461:$BC$915,23,FALSE)="",#N/A,IF(VLOOKUP(TEXT($A$1,"0000"),'2013 AMO MDCPS'!$C$461:$BC$915,23,FALSE)="***","<5%",VLOOKUP(TEXT($A$1,"0000"),'2013 AMO MDCPS'!$C$461:$BC$915,23,FALSE))),#N/A) -> 61 | E24: =IFERROR(IF(VLOOKUP(TEXT($A$1,"0000"),'2013 AMO MDCPS'!$C$461:$BC$915,24,FALSE)="",#N/A,IF(VLOOKUP(TEXT($A$1,"0000"),'2013 AMO MDCPS'!$C$461:$BC$915,24,FALSE)="***","<5%",VLOOKUP(TEXT($A$1,"0000"),'2013 AMO MDCPS'!$C$461:$BC$915,24,FALSE))),#N/A) -> 65 | F24: =IFERROR(IF(VLOOKUP(TEXT($A$1,"0000"),'2012 AMO'!$C$3566:$AT$4010,23,FALSE)="",#N/A,VLOOKUP(TEXT($A$1,"0000"),'2012 AMO'!$C$3566:$AT$4010,23,FALSE)),#N/A) -> N | G24: =IFERROR(IF(VLOOKUP(TEXT($A$1,"0000"),'2012 AMO'!$C$451:$AT$895,24,FALSE)="",#N/A,VLOOKUP(TEXT($A$1,"0000"),'2012 AMO'!$C$451:$AT$895,24,FALSE)),#N/A) -> 62 | H24: =IFERROR(IF(D24="Y","Y",IF(VLOOKUP(TEXT($A$1,"0000"),'2012 AMO'!$C$451:$AT$895,25,FALSE)="",#N/A,VLOOKUP(TEXT($A$1,"0000"),'2012 AMO'!$C$451:$AT$895,25,FALSE))),#N/A) -> N | I24: =IFERROR(IF(VLOOKUP(TEXT($A$1,"0000"),'2013 AMO MDCPS'!$C$461:$BC$915,26,FALSE)="",#N/A,IF(VLOOKUP(TEXT($A$1,"0000"),'2013 AMO MDCPS'!$C$461:$BC$915,26,FALSE)="***","<5%",VLOOKUP(TEXT($A$1,"0000"),'2013 AMO MDCPS'!$C$461:$BC$915,26,FALSE))),#N/A) -> 66 | J24: =IFERROR(IF(VLOOKUP(TEXT($A$1,"0000"),'2013 AMO MDCPS'!$C$461:$BC$915,27,FALSE)="",#N/A,IF(VLOOKUP(TEXT($A$1,"0000"),'2013 AMO MDCPS'!$C$461:$BC$915,27,FALSE)="***","<5%",VLOOKUP(TEXT($A$1,"0000"),'2013 AMO MDCPS'!$C$461:$BC$915,27,FALSE))),#N/A) -> Y | K24: =IF(#REF!="NA","NA",IF(#REF! >#REF!,0,(100-#REF!)/12)) -> 
B25: Asian | C25: =IFERROR(IF(VLOOKUP(TEXT($A$1,"0000"),'2013 AMO MDCPS'!$C$916:$BC$1370,22,FALSE)="",#N/A,IF(VLOOKUP(TEXT($A$1,"0000"),'2013 AMO MDCPS'!$C$916:$BC$1370,22,FALSE)="***","<5%",VLOOKUP(TEXT($A$1,"0000"),'2013 AMO MDCPS'!$C$916:$BC$1370,22,FALSE))),#N/A) -> 82 | D25: =IFERROR(IF(VLOOKUP(TEXT($A$1,"0000"),'2013 AMO MDCPS'!$C$916:$BC$1370,23,FALSE)="",#N/A,IF(VLOOKUP(TEXT($A$1,"0000"),'2013 AMO MDCPS'!$C$916:$BC$1370,23,FALSE)="***","<5%",VLOOKUP(TEXT($A$1,"0000"),'2013 AMO MDCPS'!$C$916:$BC$1370,23,FALSE))),#N/A) -> 84 | E25: =IFERROR(IF(VLOOKUP(TEXT($A$1,"0000"),'2013 AMO MDCPS'!$C$916:$BC$1370,24,FALSE)="",#N/A,IF(VLOOKUP(TEXT($A$1,"0000"),'2013 AMO MDCPS'!$C$916:$BC$1370,24,FALSE)="***","<5%",VLOOKUP(TEXT($A$1,"0000"),'2013 AMO MDCPS'!$C$916:$BC$1370,24,FALSE))),#N/A) -> 85 | F25: =IFERROR(IF(VLOOKUP(TEXT($A$1,"0000"),'2012 AMO'!$C$1341:$AT$1785,23,FALSE)="",#N/A,VLOOKUP(TEXT($A$1,"0000"),'2012 AMO'!$C$1341:$AT$1785,23,FALSE)),#N/A) -> N | G25: =IFERROR(IF(VLOOKUP(TEXT($A$1,"0000"),'2012 AMO'!$C$896:$AT$1340,24,FALSE)="",#N/A,VLOOKUP(TEXT($A$1,"0000"),'2012 AMO'!$C$896:$AT$1340,24,FALSE)),#N/A) -> 84 | H25: =IFERROR(IF(D25="Y","Y",IF(VLOOKUP(TEXT($A$1,"0000"),'2012 AMO'!$C$896:$AT$1340,25,FALSE)="",#N/A,VLOOKUP(TEXT($A$1,"0000"),'2012 AMO'!$C$896:$AT$1340,25,FALSE))),#N/A) -> Y | I25: =IFERROR(IF(VLOOKUP(TEXT($A$1,"0000"),'2013 AMO MDCPS'!$C$916:$BC$1370,26,FALSE)="",#N/A,IF(VLOOKUP(TEXT($A$1,"0000"),'2013 AMO MDCPS'!$C$916:$BC$1370,26,FALSE)="***","<5%",VLOOKUP(TEXT($A$1,"0000"),'2013 AMO MDCPS'!$C$916:$BC$1370,26,FALSE))),#N/A) -> 85 | J25: =IFERROR(IF(VLOOKUP(TEXT($A$1,"0000"),'2013 AMO MDCPS'!$C$916:$BC$1370,27,FALSE)="",#N/A,IF(VLOOKUP(TEXT($A$1,"0000"),'2013 AMO MDCPS'!$C$916:$BC$1370,27,FALSE)="***","<5%",VLOOKUP(TEXT($A$1,"0000"),'2013 AMO MDCPS'!$C$916:$BC$1370,27,FALSE))),#N/A) -> Y | K25: =IF(#REF!="NA","NA",IF(#REF! >#REF!,0,(100-#REF!)/12)) -> 
B26: Black | C26: =IFERROR(IF(VLOOKUP(TEXT($A$1,"0000"),'2013 AMO MDCPS'!$C$1371:$BC$1825,22,FALSE)="",#N/A,IF(VLOOKUP(TEXT($A$1,"0000"),'2013 AMO MDCPS'!$C$1371:$BC$1825,22,FALSE)="***","<5%",VLOOKUP(TEXT($A$1,"0000"),'2013 AMO MDCPS'!$C$1371:$BC$1825,22,FALSE))),#N/A) -> 38 | D26: =IFERROR(IF(VLOOKUP(TEXT($A$1,"0000"),'2013 AMO MDCPS'!$C$1371:$BC$1825,23,FALSE)="",#N/A,IF(VLOOKUP(TEXT($A$1,"0000"),'2013 AMO MDCPS'!$C$1371:$BC$1825,23,FALSE)="***","<5%",VLOOKUP(TEXT($A$1,"0000"),'2013 AMO MDCPS'!$C$1371:$BC$1825,23,FALSE))),#N/A) -> 42 | E26: =IFERROR(IF(VLOOKUP(TEXT($A$1,"0000"),'2013 AMO MDCPS'!$C$1371:$BC$1825,24,FALSE)="",#N/A,IF(VLOOKUP(TEXT($A$1,"0000"),'2013 AMO MDCPS'!$C$1371:$BC$1825,24,FALSE)="***","<5%",VLOOKUP(TEXT($A$1,"0000"),'2013 AMO MDCPS'!$C$1371:$BC$1825,24,FALSE))),#N/A) -> 45 | F26: =IFERROR(IF(VLOOKUP(TEXT($A$1,"0000"),'2012 AMO'!$C$2676:$AT$3120,23,FALSE)="",#N/A,VLOOKUP(TEXT($A$1,"0000"),'2012 AMO'!$C$2676:$AT$3120,23,FALSE)),#N/A) -> N | G26: =IFERROR(IF(VLOOKUP(TEXT($A$1,"0000"),'2012 AMO'!$C$1341:$AT$1785,24,FALSE)="",#N/A,VLOOKUP(TEXT($A$1,"0000"),'2012 AMO'!$C$1341:$AT$1785,24,FALSE)),#N/A) -> 43 | H26: =IFERROR(IF(D26="Y","Y",IF(VLOOKUP(TEXT($A$1,"0000"),'2012 AMO'!$C$1341:$AT$1785,25,FALSE)="",#N/A,VLOOKUP(TEXT($A$1,"0000"),'2012 AMO'!$C$1341:$AT$1785,25,FALSE))),#N/A) -> N | I26: =IFERROR(IF(VLOOKUP(TEXT($A$1,"0000"),'2013 AMO MDCPS'!$C$1371:$BC$1825,26,FALSE)="",#N/A,IF(VLOOKUP(TEXT($A$1,"0000"),'2013 AMO MDCPS'!$C$1371:$BC$1825,26,FALSE)="***","<5%",VLOOKUP(TEXT($A$1,"0000"),'2013 AMO MDCPS'!$C$1371:$BC$1825,26,FALSE))),#N/A) -> 48 | J26: =IFERROR(IF(VLOOKUP(TEXT($A$1,"0000"),'2013 AMO MDCPS'!$C$1371:$BC$1825,27,FALSE)="",#N/A,IF(VLOOKUP(TEXT($A$1,"0000"),'2013 AMO MDCPS'!$C$1371:$BC$1825,27,FALSE)="***","<5%",VLOOKUP(TEXT($A$1,"0000"),'2013 AMO MDCPS'!$C$1371:$BC$1825,27,FALSE))),#N/A) -> N | K26: =IF(#REF!="NA","NA",IF(#REF! >#REF!,0,(100-#REF!)/12)) -> 
B27: Hispanic | C27: =IFERROR(IF(VLOOKUP(TEXT($A$1,"0000"),'2013 AMO MDCPS'!$C$2736:$BC$3190,22,FALSE)="",#N/A,IF(VLOOKUP(TEXT($A$1,"0000"),'2013 AMO MDCPS'!$C$2736:$BC$3190,22,FALSE)="***","<5%",VLOOKUP(TEXT($A$1,"0000"),'2013 AMO MDCPS'!$C$2736:$BC$3190,22,FALSE))),#N/A) -> 56 | D27: =IFERROR(IF(VLOOKUP(TEXT($A$1,"0000"),'2013 AMO MDCPS'!$C$2736:$BC$3190,23,FALSE)="",#N/A,IF(VLOOKUP(TEXT($A$1,"0000"),'2013 AMO MDCPS'!$C$2736:$BC$3190,23,FALSE)="***","<5%",VLOOKUP(TEXT($A$1,"0000"),'2013 AMO MDCPS'!$C$2736:$BC$3190,23,FALSE))),#N/A) -> 60 | E27: =IFERROR(IF(VLOOKUP(TEXT($A$1,"0000"),'2013 AMO MDCPS'!$C$2736:$BC$3190,24,FALSE)="",#N/A,IF(VLOOKUP(TEXT($A$1,"0000"),'2013 AMO MDCPS'!$C$2736:$BC$3190,24,FALSE)="***","<5%",VLOOKUP(TEXT($A$1,"0000"),'2013 AMO MDCPS'!$C$2736:$BC$3190,24,FALSE))),#N/A) -> 61 | F27: =IFERROR(IF(VLOOKUP(TEXT($A$1,"0000"),'2012 AMO'!$C$896:$AT$1340,23,FALSE)="",#N/A,VLOOKUP(TEXT($A$1,"0000"),'2012 AMO'!$C$896:$AT$1340,23,FALSE)),#N/A) -> N | G27: =IFERROR(IF(VLOOKUP(TEXT($A$1,"0000"),'2012 AMO'!$C$2676:$AT$3120,24,FALSE)="",#N/A,VLOOKUP(TEXT($A$1,"0000"),'2012 AMO'!$C$2676:$AT$3120,24,FALSE)),#N/A) -> 60 | H27: =IFERROR(IF(D27="Y","Y",IF(VLOOKUP(TEXT($A$1,"0000"),'2012 AMO'!$C$2676:$AT$3120,25,FALSE)="",#N/A,VLOOKUP(TEXT($A$1,"0000"),'2012 AMO'!$C$2676:$AT$3120,25,FALSE))),#N/A) -> Y | I27: =IFERROR(IF(VLOOKUP(TEXT($A$1,"0000"),'2013 AMO MDCPS'!$C$2736:$BC$3190,26,FALSE)="",#N/A,IF(VLOOKUP(TEXT($A$1,"0000"),'2013 AMO MDCPS'!$C$2736:$BC$3190,26,FALSE)="***","<5%",VLOOKUP(TEXT($A$1,"0000"),'2013 AMO MDCPS'!$C$2736:$BC$3190,26,FALSE))),#N/A) -> 63 | J27: =IFERROR(IF(VLOOKUP(TEXT($A$1,"0000"),'2013 AMO MDCPS'!$C$2736:$BC$3190,27,FALSE)="",#N/A,IF(VLOOKUP(TEXT($A$1,"0000"),'2013 AMO MDCPS'!$C$2736:$BC$3190,27,FALSE)="***","<5%",VLOOKUP(TEXT($A$1,"0000"),'2013 AMO MDCPS'!$C$2736:$BC$3190,27,FALSE))),#N/A) -> N | K27: =IF(#REF!="NA","NA",IF(#REF! >#REF!,0,(100-#REF!)/12)) -> 
B28: White | C28: =IFERROR(IF(VLOOKUP(TEXT($A$1,"0000"),'2013 AMO MDCPS'!$C$3646:$AT$4100,22,FALSE)="",#N/A,IF(VLOOKUP(TEXT($A$1,"0000"),'2013 AMO MDCPS'!$C$3646:$AT$4100,22,FALSE)="***","<5%",VLOOKUP(TEXT($A$1,"0000"),'2013 AMO MDCPS'!$C$3646:$AT$4100,22,FALSE))),#N/A) -> 72 | D28: =IFERROR(IF(VLOOKUP(TEXT($A$1,"0000"),'2013 AMO MDCPS'!$C$3646:$AT$4100,23,FALSE)="",#N/A,IF(VLOOKUP(TEXT($A$1,"0000"),'2013 AMO MDCPS'!$C$3646:$AT$4100,23,FALSE)="***","<5%",VLOOKUP(TEXT($A$1,"0000"),'2013 AMO MDCPS'!$C$3646:$AT$4100,23,FALSE))),#N/A) -> 76 | E28: =IFERROR(IF(VLOOKUP(TEXT($A$1,"0000"),'2013 AMO MDCPS'!$C$3646:$AT$4100,24,FALSE)="",#N/A,IF(VLOOKUP(TEXT($A$1,"0000"),'2013 AMO MDCPS'!$C$3646:$AT$4100,24,FALSE)="***","<5%",VLOOKUP(TEXT($A$1,"0000"),'2013 AMO MDCPS'!$C$3646:$AT$4100,24,FALSE))),#N/A) -> 76 | F28: =IFERROR(IF(VLOOKUP(TEXT($A$1,"0000"),'2012 AMO'!$C$451:$AT$895,23,FALSE)="",#N/A,VLOOKUP(TEXT($A$1,"0000"),'2012 AMO'!$C$451:$AT$895,23,FALSE)),#N/A) -> N | G28: =IFERROR(IF(VLOOKUP(TEXT($A$1,"0000"),'2012 AMO'!$C$3566:$AT$4010,24,FALSE)="",#N/A,VLOOKUP(TEXT($A$1,"0000"),'2012 AMO'!$C$3566:$AT$4010,24,FALSE)),#N/A) -> 74 | H28: =IFERROR(IF(D28="Y","Y",IF(VLOOKUP(TEXT($A$1,"0000"),'2012 AMO'!$C$3566:$AT$4010,25,FALSE)="",#N/A,VLOOKUP(TEXT($A$1,"0000"),'2012 AMO'!$C$3566:$AT$4010,25,FALSE))),#N/A) -> Y | I28: =IFERROR(IF(VLOOKUP(TEXT($A$1,"0000"),'2013 AMO MDCPS'!$C$3646:$AT$4100,26,FALSE)="",#N/A,IF(VLOOKUP(TEXT($A$1,"0000"),'2013 AMO MDCPS'!$C$3646:$AT$4100,26,FALSE)="***","<5%",VLOOKUP(TEXT($A$1,"0000"),'2013 AMO MDCPS'!$C$3646:$AT$4100,26,FALSE))),#N/A) -> 77 | J28: =IFERROR(IF(VLOOKUP(TEXT($A$1,"0000"),'2013 AMO MDCPS'!$C$3646:$AT$4100,27,FALSE)="",#N/A,IF(VLOOKUP(TEXT($A$1,"0000"),'2013 AMO MDCPS'!$C$3646:$AT$4100,27,FALSE)="***","<5%",VLOOKUP(TEXT($A$1,"0000"),'2013 AMO MDCPS'!$C$3646:$AT$4100,27,FALSE))),#N/A) -> N | K28: =IF(#REF!="NA","NA",IF(#REF! >#REF!,0,(100-#REF!)/12)) -> 
B29: ELL | C29: =IFERROR(IF(VLOOKUP(TEXT($A$1,"0000"),'2013 AMO MDCPS'!$C$2281:$BC$2735,22,FALSE)="",#N/A,IF(VLOOKUP(TEXT($A$1,"0000"),'2013 AMO MDCPS'!$C$2281:$BC$2735,22,FALSE)="***","<5%",VLOOKUP(TEXT($A$1,"0000"),'2013 AMO MDCPS'!$C$2281:$BC$2735,22,FALSE))),#N/A) -> 45 | D29: =IFERROR(IF(VLOOKUP(TEXT($A$1,"0000"),'2013 AMO MDCPS'!$C$2281:$BC$2735,23,FALSE)="",#N/A,IF(VLOOKUP(TEXT($A$1,"0000"),'2013 AMO MDCPS'!$C$2281:$BC$2735,23,FALSE)="***","<5%",VLOOKUP(TEXT($A$1,"0000"),'2013 AMO MDCPS'!$C$2281:$BC$2735,23,FALSE))),#N/A) -> 49 | E29: =IFERROR(IF(VLOOKUP(TEXT($A$1,"0000"),'2013 AMO MDCPS'!$C$2281:$BC$2735,24,FALSE)="",#N/A,IF(VLOOKUP(TEXT($A$1,"0000"),'2013 AMO MDCPS'!$C$2281:$BC$2735,24,FALSE)="***","<5%",VLOOKUP(TEXT($A$1,"0000"),'2013 AMO MDCPS'!$C$2281:$BC$2735,24,FALSE))),#N/A) -> 47 | F29: =IFERROR(IF(VLOOKUP(TEXT($A$1,"0000"),'2012 AMO'!$C$2231:$AT$2675,23,FALSE)="",#N/A,VLOOKUP(TEXT($A$1,"0000"),'2012 AMO'!$C$2231:$AT$2675,23,FALSE)),#N/A) -> N | G29: =IFERROR(IF(VLOOKUP(TEXT($A$1,"0000"),'2012 AMO'!$C$2231:$AT$2675,24,FALSE)="",#N/A,VLOOKUP(TEXT($A$1,"0000"),'2012 AMO'!$C$2231:$AT$2675,24,FALSE)),#N/A) -> 50 | H29: =IFERROR(IF(D29="Y","Y",IF(VLOOKUP(TEXT($A$1,"0000"),'2012 AMO'!$C$2231:$AT$2675,25,FALSE)="",#N/A,VLOOKUP(TEXT($A$1,"0000"),'2012 AMO'!$C$2231:$AT$2675,25,FALSE))),#N/A) -> N | I29: =IFERROR(IF(VLOOKUP(TEXT($A$1,"0000"),'2013 AMO MDCPS'!$C$2281:$BC$2735,26,FALSE)="",#N/A,IF(VLOOKUP(TEXT($A$1,"0000"),'2013 AMO MDCPS'!$C$2281:$BC$2735,26,FALSE)="***","<5%",VLOOKUP(TEXT($A$1,"0000"),'2013 AMO MDCPS'!$C$2281:$BC$2735,26,FALSE))),#N/A) -> 54 | J29: =IFERROR(IF(VLOOKUP(TEXT($A$1,"0000"),'2013 AMO MDCPS'!$C$2281:$BC$2735,27,FALSE)="",#N/A,IF(VLOOKUP(TEXT($A$1,"0000"),'2013 AMO MDCPS'!$C$2281:$BC$2735,27,FALSE)="***","<5%",VLOOKUP(TEXT($A$1,"0000"),'2013 AMO MDCPS'!$C$2281:$BC$2735,27,FALSE))),#N/A) -> N | K29: =IF(#REF!="NA","NA",IF(#REF! >#REF!,0,(100-#REF!)/12)) -> 
B30: SWD | C30: =IFERROR(IF(VLOOKUP(TEXT($A$1,"0000"),'2013 AMO MDCPS'!$C$3191:$BC$3645,22,FALSE)="",#N/A,IF(VLOOKUP(TEXT($A$1,"0000"),'2013 AMO MDCPS'!$C$3191:$BC$3645,22,FALSE)="***","<5%",VLOOKUP(TEXT($A$1,"0000"),'2013 AMO MDCPS'!$C$3191:$BC$3645,22,FALSE))),#N/A) -> 28 | D30: =IFERROR(IF(VLOOKUP(TEXT($A$1,"0000"),'2013 AMO MDCPS'!$C$3191:$BC$3645,23,FALSE)="",#N/A,IF(VLOOKUP(TEXT($A$1,"0000"),'2013 AMO MDCPS'!$C$3191:$BC$3645,23,FALSE)="***","<5%",VLOOKUP(TEXT($A$1,"0000"),'2013 AMO MDCPS'!$C$3191:$BC$3645,23,FALSE))),#N/A) -> 31 | E30: =IFERROR(IF(VLOOKUP(TEXT($A$1,"0000"),'2013 AMO MDCPS'!$C$3191:$BC$3645,24,FALSE)="",#N/A,IF(VLOOKUP(TEXT($A$1,"0000"),'2013 AMO MDCPS'!$C$3191:$BC$3645,24,FALSE)="***","<5%",VLOOKUP(TEXT($A$1,"0000"),'2013 AMO MDCPS'!$C$3191:$BC$3645,24,FALSE))),#N/A) -> 31 | F30: =IFERROR(IF(VLOOKUP(TEXT($A$1,"0000"),'2012 AMO'!$C$3121:$AT$3565,23,FALSE)="",#N/A,VLOOKUP(TEXT($A$1,"0000"),'2012 AMO'!$C$3121:$AT$3565,23,FALSE)),#N/A) -> N | G30: =IFERROR(IF(VLOOKUP(TEXT($A$1,"0000"),'2012 AMO'!$C$3121:$AT$3565,24,FALSE)="",#N/A,VLOOKUP(TEXT($A$1,"0000"),'2012 AMO'!$C$3121:$AT$3565,24,FALSE)),#N/A) -> 34 | H30: =IFERROR(IF(D30="Y","Y",IF(VLOOKUP(TEXT($A$1,"0000"),'2012 AMO'!$C$3121:$AT$3565,25,FALSE)="",#N/A,VLOOKUP(TEXT($A$1,"0000"),'2012 AMO'!$C$3121:$AT$3565,25,FALSE))),#N/A) -> N | I30: =IFERROR(IF(VLOOKUP(TEXT($A$1,"0000"),'2013 AMO MDCPS'!$C$3191:$BC$3645,26,FALSE)="",#N/A,IF(VLOOKUP(TEXT($A$1,"0000"),'2013 AMO MDCPS'!$C$3191:$BC$3645,26,FALSE)="***","<5%",VLOOKUP(TEXT($A$1,"0000"),'2013 AMO MDCPS'!$C$3191:$BC$3645,26,FALSE))),#N/A) -> 40 | J30: =IFERROR(IF(VLOOKUP(TEXT($A$1,"0000"),'2013 AMO MDCPS'!$C$3191:$BC$3645,27,FALSE)="",#N/A,IF(VLOOKUP(TEXT($A$1,"0000"),'2013 AMO MDCPS'!$C$3191:$BC$3645,27,FALSE)="***","<5%",VLOOKUP(TEXT($A$1,"0000"),'2013 AMO MDCPS'!$C$3191:$BC$3645,27,FALSE))),#N/A) -> N | K30: =IF(#REF!="NA","NA",IF(#REF! >#REF!,0,(100-#REF!)/12)) -> 
B31: ED | C31: =IFERROR(IF(VLOOKUP(TEXT($A$1,"0000"),'2013 AMO MDCPS'!$C$1826:$BC$2280,22,FALSE)="",#N/A,IF(VLOOKUP(TEXT($A$1,"0000"),'2013 AMO MDCPS'!$C$1826:$BC$2280,22,FALSE)="***","<5%",VLOOKUP(TEXT($A$1,"0000"),'2013 AMO MDCPS'!$C$1826:$BC$2280,22,FALSE))),#N/A) -> 47 | D31: =IFERROR(IF(VLOOKUP(TEXT($A$1,"0000"),'2013 AMO MDCPS'!$C$1826:$BC$2280,23,FALSE)="",#N/A,IF(VLOOKUP(TEXT($A$1,"0000"),'2013 AMO MDCPS'!$C$1826:$BC$2280,23,FALSE)="***","<5%",VLOOKUP(TEXT($A$1,"0000"),'2013 AMO MDCPS'!$C$1826:$BC$2280,23,FALSE))),#N/A) -> 52 | E31: =IFERROR(IF(VLOOKUP(TEXT($A$1,"0000"),'2013 AMO MDCPS'!$C$1826:$BC$2280,24,FALSE)="",#N/A,IF(VLOOKUP(TEXT($A$1,"0000"),'2013 AMO MDCPS'!$C$1826:$BC$2280,24,FALSE)="***","<5%",VLOOKUP(TEXT($A$1,"0000"),'2013 AMO MDCPS'!$C$1826:$BC$2280,24,FALSE))),#N/A) -> 54 | F31: =IFERROR(IF(VLOOKUP(TEXT($A$1,"0000"),'2012 AMO'!$C$1786:$AT$2230,23,FALSE)="",#N/A,VLOOKUP(TEXT($A$1,"0000"),'2012 AMO'!$C$1786:$AT$2230,23,FALSE)),#N/A) -> N | G31: =IFERROR(IF(VLOOKUP(TEXT($A$1,"0000"),'2012 AMO'!$C$1786:$AT$2230,24,FALSE)="",#N/A,VLOOKUP(TEXT($A$1,"0000"),'2012 AMO'!$C$1786:$AT$2230,24,FALSE)),#N/A) -> 51 | H31: =IFERROR(IF(D31="Y","Y",IF(VLOOKUP(TEXT($A$1,"0000"),'2012 AMO'!$C$1786:$AT$2230,25,FALSE)="",#N/A,VLOOKUP(TEXT($A$1,"0000"),'2012 AMO'!$C$1786:$AT$2230,25,FALSE))),#N/A) -> Y | I31: =IFERROR(IF(VLOOKUP(TEXT($A$1,"0000"),'2013 AMO MDCPS'!$C$1826:$BC$2280,26,FALSE)="",#N/A,IF(VLOOKUP(TEXT($A$1,"0000"),'2013 AMO MDCPS'!$C$1826:$BC$2280,26,FALSE)="***","<5%",VLOOKUP(TEXT($A$1,"0000"),'2013 AMO MDCPS'!$C$1826:$BC$2280,26,FALSE))),#N/A) -> 56 | J31: =IFERROR(IF(VLOOKUP(TEXT($A$1,"0000"),'2013 AMO MDCPS'!$C$1826:$BC$2280,27,FALSE)="",#N/A,IF(VLOOKUP(TEXT($A$1,"0000"),'2013 AMO MDCPS'!$C$1826:$BC$2280,27,FALSE)="***","<5%",VLOOKUP(TEXT($A$1,"0000"),'2013 AMO MDCPS'!$C$1826:$BC$2280,27,FALSE))),#N/A) -> N | K31: =IF(#REF!="NA","NA",IF(#REF! >#REF!,0,(100-#REF!)/12)) -> 
A32: Writing-FCAT2.0/FAA - All Students in Grades 4, 8, and 10 (% scores of 3.5 or higher) | D32: =IFERROR(IF(VLOOKUP(TEXT($A$1,"0000"),'2012 W Combined'!$A$4:$F$500,2,FALSE)<10,#N/A,VLOOKUP(TEXT($A$1,"0000"),'2012 W Combined'!$A$4:$F$500,4,FALSE)),#N/A) -> 51 | E32: =VLOOKUP(TEXT($A$1,"0000"),'2013 W Combined'!$A$4:$R$500,16,FALSE) -> 58 | F32: =VLOOKUP(TEXT($A$1,"0000"),'2013 W Combined'!$A$4:$R$500,16,FALSE) -> 58 | G32: NA | H32: NA | I32: NA | J32: NA
A33: Science (FCAT2.0) - All Students in Grades 5, 8, and 10 (% Satisfactory or higher) | D33: =IFERROR(VLOOKUP(TEXT($A$1,"0000"),'2012Sci CombG'!$A$2:$I$500,8,FALSE),#N/A) -> 46 | E33: =IFERROR(VLOOKUP(TEXT($A$1,"0000"),'2013Sci CombG'!$A$2:$I$500,8,FALSE),#N/A) -> 47 | G33: NA | H33: NA | I33: NA | J33: NA
A34: Biology EOC - All Students (% Satisfactory or higher) | D34: =IFERROR(IF(VLOOKUP(TEXT($A$1,"0000"),'2012 Bio'!$C$2:$G$500,3,FALSE)<10,#N/A,VLOOKUP(TEXT($A$1,"0000"),'2012 Bio'!$C$2:$G$500,5,FALSE)),#N/A) -> 51 | E34: =IFERROR(IF(VLOOKUP(VALUE($A$1),'2013 BIO'!$A$2:$K$500,3,FALSE)<10,#N/A,VLOOKUP(VALUE($A$1),'2013 BIO'!$A$2:$K$500,5,FALSE)),#N/A) -> 63 | G34: NA | H34: NA | I34: NA | J34: NA

Sheet DistrictPerformance
A1: 9999
A2: Click here to return to the school selection sheet
A3: School Performance Grade, Learning Gains, and Annual Measurable Objectives, Grades 3 to 10
A4: 9999-District
A5: School Grade and Learning Gains | C5: % of Students Making Learning Gains | G5: % of Students Making Learning Gains >= 50% | J5: 2013 LG Progress Met for Low25%?
C6: 2010-11 | D6: 2011-12 | E6: 2012-13 | F6: High Performing (95% or higher) | G6: 2010-11 | H6: 2011-12 | I6: 2012-13 | K6: Annual Increment
A7: School Grade | C7: =VLOOKUP(TEXT($A$1,"0000"),'2013 SG'!$D$7:$AJ$500,32,FALSE) -> B | D7: =VLOOKUP(TEXT($A$1,"0000"),'2013 SG'!$D$7:$AJ$500,31,FALSE) -> B | E7: =VLOOKUP(TEXT($A$1,"0000"),'2013 SG'!$D$7:$AJ$500,30,FALSE) -> B | G7: NA | H7: NA | I7: NA | J7: NA
A8: Overall Learning - Reading | C8: =VLOOKUP(TEXT($A$1,"0000"),'2011 SG'!$A$2:$AJ$500,7,FALSE) -> 61 | D8: =VLOOKUP(TEXT($A$1,"0000"),'2012 SG'!$D$2:$AJ$500,7,FALSE) -> 68 | E8: =VLOOKUP(TEXT($A$1,"0000"),'2013 SG'!$D$2:$AJ$500,7,FALSE) -> 68 | G8: =IFERROR(IF(C8="","",IF(C8>=50,"Y","N")),"NA") -> Y | H8: =IFERROR(IF(D8="","",IF(D8>=50,"Y","N")),"NA") -> Y | I8: Y | J8: NA
A9: Overall Learning - Math | C9: =VLOOKUP(TEXT($A$1,"0000"),'2011 SG'!$A$2:$AJ$500,8,FALSE) -> 67 | D9: =VLOOKUP(TEXT($A$1,"0000"),'2012 SG'!$D$2:$AJ$500,8,FALSE) -> 68 | E9: =VLOOKUP(TEXT($A$1,"0000"),'2013 SG'!$D$2:$AJ$500,8,FALSE) -> 67 | G9: =IFERROR(IF(C9="","",IF(C9>=50,"Y","N")),"NA") -> Y | H9: Y | I9: Y | J9: NA
A10: Learning Gains for Low 25% - Reading | C10: =VLOOKUP(TEXT($A$1,"0000"),'2011 SG'!$A$2:$AJ$500,9,FALSE) -> 60 | D10: =VLOOKUP(TEXT($A$1,"0000"),'2012 SG'!$D$2:$AJ$500,9,FALSE) -> 70 | E10: =VLOOKUP(TEXT($A$1,"0000"),'2013 SG'!$D$2:$AJ$500,9,FALSE) -> 67 | G10: Y | H10: Y | I10: Y | J10: =IFERROR(IF(OR(VLOOKUP(TEXT($A$1,"0000"),'2013 SG'!$D$7:$AJ$500,19,FALSE)="",VLOOKUP(TEXT($A$1,"0000"),'2013 SG'!$D$7:$AJ$500,19,FALSE)="yes"),"Y","N"),"NA") -> Y
A11: Learning Gains for Low 25% - Math | C11: =VLOOKUP(TEXT($A$1,"0000"),'2011 SG'!$A$2:$AJ$500,10,FALSE) -> 66 | D11: =VLOOKUP(TEXT($A$1,"0000"),'2012 SG'!$D$2:$AJ$500,10,FALSE) -> 66 | E11: =VLOOKUP(TEXT($A$1,"0000"),'2013 SG'!$D$2:$AJ$500,10,FALSE) -> 65 | G11: Y | H11: Y | I11: Y | J11: =IFERROR(IF(OR(VLOOKUP(TEXT($A$1,"0000"),'2013 SG'!$D$7:$AJ$500,22,FALSE)="",VLOOKUP(TEXT($A$1,"0000"),'2013 SG'!$D$7:$AJ$500,22,FALSE)="yes"),"Y","N"),"NA") -> Y
A12: Annual Measurable Objectives | B12: % of Students Meeting Satisfactory Performance by Subgroup | G12: Annual Performance Target
B13: Subgroup | C13: 2010-11 | D13: 2011-12 | E13: 2012-13 | F13: High Performing (95% or higher) | G13: 2012 Target | H13: 2012 Met Target? | I13: 2013 Target | J13: 2013 Met Target? | K13: Annual Increment
A14: Reading (% Satisfactory or higher) | B14: All Students | C14: =IFERROR(IF(VLOOKUP(TEXT($A$1,"0000"),'2013 AMO MDCPS'!$C$6:$BC$460,11,FALSE)="",#N/A,IF(VLOOKUP(TEXT($A$1,"0000"),'2013 AMO MDCPS'!$C$6:$BC$460,11,FALSE)="***","<5%",VLOOKUP(TEXT($A$1,"0000"),'2013 AMO MDCPS'!$C$6:$BC$460,11,FALSE))),#N/A) -> 54 | D14: =IFERROR(IF(VLOOKUP(TEXT($A$1,"0000"),'2013 AMO MDCPS'!$C$6:$BC$460,12,FALSE)="",#N/A,IF(VLOOKUP(TEXT($A$1,"0000"),'2013 AMO MDCPS'!$C$6:$BC$460,12,FALSE)="***","<5%",VLOOKUP(TEXT($A$1,"0000"),'2013 AMO MDCPS'!$C$6:$BC$460,12,FALSE))),#N/A) -> 55 | E14: =IFERROR(IF(VLOOKUP(TEXT($A$1,"0000"),'2013 AMO MDCPS'!$C$6:$BC$460,13,FALSE)="",#N/A,IF(VLOOKUP(TEXT($A$1,"0000"),'2013 AMO MDCPS'!$C$6:$BC$460,13,FALSE)="***","<5%",VLOOKUP(TEXT($A$1,"0000"),'2013 AMO MDCPS'!$C$6:$BC$460,13,FALSE))),#N/A) -> 57 | F14: =IFERROR(IF(VLOOKUP(TEXT($A$1,"0000"),'2012 AMO'!$C$6:$AT$450,13,FALSE)="",#N/A,VLOOKUP(TEXT($A$1,"0000"),'2012 AMO'!$C$6:$AT$450,13,FALSE)),#N/A) -> N | G14: =IFERROR(IF(VLOOKUP(TEXT($A$1,"0000"),'2012 AMO'!$C$6:$AT$450,14,FALSE)="",#N/A,VLOOKUP(TEXT($A$1,"0000"),'2012 AMO'!$C$6:$AT$450,14,FALSE)),#N/A) -> 58 | H14: =IFERROR(IF(D14="Y","Y",IF(VLOOKUP(TEXT($A$1,"0000"),'2012 AMO'!$C$6:$AT$450,15,FALSE)="",#N/A,VLOOKUP(TEXT($A$1,"0000"),'2012 AMO'!$C$6:$AT$450,15,FALSE))),#N/A) -> N | I14: =IFERROR(IF(VLOOKUP(TEXT($A$1,"0000"),'2013 AMO MDCPS'!$C$6:$BC$460,15,FALSE)="",#N/A,IF(VLOOKUP(TEXT($A$1,"0000"),'2013 AMO MDCPS'!$C$6:$BC$460,15,FALSE)="***","<5%",VLOOKUP(TEXT($A$1,"0000"),'2013 AMO MDCPS'!$C$6:$BC$460,15,FALSE))),#N/A) -> 62 | J14: =IFERROR(IF(VLOOKUP(TEXT($A$1,"0000"),'2013 AMO MDCPS'!$C$6:$BC$460,16,FALSE)="",#N/A,IF(VLOOKUP(TEXT($A$1,"0000"),'2013 AMO MDCPS'!$C$6:$BC$460,16,FALSE)="***","<5%",VLOOKUP(TEXT($A$1,"0000"),'2013 AMO MDCPS'!$C$6:$BC$460,16,FALSE))),#N/A) -> N | K14: =IF(#REF!="NA","NA",IF(#REF! >#REF!,0,(100-#REF!)/12)) -> 
B15: American Indian | C15: =IFERROR(IF(VLOOKUP(TEXT($A$1,"0000"),'2013 AMO MDCPS'!$C$461:$BC$915,11,FALSE)="",#N/A,IF(VLOOKUP(TEXT($A$1,"0000"),'2013 AMO MDCPS'!$C$461:$BC$915,11,FALSE)="***","<5%",VLOOKUP(TEXT($A$1,"0000"),'2013 AMO MDCPS'!$C$461:$BC$915,11,FALSE))),#N/A) -> 60 | D15: =IFERROR(IF(VLOOKUP(TEXT($A$1,"0000"),'2013 AMO MDCPS'!$C$461:$BC$915,12,FALSE)="",#N/A,IF(VLOOKUP(TEXT($A$1,"0000"),'2013 AMO MDCPS'!$C$461:$BC$915,12,FALSE)="***","<5%",VLOOKUP(TEXT($A$1,"0000"),'2013 AMO MDCPS'!$C$461:$BC$915,12,FALSE))),#N/A) -> 64 | E15: =IFERROR(IF(VLOOKUP(TEXT($A$1,"0000"),'2013 AMO MDCPS'!$C$461:$BC$915,13,FALSE)="",#N/A,IF(VLOOKUP(TEXT($A$1,"0000"),'2013 AMO MDCPS'!$C$461:$BC$915,13,FALSE)="***","<5%",VLOOKUP(TEXT($A$1,"0000"),'2013 AMO MDCPS'!$C$461:$BC$915,13,FALSE))),#N/A) -> 65 | F15: =IFERROR(IF(VLOOKUP(TEXT($A$1,"0000"),'2012 AMO'!$C$3566:$AT$4010,13,FALSE)="",#N/A,VLOOKUP(TEXT($A$1,"0000"),'2012 AMO'!$C$3566:$AT$4010,13,FALSE)),#N/A) -> N | G15: =IFERROR(IF(VLOOKUP(TEXT($A$1,"0000"),'2012 AMO'!$C$451:$AT$895,14,FALSE)="",#N/A,VLOOKUP(TEXT($A$1,"0000"),'2012 AMO'!$C$451:$AT$895,14,FALSE)),#N/A) -> 63 | H15: =IFERROR(IF(D15="Y","Y",IF(VLOOKUP(TEXT($A$1,"0000"),'2012 AMO'!$C$451:$AT$895,15,FALSE)="",#N/A,VLOOKUP(TEXT($A$1,"0000"),'2012 AMO'!$C$451:$AT$895,15,FALSE))),#N/A) -> Y | I15: =IFERROR(IF(VLOOKUP(TEXT($A$1,"0000"),'2013 AMO MDCPS'!$C$461:$BC$915,15,FALSE)="",#N/A,IF(VLOOKUP(TEXT($A$1,"0000"),'2013 AMO MDCPS'!$C$461:$BC$915,15,FALSE)="***","<5%",VLOOKUP(TEXT($A$1,"0000"),'2013 AMO MDCPS'!$C$461:$BC$915,15,FALSE))),#N/A) -> 67 | J15: =IFERROR(IF(VLOOKUP(TEXT($A$1,"0000"),'2013 AMO MDCPS'!$C$461:$BC$915,16,FALSE)="",#N/A,IF(VLOOKUP(TEXT($A$1,"0000"),'2013 AMO MDCPS'!$C$461:$BC$915,16,FALSE)="***","<5%",VLOOKUP(TEXT($A$1,"0000"),'2013 AMO MDCPS'!$C$461:$BC$915,16,FALSE))),#N/A) -> N | K15: =IF(#REF!="NA","NA",IF(#REF! >#REF!,0,(100-#REF!)/12)) -> 
B16: Asian | C16: =IFERROR(IF(VLOOKUP(TEXT($A$1,"0000"),'2013 AMO MDCPS'!$C$916:$BC$1370,11,FALSE)="",#N/A,IF(VLOOKUP(TEXT($A$1,"0000"),'2013 AMO MDCPS'!$C$916:$BC$1370,11,FALSE)="***","<5%",VLOOKUP(TEXT($A$1,"0000"),'2013 AMO MDCPS'!$C$916:$BC$1370,11,FALSE))),#N/A) -> 77 | D16: =IFERROR(IF(VLOOKUP(TEXT($A$1,"0000"),'2013 AMO MDCPS'!$C$916:$BC$1370,12,FALSE)="",#N/A,IF(VLOOKUP(TEXT($A$1,"0000"),'2013 AMO MDCPS'!$C$916:$BC$1370,12,FALSE)="***","<5%",VLOOKUP(TEXT($A$1,"0000"),'2013 AMO MDCPS'!$C$916:$BC$1370,12,FALSE))),#N/A) -> 79 | E16: =IFERROR(IF(VLOOKUP(TEXT($A$1,"0000"),'2013 AMO MDCPS'!$C$916:$BC$1370,13,FALSE)="",#N/A,IF(VLOOKUP(TEXT($A$1,"0000"),'2013 AMO MDCPS'!$C$916:$BC$1370,13,FALSE)="***","<5%",VLOOKUP(TEXT($A$1,"0000"),'2013 AMO MDCPS'!$C$916:$BC$1370,13,FALSE))),#N/A) -> 79 | F16: =IFERROR(IF(VLOOKUP(TEXT($A$1,"0000"),'2012 AMO'!$C$1341:$AT$1785,13,FALSE)="",#N/A,VLOOKUP(TEXT($A$1,"0000"),'2012 AMO'!$C$1341:$AT$1785,13,FALSE)),#N/A) -> N | G16: =IFERROR(IF(VLOOKUP(TEXT($A$1,"0000"),'2012 AMO'!$C$896:$AT$1340,14,FALSE)="",#N/A,VLOOKUP(TEXT($A$1,"0000"),'2012 AMO'!$C$896:$AT$1340,14,FALSE)),#N/A) -> 79 | H16: =IFERROR(IF(D16="Y","Y",IF(VLOOKUP(TEXT($A$1,"0000"),'2012 AMO'!$C$896:$AT$1340,15,FALSE)="",#N/A,VLOOKUP(TEXT($A$1,"0000"),'2012 AMO'!$C$896:$AT$1340,15,FALSE))),#N/A) -> Y | I16: =IFERROR(IF(VLOOKUP(TEXT($A$1,"0000"),'2013 AMO MDCPS'!$C$916:$BC$1370,15,FALSE)="",#N/A,IF(VLOOKUP(TEXT($A$1,"0000"),'2013 AMO MDCPS'!$C$916:$BC$1370,15,FALSE)="***","<5%",VLOOKUP(TEXT($A$1,"0000"),'2013 AMO MDCPS'!$C$916:$BC$1370,15,FALSE))),#N/A) -> 81 | J16: =IFERROR(IF(VLOOKUP(TEXT($A$1,"0000"),'2013 AMO MDCPS'!$C$916:$BC$1370,16,FALSE)="",#N/A,IF(VLOOKUP(TEXT($A$1,"0000"),'2013 AMO MDCPS'!$C$916:$BC$1370,16,FALSE)="***","<5%",VLOOKUP(TEXT($A$1,"0000"),'2013 AMO MDCPS'!$C$916:$BC$1370,16,FALSE))),#N/A) -> N | K16: =IF(#REF!="NA","NA",IF(#REF! >#REF!,0,(100-#REF!)/12)) -> 
B17: Black | C17: =IFERROR(IF(VLOOKUP(TEXT($A$1,"0000"),'2013 AMO MDCPS'!$C$1371:$BC$1825,11,FALSE)="",#N/A,IF(VLOOKUP(TEXT($A$1,"0000"),'2013 AMO MDCPS'!$C$1371:$BC$1825,11,FALSE)="***","<5%",VLOOKUP(TEXT($A$1,"0000"),'2013 AMO MDCPS'!$C$1371:$BC$1825,11,FALSE))),#N/A) -> 37 | D17: =IFERROR(IF(VLOOKUP(TEXT($A$1,"0000"),'2013 AMO MDCPS'!$C$1371:$BC$1825,12,FALSE)="",#N/A,IF(VLOOKUP(TEXT($A$1,"0000"),'2013 AMO MDCPS'!$C$1371:$BC$1825,12,FALSE)="***","<5%",VLOOKUP(TEXT($A$1,"0000"),'2013 AMO MDCPS'!$C$1371:$BC$1825,12,FALSE))),#N/A) -> 38 | E17: =IFERROR(IF(VLOOKUP(TEXT($A$1,"0000"),'2013 AMO MDCPS'!$C$1371:$BC$1825,13,FALSE)="",#N/A,IF(VLOOKUP(TEXT($A$1,"0000"),'2013 AMO MDCPS'!$C$1371:$BC$1825,13,FALSE)="***","<5%",VLOOKUP(TEXT($A$1,"0000"),'2013 AMO MDCPS'!$C$1371:$BC$1825,13,FALSE))),#N/A) -> 39 | F17: =IFERROR(IF(VLOOKUP(TEXT($A$1,"0000"),'2012 AMO'!$C$2676:$AT$3120,13,FALSE)="",#N/A,VLOOKUP(TEXT($A$1,"0000"),'2012 AMO'!$C$2676:$AT$3120,13,FALSE)),#N/A) -> N | G17: =IFERROR(IF(VLOOKUP(TEXT($A$1,"0000"),'2012 AMO'!$C$1341:$AT$1785,14,FALSE)="",#N/A,VLOOKUP(TEXT($A$1,"0000"),'2012 AMO'!$C$1341:$AT$1785,14,FALSE)),#N/A) -> 42 | H17: =IFERROR(IF(D17="Y","Y",IF(VLOOKUP(TEXT($A$1,"0000"),'2012 AMO'!$C$1341:$AT$1785,15,FALSE)="",#N/A,VLOOKUP(TEXT($A$1,"0000"),'2012 AMO'!$C$1341:$AT$1785,15,FALSE))),#N/A) -> N | I17: =IFERROR(IF(VLOOKUP(TEXT($A$1,"0000"),'2013 AMO MDCPS'!$C$1371:$BC$1825,15,FALSE)="",#N/A,IF(VLOOKUP(TEXT($A$1,"0000"),'2013 AMO MDCPS'!$C$1371:$BC$1825,15,FALSE)="***","<5%",VLOOKUP(TEXT($A$1,"0000"),'2013 AMO MDCPS'!$C$1371:$BC$1825,15,FALSE))),#N/A) -> 48 | J17: =IFERROR(IF(VLOOKUP(TEXT($A$1,"0000"),'2013 AMO MDCPS'!$C$1371:$BC$1825,16,FALSE)="",#N/A,IF(VLOOKUP(TEXT($A$1,"0000"),'2013 AMO MDCPS'!$C$1371:$BC$1825,16,FALSE)="***","<5%",VLOOKUP(TEXT($A$1,"0000"),'2013 AMO MDCPS'!$C$1371:$BC$1825,16,FALSE))),#N/A) -> N | K17: =IF(#REF!="NA","NA",IF(#REF! >#REF!,0,(100-#REF!)/12)) -> 
B18: Hispanic | C18: =IFERROR(IF(VLOOKUP(TEXT($A$1,"0000"),'2013 AMO MDCPS'!$C$2736:$BC$3190,11,FALSE)="",#N/A,IF(VLOOKUP(TEXT($A$1,"0000"),'2013 AMO MDCPS'!$C$2736:$BC$3190,11,FALSE)="***","<5%",VLOOKUP(TEXT($A$1,"0000"),'2013 AMO MDCPS'!$C$2736:$BC$3190,11,FALSE))),#N/A) -> 57 | D18: =IFERROR(IF(VLOOKUP(TEXT($A$1,"0000"),'2013 AMO MDCPS'!$C$2736:$BC$3190,12,FALSE)="",#N/A,IF(VLOOKUP(TEXT($A$1,"0000"),'2013 AMO MDCPS'!$C$2736:$BC$3190,12,FALSE)="***","<5%",VLOOKUP(TEXT($A$1,"0000"),'2013 AMO MDCPS'!$C$2736:$BC$3190,12,FALSE))),#N/A) -> 58 | E18: =IFERROR(IF(VLOOKUP(TEXT($A$1,"0000"),'2013 AMO MDCPS'!$C$2736:$BC$3190,13,FALSE)="",#N/A,IF(VLOOKUP(TEXT($A$1,"0000"),'2013 AMO MDCPS'!$C$2736:$BC$3190,13,FALSE)="***","<5%",VLOOKUP(TEXT($A$1,"0000"),'2013 AMO MDCPS'!$C$2736:$BC$3190,13,FALSE))),#N/A) -> 59 | F18: =IFERROR(IF(VLOOKUP(TEXT($A$1,"0000"),'2012 AMO'!$C$896:$AT$1340,13,FALSE)="",#N/A,VLOOKUP(TEXT($A$1,"0000"),'2012 AMO'!$C$896:$AT$1340,13,FALSE)),#N/A) -> N | G18: =IFERROR(IF(VLOOKUP(TEXT($A$1,"0000"),'2012 AMO'!$C$2676:$AT$3120,14,FALSE)="",#N/A,VLOOKUP(TEXT($A$1,"0000"),'2012 AMO'!$C$2676:$AT$3120,14,FALSE)),#N/A) -> 61 | H18: =IFERROR(IF(D18="Y","Y",IF(VLOOKUP(TEXT($A$1,"0000"),'2012 AMO'!$C$2676:$AT$3120,15,FALSE)="",#N/A,VLOOKUP(TEXT($A$1,"0000"),'2012 AMO'!$C$2676:$AT$3120,15,FALSE))),#N/A) -> N | I18: =IFERROR(IF(VLOOKUP(TEXT($A$1,"0000"),'2013 AMO MDCPS'!$C$2736:$BC$3190,15,FALSE)="",#N/A,IF(VLOOKUP(TEXT($A$1,"0000"),'2013 AMO MDCPS'!$C$2736:$BC$3190,15,FALSE)="***","<5%",VLOOKUP(TEXT($A$1,"0000"),'2013 AMO MDCPS'!$C$2736:$BC$3190,15,FALSE))),#N/A) -> 64 | J18: =IFERROR(IF(VLOOKUP(TEXT($A$1,"0000"),'2013 AMO MDCPS'!$C$2736:$BC$3190,16,FALSE)="",#N/A,IF(VLOOKUP(TEXT($A$1,"0000"),'2013 AMO MDCPS'!$C$2736:$BC$3190,16,FALSE)="***","<5%",VLOOKUP(TEXT($A$1,"0000"),'2013 AMO MDCPS'!$C$2736:$BC$3190,16,FALSE))),#N/A) -> N | K18: =IF(#REF!="NA","NA",IF(#REF! >#REF!,0,(100-#REF!)/12)) -> 
B19: White | C19: =IFERROR(IF(VLOOKUP(TEXT($A$1,"0000"),'2013 AMO MDCPS'!$C$3646:$AT$4100,11,FALSE)="",#N/A,IF(VLOOKUP(TEXT($A$1,"0000"),'2013 AMO MDCPS'!$C$3646:$AT$4100,11,FALSE)="***","<5%",VLOOKUP(TEXT($A$1,"0000"),'2013 AMO MDCPS'!$C$3646:$AT$4100,11,FALSE))),#N/A) -> 75 | D19: =IFERROR(IF(VLOOKUP(TEXT($A$1,"0000"),'2013 AMO MDCPS'!$C$3646:$AT$4100,12,FALSE)="",#N/A,IF(VLOOKUP(TEXT($A$1,"0000"),'2013 AMO MDCPS'!$C$3646:$AT$4100,12,FALSE)="***","<5%",VLOOKUP(TEXT($A$1,"0000"),'2013 AMO MDCPS'!$C$3646:$AT$4100,12,FALSE))),#N/A) -> 76 | E19: =IFERROR(IF(VLOOKUP(TEXT($A$1,"0000"),'2013 AMO MDCPS'!$C$3646:$AT$4100,13,FALSE)="",#N/A,IF(VLOOKUP(TEXT($A$1,"0000"),'2013 AMO MDCPS'!$C$3646:$AT$4100,13,FALSE)="***","<5%",VLOOKUP(TEXT($A$1,"0000"),'2013 AMO MDCPS'!$C$3646:$AT$4100,13,FALSE))),#N/A) -> 77 | F19: =IFERROR(IF(VLOOKUP(TEXT($A$1,"0000"),'2012 AMO'!$C$451:$AT$895,13,FALSE)="",#N/A,VLOOKUP(TEXT($A$1,"0000"),'2012 AMO'!$C$451:$AT$895,13,FALSE)),#N/A) -> N | G19: =IFERROR(IF(VLOOKUP(TEXT($A$1,"0000"),'2012 AMO'!$C$3566:$AT$4100,14,FALSE)="",#N/A,VLOOKUP(TEXT($A$1,"0000"),'2012 AMO'!$C$3566:$AT$4100,14,FALSE)),#N/A) -> 77 | H19: =IFERROR(IF(D19="Y","Y",IF(VLOOKUP(TEXT($A$1,"0000"),'2012 AMO'!$C$3566:$AT$4100,15,FALSE)="",#N/A,VLOOKUP(TEXT($A$1,"0000"),'2012 AMO'!$C$3566:$AT$4100,15,FALSE))),#N/A) -> N | I19: =IFERROR(IF(VLOOKUP(TEXT($A$1,"0000"),'2013 AMO MDCPS'!$C$3646:$AT$4100,15,FALSE)="",#N/A,IF(VLOOKUP(TEXT($A$1,"0000"),'2013 AMO MDCPS'!$C$3646:$AT$4100,15,FALSE)="***","<5%",VLOOKUP(TEXT($A$1,"0000"),'2013 AMO MDCPS'!$C$3646:$AT$4100,15,FALSE))),#N/A) -> 79 | J19: =IFERROR(IF(VLOOKUP(TEXT($A$1,"0000"),'2013 AMO MDCPS'!$C$3646:$AT$4100,16,FALSE)="",#N/A,IF(VLOOKUP(TEXT($A$1,"0000"),'2013 AMO MDCPS'!$C$3646:$AT$4100,16,FALSE)="***","<5%",VLOOKUP(TEXT($A$1,"0000"),'2013 AMO MDCPS'!$C$3646:$AT$4100,16,FALSE))),#N/A) -> N | K19: =IF(#REF!="NA","NA",IF(#REF! >#REF!,0,(100-#REF!)/12)) -> 
B20: ELL | C20: =IFERROR(IF(VLOOKUP(TEXT($A$1,"0000"),'2013 AMO MDCPS'!$C$2281:$BC$2735,11,FALSE)="",#N/A,IF(VLOOKUP(TEXT($A$1,"0000"),'2013 AMO MDCPS'!$C$2281:$BC$2735,11,FALSE)="***","<5%",VLOOKUP(TEXT($A$1,"0000"),'2013 AMO MDCPS'!$C$2281:$BC$2735,11,FALSE))),#N/A) -> 37 | D20: =IFERROR(IF(VLOOKUP(TEXT($A$1,"0000"),'2013 AMO MDCPS'!$C$2281:$BC$2735,12,FALSE)="",#N/A,IF(VLOOKUP(TEXT($A$1,"0000"),'2013 AMO MDCPS'!$C$2281:$BC$2735,12,FALSE)="***","<5%",VLOOKUP(TEXT($A$1,"0000"),'2013 AMO MDCPS'!$C$2281:$BC$2735,12,FALSE))),#N/A) -> 39 | E20: =IFERROR(IF(VLOOKUP(TEXT($A$1,"0000"),'2013 AMO MDCPS'!$C$2281:$BC$2735,13,FALSE)="",#N/A,IF(VLOOKUP(TEXT($A$1,"0000"),'2013 AMO MDCPS'!$C$2281:$BC$2735,13,FALSE)="***","<5%",VLOOKUP(TEXT($A$1,"0000"),'2013 AMO MDCPS'!$C$2281:$BC$2735,13,FALSE))),#N/A) -> 37 | F20: =IFERROR(IF(VLOOKUP(TEXT($A$1,"0000"),'2012 AMO'!$C$2231:$AT$2675,13,FALSE)="",#N/A,VLOOKUP(TEXT($A$1,"0000"),'2012 AMO'!$C$2231:$AT$2675,13,FALSE)),#N/A) -> N | G20: =IFERROR(IF(VLOOKUP(TEXT($A$1,"0000"),'2012 AMO'!$C$2231:$AT$2675,14,FALSE)="",#N/A,VLOOKUP(TEXT($A$1,"0000"),'2012 AMO'!$C$2231:$AT$2675,14,FALSE)),#N/A) -> 42 | H20: =IFERROR(IF(D20="Y","Y",IF(VLOOKUP(TEXT($A$1,"0000"),'2012 AMO'!$C$2231:$AT$2675,15,FALSE)="",#N/A,VLOOKUP(TEXT($A$1,"0000"),'2012 AMO'!$C$2231:$AT$2675,15,FALSE))),#N/A) -> N | I20: =IFERROR(IF(VLOOKUP(TEXT($A$1,"0000"),'2013 AMO MDCPS'!$C$2281:$BC$2735,15,FALSE)="",#N/A,IF(VLOOKUP(TEXT($A$1,"0000"),'2013 AMO MDCPS'!$C$2281:$BC$2735,15,FALSE)="***","<5%",VLOOKUP(TEXT($A$1,"0000"),'2013 AMO MDCPS'!$C$2281:$BC$2735,15,FALSE))),#N/A) -> 48 | J20: =IFERROR(IF(VLOOKUP(TEXT($A$1,"0000"),'2013 AMO MDCPS'!$C$2281:$BC$2735,16,FALSE)="",#N/A,IF(VLOOKUP(TEXT($A$1,"0000"),'2013 AMO MDCPS'!$C$2281:$BC$2735,16,FALSE)="***","<5%",VLOOKUP(TEXT($A$1,"0000"),'2013 AMO MDCPS'!$C$2281:$BC$2735,16,FALSE))),#N/A) -> N | K20: =IF(#REF!="NA","NA",IF(#REF! >#REF!,0,(100-#REF!)/12)) -> 
B21: SWD | C21: =IFERROR(IF(VLOOKUP(TEXT($A$1,"0000"),'2013 AMO MDCPS'!$C$3191:$BC$3645,11,FALSE)="",#N/A,IF(VLOOKUP(TEXT($A$1,"0000"),'2013 AMO MDCPS'!$C$3191:$BC$3645,11,FALSE)="***","<5%",VLOOKUP(TEXT($A$1,"0000"),'2013 AMO MDCPS'!$C$3191:$BC$3645,11,FALSE))),#N/A) -> 26 | D21: =IFERROR(IF(VLOOKUP(TEXT($A$1,"0000"),'2013 AMO MDCPS'!$C$3191:$BC$3645,12,FALSE)="",#N/A,IF(VLOOKUP(TEXT($A$1,"0000"),'2013 AMO MDCPS'!$C$3191:$BC$3645,12,FALSE)="***","<5%",VLOOKUP(TEXT($A$1,"0000"),'2013 AMO MDCPS'!$C$3191:$BC$3645,12,FALSE))),#N/A) -> 28 | E21: =IFERROR(IF(VLOOKUP(TEXT($A$1,"0000"),'2013 AMO MDCPS'!$C$3191:$BC$3645,13,FALSE)="",#N/A,IF(VLOOKUP(TEXT($A$1,"0000"),'2013 AMO MDCPS'!$C$3191:$BC$3645,13,FALSE)="***","<5%",VLOOKUP(TEXT($A$1,"0000"),'2013 AMO MDCPS'!$C$3191:$BC$3645,13,FALSE))),#N/A) -> 28 | F21: =IFERROR(IF(VLOOKUP(TEXT($A$1,"0000"),'2012 AMO'!$C$3121:$AT$3565,13,FALSE)="",#N/A,VLOOKUP(TEXT($A$1,"0000"),'2012 AMO'!$C$3121:$AT$3565,13,FALSE)),#N/A) -> N | G21: =IFERROR(IF(VLOOKUP(TEXT($A$1,"0000"),'2012 AMO'!$C$3121:$AT$3565,14,FALSE)="",#N/A,VLOOKUP(TEXT($A$1,"0000"),'2012 AMO'!$C$3121:$AT$3565,14,FALSE)),#N/A) -> 32 | H21: =IFERROR(IF(D21="Y","Y",IF(VLOOKUP(TEXT($A$1,"0000"),'2012 AMO'!$C$3121:$AT$3565,15,FALSE)="",#N/A,VLOOKUP(TEXT($A$1,"0000"),'2012 AMO'!$C$3121:$AT$3565,15,FALSE))),#N/A) -> N | I21: =IFERROR(IF(VLOOKUP(TEXT($A$1,"0000"),'2013 AMO MDCPS'!$C$3191:$BC$3645,15,FALSE)="",#N/A,IF(VLOOKUP(TEXT($A$1,"0000"),'2013 AMO MDCPS'!$C$3191:$BC$3645,15,FALSE)="***","<5%",VLOOKUP(TEXT($A$1,"0000"),'2013 AMO MDCPS'!$C$3191:$BC$3645,15,FALSE))),#N/A) -> 38 | J21: =IFERROR(IF(VLOOKUP(TEXT($A$1,"0000"),'2013 AMO MDCPS'!$C$3191:$BC$3645,16,FALSE)="",#N/A,IF(VLOOKUP(TEXT($A$1,"0000"),'2013 AMO MDCPS'!$C$3191:$BC$3645,16,FALSE)="***","<5%",VLOOKUP(TEXT($A$1,"0000"),'2013 AMO MDCPS'!$C$3191:$BC$3645,16,FALSE))),#N/A) -> N | K21: =IF(OR(#REF!="NA",#REF!="***"),"NA",IF(#REF! >#REF!,0,(100-#REF!)/12)) -> 
B22: ED | C22: =IFERROR(IF(VLOOKUP(TEXT($A$1,"0000"),'2013 AMO MDCPS'!$C$1826:$BC$2280,11,FALSE)="",#N/A,IF(VLOOKUP(TEXT($A$1,"0000"),'2013 AMO MDCPS'!$C$1826:$BC$2280,11,FALSE)="***","<5%",VLOOKUP(TEXT($A$1,"0000"),'2013 AMO MDCPS'!$C$1826:$BC$2280,11,FALSE))),#N/A) -> 47 | D22: =IFERROR(IF(VLOOKUP(TEXT($A$1,"0000"),'2013 AMO MDCPS'!$C$1826:$BC$2280,12,FALSE)="",#N/A,IF(VLOOKUP(TEXT($A$1,"0000"),'2013 AMO MDCPS'!$C$1826:$BC$2280,12,FALSE)="***","<5%",VLOOKUP(TEXT($A$1,"0000"),'2013 AMO MDCPS'!$C$1826:$BC$2280,12,FALSE))),#N/A) -> 49 | E22: =IFERROR(IF(VLOOKUP(TEXT($A$1,"0000"),'2013 AMO MDCPS'!$C$1826:$BC$2280,13,FALSE)="",#N/A,IF(VLOOKUP(TEXT($A$1,"0000"),'2013 AMO MDCPS'!$C$1826:$BC$2280,13,FALSE)="***","<5%",VLOOKUP(TEXT($A$1,"0000"),'2013 AMO MDCPS'!$C$1826:$BC$2280,13,FALSE))),#N/A) -> 50 | F22: =IFERROR(IF(VLOOKUP(TEXT($A$1,"0000"),'2012 AMO'!$C$1786:$AT$2230,13,FALSE)="",#N/A,VLOOKUP(TEXT($A$1,"0000"),'2012 AMO'!$C$1786:$AT$2230,13,FALSE)),#N/A) -> N | G22: =IFERROR(IF(VLOOKUP(TEXT($A$1,"0000"),'2012 AMO'!$C$1786:$AT$2230,14,FALSE)="",#N/A,VLOOKUP(TEXT($A$1,"0000"),'2012 AMO'!$C$1786:$AT$2230,14,FALSE)),#N/A) -> 51 | H22: =IFERROR(IF(D22="Y","Y",IF(VLOOKUP(TEXT($A$1,"0000"),'2012 AMO'!$C$1786:$AT$2230,15,FALSE)="",#N/A,VLOOKUP(TEXT($A$1,"0000"),'2012 AMO'!$C$1786:$AT$2230,15,FALSE))),#N/A) -> N | I22: =IFERROR(IF(VLOOKUP(TEXT($A$1,"0000"),'2013 AMO MDCPS'!$C$1826:$BC$2280,15,FALSE)="",#N/A,IF(VLOOKUP(TEXT($A$1,"0000"),'2013 AMO MDCPS'!$C$1826:$BC$2280,15,FALSE)="***","<5%",VLOOKUP(TEXT($A$1,"0000"),'2013 AMO MDCPS'!$C$1826:$BC$2280,15,FALSE))),#N/A) -> 56 | J22: =IFERROR(IF(VLOOKUP(TEXT($A$1,"0000"),'2013 AMO MDCPS'!$C$1826:$BC$2280,16,FALSE)="",#N/A,IF(VLOOKUP(TEXT($A$1,"0000"),'2013 AMO MDCPS'!$C$1826:$BC$2280,16,FALSE)="***","<5%",VLOOKUP(TEXT($A$1,"0000"),'2013 AMO MDCPS'!$C$1826:$BC$2280,16,FALSE))),#N/A) -> N | K22: =IF(#REF!="NA","NA",IF(#REF! >#REF!,0,(100-#REF!)/12)) -> 
A23: Math (% Satisfactory or higher) | B23: All Students | C23: =IFERROR(IF(VLOOKUP(TEXT($A$1,"0000"),'2013 AMO MDCPS'!$C$6:$BC$460,22,FALSE)="",#N/A,IF(VLOOKUP(TEXT($A$1,"0000"),'2013 AMO MDCPS'!$C$6:$BC$460,22,FALSE)="***","<5%",VLOOKUP(TEXT($A$1,"0000"),'2013 AMO MDCPS'!$C$6:$BC$460,22,FALSE))),#N/A) -> 53 | D23: =IFERROR(IF(VLOOKUP(TEXT($A$1,"0000"),'2013 AMO MDCPS'!$C$6:$BC$460,23,FALSE)="",#N/A,IF(VLOOKUP(TEXT($A$1,"0000"),'2013 AMO MDCPS'!$C$6:$BC$460,23,FALSE)="***","<5%",VLOOKUP(TEXT($A$1,"0000"),'2013 AMO MDCPS'!$C$6:$BC$460,23,FALSE))),#N/A) -> 57 | E23: =IFERROR(IF(VLOOKUP(TEXT($A$1,"0000"),'2013 AMO MDCPS'!$C$6:$BC$460,24,FALSE)="",#N/A,IF(VLOOKUP(TEXT($A$1,"0000"),'2013 AMO MDCPS'!$C$6:$BC$460,24,FALSE)="***","<5%",VLOOKUP(TEXT($A$1,"0000"),'2013 AMO MDCPS'!$C$6:$BC$460,24,FALSE))),#N/A) -> 59 | F23: =IFERROR(IF(VLOOKUP(TEXT($A$1,"0000"),'2012 AMO'!$C$6:$AT$450,23,FALSE)="",#N/A,VLOOKUP(TEXT($A$1,"0000"),'2012 AMO'!$C$6:$AT$450,23,FALSE)),#N/A) -> N | G23: =IFERROR(IF(VLOOKUP(TEXT($A$1,"0000"),'2012 AMO'!$C$6:$AT$450,24,FALSE)="",#N/A,VLOOKUP(TEXT($A$1,"0000"),'2012 AMO'!$C$6:$AT$450,24,FALSE)),#N/A) -> 57 | H23: =IFERROR(IF(D23="Y","Y",IF(VLOOKUP(TEXT($A$1,"0000"),'2012 AMO'!$C$6:$AT$450,25,FALSE)="",#N/A,VLOOKUP(TEXT($A$1,"0000"),'2012 AMO'!$C$6:$AT$450,25,FALSE))),#N/A) -> Y | I23: =IFERROR(IF(VLOOKUP(TEXT($A$1,"0000"),'2013 AMO MDCPS'!$C$6:$BC$460,26,FALSE)="",#N/A,IF(VLOOKUP(TEXT($A$1,"0000"),'2013 AMO MDCPS'!$C$6:$BC$460,26,FALSE)="***","<5%",VLOOKUP(TEXT($A$1,"0000"),'2013 AMO MDCPS'!$C$6:$BC$460,26,FALSE))),#N/A) -> 61 | J23: =IFERROR(IF(VLOOKUP(TEXT($A$1,"0000"),'2013 AMO MDCPS'!$C$6:$BC$460,27,FALSE)="",#N/A,IF(VLOOKUP(TEXT($A$1,"0000"),'2013 AMO MDCPS'!$C$6:$BC$460,27,FALSE)="***","<5%",VLOOKUP(TEXT($A$1,"0000"),'2013 AMO MDCPS'!$C$6:$BC$460,27,FALSE))),#N/A) -> N | K23: =IF(#REF!="NA","NA",IF(#REF! >#REF!,0,(100-#REF!)/12)) -> 
B24: American Indian | C24: =IFERROR(IF(VLOOKUP(TEXT($A$1,"0000"),'2013 AMO MDCPS'!$C$461:$BC$915,22,FALSE)="",#N/A,IF(VLOOKUP(TEXT($A$1,"0000"),'2013 AMO MDCPS'!$C$461:$BC$915,22,FALSE)="***","<5%",VLOOKUP(TEXT($A$1,"0000"),'2013 AMO MDCPS'!$C$461:$BC$915,22,FALSE))),#N/A) -> 59 | D24: =IFERROR(IF(VLOOKUP(TEXT($A$1,"0000"),'2013 AMO MDCPS'!$C$461:$BC$915,23,FALSE)="",#N/A,IF(VLOOKUP(TEXT($A$1,"0000"),'2013 AMO MDCPS'!$C$461:$BC$915,23,FALSE)="***","<5%",VLOOKUP(TEXT($A$1,"0000"),'2013 AMO MDCPS'!$C$461:$BC$915,23,FALSE))),#N/A) -> 61 | E24: =IFERROR(IF(VLOOKUP(TEXT($A$1,"0000"),'2013 AMO MDCPS'!$C$461:$BC$915,24,FALSE)="",#N/A,IF(VLOOKUP(TEXT($A$1,"0000"),'2013 AMO MDCPS'!$C$461:$BC$915,24,FALSE)="***","<5%",VLOOKUP(TEXT($A$1,"0000"),'2013 AMO MDCPS'!$C$461:$BC$915,24,FALSE))),#N/A) -> 65 | F24: =IFERROR(IF(VLOOKUP(TEXT($A$1,"0000"),'2012 AMO'!$C$3566:$AT$4010,23,FALSE)="",#N/A,VLOOKUP(TEXT($A$1,"0000"),'2012 AMO'!$C$3566:$AT$4010,23,FALSE)),#N/A) -> N | G24: =IFERROR(IF(VLOOKUP(TEXT($A$1,"0000"),'2012 AMO'!$C$451:$AT$895,24,FALSE)="",#N/A,VLOOKUP(TEXT($A$1,"0000"),'2012 AMO'!$C$451:$AT$895,24,FALSE)),#N/A) -> 62 | H24: =IFERROR(IF(D24="Y","Y",IF(VLOOKUP(TEXT($A$1,"0000"),'2012 AMO'!$C$451:$AT$895,25,FALSE)="",#N/A,VLOOKUP(TEXT($A$1,"0000"),'2012 AMO'!$C$451:$AT$895,25,FALSE))),#N/A) -> N | I24: =IFERROR(IF(VLOOKUP(TEXT($A$1,"0000"),'2013 AMO MDCPS'!$C$461:$BC$915,26,FALSE)="",#N/A,IF(VLOOKUP(TEXT($A$1,"0000"),'2013 AMO MDCPS'!$C$461:$BC$915,26,FALSE)="***","<5%",VLOOKUP(TEXT($A$1,"0000"),'2013 AMO MDCPS'!$C$461:$BC$915,26,FALSE))),#N/A) -> 66 | J24: =IFERROR(IF(VLOOKUP(TEXT($A$1,"0000"),'2013 AMO MDCPS'!$C$461:$BC$915,27,FALSE)="",#N/A,IF(VLOOKUP(TEXT($A$1,"0000"),'2013 AMO MDCPS'!$C$461:$BC$915,27,FALSE)="***","<5%",VLOOKUP(TEXT($A$1,"0000"),'2013 AMO MDCPS'!$C$461:$BC$915,27,FALSE))),#N/A) -> Y | K24: =IF(#REF!="NA","NA",IF(#REF! >#REF!,0,(100-#REF!)/12)) -> 
B25: Asian | C25: =IFERROR(IF(VLOOKUP(TEXT($A$1,"0000"),'2013 AMO MDCPS'!$C$916:$BC$1370,22,FALSE)="",#N/A,IF(VLOOKUP(TEXT($A$1,"0000"),'2013 AMO MDCPS'!$C$916:$BC$1370,22,FALSE)="***","<5%",VLOOKUP(TEXT($A$1,"0000"),'2013 AMO MDCPS'!$C$916:$BC$1370,22,FALSE))),#N/A) -> 82 | D25: =IFERROR(IF(VLOOKUP(TEXT($A$1,"0000"),'2013 AMO MDCPS'!$C$916:$BC$1370,23,FALSE)="",#N/A,IF(VLOOKUP(TEXT($A$1,"0000"),'2013 AMO MDCPS'!$C$916:$BC$1370,23,FALSE)="***","<5%",VLOOKUP(TEXT($A$1,"0000"),'2013 AMO MDCPS'!$C$916:$BC$1370,23,FALSE))),#N/A) -> 84 | E25: =IFERROR(IF(VLOOKUP(TEXT($A$1,"0000"),'2013 AMO MDCPS'!$C$916:$BC$1370,24,FALSE)="",#N/A,IF(VLOOKUP(TEXT($A$1,"0000"),'2013 AMO MDCPS'!$C$916:$BC$1370,24,FALSE)="***","<5%",VLOOKUP(TEXT($A$1,"0000"),'2013 AMO MDCPS'!$C$916:$BC$1370,24,FALSE))),#N/A) -> 85 | F25: =IFERROR(IF(VLOOKUP(TEXT($A$1,"0000"),'2012 AMO'!$C$1341:$AT$1785,23,FALSE)="",#N/A,VLOOKUP(TEXT($A$1,"0000"),'2012 AMO'!$C$1341:$AT$1785,23,FALSE)),#N/A) -> N | G25: =IFERROR(IF(VLOOKUP(TEXT($A$1,"0000"),'2012 AMO'!$C$896:$AT$1340,24,FALSE)="",#N/A,VLOOKUP(TEXT($A$1,"0000"),'2012 AMO'!$C$896:$AT$1340,24,FALSE)),#N/A) -> 84 | H25: =IFERROR(IF(D25="Y","Y",IF(VLOOKUP(TEXT($A$1,"0000"),'2012 AMO'!$C$896:$AT$1340,25,FALSE)="",#N/A,VLOOKUP(TEXT($A$1,"0000"),'2012 AMO'!$C$896:$AT$1340,25,FALSE))),#N/A) -> Y | I25: =IFERROR(IF(VLOOKUP(TEXT($A$1,"0000"),'2013 AMO MDCPS'!$C$916:$BC$1370,26,FALSE)="",#N/A,IF(VLOOKUP(TEXT($A$1,"0000"),'2013 AMO MDCPS'!$C$916:$BC$1370,26,FALSE)="***","<5%",VLOOKUP(TEXT($A$1,"0000"),'2013 AMO MDCPS'!$C$916:$BC$1370,26,FALSE))),#N/A) -> 85 | J25: =IFERROR(IF(VLOOKUP(TEXT($A$1,"0000"),'2013 AMO MDCPS'!$C$916:$BC$1370,27,FALSE)="",#N/A,IF(VLOOKUP(TEXT($A$1,"0000"),'2013 AMO MDCPS'!$C$916:$BC$1370,27,FALSE)="***","<5%",VLOOKUP(TEXT($A$1,"0000"),'2013 AMO MDCPS'!$C$916:$BC$1370,27,FALSE))),#N/A) -> Y | K25: =IF(#REF!="NA","NA",IF(#REF! >#REF!,0,(100-#REF!)/12)) -> 
B26: Black | C26: =IFERROR(IF(VLOOKUP(TEXT($A$1,"0000"),'2013 AMO MDCPS'!$C$1371:$BC$1825,22,FALSE)="",#N/A,IF(VLOOKUP(TEXT($A$1,"0000"),'2013 AMO MDCPS'!$C$1371:$BC$1825,22,FALSE)="***","<5%",VLOOKUP(TEXT($A$1,"0000"),'2013 AMO MDCPS'!$C$1371:$BC$1825,22,FALSE))),#N/A) -> 38 | D26: =IFERROR(IF(VLOOKUP(TEXT($A$1,"0000"),'2013 AMO MDCPS'!$C$1371:$BC$1825,23,FALSE)="",#N/A,IF(VLOOKUP(TEXT($A$1,"0000"),'2013 AMO MDCPS'!$C$1371:$BC$1825,23,FALSE)="***","<5%",VLOOKUP(TEXT($A$1,"0000"),'2013 AMO MDCPS'!$C$1371:$BC$1825,23,FALSE))),#N/A) -> 42 | E26: =IFERROR(IF(VLOOKUP(TEXT($A$1,"0000"),'2013 AMO MDCPS'!$C$1371:$BC$1825,24,FALSE)="",#N/A,IF(VLOOKUP(TEXT($A$1,"0000"),'2013 AMO MDCPS'!$C$1371:$BC$1825,24,FALSE)="***","<5%",VLOOKUP(TEXT($A$1,"0000"),'2013 AMO MDCPS'!$C$1371:$BC$1825,24,FALSE))),#N/A) -> 45 | F26: =IFERROR(IF(VLOOKUP(TEXT($A$1,"0000"),'2012 AMO'!$C$2676:$AT$3120,23,FALSE)="",#N/A,VLOOKUP(TEXT($A$1,"0000"),'2012 AMO'!$C$2676:$AT$3120,23,FALSE)),#N/A) -> N | G26: =IFERROR(IF(VLOOKUP(TEXT($A$1,"0000"),'2012 AMO'!$C$1341:$AT$1785,24,FALSE)="",#N/A,VLOOKUP(TEXT($A$1,"0000"),'2012 AMO'!$C$1341:$AT$1785,24,FALSE)),#N/A) -> 43 | H26: =IFERROR(IF(D26="Y","Y",IF(VLOOKUP(TEXT($A$1,"0000"),'2012 AMO'!$C$1341:$AT$1785,25,FALSE)="",#N/A,VLOOKUP(TEXT($A$1,"0000"),'2012 AMO'!$C$1341:$AT$1785,25,FALSE))),#N/A) -> N | I26: =IFERROR(IF(VLOOKUP(TEXT($A$1,"0000"),'2013 AMO MDCPS'!$C$1371:$BC$1825,26,FALSE)="",#N/A,IF(VLOOKUP(TEXT($A$1,"0000"),'2013 AMO MDCPS'!$C$1371:$BC$1825,26,FALSE)="***","<5%",VLOOKUP(TEXT($A$1,"0000"),'2013 AMO MDCPS'!$C$1371:$BC$1825,26,FALSE))),#N/A) -> 48 | J26: =IFERROR(IF(VLOOKUP(TEXT($A$1,"0000"),'2013 AMO MDCPS'!$C$1371:$BC$1825,27,FALSE)="",#N/A,IF(VLOOKUP(TEXT($A$1,"0000"),'2013 AMO MDCPS'!$C$1371:$BC$1825,27,FALSE)="***","<5%",VLOOKUP(TEXT($A$1,"0000"),'2013 AMO MDCPS'!$C$1371:$BC$1825,27,FALSE))),#N/A) -> N | K26: =IF(#REF!="NA","NA",IF(#REF! >#REF!,0,(100-#REF!)/12)) -> 
B27: Hispanic | C27: =IFERROR(IF(VLOOKUP(TEXT($A$1,"0000"),'2013 AMO MDCPS'!$C$2736:$BC$3190,22,FALSE)="",#N/A,IF(VLOOKUP(TEXT($A$1,"0000"),'2013 AMO MDCPS'!$C$2736:$BC$3190,22,FALSE)="***","<5%",VLOOKUP(TEXT($A$1,"0000"),'2013 AMO MDCPS'!$C$2736:$BC$3190,22,FALSE))),#N/A) -> 56 | D27: =IFERROR(IF(VLOOKUP(TEXT($A$1,"0000"),'2013 AMO MDCPS'!$C$2736:$BC$3190,23,FALSE)="",#N/A,IF(VLOOKUP(TEXT($A$1,"0000"),'2013 AMO MDCPS'!$C$2736:$BC$3190,23,FALSE)="***","<5%",VLOOKUP(TEXT($A$1,"0000"),'2013 AMO MDCPS'!$C$2736:$BC$3190,23,FALSE))),#N/A) -> 60 | E27: =IFERROR(IF(VLOOKUP(TEXT($A$1,"0000"),'2013 AMO MDCPS'!$C$2736:$BC$3190,24,FALSE)="",#N/A,IF(VLOOKUP(TEXT($A$1,"0000"),'2013 AMO MDCPS'!$C$2736:$BC$3190,24,FALSE)="***","<5%",VLOOKUP(TEXT($A$1,"0000"),'2013 AMO MDCPS'!$C$2736:$BC$3190,24,FALSE))),#N/A) -> 61 | F27: =IFERROR(IF(VLOOKUP(TEXT($A$1,"0000"),'2012 AMO'!$C$896:$AT$1340,23,FALSE)="",#N/A,VLOOKUP(TEXT($A$1,"0000"),'2012 AMO'!$C$896:$AT$1340,23,FALSE)),#N/A) -> N | G27: =IFERROR(IF(VLOOKUP(TEXT($A$1,"0000"),'2012 AMO'!$C$2676:$AT$3120,24,FALSE)="",#N/A,VLOOKUP(TEXT($A$1,"0000"),'2012 AMO'!$C$2676:$AT$3120,24,FALSE)),#N/A) -> 60 | H27: =IFERROR(IF(D27="Y","Y",IF(VLOOKUP(TEXT($A$1,"0000"),'2012 AMO'!$C$2676:$AT$3120,25,FALSE)="",#N/A,VLOOKUP(TEXT($A$1,"0000"),'2012 AMO'!$C$2676:$AT$3120,25,FALSE))),#N/A) -> Y | I27: =IFERROR(IF(VLOOKUP(TEXT($A$1,"0000"),'2013 AMO MDCPS'!$C$2736:$BC$3190,26,FALSE)="",#N/A,IF(VLOOKUP(TEXT($A$1,"0000"),'2013 AMO MDCPS'!$C$2736:$BC$3190,26,FALSE)="***","<5%",VLOOKUP(TEXT($A$1,"0000"),'2013 AMO MDCPS'!$C$2736:$BC$3190,26,FALSE))),#N/A) -> 63 | J27: =IFERROR(IF(VLOOKUP(TEXT($A$1,"0000"),'2013 AMO MDCPS'!$C$2736:$BC$3190,27,FALSE)="",#N/A,IF(VLOOKUP(TEXT($A$1,"0000"),'2013 AMO MDCPS'!$C$2736:$BC$3190,27,FALSE)="***","<5%",VLOOKUP(TEXT($A$1,"0000"),'2013 AMO MDCPS'!$C$2736:$BC$3190,27,FALSE))),#N/A) -> N | K27: =IF(#REF!="NA","NA",IF(#REF! >#REF!,0,(100-#REF!)/12)) -> 
B28: White | C28: =IFERROR(IF(VLOOKUP(TEXT($A$1,"0000"),'2013 AMO MDCPS'!$C$3646:$AT$4100,22,FALSE)="",#N/A,IF(VLOOKUP(TEXT($A$1,"0000"),'2013 AMO MDCPS'!$C$3646:$AT$4100,22,FALSE)="***","<5%",VLOOKUP(TEXT($A$1,"0000"),'2013 AMO MDCPS'!$C$3646:$AT$4100,22,FALSE))),#N/A) -> 72 | D28: =IFERROR(IF(VLOOKUP(TEXT($A$1,"0000"),'2013 AMO MDCPS'!$C$3646:$AT$4100,23,FALSE)="",#N/A,IF(VLOOKUP(TEXT($A$1,"0000"),'2013 AMO MDCPS'!$C$3646:$AT$4100,23,FALSE)="***","<5%",VLOOKUP(TEXT($A$1,"0000"),'2013 AMO MDCPS'!$C$3646:$AT$4100,23,FALSE))),#N/A) -> 76 | E28: =IFERROR(IF(VLOOKUP(TEXT($A$1,"0000"),'2013 AMO MDCPS'!$C$3646:$AT$4100,24,FALSE)="",#N/A,IF(VLOOKUP(TEXT($A$1,"0000"),'2013 AMO MDCPS'!$C$3646:$AT$4100,24,FALSE)="***","<5%",VLOOKUP(TEXT($A$1,"0000"),'2013 AMO MDCPS'!$C$3646:$AT$4100,24,FALSE))),#N/A) -> 76 | F28: =IFERROR(IF(VLOOKUP(TEXT($A$1,"0000"),'2012 AMO'!$C$451:$AT$895,23,FALSE)="",#N/A,VLOOKUP(TEXT($A$1,"0000"),'2012 AMO'!$C$451:$AT$895,23,FALSE)),#N/A) -> N | G28: =IFERROR(IF(VLOOKUP(TEXT($A$1,"0000"),'2012 AMO'!$C$3566:$AT$4010,24,FALSE)="",#N/A,VLOOKUP(TEXT($A$1,"0000"),'2012 AMO'!$C$3566:$AT$4010,24,FALSE)),#N/A) -> 74 | H28: =IFERROR(IF(D28="Y","Y",IF(VLOOKUP(TEXT($A$1,"0000"),'2012 AMO'!$C$3566:$AT$4010,25,FALSE)="",#N/A,VLOOKUP(TEXT($A$1,"0000"),'2012 AMO'!$C$3566:$AT$4010,25,FALSE))),#N/A) -> Y | I28: =IFERROR(IF(VLOOKUP(TEXT($A$1,"0000"),'2013 AMO MDCPS'!$C$3646:$AT$4100,26,FALSE)="",#N/A,IF(VLOOKUP(TEXT($A$1,"0000"),'2013 AMO MDCPS'!$C$3646:$AT$4100,26,FALSE)="***","<5%",VLOOKUP(TEXT($A$1,"0000"),'2013 AMO MDCPS'!$C$3646:$AT$4100,26,FALSE))),#N/A) -> 77 | J28: =IFERROR(IF(VLOOKUP(TEXT($A$1,"0000"),'2013 AMO MDCPS'!$C$3646:$AT$4100,27,FALSE)="",#N/A,IF(VLOOKUP(TEXT($A$1,"0000"),'2013 AMO MDCPS'!$C$3646:$AT$4100,27,FALSE)="***","<5%",VLOOKUP(TEXT($A$1,"0000"),'2013 AMO MDCPS'!$C$3646:$AT$4100,27,FALSE))),#N/A) -> N | K28: =IF(#REF!="NA","NA",IF(#REF! >#REF!,0,(100-#REF!)/12)) -> 
B29: ELL | C29: =IFERROR(IF(VLOOKUP(TEXT($A$1,"0000"),'2013 AMO MDCPS'!$C$2281:$BC$2735,22,FALSE)="",#N/A,IF(VLOOKUP(TEXT($A$1,"0000"),'2013 AMO MDCPS'!$C$2281:$BC$2735,22,FALSE)="***","<5%",VLOOKUP(TEXT($A$1,"0000"),'2013 AMO MDCPS'!$C$2281:$BC$2735,22,FALSE))),#N/A) -> 45 | D29: =IFERROR(IF(VLOOKUP(TEXT($A$1,"0000"),'2013 AMO MDCPS'!$C$2281:$BC$2735,23,FALSE)="",#N/A,IF(VLOOKUP(TEXT($A$1,"0000"),'2013 AMO MDCPS'!$C$2281:$BC$2735,23,FALSE)="***","<5%",VLOOKUP(TEXT($A$1,"0000"),'2013 AMO MDCPS'!$C$2281:$BC$2735,23,FALSE))),#N/A) -> 49 | E29: =IFERROR(IF(VLOOKUP(TEXT($A$1,"0000"),'2013 AMO MDCPS'!$C$2281:$BC$2735,24,FALSE)="",#N/A,IF(VLOOKUP(TEXT($A$1,"0000"),'2013 AMO MDCPS'!$C$2281:$BC$2735,24,FALSE)="***","<5%",VLOOKUP(TEXT($A$1,"0000"),'2013 AMO MDCPS'!$C$2281:$BC$2735,24,FALSE))),#N/A) -> 47 | F29: =IFERROR(IF(VLOOKUP(TEXT($A$1,"0000"),'2012 AMO'!$C$2231:$AT$2675,23,FALSE)="",#N/A,VLOOKUP(TEXT($A$1,"0000"),'2012 AMO'!$C$2231:$AT$2675,23,FALSE)),#N/A) -> N | G29: =IFERROR(IF(VLOOKUP(TEXT($A$1,"0000"),'2012 AMO'!$C$2231:$AT$2675,24,FALSE)="",#N/A,VLOOKUP(TEXT($A$1,"0000"),'2012 AMO'!$C$2231:$AT$2675,24,FALSE)),#N/A) -> 50 | H29: =IFERROR(IF(D29="Y","Y",IF(VLOOKUP(TEXT($A$1,"0000"),'2012 AMO'!$C$2231:$AT$2675,25,FALSE)="",#N/A,VLOOKUP(TEXT($A$1,"0000"),'2012 AMO'!$C$2231:$AT$2675,25,FALSE))),#N/A) -> N | I29: =IFERROR(IF(VLOOKUP(TEXT($A$1,"0000"),'2013 AMO MDCPS'!$C$2281:$BC$2735,26,FALSE)="",#N/A,IF(VLOOKUP(TEXT($A$1,"0000"),'2013 AMO MDCPS'!$C$2281:$BC$2735,26,FALSE)="***","<5%",VLOOKUP(TEXT($A$1,"0000"),'2013 AMO MDCPS'!$C$2281:$BC$2735,26,FALSE))),#N/A) -> 54 | J29: =IFERROR(IF(VLOOKUP(TEXT($A$1,"0000"),'2013 AMO MDCPS'!$C$2281:$BC$2735,27,FALSE)="",#N/A,IF(VLOOKUP(TEXT($A$1,"0000"),'2013 AMO MDCPS'!$C$2281:$BC$2735,27,FALSE)="***","<5%",VLOOKUP(TEXT($A$1,"0000"),'2013 AMO MDCPS'!$C$2281:$BC$2735,27,FALSE))),#N/A) -> N | K29: =IF(#REF!="NA","NA",IF(#REF! >#REF!,0,(100-#REF!)/12)) -> 
B30: SWD | C30: =IFERROR(IF(VLOOKUP(TEXT($A$1,"0000"),'2013 AMO MDCPS'!$C$3191:$BC$3645,22,FALSE)="",#N/A,IF(VLOOKUP(TEXT($A$1,"0000"),'2013 AMO MDCPS'!$C$3191:$BC$3645,22,FALSE)="***","<5%",VLOOKUP(TEXT($A$1,"0000"),'2013 AMO MDCPS'!$C$3191:$BC$3645,22,FALSE))),#N/A) -> 28 | D30: =IFERROR(IF(VLOOKUP(TEXT($A$1,"0000"),'2013 AMO MDCPS'!$C$3191:$BC$3645,23,FALSE)="",#N/A,IF(VLOOKUP(TEXT($A$1,"0000"),'2013 AMO MDCPS'!$C$3191:$BC$3645,23,FALSE)="***","<5%",VLOOKUP(TEXT($A$1,"0000"),'2013 AMO MDCPS'!$C$3191:$BC$3645,23,FALSE))),#N/A) -> 31 | E30: =IFERROR(IF(VLOOKUP(TEXT($A$1,"0000"),'2013 AMO MDCPS'!$C$3191:$BC$3645,24,FALSE)="",#N/A,IF(VLOOKUP(TEXT($A$1,"0000"),'2013 AMO MDCPS'!$C$3191:$BC$3645,24,FALSE)="***","<5%",VLOOKUP(TEXT($A$1,"0000"),'2013 AMO MDCPS'!$C$3191:$BC$3645,24,FALSE))),#N/A) -> 31 | F30: =IFERROR(IF(VLOOKUP(TEXT($A$1,"0000"),'2012 AMO'!$C$3121:$AT$3565,23,FALSE)="",#N/A,VLOOKUP(TEXT($A$1,"0000"),'2012 AMO'!$C$3121:$AT$3565,23,FALSE)),#N/A) -> N | G30: =IFERROR(IF(VLOOKUP(TEXT($A$1,"0000"),'2012 AMO'!$C$3121:$AT$3565,24,FALSE)="",#N/A,VLOOKUP(TEXT($A$1,"0000"),'2012 AMO'!$C$3121:$AT$3565,24,FALSE)),#N/A) -> 34 | H30: =IFERROR(IF(D30="Y","Y",IF(VLOOKUP(TEXT($A$1,"0000"),'2012 AMO'!$C$3121:$AT$3565,25,FALSE)="",#N/A,VLOOKUP(TEXT($A$1,"0000"),'2012 AMO'!$C$3121:$AT$3565,25,FALSE))),#N/A) -> N | I30: =IFERROR(IF(VLOOKUP(TEXT($A$1,"0000"),'2013 AMO MDCPS'!$C$3191:$BC$3645,26,FALSE)="",#N/A,IF(VLOOKUP(TEXT($A$1,"0000"),'2013 AMO MDCPS'!$C$3191:$BC$3645,26,FALSE)="***","<5%",VLOOKUP(TEXT($A$1,"0000"),'2013 AMO MDCPS'!$C$3191:$BC$3645,26,FALSE))),#N/A) -> 40 | J30: =IFERROR(IF(VLOOKUP(TEXT($A$1,"0000"),'2013 AMO MDCPS'!$C$3191:$BC$3645,27,FALSE)="",#N/A,IF(VLOOKUP(TEXT($A$1,"0000"),'2013 AMO MDCPS'!$C$3191:$BC$3645,27,FALSE)="***","<5%",VLOOKUP(TEXT($A$1,"0000"),'2013 AMO MDCPS'!$C$3191:$BC$3645,27,FALSE))),#N/A) -> N | K30: =IF(#REF!="NA","NA",IF(#REF! >#REF!,0,(100-#REF!)/12)) -> 
B31: ED | C31: =IFERROR(IF(VLOOKUP(TEXT($A$1,"0000"),'2013 AMO MDCPS'!$C$1826:$BC$2280,22,FALSE)="",#N/A,IF(VLOOKUP(TEXT($A$1,"0000"),'2013 AMO MDCPS'!$C$1826:$BC$2280,22,FALSE)="***","<5%",VLOOKUP(TEXT($A$1,"0000"),'2013 AMO MDCPS'!$C$1826:$BC$2280,22,FALSE))),#N/A) -> 47 | D31: =IFERROR(IF(VLOOKUP(TEXT($A$1,"0000"),'2013 AMO MDCPS'!$C$1826:$BC$2280,23,FALSE)="",#N/A,IF(VLOOKUP(TEXT($A$1,"0000"),'2013 AMO MDCPS'!$C$1826:$BC$2280,23,FALSE)="***","<5%",VLOOKUP(TEXT($A$1,"0000"),'2013 AMO MDCPS'!$C$1826:$BC$2280,23,FALSE))),#N/A) -> 52 | E31: =IFERROR(IF(VLOOKUP(TEXT($A$1,"0000"),'2013 AMO MDCPS'!$C$1826:$BC$2280,24,FALSE)="",#N/A,IF(VLOOKUP(TEXT($A$1,"0000"),'2013 AMO MDCPS'!$C$1826:$BC$2280,24,FALSE)="***","<5%",VLOOKUP(TEXT($A$1,"0000"),'2013 AMO MDCPS'!$C$1826:$BC$2280,24,FALSE))),#N/A) -> 54 | F31: =IFERROR(IF(VLOOKUP(TEXT($A$1,"0000"),'2012 AMO'!$C$1786:$AT$2230,23,FALSE)="",#N/A,VLOOKUP(TEXT($A$1,"0000"),'2012 AMO'!$C$1786:$AT$2230,23,FALSE)),#N/A) -> N | G31: =IFERROR(IF(VLOOKUP(TEXT($A$1,"0000"),'2012 AMO'!$C$1786:$AT$2230,24,FALSE)="",#N/A,VLOOKUP(TEXT($A$1,"0000"),'2012 AMO'!$C$1786:$AT$2230,24,FALSE)),#N/A) -> 51 | H31: =IFERROR(IF(D31="Y","Y",IF(VLOOKUP(TEXT($A$1,"0000"),'2012 AMO'!$C$1786:$AT$2230,25,FALSE)="",#N/A,VLOOKUP(TEXT($A$1,"0000"),'2012 AMO'!$C$1786:$AT$2230,25,FALSE))),#N/A) -> Y | I31: =IFERROR(IF(VLOOKUP(TEXT($A$1,"0000"),'2013 AMO MDCPS'!$C$1826:$BC$2280,26,FALSE)="",#N/A,IF(VLOOKUP(TEXT($A$1,"0000"),'2013 AMO MDCPS'!$C$1826:$BC$2280,26,FALSE)="***","<5%",VLOOKUP(TEXT($A$1,"0000"),'2013 AMO MDCPS'!$C$1826:$BC$2280,26,FALSE))),#N/A) -> 56 | J31: =IFERROR(IF(VLOOKUP(TEXT($A$1,"0000"),'2013 AMO MDCPS'!$C$1826:$BC$2280,27,FALSE)="",#N/A,IF(VLOOKUP(TEXT($A$1,"0000"),'2013 AMO MDCPS'!$C$1826:$BC$2280,27,FALSE)="***","<5%",VLOOKUP(TEXT($A$1,"0000"),'2013 AMO MDCPS'!$C$1826:$BC$2280,27,FALSE))),#N/A) -> N | K31: =IF(#REF!="NA","NA",IF(#REF! >#REF!,0,(100-#REF!)/12)) -> 
A32: Writing-FCAT2.0/FAA - All Students in Grades 4, 8, and 10 (% scores of 3.5 or higher) | D32: =IFERROR(IF(VLOOKUP(TEXT($A$1,"0000"),'2012 W Combined'!$A$4:$F$500,2,FALSE)<10,#N/A,VLOOKUP(TEXT($A$1,"0000"),'2012 W Combined'!$A$4:$F$500,4,FALSE)),#N/A) -> 51 | E32: =VLOOKUP(TEXT($A$1,"0000"),'2013 W Combined'!$A$4:$R$500,16,FALSE) -> 58 | F32: =VLOOKUP(TEXT($A$1,"0000"),'2013 W Combined'!$A$4:$R$500,16,FALSE) -> 58 | G32: NA | H32: NA | I32: NA | J32: NA
A33: Science (FCAT2.0) - All Students in Grades 5, 8, and 10 (% Satisfactory or higher) | D33: =IFERROR(VLOOKUP(TEXT($A$1,"0000"),'2012Sci CombG'!$A$2:$I$500,8,FALSE),#N/A) -> 46 | E33: =IFERROR(VLOOKUP(TEXT($A$1,"0000"),'2013Sci CombG'!$A$2:$I$500,8,FALSE),#N/A) -> 47 | G33: NA | H33: NA | I33: NA | J33: NA
A34: Biology EOC - All Students (% Satisfactory or higher) | D34: =IFERROR(IF(VLOOKUP(TEXT($A$1,"0000"),'2012 Bio'!$C$2:$G$500,3,FALSE)<10,#N/A,VLOOKUP(TEXT($A$1,"0000"),'2012 Bio'!$C$2:$G$500,5,FALSE)),#N/A) -> 51 | E34: =IFERROR(IF(VLOOKUP(VALUE($A$1),'2013 BIO'!$A$2:$K$500,3,FALSE)<10,#N/A,VLOOKUP(VALUE($A$1),'2013 BIO'!$A$2:$K$500,5,FALSE)),#N/A) -> 63 | G34: NA | H34: NA | I34: NA | J34: NA

Sheet Trend by Subgroup
A1: Click here to return to the school selection sheet
A3: =TEXT(Performance!A1,"0000")&"-"&VLOOKUP(TEXT(Performance!A1,"0000"),SchList!$A$1:$B$500,2,FALSE) -> 9999-District

Sheet District Trend by Subgroup
A1: Click here to return to the school selection sheet
A3: 9999-District

Sheet Trend by Grade
A1: Click Here to "Select School" Page
A2: =VALUE('Select School'!$B$3) -> 9999
S3: Elementary
A4: =TEXT(A2,"0000")&"-"&VLOOKUP(TEXT(A2,"0000"),SchList!$A$1:$B$500,2,FALSE) -> 9999-District | S4: Reading
T5: All | U5: Grade 3 | V5: Grade 4 | W5: Grade 5 | X5: Grade 6 | Y5: Grade 7 | Z5: Grade 8 | AA5: Grade 9 | AB5: Grade 10
S6: 2011 | U6: =IFERROR(IF(VLOOKUP($A$2,'R-2011'!$A$7:$N$500,3,FALSE)<10,#N/A,VLOOKUP($A$2,'R-2011'!$A$7:$N$500,10,FALSE)),#N/A) -> 52 | V6: =IFERROR(IF(OR(VLOOKUP($A$2,'R-2011'!$P$7:$AC$500,3,FALSE)<10,VLOOKUP($A$2,'R-2011'!$P$7:$AC$500,10,FALSE)=""),#N/A,VLOOKUP($A$2,'R-2011'!$P$7:$AC$500,10,FALSE)),#N/A) -> 57 | W6: =IFERROR(IF(OR(VLOOKUP($A$2,'R-2011'!$AE$7:$AR$500,3,FALSE)<10,VLOOKUP($A$2,'R-2011'!$AE$7:$AR$500,10,FALSE)=""),#N/A,VLOOKUP($A$2,'R-2011'!$AE$7:$AR$500,10,FALSE)),#N/A) -> 55 | X6: =IFERROR(IF(OR(VLOOKUP($A$2,'R-2011'!$AT$7:$BG$500,3,FALSE)<10,VLOOKUP($A$2,'R-2011'!$AT$7:$BG$500,10,FALSE)=""),#N/A,VLOOKUP($A$2,'R-2011'!$AT$7:$BG$500,10,FALSE)),#N/A) -> 55 | Y6: =IFERROR(IF(OR(VLOOKUP($A$2,'R-2011'!$BI$7:$BV$500,3,FALSE)<10,VLOOKUP($A$2,'R-2011'!$BI$7:$BV$500,10,FALSE)=""),#N/A,VLOOKUP($A$2,'R-2011'!$BI$7:$BV$500,10,FALSE)),#N/A) -> 54 | Z6: =IFERROR(IF(OR(VLOOKUP($A$2,'R-2011'!$BX$7:$CK$500,3,FALSE)<10,VLOOKUP($A$2,'R-2011'!$BX$7:$CK$500,10,FALSE)=""),#N/A,VLOOKUP($A$2,'R-2011'!$BX$7:$CK$500,10,FALSE)),#N/A) -> 50 | AA6: =IFERROR(IF(VLOOKUP($A$2,'R-2011'!$CM$7:$CZ$500,3,FALSE)<10,#N/A,VLOOKUP($A$2,'R-2011'!$CM$7:$CZ$500,10,FALSE)),#N/A) -> 45 | AB6: =IFERROR(IF(VLOOKUP($A$2,'R-2011'!$DB$7:$DP$500,3,FALSE)<10,#N/A,VLOOKUP($A$2,'R-2011'!$DB$7:$DP$500,11,FALSE)),#N/A) -> 51
S7: 2012 | U7: =IFERROR(IF(OR(VLOOKUP($A$2,'R-2012'!$A$7:$N$500,3,FALSE)<10,VLOOKUP($A$2,'R-2012'!$A$7:$N$500,10,FALSE)=""),#N/A,VLOOKUP($A$2,'R-2012'!$A$7:$N$500,10,FALSE)),#N/A) -> 53 | V7: =IFERROR(IF(OR(VLOOKUP($A$2,'R-2012'!$P$7:$AC$500,3,FALSE)<10,VLOOKUP($A$2,'R-2012'!$P$7:$AC$500,10,FALSE)=""),#N/A,VLOOKUP($A$2,'R-2012'!$P$7:$AC$500,10,FALSE)),#N/A) -> 60 | W7: =IFERROR(IF(OR(VLOOKUP($A$2,'R-2012'!$AE$7:$AR$500,3,FALSE)<10,VLOOKUP($A$2,'R-2012'!$AE$7:$AR$500,10,FALSE)=""),#N/A,VLOOKUP($A$2,'R-2012'!$AE$7:$AR$500,10,FALSE)),#N/A) -> 60 | X7: =IFERROR(IF(OR(VLOOKUP($A$2,'R-2012'!$AT$7:$BG$500,3,FALSE)<10,VLOOKUP($A$2,'R-2012'!$AT$7:$BG$500,10,FALSE)=""),#N/A,VLOOKUP($A$2,'R-2012'!$AT$7:$BG$500,10,FALSE)),#N/A) -> 53 | Y7: =IFERROR(IF(OR(VLOOKUP($A$2,'R-2012'!$BI$7:$BV$500,3,FALSE)<10,VLOOKUP($A$2,'R-2012'!$BI$7:$BV$500,10,FALSE)=""),#N/A,VLOOKUP($A$2,'R-2012'!$BI$7:$BV$500,10,FALSE)),#N/A) -> 54 | Z7: =IFERROR(IF(OR(VLOOKUP($A$2,'R-2012'!$BX$7:$CK$500,3,FALSE)<10,VLOOKUP($A$2,'R-2012'!$BX$7:$CK$500,10,FALSE)=""),#N/A,VLOOKUP($A$2,'R-2012'!$BX$7:$CK$500,10,FALSE)),#N/A) -> 54 | AA7: =IFERROR(VLOOKUP($A$2,'R-2012'!$CM$7:$CZ$500,10,FALSE),#N/A) -> 48 | AB7: =IFERROR(IF(VLOOKUP($A$2,'R-2012'!$DB$7:$DP$500,3,FALSE)<10,#N/A,VLOOKUP($A$2,'R-2012'!$DB$7:$DP$500,11,FALSE)),#N/A) -> 46
S8: 2013 | U8: =IFERROR(IF(OR(VLOOKUP($A$2,'R-2013'!$A$7:$N$500,3,FALSE)<10,VLOOKUP($A$2,'R-2013'!$A$7:$N$500,10,FALSE)=""),#N/A,VLOOKUP($A$2,'R-2013'!$A$7:$N$500,10,FALSE)),#N/A) -> 53 | V8: =IFERROR(IF(OR(VLOOKUP($A$2,'R-2013'!$P$7:$AC$500,3,FALSE)<10,VLOOKUP($A$2,'R-2013'!$P$7:$AC$500,10,FALSE)=""),#N/A,VLOOKUP($A$2,'R-2013'!$P$7:$AC$500,10,FALSE)),#N/A) -> 59 | W8: =IFERROR(IF(OR(VLOOKUP($A$2,'R-2013'!$AE$7:$AR$500,3,FALSE)<10,VLOOKUP($A$2,'R-2013'!$AE$7:$AR$500,10,FALSE)=""),#N/A,VLOOKUP($A$2,'R-2013'!$AE$7:$AR$500,10,FALSE)),#N/A) -> 59 | X8: =IFERROR(IF(OR(VLOOKUP($A$2,'R-2013'!$AT$7:$BG$500,3,FALSE)<10,VLOOKUP($A$2,'R-2013'!$AT$7:$BG$500,10,FALSE)=""),#N/A,VLOOKUP($A$2,'R-2013'!$AT$7:$BG$500,10,FALSE)),#N/A) -> 57 | Y8: =IFERROR(IF(OR(VLOOKUP($A$2,'R-2013'!$BI$7:$BV$500,3,FALSE)<10,VLOOKUP($A$2,'R-2013'!$BI$7:$BV$500,10,FALSE)=""),#N/A,VLOOKUP($A$2,'R-2013'!$BI$7:$BV$500,10,FALSE)),#N/A) -> 57 | Z8: =IFERROR(IF(OR(VLOOKUP($A$2,'R-2013'!$BX$7:$CK$500,3,FALSE)<10,VLOOKUP($A$2,'R-2013'!$BX$7:$CK$500,10,FALSE)=""),#N/A,VLOOKUP($A$2,'R-2013'!$BX$7:$CK$500,10,FALSE)),#N/A) -> 56 | AA8: =IFERROR(VLOOKUP($A$2,'R-2013'!$CM$7:$CZ$500,10,FALSE),#N/A) -> 52 | AB8: =IFERROR(IF(VLOOKUP($A$2,'R-2013'!$DB$7:$DP$500,3,FALSE)<10,#N/A,VLOOKUP($A$2,'R-2013'!$DB$7:$DP$500,11,FALSE)),#N/A) -> 52
S9: Math
T10: All | U10: Grade 3 | V10: Grade 4 | W10: Grade 5 | X10: Grade 6 | Y10: Grade 7 | Z10: Grade 8 | AA10: ALG | AB10: GEO
R11: =A2 -> 9999 | S11: 2011 | U11: =IFERROR(IF(OR(VLOOKUP($A$2,'M-2011'!$A$7:$M$500,3,FALSE)<10,VLOOKUP($A$2,'M-2011'!$A$7:$M$500,10,FALSE)=""),#N/A,VLOOKUP($A$2,'M-2011'!$A$7:$M$500,10,FALSE)),#N/A) -> 58 | V11: =IFERROR(IF(OR(VLOOKUP($A$2,'M-2011'!$O$7:$AA$500,3,FALSE)<10,VLOOKUP($A$2,'M-2011'!$O$7:$AA$500,10,FALSE)=""),#N/A,VLOOKUP($A$2,'M-2011'!$O$7:$AA$500,10,FALSE)),#N/A) -> 61 | W11: =IFERROR(IF(OR(VLOOKUP($A$2,'M-2011'!$AC$7:$AO$500,3,FALSE)<10,VLOOKUP($A$2,'M-2011'!$AC$7:$AO$500,10,FALSE)=""),#N/A,VLOOKUP($A$2,'M-2011'!$AC$7:$AO$500,10,FALSE)),#N/A) -> 54 | X11: =IFERROR(IF(OR(VLOOKUP($A$2,'M-2011'!$AQ$7:$BC$500,3,FALSE)<10,VLOOKUP($A$2,'M-2011'!$AQ$7:$BC$500,10,FALSE)=""),#N/A,VLOOKUP($A$2,'M-2011'!$AQ$7:$BC$500,10,FALSE)),#N/A) -> 47 | Y11: =IFERROR(IF(OR(VLOOKUP($A$2,'M-2011'!$BE$7:$BR$500,3,FALSE)<10,VLOOKUP($A$2,'M-2011'!$BE$7:$BR$500,10,FALSE)=""),#N/A,VLOOKUP($A$2,'M-2011'!$BE$7:$BR$500,10,FALSE)),#N/A) -> 51 | Z11: =IFERROR(IF(OR(VLOOKUP($A$2,'M-2011'!$BT$7:$CF$500,3,FALSE)<10,VLOOKUP($A$2,'M-2011'!$BT$7:$CF$500,10,FALSE)=""),#N/A,VLOOKUP($A$2,'M-2011'!$BT$7:$CF$500,10,FALSE)),#N/A) -> 54 | AA11: =IFERROR(IF(OR(VLOOKUP($A$2,'M-2011'!$CH$7:$CQ$500,3,FALSE)<10,VLOOKUP($A$2,'M-2011'!$CH$7:$CQ$500,5,FALSE)=""),#N/A,VLOOKUP($A$2,'M-2011'!$CH$7:$CQ$500,5,FALSE)),#N/A) -> 47
S12: 2012 | U12: =IFERROR(IF(OR(VLOOKUP($A$2,'M-2012'!$A$7:$M$500,3,FALSE)<10,VLOOKUP($A$2,'M-2012'!$A$7:$M$500,10,FALSE)=""),#N/A,VLOOKUP($A$2,'M-2012'!$A$7:$M$500,10,FALSE)),#N/A) -> 60 | V12: =IFERROR(IF(OR(VLOOKUP($A$2,'M-2012'!$O$7:$AA$500,3,FALSE)<10,VLOOKUP($A$2,'M-2012'!$O$7:$AA$500,10,FALSE)=""),#N/A,VLOOKUP($A$2,'M-2012'!$O$7:$AA$500,10,FALSE)),#N/A) -> 62 | W12: =IFERROR(IF(OR(VLOOKUP($A$2,'M-2012'!$AC$7:$AO$500,3,FALSE)<10,VLOOKUP($A$2,'M-2012'!$AC$7:$AO$500,10,FALSE)=""),#N/A,VLOOKUP($A$2,'M-2012'!$AC$7:$AO$500,10,FALSE)),#N/A) -> 58 | X12: =IFERROR(IF(OR(VLOOKUP($A$2,'M-2012'!$AQ$7:$BC$500,3,FALSE)<10,VLOOKUP($A$2,'M-2012'!$AQ$7:$BC$500,10,FALSE)=""),#N/A,VLOOKUP($A$2,'M-2012'!$AQ$7:$BC$500,10,FALSE)),#N/A) -> 50 | Y12: =IFERROR(IF(OR(VLOOKUP($A$2,'M-2012'!$BE$7:$BR$500,3,FALSE)<10,VLOOKUP($A$2,'M-2012'!$BE$7:$BR$500,10,FALSE)=""),#N/A,VLOOKUP($A$2,'M-2012'!$BE$7:$BR$500,10,FALSE)),#N/A) -> 52 | Z12: =IFERROR(IF(OR(VLOOKUP($A$2,'M-2012'!$BT$7:$CF$500,3,FALSE)<10,VLOOKUP($A$2,'M-2012'!$BT$7:$CF$500,10,FALSE)=""),#N/A,VLOOKUP($A$2,'M-2012'!$BT$7:$CF$500,10,FALSE)),#N/A) -> 56 | AA12: =IFERROR(IF(OR(VLOOKUP($A$2,'M-2012'!$CH$7:$CQ$500,3,FALSE)<10,VLOOKUP($A$2,'M-2012'!$CH$7:$CQ$500,5,FALSE)=""),#N/A,VLOOKUP($A$2,'M-2012'!$CH$7:$CQ$500,5,FALSE)),#N/A) -> 56 | AB12: =IFERROR(IF(VLOOKUP(TEXT($A$2,"0000"),'2012 GEO'!$C$2:$L$500,3,FALSE)<10,#N/A,VLOOKUP(TEXT($A$2,"0000"),'2012 GEO'!$C$2:$L$500,5,FALSE)),#N/A) -> 47
S13: 2013 | U13: =IFERROR(IF(OR(VLOOKUP($A$2,'M-2013'!$A$7:$M$500,3,FALSE)<10,VLOOKUP($A$2,'M-2013'!$A$7:$M$500,10,FALSE)=""),#N/A,VLOOKUP($A$2,'M-2013'!$A$7:$M$500,10,FALSE)),#N/A) -> 62 | V13: =IFERROR(IF(OR(VLOOKUP($A$2,'M-2013'!$O$7:$AA$500,3,FALSE)<10,VLOOKUP($A$2,'M-2013'!$O$7:$AA$500,10,FALSE)=""),#N/A,VLOOKUP($A$2,'M-2013'!$O$7:$AA$500,10,FALSE)),#N/A) -> 64 | W13: =IFERROR(IF(OR(VLOOKUP($A$2,'M-2013'!$AC$7:$AO$500,3,FALSE)<10,VLOOKUP($A$2,'M-2013'!$AC$7:$AO$500,10,FALSE)=""),#N/A,VLOOKUP($A$2,'M-2013'!$AC$7:$AO$500,10,FALSE)),#N/A) -> 56 | X13: =IFERROR(IF(OR(VLOOKUP($A$2,'M-2013'!$AQ$7:$BC$500,3,FALSE)<10,VLOOKUP($A$2,'M-2013'!$AQ$7:$BC$500,10,FALSE)=""),#N/A,VLOOKUP($A$2,'M-2013'!$AQ$7:$BC$500,10,FALSE)),#N/A) -> 51 | Y13: =IFERROR(IF(OR(VLOOKUP($A$2,'M-2013'!$BE$7:$BR$500,3,FALSE)<10,VLOOKUP($A$2,'M-2013'!$BE$7:$BR$500,10,FALSE)=""),#N/A,VLOOKUP($A$2,'M-2013'!$BE$7:$BR$500,10,FALSE)),#N/A) -> 51 | Z13: =IFERROR(IF(OR(VLOOKUP($A$2,'M-2013'!$BT$7:$CF$500,3,FALSE)<10,VLOOKUP($A$2,'M-2013'!$BT$7:$CF$500,10,FALSE)=""),#N/A,VLOOKUP($A$2,'M-2013'!$BT$7:$CF$500,10,FALSE)),#N/A) -> 35 | AA13: =IFERROR(IF(VLOOKUP($A$2,'M-2013'!$CH$6:$CQ$500,3,FALSE)<10,#N/A,VLOOKUP($A$2,'M-2013'!$CH$6:$CQ$500,4,FALSE)),#N/A) -> 66 | AB13: =IFERROR(IF(VLOOKUP(TEXT($A$2,"0000"),'2013 GEO'!$A$2:$K$500,3,FALSE)<10,#N/A,VLOOKUP(TEXT($A$2,"0000"),'2013 GEO'!$A$2:$K$500,5,FALSE)),#N/A) -> 60
S14: Writing | X14: Science
U15: Grade 4 | V15: Grade 8 | W15: Grade 10 | X15: Grade 5 | Y15: Grade 8 | Z15: BIO
S16: 2011
S17: 2012 | U17: =IFERROR(IF(OR(VLOOKUP($A$2,'W12'!$A$7:$S$500,3,FALSE)<10,VLOOKUP($A$2,'W12'!$A$7:$S$500,18,FALSE)=""),#N/A,VLOOKUP($A$2,'W12'!$A$7:$S$500,18,FALSE)),#N/A) -> 47 | V17: =IFERROR(IF(OR(VLOOKUP($A$2,'W12'!$U$7:$AM$500,3,FALSE)<10,VLOOKUP($A$2,'W12'!$U$7:$AM$500,18,FALSE)=""),#N/A,VLOOKUP($A$2,'W12'!$U$7:$AM$500,18,FALSE)),#N/A) -> 47 | W17: =IFERROR(IF(OR(VLOOKUP($A$2,'W12'!$AO$7:$BG$500,3,FALSE)<10,VLOOKUP($A$2,'W12'!$AO$7:$BG$500,18,FALSE)=""),#N/A,VLOOKUP($A$2,'W12'!$AO$7:$BG$500,18,FALSE)),#N/A) -> 59 | X17: =IFERROR(IF(VLOOKUP($A$2,'S-2012'!$A$7:$N$500,3,FALSE)<10,#N/A,VLOOKUP($A$2,'S-2012'!$A$7:$N$500,10,FALSE)),#N/A) -> 49 | Y17: =IFERROR(IF(VLOOKUP($A$2,'S-2012'!$P$7:$AC$500,3,FALSE)<10,#N/A,VLOOKUP($A$2,'S-2012'!$P$7:$AC$500,10,FALSE)),#N/A) -> 44 | Z17: =IFERROR(IF(VLOOKUP(TEXT($A$2,"0000"),'2012 Bio'!$C$2:$L$500,3,FALSE)<10,#N/A,VLOOKUP(TEXT($A$2,"0000"),'2012 Bio'!$C$2:$L$500,5,FALSE)),#N/A) -> 51
S18: 2013 | U18: =IFERROR(IF(OR(VLOOKUP($A$2,'W13'!$A$7:$S$500,3,FALSE)<10,VLOOKUP($A$2,'W13'!$A$7:$S$500,18,FALSE)=""),#N/A,VLOOKUP($A$2,'W13'!$A$7:$S$500,18,FALSE)),#N/A) -> 58 | V18: =IFERROR(IF(OR(VLOOKUP($A$2,'W13'!$U$7:$AM$500,3,FALSE)<10,VLOOKUP($A$2,'W13'!$U$7:$AM$500,18,FALSE)=""),#N/A,VLOOKUP($A$2,'W13'!$U$7:$AM$500,18,FALSE)),#N/A) -> 49 | W18: =IFERROR(IF(OR(VLOOKUP($A$2,'W13'!$AO$7:$BG$500,3,FALSE)<10,VLOOKUP($A$2,'W13'!$AO$7:$BG$500,18,FALSE)=""),#N/A,VLOOKUP($A$2,'W13'!$AO$7:$BG$500,18,FALSE)),#N/A) -> 66 | X18: =IFERROR(IF(VLOOKUP($A$2,'S-2013'!$A$7:$N$500,3,FALSE)<10,#N/A,VLOOKUP($A$2,'S-2013'!$A$7:$N$500,10,FALSE)),#N/A) -> 51 | Y18: =IFERROR(IF(VLOOKUP($A$2,'S-2013'!$P$7:$AC$500,3,FALSE)<10,#N/A,VLOOKUP($A$2,'S-2013'!$P$7:$AC$500,10,FALSE)),#N/A) -> 42 | Z18: =IFERROR(IF(VLOOKUP(VALUE($A$2),'2013 BIO'!$A$2:$K$500,3,FALSE)<10,#N/A,VLOOKUP(VALUE($A$2),'2013 BIO'!$A$2:$K$500,5,FALSE)),#N/A) -> 63

Sheet Comparison
A1: ='Select School'!B3 -> 9999 | B1: Group | C1: =VLOOKUP(A1,SchList!$A$2:$E$334,5,FALSE) -> 
A2: Click here to return to the school selection sheet
C3: 1
I5: 1 | J5: =VLOOKUP(I5,SchList!$I$1:$J$334,2,FALSE) -> 9999
B6: ='Select School'!D3 -> K | I6: 1 | J6: =VLOOKUP(I6,SchList!$I$1:$J$334,2,FALSE) -> 9999
I7: 1 | J7: =VLOOKUP(I7,SchList!$I$1:$J$334,2,FALSE) -> 9999
I8: 1 | J8: =VLOOKUP(I8,SchList!$I$1:$J$334,2,FALSE) -> 9999
A12: WL | B12: School Name | C12: Demographic Information (October 2012 FTE) | O12: 2013 School Grade Performance Measures | S12: Quality of Learning
C13: Total Students | D13: % White | E13: % African American | F13: % Hispanic | G13: % English Language Learner | H13: %Student With Disability | I13: % Free and Reduced Price Lunch | J13: Title I School | K13: % Satisfactory | O13: % Making Learning Gains | S13: Reading | U13: Math
K14: Reading | L14: Math | M14: Writing | N14: Science | O14: Reading-Overall | P14: Math Overall | Q14: Reading-Low 25% | R14: Math-Low25% | S14: Students Meeting/ Exceeding State Expectations | T14: Category | U14: Students Meeting/ Exceeding State Expectations | V14: Category
A15: =A1 -> 9999 | B15: =IFERROR(VLOOKUP(A15,SchList!$A$2:$B$334,2,FALSE),"") ->  | C15: =IF($A15="","",VLOOKUP($A15,ethbysch!$A$3:$Q$493,17,FALSE)) -> 353152 | D15: =IF($A15="","",VLOOKUP($A15,ethbysch!$A$3:$Q$493,4,FALSE)) -> 8.1 | E15: =IF($A15="","",VLOOKUP($A15,ethbysch!$A$3:$Q$493,6,FALSE)) -> 23.5 | F15: =IF($A15="","",VLOOKUP($A15,ethbysch!$A$3:$Q$493,8,FALSE)) -> 66.7 | G15: =IF($A15="","",VLOOKUP($A15,fsubc!$A$3:$M$508,6,FALSE)) -> 20.9 | H15: =IF($A15="","",VLOOKUP($A15,fsubc!$A$3:$M$508,8,FALSE)) -> 10.1 | I15: =IF($A15="","",VLOOKUP($A15,fsubc!$A$3:$M$508,12,FALSE)) -> 73 | J15: =IF($A15="","",VLOOKUP(VALUE($A15),Table10[],3,FALSE)) ->  | K15: =IF($A15="","",VLOOKUP($A15,'2013 SG'!$D$8:$BC$435,3,FALSE)) -> 57 | L15: =IF($A15="","",VLOOKUP($A15,'2013 SG'!$D$8:$BC$435,4,FALSE)) -> 59 | M15: =IF($A15="","",VLOOKUP($A15,'2013 SG'!$D$8:$BC$435,5,FALSE)) -> 58 | N15: =IF($A15="","",VLOOKUP($A15,'2013 SG'!$D$8:$BC$435,6,FALSE)) -> 54 | O15: =IF($A15="","",VLOOKUP($A15,'2013 SG'!$D$8:$BC$435,7,FALSE)) -> 68 | P15: =IF($A15="","",VLOOKUP($A15,'2013 SG'!$D$8:$BC$435,8,FALSE)) -> 67 | Q15: =IF($A15="","",VLOOKUP($A15,'2013 SG'!$D$8:$BC$435,9,FALSE)) -> 67 | R15: =IF($A15="","",VLOOKUP($A15,'2013 SG'!$D$8:$BC$435,10,FALSE)) -> 65 | S15: =IFERROR(VLOOKUP($A15,Schools1213PCTmeetNoCharter!$A$2:$F$344,5,FALSE)*0.01,"") ->  | T15: =IFERROR(VLOOKUP(A15,Schools1213PCTmeetNoCharter!$A$2:$F$344,3,FALSE),"") ->  | U15: =IFERROR(VLOOKUP($A15,Schools1213PCTmeetNoCharter!$A$2:$F$344,6,FALSE)*0.01,"") ->  | V15: =IFERROR(VLOOKUP(A15,Schools1213PCTmeetNoCharter!$A$2:$F$344,4,FALSE),"") -> 
A16: =IF(VLOOKUP($C$1,Group!$A$2:$BH$50,2,FALSE)="","",IF(TEXT(VLOOKUP($C$1,Group!$A$2:$BH$50,2,FALSE),"0000")=$A$1,"",TEXT(VLOOKUP($C$1,Group!$A$2:$BH$50,2,FALSE),"0000"))) ->  | B16: =IFERROR(VLOOKUP(A16,SchList!$A$2:$B$334,2,FALSE),"") ->  | C16: =IF($A16="","",VLOOKUP($A16,ethbysch!$A$3:$Q$493,17,FALSE)) ->  | D16: =IF($A16="","",VLOOKUP($A16,ethbysch!$A$3:$Q$493,4,FALSE)) ->  | E16: =IF($A16="","",VLOOKUP($A16,ethbysch!$A$3:$Q$493,6,FALSE)) ->  | F16: =IF($A16="","",VLOOKUP($A16,ethbysch!$A$3:$Q$493,8,FALSE)) ->  | G16: =IF($A16="","",VLOOKUP($A16,fsubc!$A$3:$M$508,6,FALSE)) ->  | H16: =IF($A16="","",VLOOKUP($A16,fsubc!$A$3:$M$508,8,FALSE)) ->  | I16: =IF($A16="","",VLOOKUP($A16,fsubc!$A$3:$M$508,12,FALSE)) ->  | J16: =IF($A16="","",VLOOKUP(VALUE($A16),Table10[],3,FALSE)) ->  | K16: =IF($A16="","",VLOOKUP($A16,'2013 SG'!$D$8:$BC$435,3,FALSE)) ->  | L16: =IF($A16="","",VLOOKUP($A16,'2013 SG'!$D$8:$BC$435,4,FALSE)) ->  | M16: =IF($A16="","",VLOOKUP($A16,'2013 SG'!$D$8:$BC$435,5,FALSE)) ->  | N16: =IF($A16="","",VLOOKUP($A16,'2013 SG'!$D$8:$BC$435,6,FALSE)) ->  | O16: =IF($A16="","",VLOOKUP($A16,'2013 SG'!$D$8:$BC$435,7,FALSE)) ->  | P16: =IF($A16="","",VLOOKUP($A16,'2013 SG'!$D$8:$BC$435,8,FALSE)) ->  | Q16: =IF($A16="","",VLOOKUP($A16,'2013 SG'!$D$8:$BC$435,9,FALSE)) ->  | R16: =IF($A16="","",VLOOKUP($A16,'2013 SG'!$D$8:$BC$435,10,FALSE)) ->  | S16: =IFERROR(VLOOKUP($A16,Schools1213PCTmeetNoCharter!$A$2:$F$344,5,FALSE)*0.01,"") ->  | T16: =IFERROR(VLOOKUP(A16,Schools1213PCTmeetNoCharter!$A$2:$F$344,3,FALSE),"") ->  | U16: =IFERROR(VLOOKUP($A16,Schools1213PCTmeetNoCharter!$A$2:$F$344,6,FALSE)*0.01,"") ->  | V16: =IFERROR(VLOOKUP(A16,Schools1213PCTmeetNoCharter!$A$2:$F$344,4,FALSE),"") -> 
A17: =IF(VLOOKUP($C$1,Group!$A$2:$BH$50,3,FALSE)="","",IF(TEXT(VLOOKUP($C$1,Group!$A$2:$BH$50,3,FALSE),"0000")=$A$1,"",TEXT(VLOOKUP($C$1,Group!$A$2:$BH$50,3,FALSE),"0000"))) ->  | B17: =IFERROR(VLOOKUP(A17,SchList!$A$2:$B$334,2,FALSE),"") ->  | C17: =IF($A17="","",VLOOKUP($A17,ethbysch!$A$3:$Q$493,17,FALSE)) ->  | D17: =IF($A17="","",VLOOKUP($A17,ethbysch!$A$3:$Q$493,4,FALSE)) ->  | E17: =IF($A17="","",VLOOKUP($A17,ethbysch!$A$3:$Q$493,6,FALSE)) ->  | F17: =IF($A17="","",VLOOKUP($A17,ethbysch!$A$3:$Q$493,8,FALSE)) ->  | G17: =IF($A17="","",VLOOKUP($A17,fsubc!$A$3:$M$508,6,FALSE)) ->  | H17: =IF($A17="","",VLOOKUP($A17,fsubc!$A$3:$M$508,8,FALSE)) ->  | I17: =IF($A17="","",VLOOKUP($A17,fsubc!$A$3:$M$508,12,FALSE)) ->  | J17: =IF($A17="","",VLOOKUP(VALUE($A17),Table10[],3,FALSE)) ->  | K17: =IF($A17="","",VLOOKUP($A17,'2013 SG'!$D$8:$BC$435,3,FALSE)) ->  | L17: =IF($A17="","",VLOOKUP($A17,'2013 SG'!$D$8:$BC$435,4,FALSE)) ->  | M17: =IF($A17="","",VLOOKUP($A17,'2013 SG'!$D$8:$BC$435,5,FALSE)) ->  | N17: =IF($A17="","",VLOOKUP($A17,'2013 SG'!$D$8:$BC$435,6,FALSE)) ->  | O17: =IF($A17="","",VLOOKUP($A17,'2013 SG'!$D$8:$BC$435,7,FALSE)) ->  | P17: =IF($A17="","",VLOOKUP($A17,'2013 SG'!$D$8:$BC$435,8,FALSE)) ->  | Q17: =IF($A17="","",VLOOKUP($A17,'2013 SG'!$D$8:$BC$435,9,FALSE)) ->  | R17: =IF($A17="","",VLOOKUP($A17,'2013 SG'!$D$8:$BC$435,10,FALSE)) ->  | S17: =IFERROR(VLOOKUP($A17,Schools1213PCTmeetNoCharter!$A$2:$F$344,5,FALSE)*0.01,"") ->  | T17: =IFERROR(VLOOKUP(A17,Schools1213PCTmeetNoCharter!$A$2:$F$344,3,FALSE),"") ->  | U17: =IFERROR(VLOOKUP($A17,Schools1213PCTmeetNoCharter!$A$2:$F$344,6,FALSE)*0.01,"") ->  | V17: =IFERROR(VLOOKUP(A17,Schools1213PCTmeetNoCharter!$A$2:$F$344,4,FALSE),"") -> 
A18: =IF(VLOOKUP($C$1,Group!$A$2:$BH$50,4,FALSE)="","",IF(TEXT(VLOOKUP($C$1,Group!$A$2:$BH$50,4,FALSE),"0000")=$A$1,"",TEXT(VLOOKUP($C$1,Group!$A$2:$BH$50,4,FALSE),"0000"))) ->  | B18: =IFERROR(VLOOKUP(A18,SchList!$A$2:$B$334,2,FALSE),"") ->  | C18: =IF($A18="","",VLOOKUP($A18,ethbysch!$A$3:$Q$493,17,FALSE)) ->  | D18: =IF($A18="","",VLOOKUP($A18,ethbysch!$A$3:$Q$493,4,FALSE)) ->  | E18: =IF($A18="","",VLOOKUP($A18,ethbysch!$A$3:$Q$493,6,FALSE)) ->  | F18: =IF($A18="","",VLOOKUP($A18,ethbysch!$A$3:$Q$493,8,FALSE)) ->  | G18: =IF($A18="","",VLOOKUP($A18,fsubc!$A$3:$M$508,6,FALSE)) ->  | H18: =IF($A18="","",VLOOKUP($A18,fsubc!$A$3:$M$508,8,FALSE)) ->  | I18: =IF($A18="","",VLOOKUP($A18,fsubc!$A$3:$M$508,12,FALSE)) ->  | J18: =IF($A18="","",VLOOKUP(VALUE($A18),Table10[],3,FALSE)) ->  | K18: =IF($A18="","",VLOOKUP($A18,'2013 SG'!$D$8:$BC$435,3,FALSE)) ->  | L18: =IF($A18="","",VLOOKUP($A18,'2013 SG'!$D$8:$BC$435,4,FALSE)) ->  | M18: =IF($A18="","",VLOOKUP($A18,'2013 SG'!$D$8:$BC$435,5,FALSE)) ->  | N18: =IF($A18="","",VLOOKUP($A18,'2013 SG'!$D$8:$BC$435,6,FALSE)) ->  | O18: =IF($A18="","",VLOOKUP($A18,'2013 SG'!$D$8:$BC$435,7,FALSE)) ->  | P18: =IF($A18="","",VLOOKUP($A18,'2013 SG'!$D$8:$BC$435,8,FALSE)) ->  | Q18: =IF($A18="","",VLOOKUP($A18,'2013 SG'!$D$8:$BC$435,9,FALSE)) ->  | R18: =IF($A18="","",VLOOKUP($A18,'2013 SG'!$D$8:$BC$435,10,FALSE)) ->  | S18: =IFERROR(VLOOKUP($A18,Schools1213PCTmeetNoCharter!$A$2:$F$344,5,FALSE)*0.01,"") ->  | T18: =IFERROR(VLOOKUP(A18,Schools1213PCTmeetNoCharter!$A$2:$F$344,3,FALSE),"") ->  | U18: =IFERROR(VLOOKUP($A18,Schools1213PCTmeetNoCharter!$A$2:$F$344,6,FALSE)*0.01,"") ->  | V18: =IFERROR(VLOOKUP(A18,Schools1213PCTmeetNoCharter!$A$2:$F$344,4,FALSE),"") -> 
A19: =IF(VLOOKUP($C$1,Group!$A$2:$BH$50,5,FALSE)="","",IF(TEXT(VLOOKUP($C$1,Group!$A$2:$BH$50,5,FALSE),"0000")=$A$1,"",TEXT(VLOOKUP($C$1,Group!$A$2:$BH$50,5,FALSE),"0000"))) ->  | B19: =IFERROR(VLOOKUP(A19,SchList!$A$2:$B$334,2,FALSE),"") ->  | C19: =IF($A19="","",VLOOKUP($A19,ethbysch!$A$3:$Q$493,17,FALSE)) ->  | D19: =IF($A19="","",VLOOKUP($A19,ethbysch!$A$3:$Q$493,4,FALSE)) ->  | E19: =IF($A19="","",VLOOKUP($A19,ethbysch!$A$3:$Q$493,6,FALSE)) ->  | F19: =IF($A19="","",VLOOKUP($A19,ethbysch!$A$3:$Q$493,8,FALSE)) ->  | G19: =IF($A19="","",VLOOKUP($A19,fsubc!$A$3:$M$508,6,FALSE)) ->  | H19: =IF($A19="","",VLOOKUP($A19,fsubc!$A$3:$M$508,8,FALSE)) ->  | I19: =IF($A19="","",VLOOKUP($A19,fsubc!$A$3:$M$508,12,FALSE)) ->  | J19: =IF($A19="","",VLOOKUP(VALUE($A19),Table10[],3,FALSE)) ->  | K19: =IF($A19="","",VLOOKUP($A19,'2013 SG'!$D$8:$BC$435,3,FALSE)) ->  | L19: =IF($A19="","",VLOOKUP($A19,'2013 SG'!$D$8:$BC$435,4,FALSE)) ->  | M19: =IF($A19="","",VLOOKUP($A19,'2013 SG'!$D$8:$BC$435,5,FALSE)) ->  | N19: =IF($A19="","",VLOOKUP($A19,'2013 SG'!$D$8:$BC$435,6,FALSE)) ->  | O19: =IF($A19="","",VLOOKUP($A19,'2013 SG'!$D$8:$BC$435,7,FALSE)) ->  | P19: =IF($A19="","",VLOOKUP($A19,'2013 SG'!$D$8:$BC$435,8,FALSE)) ->  | Q19: =IF($A19="","",VLOOKUP($A19,'2013 SG'!$D$8:$BC$435,9,FALSE)) ->  | R19: =IF($A19="","",VLOOKUP($A19,'2013 SG'!$D$8:$BC$435,10,FALSE)) ->  | S19: =IFERROR(VLOOKUP($A19,Schools1213PCTmeetNoCharter!$A$2:$F$344,5,FALSE)*0.01,"") ->  | T19: =IFERROR(VLOOKUP(A19,Schools1213PCTmeetNoCharter!$A$2:$F$344,3,FALSE),"") ->  | U19: =IFERROR(VLOOKUP($A19,Schools1213PCTmeetNoCharter!$A$2:$F$344,6,FALSE)*0.01,"") ->  | V19: =IFERROR(VLOOKUP(A19,Schools1213PCTmeetNoCharter!$A$2:$F$344,4,FALSE),"") -> 
A20: =IF(VLOOKUP($C$1,Group!$A$2:$BH$50,6,FALSE)="","",IF(TEXT(VLOOKUP($C$1,Group!$A$2:$BH$50,6,FALSE),"0000")=$A$1,"",TEXT(VLOOKUP($C$1,Group!$A$2:$BH$50,6,FALSE),"0000"))) ->  | B20: =IFERROR(VLOOKUP(A20,SchList!$A$2:$B$334,2,FALSE),"") ->  | C20: =IF($A20="","",VLOOKUP($A20,ethbysch!$A$3:$Q$493,17,FALSE)) ->  | D20: =IF($A20="","",VLOOKUP($A20,ethbysch!$A$3:$Q$493,4,FALSE)) ->  | E20: =IF($A20="","",VLOOKUP($A20,ethbysch!$A$3:$Q$493,6,FALSE)) ->  | F20: =IF($A20="","",VLOOKUP($A20,ethbysch!$A$3:$Q$493,8,FALSE)) ->  | G20: =IF($A20="","",VLOOKUP($A20,fsubc!$A$3:$M$508,6,FALSE)) ->  | H20: =IF($A20="","",VLOOKUP($A20,fsubc!$A$3:$M$508,8,FALSE)) ->  | I20: =IF($A20="","",VLOOKUP($A20,fsubc!$A$3:$M$508,12,FALSE)) ->  | J20: =IF($A20="","",VLOOKUP(VALUE($A20),Table10[],3,FALSE)) ->  | K20: =IF($A20="","",VLOOKUP($A20,'2013 SG'!$D$8:$BC$435,3,FALSE)) ->  | L20: =IF($A20="","",VLOOKUP($A20,'2013 SG'!$D$8:$BC$435,4,FALSE)) ->  | M20: =IF($A20="","",VLOOKUP($A20,'2013 SG'!$D$8:$BC$435,5,FALSE)) ->  | N20: =IF($A20="","",VLOOKUP($A20,'2013 SG'!$D$8:$BC$435,6,FALSE)) ->  | O20: =IF($A20="","",VLOOKUP($A20,'2013 SG'!$D$8:$BC$435,7,FALSE)) ->  | P20: =IF($A20="","",VLOOKUP($A20,'2013 SG'!$D$8:$BC$435,8,FALSE)) ->  | Q20: =IF($A20="","",VLOOKUP($A20,'2013 SG'!$D$8:$BC$435,9,FALSE)) ->  | R20: =IF($A20="","",VLOOKUP($A20,'2013 SG'!$D$8:$BC$435,10,FALSE)) ->  | S20: =IFERROR(VLOOKUP($A20,Schools1213PCTmeetNoCharter!$A$2:$F$344,5,FALSE)*0.01,"") ->  | T20: =IFERROR(VLOOKUP(A20,Schools1213PCTmeetNoCharter!$A$2:$F$344,3,FALSE),"") ->  | U20: =IFERROR(VLOOKUP($A20,Schools1213PCTmeetNoCharter!$A$2:$F$344,6,FALSE)*0.01,"") ->  | V20: =IFERROR(VLOOKUP(A20,Schools1213PCTmeetNoCharter!$A$2:$F$344,4,FALSE),"") -> 
A21: =IF(VLOOKUP($C$1,Group!$A$2:$BH$50,7,FALSE)="","",IF(TEXT(VLOOKUP($C$1,Group!$A$2:$BH$50,7,FALSE),"0000")=$A$1,"",TEXT(VLOOKUP($C$1,Group!$A$2:$BH$50,7,FALSE),"0000"))) ->  | B21: =IFERROR(VLOOKUP(A21,SchList!$A$2:$B$334,2,FALSE),"") ->  | C21: =IF($A21="","",VLOOKUP($A21,ethbysch!$A$3:$Q$493,17,FALSE)) ->  | D21: =IF($A21="","",VLOOKUP($A21,ethbysch!$A$3:$Q$493,4,FALSE)) ->  | E21: =IF($A21="","",VLOOKUP($A21,ethbysch!$A$3:$Q$493,6,FALSE)) ->  | F21: =IF($A21="","",VLOOKUP($A21,ethbysch!$A$3:$Q$493,8,FALSE)) ->  | G21: =IF($A21="","",VLOOKUP($A21,fsubc!$A$3:$M$508,6,FALSE)) ->  | H21: =IF($A21="","",VLOOKUP($A21,fsubc!$A$3:$M$508,8,FALSE)) ->  | I21: =IF($A21="","",VLOOKUP($A21,fsubc!$A$3:$M$508,12,FALSE)) ->  | J21: =IF($A21="","",VLOOKUP(VALUE($A21),Table10[],3,FALSE)) ->  | K21: =IF($A21="","",VLOOKUP($A21,'2013 SG'!$D$8:$BC$435,3,FALSE)) ->  | L21: =IF($A21="","",VLOOKUP($A21,'2013 SG'!$D$8:$BC$435,4,FALSE)) ->  | M21: =IF($A21="","",VLOOKUP($A21,'2013 SG'!$D$8:$BC$435,5,FALSE)) ->  | N21: =IF($A21="","",VLOOKUP($A21,'2013 SG'!$D$8:$BC$435,6,FALSE)) ->  | O21: =IF($A21="","",VLOOKUP($A21,'2013 SG'!$D$8:$BC$435,7,FALSE)) ->  | P21: =IF($A21="","",VLOOKUP($A21,'2013 SG'!$D$8:$BC$435,8,FALSE)) ->  | Q21: =IF($A21="","",VLOOKUP($A21,'2013 SG'!$D$8:$BC$435,9,FALSE)) ->  | R21: =IF($A21="","",VLOOKUP($A21,'2013 SG'!$D$8:$BC$435,10,FALSE)) ->  | S21: =IFERROR(VLOOKUP($A21,Schools1213PCTmeetNoCharter!$A$2:$F$344,5,FALSE)*0.01,"") ->  | T21: =IFERROR(VLOOKUP(A21,Schools1213PCTmeetNoCharter!$A$2:$F$344,3,FALSE),"") ->  | U21: =IFERROR(VLOOKUP($A21,Schools1213PCTmeetNoCharter!$A$2:$F$344,6,FALSE)*0.01,"") ->  | V21: =IFERROR(VLOOKUP(A21,Schools1213PCTmeetNoCharter!$A$2:$F$344,4,FALSE),"") -> 
A22: =IF(VLOOKUP($C$1,Group!$A$2:$BH$50,8,FALSE)="","",IF(TEXT(VLOOKUP($C$1,Group!$A$2:$BH$50,8,FALSE),"0000")=$A$1,"",TEXT(VLOOKUP($C$1,Group!$A$2:$BH$50,8,FALSE),"0000"))) ->  | B22: =IFERROR(VLOOKUP(A22,SchList!$A$2:$B$334,2,FALSE),"") ->  | C22: =IF($A22="","",VLOOKUP($A22,ethbysch!$A$3:$Q$493,17,FALSE)) ->  | D22: =IF($A22="","",VLOOKUP($A22,ethbysch!$A$3:$Q$493,4,FALSE)) ->  | E22: =IF($A22="","",VLOOKUP($A22,ethbysch!$A$3:$Q$493,6,FALSE)) ->  | F22: =IF($A22="","",VLOOKUP($A22,ethbysch!$A$3:$Q$493,8,FALSE)) ->  | G22: =IF($A22="","",VLOOKUP($A22,fsubc!$A$3:$M$508,6,FALSE)) ->  | H22: =IF($A22="","",VLOOKUP($A22,fsubc!$A$3:$M$508,8,FALSE)) ->  | I22: =IF($A22="","",VLOOKUP($A22,fsubc!$A$3:$M$508,12,FALSE)) ->  | J22: =IF($A22="","",VLOOKUP(VALUE($A22),Table10[],3,FALSE)) ->  | K22: =IF($A22="","",VLOOKUP($A22,'2013 SG'!$D$8:$BC$435,3,FALSE)) ->  | L22: =IF($A22="","",VLOOKUP($A22,'2013 SG'!$D$8:$BC$435,4,FALSE)) ->  | M22: =IF($A22="","",VLOOKUP($A22,'2013 SG'!$D$8:$BC$435,5,FALSE)) ->  | N22: =IF($A22="","",VLOOKUP($A22,'2013 SG'!$D$8:$BC$435,6,FALSE)) ->  | O22: =IF($A22="","",VLOOKUP($A22,'2013 SG'!$D$8:$BC$435,7,FALSE)) ->  | P22: =IF($A22="","",VLOOKUP($A22,'2013 SG'!$D$8:$BC$435,8,FALSE)) ->  | Q22: =IF($A22="","",VLOOKUP($A22,'2013 SG'!$D$8:$BC$435,9,FALSE)) ->  | R22: =IF($A22="","",VLOOKUP($A22,'2013 SG'!$D$8:$BC$435,10,FALSE)) ->  | S22: =IFERROR(VLOOKUP($A22,Schools1213PCTmeetNoCharter!$A$2:$F$344,5,FALSE)*0.01,"") ->  | T22: =IFERROR(VLOOKUP(A22,Schools1213PCTmeetNoCharter!$A$2:$F$344,3,FALSE),"") ->  | U22: =IFERROR(VLOOKUP($A22,Schools1213PCTmeetNoCharter!$A$2:$F$344,6,FALSE)*0.01,"") ->  | V22: =IFERROR(VLOOKUP(A22,Schools1213PCTmeetNoCharter!$A$2:$F$344,4,FALSE),"") -> 
A23: =IF(VLOOKUP($C$1,Group!$A$2:$BH$50,9,FALSE)="","",IF(TEXT(VLOOKUP($C$1,Group!$A$2:$BH$50,9,FALSE),"0000")=$A$1,"",TEXT(VLOOKUP($C$1,Group!$A$2:$BH$50,9,FALSE),"0000"))) ->  | B23: =IFERROR(VLOOKUP(A23,SchList!$A$2:$B$334,2,FALSE),"") ->  | C23: =IF($A23="","",VLOOKUP($A23,ethbysch!$A$3:$Q$493,17,FALSE)) ->  | D23: =IF($A23="","",VLOOKUP($A23,ethbysch!$A$3:$Q$493,4,FALSE)) ->  | E23: =IF($A23="","",VLOOKUP($A23,ethbysch!$A$3:$Q$493,6,FALSE)) ->  | F23: =IF($A23="","",VLOOKUP($A23,ethbysch!$A$3:$Q$493,8,FALSE)) ->  | G23: =IF($A23="","",VLOOKUP($A23,fsubc!$A$3:$M$508,6,FALSE)) ->  | H23: =IF($A23="","",VLOOKUP($A23,fsubc!$A$3:$M$508,8,FALSE)) ->  | I23: =IF($A23="","",VLOOKUP($A23,fsubc!$A$3:$M$508,12,FALSE)) ->  | J23: =IF($A23="","",VLOOKUP(VALUE($A23),Table10[],3,FALSE)) ->  | K23: =IF($A23="","",VLOOKUP($A23,'2013 SG'!$D$8:$BC$435,3,FALSE)) ->  | L23: =IF($A23="","",VLOOKUP($A23,'2013 SG'!$D$8:$BC$435,4,FALSE)) ->  | M23: =IF($A23="","",VLOOKUP($A23,'2013 SG'!$D$8:$BC$435,5,FALSE)) ->  | N23: =IF($A23="","",VLOOKUP($A23,'2013 SG'!$D$8:$BC$435,6,FALSE)) ->  | O23: =IF($A23="","",VLOOKUP($A23,'2013 SG'!$D$8:$BC$435,7,FALSE)) ->  | P23: =IF($A23="","",VLOOKUP($A23,'2013 SG'!$D$8:$BC$435,8,FALSE)) ->  | Q23: =IF($A23="","",VLOOKUP($A23,'2013 SG'!$D$8:$BC$435,9,FALSE)) ->  | R23: =IF($A23="","",VLOOKUP($A23,'2013 SG'!$D$8:$BC$435,10,FALSE)) ->  | S23: =IFERROR(VLOOKUP($A23,Schools1213PCTmeetNoCharter!$A$2:$F$344,5,FALSE)*0.01,"") ->  | T23: =IFERROR(VLOOKUP(A23,Schools1213PCTmeetNoCharter!$A$2:$F$344,3,FALSE),"") ->  | U23: =IFERROR(VLOOKUP($A23,Schools1213PCTmeetNoCharter!$A$2:$F$344,6,FALSE)*0.01,"") ->  | V23: =IFERROR(VLOOKUP(A23,Schools1213PCTmeetNoCharter!$A$2:$F$344,4,FALSE),"") -> 
A24: =IF(VLOOKUP($C$1,Group!$A$2:$BH$50,10,FALSE)="","",IF(TEXT(VLOOKUP($C$1,Group!$A$2:$BH$50,10,FALSE),"0000")=$A$1,"",TEXT(VLOOKUP($C$1,Group!$A$2:$BH$50,10,FALSE),"0000"))) ->  | B24: =IFERROR(VLOOKUP(A24,SchList!$A$2:$B$334,2,FALSE),"") ->  | C24: =IF($A24="","",VLOOKUP($A24,ethbysch!$A$3:$Q$493,17,FALSE)) ->  | D24: =IF($A24="","",VLOOKUP($A24,ethbysch!$A$3:$Q$493,4,FALSE)) ->  | E24: =IF($A24="","",VLOOKUP($A24,ethbysch!$A$3:$Q$493,6,FALSE)) ->  | F24: =IF($A24="","",VLOOKUP($A24,ethbysch!$A$3:$Q$493,8,FALSE)) ->  | G24: =IF($A24="","",VLOOKUP($A24,fsubc!$A$3:$M$508,6,FALSE)) ->  | H24: =IF($A24="","",VLOOKUP($A24,fsubc!$A$3:$M$508,8,FALSE)) ->  | I24: =IF($A24="","",VLOOKUP($A24,fsubc!$A$3:$M$508,12,FALSE)) ->  | J24: =IF($A24="","",VLOOKUP(VALUE($A24),Table10[],3,FALSE)) ->  | K24: =IF($A24="","",VLOOKUP($A24,'2013 SG'!$D$8:$BC$435,3,FALSE)) ->  | L24: =IF($A24="","",VLOOKUP($A24,'2013 SG'!$D$8:$BC$435,4,FALSE)) ->  | M24: =IF($A24="","",VLOOKUP($A24,'2013 SG'!$D$8:$BC$435,5,FALSE)) ->  | N24: =IF($A24="","",VLOOKUP($A24,'2013 SG'!$D$8:$BC$435,6,FALSE)) ->  | O24: =IF($A24="","",VLOOKUP($A24,'2013 SG'!$D$8:$BC$435,7,FALSE)) ->  | P24: =IF($A24="","",VLOOKUP($A24,'2013 SG'!$D$8:$BC$435,8,FALSE)) ->  | Q24: =IF($A24="","",VLOOKUP($A24,'2013 SG'!$D$8:$BC$435,9,FALSE)) ->  | R24: =IF($A24="","",VLOOKUP($A24,'2013 SG'!$D$8:$BC$435,10,FALSE)) ->  | S24: =IFERROR(VLOOKUP($A24,Schools1213PCTmeetNoCharter!$A$2:$F$344,5,FALSE)*0.01,"") ->  | T24: =IFERROR(VLOOKUP(A24,Schools1213PCTmeetNoCharter!$A$2:$F$344,3,FALSE),"") ->  | U24: =IFERROR(VLOOKUP($A24,Schools1213PCTmeetNoCharter!$A$2:$F$344,6,FALSE)*0.01,"") ->  | V24: =IFERROR(VLOOKUP(A24,Schools1213PCTmeetNoCharter!$A$2:$F$344,4,FALSE),"") -> 
A25: =IF(VLOOKUP($C$1,Group!$A$2:$BH$50,11,FALSE)="","",IF(TEXT(VLOOKUP($C$1,Group!$A$2:$BH$50,11,FALSE),"0000")=$A$1,"",TEXT(VLOOKUP($C$1,Group!$A$2:$BH$50,11,FALSE),"0000"))) ->  | B25: =IFERROR(VLOOKUP(A25,SchList!$A$2:$B$334,2,FALSE),"") ->  | C25: =IF($A25="","",VLOOKUP($A25,ethbysch!$A$3:$Q$493,17,FALSE)) ->  | D25: =IF($A25="","",VLOOKUP($A25,ethbysch!$A$3:$Q$493,4,FALSE)) ->  | E25: =IF($A25="","",VLOOKUP($A25,ethbysch!$A$3:$Q$493,6,FALSE)) ->  | F25: =IF($A25="","",VLOOKUP($A25,ethbysch!$A$3:$Q$493,8,FALSE)) ->  | G25: =IF($A25="","",VLOOKUP($A25,fsubc!$A$3:$M$508,6,FALSE)) ->  | H25: =IF($A25="","",VLOOKUP($A25,fsubc!$A$3:$M$508,8,FALSE)) ->  | I25: =IF($A25="","",VLOOKUP($A25,fsubc!$A$3:$M$508,12,FALSE)) ->  | J25: =IF($A25="","",VLOOKUP(VALUE($A25),Table10[],3,FALSE)) ->  | K25: =IF($A25="","",VLOOKUP($A25,'2013 SG'!$D$8:$BC$435,3,FALSE)) ->  | L25: =IF($A25="","",VLOOKUP($A25,'2013 SG'!$D$8:$BC$435,4,FALSE)) ->  | M25: =IF($A25="","",VLOOKUP($A25,'2013 SG'!$D$8:$BC$435,5,FALSE)) ->  | N25: =IF($A25="","",VLOOKUP($A25,'2013 SG'!$D$8:$BC$435,6,FALSE)) ->  | O25: =IF($A25="","",VLOOKUP($A25,'2013 SG'!$D$8:$BC$435,7,FALSE)) ->  | P25: =IF($A25="","",VLOOKUP($A25,'2013 SG'!$D$8:$BC$435,8,FALSE)) ->  | Q25: =IF($A25="","",VLOOKUP($A25,'2013 SG'!$D$8:$BC$435,9,FALSE)) ->  | R25: =IF($A25="","",VLOOKUP($A25,'2013 SG'!$D$8:$BC$435,10,FALSE)) ->  | S25: =IFERROR(VLOOKUP($A25,Schools1213PCTmeetNoCharter!$A$2:$F$344,5,FALSE)*0.01,"") ->  | T25: =IFERROR(VLOOKUP(A25,Schools1213PCTmeetNoCharter!$A$2:$F$344,3,FALSE),"") ->  | U25: =IFERROR(VLOOKUP($A25,Schools1213PCTmeetNoCharter!$A$2:$F$344,6,FALSE)*0.01,"") ->  | V25: =IFERROR(VLOOKUP(A25,Schools1213PCTmeetNoCharter!$A$2:$F$344,4,FALSE),"") -> 
A26: =IF(VLOOKUP($C$1,Group!$A$2:$BH$50,12,FALSE)="","",IF(TEXT(VLOOKUP($C$1,Group!$A$2:$BH$50,12,FALSE),"0000")=$A$1,"",TEXT(VLOOKUP($C$1,Group!$A$2:$BH$50,12,FALSE),"0000"))) ->  | B26: =IFERROR(VLOOKUP(A26,SchList!$A$2:$B$334,2,FALSE),"") ->  | C26: =IF($A26="","",VLOOKUP($A26,ethbysch!$A$3:$Q$493,17,FALSE)) ->  | D26: =IF($A26="","",VLOOKUP($A26,ethbysch!$A$3:$Q$493,4,FALSE)) ->  | E26: =IF($A26="","",VLOOKUP($A26,ethbysch!$A$3:$Q$493,6,FALSE)) ->  | F26: =IF($A26="","",VLOOKUP($A26,ethbysch!$A$3:$Q$493,8,FALSE)) ->  | G26: =IF($A26="","",VLOOKUP($A26,fsubc!$A$3:$M$508,6,FALSE)) ->  | H26: =IF($A26="","",VLOOKUP($A26,fsubc!$A$3:$M$508,8,FALSE)) ->  | I26: =IF($A26="","",VLOOKUP($A26,fsubc!$A$3:$M$508,12,FALSE)) ->  | J26: =IF($A26="","",VLOOKUP(VALUE($A26),Table10[],3,FALSE)) ->  | K26: =IF($A26="","",VLOOKUP($A26,'2013 SG'!$D$8:$BC$435,3,FALSE)) ->  | L26: =IF($A26="","",VLOOKUP($A26,'2013 SG'!$D$8:$BC$435,4,FALSE)) ->  | M26: =IF($A26="","",VLOOKUP($A26,'2013 SG'!$D$8:$BC$435,5,FALSE)) ->  | N26: =IF($A26="","",VLOOKUP($A26,'2013 SG'!$D$8:$BC$435,6,FALSE)) ->  | O26: =IF($A26="","",VLOOKUP($A26,'2013 SG'!$D$8:$BC$435,7,FALSE)) ->  | P26: =IF($A26="","",VLOOKUP($A26,'2013 SG'!$D$8:$BC$435,8,FALSE)) ->  | Q26: =IF($A26="","",VLOOKUP($A26,'2013 SG'!$D$8:$BC$435,9,FALSE)) ->  | R26: =IF($A26="","",VLOOKUP($A26,'2013 SG'!$D$8:$BC$435,10,FALSE)) ->  | S26: =IFERROR(VLOOKUP($A26,Schools1213PCTmeetNoCharter!$A$2:$F$344,5,FALSE)*0.01,"") ->  | T26: =IFERROR(VLOOKUP(A26,Schools1213PCTmeetNoCharter!$A$2:$F$344,3,FALSE),"") ->  | U26: =IFERROR(VLOOKUP($A26,Schools1213PCTmeetNoCharter!$A$2:$F$344,6,FALSE)*0.01,"") ->  | V26: =IFERROR(VLOOKUP(A26,Schools1213PCTmeetNoCharter!$A$2:$F$344,4,FALSE),"") -> 
A27: =IF(VLOOKUP($C$1,Group!$A$2:$BH$50,13,FALSE)="","",IF(TEXT(VLOOKUP($C$1,Group!$A$2:$BH$50,13,FALSE),"0000")=$A$1,"",TEXT(VLOOKUP($C$1,Group!$A$2:$BH$50,13,FALSE),"0000"))) ->  | B27: =IFERROR(VLOOKUP(A27,SchList!$A$2:$B$334,2,FALSE),"") ->  | C27: =IF($A27="","",VLOOKUP($A27,ethbysch!$A$3:$Q$493,17,FALSE)) ->  | D27: =IF($A27="","",VLOOKUP($A27,ethbysch!$A$3:$Q$493,4,FALSE)) ->  | E27: =IF($A27="","",VLOOKUP($A27,ethbysch!$A$3:$Q$493,6,FALSE)) ->  | F27: =IF($A27="","",VLOOKUP($A27,ethbysch!$A$3:$Q$493,8,FALSE)) ->  | G27: =IF($A27="","",VLOOKUP($A27,fsubc!$A$3:$M$508,6,FALSE)) ->  | H27: =IF($A27="","",VLOOKUP($A27,fsubc!$A$3:$M$508,8,FALSE)) ->  | I27: =IF($A27="","",VLOOKUP($A27,fsubc!$A$3:$M$508,12,FALSE)) ->  | J27: =IF($A27="","",VLOOKUP(VALUE($A27),Table10[],3,FALSE)) ->  | K27: =IF($A27="","",VLOOKUP($A27,'2013 SG'!$D$8:$BC$435,3,FALSE)) ->  | L27: =IF($A27="","",VLOOKUP($A27,'2013 SG'!$D$8:$BC$435,4,FALSE)) ->  | M27: =IF($A27="","",VLOOKUP($A27,'2013 SG'!$D$8:$BC$435,5,FALSE)) ->  | N27: =IF($A27="","",VLOOKUP($A27,'2013 SG'!$D$8:$BC$435,6,FALSE)) ->  | O27: =IF($A27="","",VLOOKUP($A27,'2013 SG'!$D$8:$BC$435,7,FALSE)) ->  | P27: =IF($A27="","",VLOOKUP($A27,'2013 SG'!$D$8:$BC$435,8,FALSE)) ->  | Q27: =IF($A27="","",VLOOKUP($A27,'2013 SG'!$D$8:$BC$435,9,FALSE)) ->  | R27: =IF($A27="","",VLOOKUP($A27,'2013 SG'!$D$8:$BC$435,10,FALSE)) ->  | S27: =IFERROR(VLOOKUP($A27,Schools1213PCTmeetNoCharter!$A$2:$F$344,5,FALSE)*0.01,"") ->  | T27: =IFERROR(VLOOKUP(A27,Schools1213PCTmeetNoCharter!$A$2:$F$344,3,FALSE),"") ->  | U27: =IFERROR(VLOOKUP($A27,Schools1213PCTmeetNoCharter!$A$2:$F$344,6,FALSE)*0.01,"") ->  | V27: =IFERROR(VLOOKUP(A27,Schools1213PCTmeetNoCharter!$A$2:$F$344,4,FALSE),"") -> 
A28: =IF(VLOOKUP($C$1,Group!$A$2:$BH$50,14,FALSE)="","",IF(TEXT(VLOOKUP($C$1,Group!$A$2:$BH$50,14,FALSE),"0000")=$A$1,"",TEXT(VLOOKUP($C$1,Group!$A$2:$BH$50,14,FALSE),"0000"))) ->  | B28: =IFERROR(VLOOKUP(A28,SchList!$A$2:$B$334,2,FALSE),"") ->  | C28: =IF($A28="","",VLOOKUP($A28,ethbysch!$A$3:$Q$493,17,FALSE)) ->  | D28: =IF($A28="","",VLOOKUP($A28,ethbysch!$A$3:$Q$493,4,FALSE)) ->  | E28: =IF($A28="","",VLOOKUP($A28,ethbysch!$A$3:$Q$493,6,FALSE)) ->  | F28: =IF($A28="","",VLOOKUP($A28,ethbysch!$A$3:$Q$493,8,FALSE)) ->  | G28: =IF($A28="","",VLOOKUP($A28,fsubc!$A$3:$M$508,6,FALSE)) ->  | H28: =IF($A28="","",VLOOKUP($A28,fsubc!$A$3:$M$508,8,FALSE)) ->  | I28: =IF($A28="","",VLOOKUP($A28,fsubc!$A$3:$M$508,12,FALSE)) ->  | J28: =IF($A28="","",VLOOKUP(VALUE($A28),Table10[],3,FALSE)) ->  | K28: =IF($A28="","",VLOOKUP($A28,'2013 SG'!$D$8:$BC$435,3,FALSE)) ->  | L28: =IF($A28="","",VLOOKUP($A28,'2013 SG'!$D$8:$BC$435,4,FALSE)) ->  | M28: =IF($A28="","",VLOOKUP($A28,'2013 SG'!$D$8:$BC$435,5,FALSE)) ->  | N28: =IF($A28="","",VLOOKUP($A28,'2013 SG'!$D$8:$BC$435,6,FALSE)) ->  | O28: =IF($A28="","",VLOOKUP($A28,'2013 SG'!$D$8:$BC$435,7,FALSE)) ->  | P28: =IF($A28="","",VLOOKUP($A28,'2013 SG'!$D$8:$BC$435,8,FALSE)) ->  | Q28: =IF($A28="","",VLOOKUP($A28,'2013 SG'!$D$8:$BC$435,9,FALSE)) ->  | R28: =IF($A28="","",VLOOKUP($A28,'2013 SG'!$D$8:$BC$435,10,FALSE)) ->  | S28: =IFERROR(VLOOKUP($A28,Schools1213PCTmeetNoCharter!$A$2:$F$344,5,FALSE)*0.01,"") ->  | T28: =IFERROR(VLOOKUP(A28,Schools1213PCTmeetNoCharter!$A$2:$F$344,3,FALSE),"") ->  | U28: =IFERROR(VLOOKUP($A28,Schools1213PCTmeetNoCharter!$A$2:$F$344,6,FALSE)*0.01,"") ->  | V28: =IFERROR(VLOOKUP(A28,Schools1213PCTmeetNoCharter!$A$2:$F$344,4,FALSE),"") -> 
A29: =IF(VLOOKUP($C$1,Group!$A$2:$BH$50,15,FALSE)="","",IF(TEXT(VLOOKUP($C$1,Group!$A$2:$BH$50,15,FALSE),"0000")=$A$1,"",TEXT(VLOOKUP($C$1,Group!$A$2:$BH$50,15,FALSE),"0000"))) ->  | B29: =IFERROR(VLOOKUP(A29,SchList!$A$2:$B$334,2,FALSE),"") ->  | C29: =IF($A29="","",VLOOKUP($A29,ethbysch!$A$3:$Q$493,17,FALSE)) ->  | D29: =IF($A29="","",VLOOKUP($A29,ethbysch!$A$3:$Q$493,4,FALSE)) ->  | E29: =IF($A29="","",VLOOKUP($A29,ethbysch!$A$3:$Q$493,6,FALSE)) ->  | F29: =IF($A29="","",VLOOKUP($A29,ethbysch!$A$3:$Q$493,8,FALSE)) ->  | G29: =IF($A29="","",VLOOKUP($A29,fsubc!$A$3:$M$508,6,FALSE)) ->  | H29: =IF($A29="","",VLOOKUP($A29,fsubc!$A$3:$M$508,8,FALSE)) ->  | I29: =IF($A29="","",VLOOKUP($A29,fsubc!$A$3:$M$508,12,FALSE)) ->  | J29: =IF($A29="","",VLOOKUP(VALUE($A29),Table10[],3,FALSE)) ->  | K29: =IF($A29="","",VLOOKUP($A29,'2013 SG'!$D$8:$BC$435,3,FALSE)) ->  | L29: =IF($A29="","",VLOOKUP($A29,'2013 SG'!$D$8:$BC$435,4,FALSE)) ->  | M29: =IF($A29="","",VLOOKUP($A29,'2013 SG'!$D$8:$BC$435,5,FALSE)) ->  | N29: =IF($A29="","",VLOOKUP($A29,'2013 SG'!$D$8:$BC$435,6,FALSE)) ->  | O29: =IF($A29="","",VLOOKUP($A29,'2013 SG'!$D$8:$BC$435,7,FALSE)) ->  | P29: =IF($A29="","",VLOOKUP($A29,'2013 SG'!$D$8:$BC$435,8,FALSE)) ->  | Q29: =IF($A29="","",VLOOKUP($A29,'2013 SG'!$D$8:$BC$435,9,FALSE)) ->  | R29: =IF($A29="","",VLOOKUP($A29,'2013 SG'!$D$8:$BC$435,10,FALSE)) ->  | S29: =IFERROR(VLOOKUP($A29,Schools1213PCTmeetNoCharter!$A$2:$F$344,5,FALSE)*0.01,"") ->  | T29: =IFERROR(VLOOKUP(A29,Schools1213PCTmeetNoCharter!$A$2:$F$344,3,FALSE),"") ->  | U29: =IFERROR(VLOOKUP($A29,Schools1213PCTmeetNoCharter!$A$2:$F$344,6,FALSE)*0.01,"") ->  | V29: =IFERROR(VLOOKUP(A29,Schools1213PCTmeetNoCharter!$A$2:$F$344,4,FALSE),"") -> 
A30: =IF(VLOOKUP($C$1,Group!$A$2:$BH$50,16,FALSE)="","",IF(TEXT(VLOOKUP($C$1,Group!$A$2:$BH$50,16,FALSE),"0000")=$A$1,"",TEXT(VLOOKUP($C$1,Group!$A$2:$BH$50,16,FALSE),"0000"))) ->  | B30: =IFERROR(VLOOKUP(A30,SchList!$A$2:$B$334,2,FALSE),"") ->  | C30: =IF($A30="","",VLOOKUP($A30,ethbysch!$A$3:$Q$493,17,FALSE)) ->  | D30: =IF($A30="","",VLOOKUP($A30,ethbysch!$A$3:$Q$493,4,FALSE)) ->  | E30: =IF($A30="","",VLOOKUP($A30,ethbysch!$A$3:$Q$493,6,FALSE)) ->  | F30: =IF($A30="","",VLOOKUP($A30,ethbysch!$A$3:$Q$493,8,FALSE)) ->  | G30: =IF($A30="","",VLOOKUP($A30,fsubc!$A$3:$M$508,6,FALSE)) ->  | H30: =IF($A30="","",VLOOKUP($A30,fsubc!$A$3:$M$508,8,FALSE)) ->  | I30: =IF($A30="","",VLOOKUP($A30,fsubc!$A$3:$M$508,12,FALSE)) ->  | J30: =IF($A30="","",VLOOKUP(VALUE($A30),Table10[],3,FALSE)) ->  | K30: =IF($A30="","",VLOOKUP($A30,'2013 SG'!$D$8:$BC$435,3,FALSE)) ->  | L30: =IF($A30="","",VLOOKUP($A30,'2013 SG'!$D$8:$BC$435,4,FALSE)) ->  | M30: =IF($A30="","",VLOOKUP($A30,'2013 SG'!$D$8:$BC$435,5,FALSE)) ->  | N30: =IF($A30="","",VLOOKUP($A30,'2013 SG'!$D$8:$BC$435,6,FALSE)) ->  | O30: =IF($A30="","",VLOOKUP($A30,'2013 SG'!$D$8:$BC$435,7,FALSE)) ->  | P30: =IF($A30="","",VLOOKUP($A30,'2013 SG'!$D$8:$BC$435,8,FALSE)) ->  | Q30: =IF($A30="","",VLOOKUP($A30,'2013 SG'!$D$8:$BC$435,9,FALSE)) ->  | R30: =IF($A30="","",VLOOKUP($A30,'2013 SG'!$D$8:$BC$435,10,FALSE)) ->  | S30: =IFERROR(VLOOKUP($A30,Schools1213PCTmeetNoCharter!$A$2:$F$344,5,FALSE)*0.01,"") ->  | T30: =IFERROR(VLOOKUP(A30,Schools1213PCTmeetNoCharter!$A$2:$F$344,3,FALSE),"") ->  | U30: =IFERROR(VLOOKUP($A30,Schools1213PCTmeetNoCharter!$A$2:$F$344,6,FALSE)*0.01,"") ->  | V30: =IFERROR(VLOOKUP(A30,Schools1213PCTmeetNoCharter!$A$2:$F$344,4,FALSE),"") -> 
A31: =IF(VLOOKUP($C$1,Group!$A$2:$BH$50,17,FALSE)="","",IF(TEXT(VLOOKUP($C$1,Group!$A$2:$BH$50,17,FALSE),"0000")=$A$1,"",TEXT(VLOOKUP($C$1,Group!$A$2:$BH$50,17,FALSE),"0000"))) ->  | B31: =IFERROR(VLOOKUP(A31,SchList!$A$2:$B$334,2,FALSE),"") ->  | C31: =IF($A31="","",VLOOKUP($A31,ethbysch!$A$3:$Q$493,17,FALSE)) ->  | D31: =IF($A31="","",VLOOKUP($A31,ethbysch!$A$3:$Q$493,4,FALSE)) ->  | E31: =IF($A31="","",VLOOKUP($A31,ethbysch!$A$3:$Q$493,6,FALSE)) ->  | F31: =IF($A31="","",VLOOKUP($A31,ethbysch!$A$3:$Q$493,8,FALSE)) ->  | G31: =IF($A31="","",VLOOKUP($A31,fsubc!$A$3:$M$508,6,FALSE)) ->  | H31: =IF($A31="","",VLOOKUP($A31,fsubc!$A$3:$M$508,8,FALSE)) ->  | I31: =IF($A31="","",VLOOKUP($A31,fsubc!$A$3:$M$508,12,FALSE)) ->  | J31: =IF($A31="","",VLOOKUP(VALUE($A31),Table10[],3,FALSE)) ->  | K31: =IF($A31="","",VLOOKUP($A31,'2013 SG'!$D$8:$BC$435,3,FALSE)) ->  | L31: =IF($A31="","",VLOOKUP($A31,'2013 SG'!$D$8:$BC$435,4,FALSE)) ->  | M31: =IF($A31="","",VLOOKUP($A31,'2013 SG'!$D$8:$BC$435,5,FALSE)) ->  | N31: =IF($A31="","",VLOOKUP($A31,'2013 SG'!$D$8:$BC$435,6,FALSE)) ->  | O31: =IF($A31="","",VLOOKUP($A31,'2013 SG'!$D$8:$BC$435,7,FALSE)) ->  | P31: =IF($A31="","",VLOOKUP($A31,'2013 SG'!$D$8:$BC$435,8,FALSE)) ->  | Q31: =IF($A31="","",VLOOKUP($A31,'2013 SG'!$D$8:$BC$435,9,FALSE)) ->  | R31: =IF($A31="","",VLOOKUP($A31,'2013 SG'!$D$8:$BC$435,10,FALSE)) ->  | S31: =IFERROR(VLOOKUP($A31,Schools1213PCTmeetNoCharter!$A$2:$F$344,5,FALSE)*0.01,"") ->  | T31: =IFERROR(VLOOKUP(A31,Schools1213PCTmeetNoCharter!$A$2:$F$344,3,FALSE),"") ->  | U31: =IFERROR(VLOOKUP($A31,Schools1213PCTmeetNoCharter!$A$2:$F$344,6,FALSE)*0.01,"") ->  | V31: =IFERROR(VLOOKUP(A31,Schools1213PCTmeetNoCharter!$A$2:$F$344,4,FALSE),"") -> 
A32: =IF(VLOOKUP($C$1,Group!$A$2:$BH$50,18,FALSE)="","",IF(TEXT(VLOOKUP($C$1,Group!$A$2:$BH$50,18,FALSE),"0000")=$A$1,"",TEXT(VLOOKUP($C$1,Group!$A$2:$BH$50,18,FALSE),"0000"))) ->  | B32: =IFERROR(VLOOKUP(A32,SchList!$A$2:$B$334,2,FALSE),"") ->  | C32: =IF($A32="","",VLOOKUP($A32,ethbysch!$A$3:$Q$493,17,FALSE)) ->  | D32: =IF($A32="","",VLOOKUP($A32,ethbysch!$A$3:$Q$493,4,FALSE)) ->  | E32: =IF($A32="","",VLOOKUP($A32,ethbysch!$A$3:$Q$493,6,FALSE)) ->  | F32: =IF($A32="","",VLOOKUP($A32,ethbysch!$A$3:$Q$493,8,FALSE)) ->  | G32: =IF($A32="","",VLOOKUP($A32,fsubc!$A$3:$M$508,6,FALSE)) ->  | H32: =IF($A32="","",VLOOKUP($A32,fsubc!$A$3:$M$508,8,FALSE)) ->  | I32: =IF($A32="","",VLOOKUP($A32,fsubc!$A$3:$M$508,12,FALSE)) ->  | J32: =IF($A32="","",VLOOKUP(VALUE($A32),Table10[],3,FALSE)) ->  | K32: =IF($A32="","",VLOOKUP($A32,'2013 SG'!$D$8:$BC$435,3,FALSE)) ->  | L32: =IF($A32="","",VLOOKUP($A32,'2013 SG'!$D$8:$BC$435,4,FALSE)) ->  | M32: =IF($A32="","",VLOOKUP($A32,'2013 SG'!$D$8:$BC$435,5,FALSE)) ->  | N32: =IF($A32="","",VLOOKUP($A32,'2013 SG'!$D$8:$BC$435,6,FALSE)) ->  | O32: =IF($A32="","",VLOOKUP($A32,'2013 SG'!$D$8:$BC$435,7,FALSE)) ->  | P32: =IF($A32="","",VLOOKUP($A32,'2013 SG'!$D$8:$BC$435,8,FALSE)) ->  | Q32: =IF($A32="","",VLOOKUP($A32,'2013 SG'!$D$8:$BC$435,9,FALSE)) ->  | R32: =IF($A32="","",VLOOKUP($A32,'2013 SG'!$D$8:$BC$435,10,FALSE)) ->  | S32: =IFERROR(VLOOKUP($A32,Schools1213PCTmeetNoCharter!$A$2:$F$344,5,FALSE)*0.01,"") ->  | T32: =IFERROR(VLOOKUP(A32,Schools1213PCTmeetNoCharter!$A$2:$F$344,3,FALSE),"") ->  | U32: =IFERROR(VLOOKUP($A32,Schools1213PCTmeetNoCharter!$A$2:$F$344,6,FALSE)*0.01,"") ->  | V32: =IFERROR(VLOOKUP(A32,Schools1213PCTmeetNoCharter!$A$2:$F$344,4,FALSE),"") -> 
A33: =IF(VLOOKUP($C$1,Group!$A$2:$BH$50,19,FALSE)="","",IF(TEXT(VLOOKUP($C$1,Group!$A$2:$BH$50,19,FALSE),"0000")=$A$1,"",TEXT(VLOOKUP($C$1,Group!$A$2:$BH$50,19,FALSE),"0000"))) ->  | B33: =IFERROR(VLOOKUP(A33,SchList!$A$2:$B$334,2,FALSE),"") ->  | C33: =IF($A33="","",VLOOKUP($A33,ethbysch!$A$3:$Q$493,17,FALSE)) ->  | D33: =IF($A33="","",VLOOKUP($A33,ethbysch!$A$3:$Q$493,4,FALSE)) ->  | E33: =IF($A33="","",VLOOKUP($A33,ethbysch!$A$3:$Q$493,6,FALSE)) ->  | F33: =IF($A33="","",VLOOKUP($A33,ethbysch!$A$3:$Q$493,8,FALSE)) ->  | G33: =IF($A33="","",VLOOKUP($A33,fsubc!$A$3:$M$508,6,FALSE)) ->  | H33: =IF($A33="","",VLOOKUP($A33,fsubc!$A$3:$M$508,8,FALSE)) ->  | I33: =IF($A33="","",VLOOKUP($A33,fsubc!$A$3:$M$508,12,FALSE)) ->  | J33: =IF($A33="","",VLOOKUP(VALUE($A33),Table10[],3,FALSE)) ->  | K33: =IF($A33="","",VLOOKUP($A33,'2013 SG'!$D$8:$BC$435,3,FALSE)) ->  | L33: =IF($A33="","",VLOOKUP($A33,'2013 SG'!$D$8:$BC$435,4,FALSE)) ->  | M33: =IF($A33="","",VLOOKUP($A33,'2013 SG'!$D$8:$BC$435,5,FALSE)) ->  | N33: =IF($A33="","",VLOOKUP($A33,'2013 SG'!$D$8:$BC$435,6,FALSE)) ->  | O33: =IF($A33="","",VLOOKUP($A33,'2013 SG'!$D$8:$BC$435,7,FALSE)) ->  | P33: =IF($A33="","",VLOOKUP($A33,'2013 SG'!$D$8:$BC$435,8,FALSE)) ->  | Q33: =IF($A33="","",VLOOKUP($A33,'2013 SG'!$D$8:$BC$435,9,FALSE)) ->  | R33: =IF($A33="","",VLOOKUP($A33,'2013 SG'!$D$8:$BC$435,10,FALSE)) ->  | S33: =IFERROR(VLOOKUP($A33,Schools1213PCTmeetNoCharter!$A$2:$F$344,5,FALSE)*0.01,"") ->  | T33: =IFERROR(VLOOKUP(A33,Schools1213PCTmeetNoCharter!$A$2:$F$344,3,FALSE),"") ->  | U33: =IFERROR(VLOOKUP($A33,Schools1213PCTmeetNoCharter!$A$2:$F$344,6,FALSE)*0.01,"") ->  | V33: =IFERROR(VLOOKUP(A33,Schools1213PCTmeetNoCharter!$A$2:$F$344,4,FALSE),"") -> 
A34: =IF(VLOOKUP($C$1,Group!$A$2:$BH$50,20,FALSE)="","",IF(TEXT(VLOOKUP($C$1,Group!$A$2:$BH$50,20,FALSE),"0000")=$A$1,"",TEXT(VLOOKUP($C$1,Group!$A$2:$BH$50,20,FALSE),"0000"))) ->  | B34: =IFERROR(VLOOKUP(A34,SchList!$A$2:$B$334,2,FALSE),"") ->  | C34: =IF($A34="","",VLOOKUP($A34,ethbysch!$A$3:$Q$493,17,FALSE)) ->  | D34: =IF($A34="","",VLOOKUP($A34,ethbysch!$A$3:$Q$493,4,FALSE)) ->  | E34: =IF($A34="","",VLOOKUP($A34,ethbysch!$A$3:$Q$493,6,FALSE)) ->  | F34: =IF($A34="","",VLOOKUP($A34,ethbysch!$A$3:$Q$493,8,FALSE)) ->  | G34: =IF($A34="","",VLOOKUP($A34,fsubc!$A$3:$M$508,6,FALSE)) ->  | H34: =IF($A34="","",VLOOKUP($A34,fsubc!$A$3:$M$508,8,FALSE)) ->  | I34: =IF($A34="","",VLOOKUP($A34,fsubc!$A$3:$M$508,12,FALSE)) ->  | J34: =IF($A34="","",VLOOKUP(VALUE($A34),Table10[],3,FALSE)) ->  | K34: =IF($A34="","",VLOOKUP($A34,'2013 SG'!$D$8:$BC$435,3,FALSE)) ->  | L34: =IF($A34="","",VLOOKUP($A34,'2013 SG'!$D$8:$BC$435,4,FALSE)) ->  | M34: =IF($A34="","",VLOOKUP($A34,'2013 SG'!$D$8:$BC$435,5,FALSE)) ->  | N34: =IF($A34="","",VLOOKUP($A34,'2013 SG'!$D$8:$BC$435,6,FALSE)) ->  | O34: =IF($A34="","",VLOOKUP($A34,'2013 SG'!$D$8:$BC$435,7,FALSE)) ->  | P34: =IF($A34="","",VLOOKUP($A34,'2013 SG'!$D$8:$BC$435,8,FALSE)) ->  | Q34: =IF($A34="","",VLOOKUP($A34,'2013 SG'!$D$8:$BC$435,9,FALSE)) ->  | R34: =IF($A34="","",VLOOKUP($A34,'2013 SG'!$D$8:$BC$435,10,FALSE)) ->  | S34: =IFERROR(VLOOKUP($A34,Schools1213PCTmeetNoCharter!$A$2:$F$344,5,FALSE)*0.01,"") ->  | T34: =IFERROR(VLOOKUP(A34,Schools1213PCTmeetNoCharter!$A$2:$F$344,3,FALSE),"") ->  | U34: =IFERROR(VLOOKUP($A34,Schools1213PCTmeetNoCharter!$A$2:$F$344,6,FALSE)*0.01,"") ->  | V34: =IFERROR(VLOOKUP(A34,Schools1213PCTmeetNoCharter!$A$2:$F$344,4,FALSE),"") -> 
A35: =IF(VLOOKUP($C$1,Group!$A$2:$BH$50,21,FALSE)="","",IF(TEXT(VLOOKUP($C$1,Group!$A$2:$BH$50,21,FALSE),"0000")=$A$1,"",TEXT(VLOOKUP($C$1,Group!$A$2:$BH$50,21,FALSE),"0000"))) ->  | B35: =IFERROR(VLOOKUP(A35,SchList!$A$2:$B$334,2,FALSE),"") ->  | C35: =IF($A35="","",VLOOKUP($A35,ethbysch!$A$3:$Q$493,17,FALSE)) ->  | D35: =IF($A35="","",VLOOKUP($A35,ethbysch!$A$3:$Q$493,4,FALSE)) ->  | E35: =IF($A35="","",VLOOKUP($A35,ethbysch!$A$3:$Q$493,6,FALSE)) ->  | F35: =IF($A35="","",VLOOKUP($A35,ethbysch!$A$3:$Q$493,8,FALSE)) ->  | G35: =IF($A35="","",VLOOKUP($A35,fsubc!$A$3:$M$508,6,FALSE)) ->  | H35: =IF($A35="","",VLOOKUP($A35,fsubc!$A$3:$M$508,8,FALSE)) ->  | I35: =IF($A35="","",VLOOKUP($A35,fsubc!$A$3:$M$508,12,FALSE)) ->  | J35: =IF($A35="","",VLOOKUP(VALUE($A35),Table10[],3,FALSE)) ->  | K35: =IF($A35="","",VLOOKUP($A35,'2013 SG'!$D$8:$BC$435,3,FALSE)) ->  | L35: =IF($A35="","",VLOOKUP($A35,'2013 SG'!$D$8:$BC$435,4,FALSE)) ->  | M35: =IF($A35="","",VLOOKUP($A35,'2013 SG'!$D$8:$BC$435,5,FALSE)) ->  | N35: =IF($A35="","",VLOOKUP($A35,'2013 SG'!$D$8:$BC$435,6,FALSE)) ->  | O35: =IF($A35="","",VLOOKUP($A35,'2013 SG'!$D$8:$BC$435,7,FALSE)) ->  | P35: =IF($A35="","",VLOOKUP($A35,'2013 SG'!$D$8:$BC$435,8,FALSE)) ->  | Q35: =IF($A35="","",VLOOKUP($A35,'2013 SG'!$D$8:$BC$435,9,FALSE)) ->  | R35: =IF($A35="","",VLOOKUP($A35,'2013 SG'!$D$8:$BC$435,10,FALSE)) ->  | S35: =IFERROR(VLOOKUP($A35,Schools1213PCTmeetNoCharter!$A$2:$F$344,5,FALSE)*0.01,"") ->  | T35: =IFERROR(VLOOKUP(A35,Schools1213PCTmeetNoCharter!$A$2:$F$344,3,FALSE),"") ->  | U35: =IFERROR(VLOOKUP($A35,Schools1213PCTmeetNoCharter!$A$2:$F$344,6,FALSE)*0.01,"") ->  | V35: =IFERROR(VLOOKUP(A35,Schools1213PCTmeetNoCharter!$A$2:$F$344,4,FALSE),"") -> 
A36: =IF(VLOOKUP($C$1,Group!$A$2:$BH$50,22,FALSE)="","",IF(TEXT(VLOOKUP($C$1,Group!$A$2:$BH$50,22,FALSE),"0000")=$A$1,"",TEXT(VLOOKUP($C$1,Group!$A$2:$BH$50,22,FALSE),"0000"))) ->  | B36: =IFERROR(VLOOKUP(A36,SchList!$A$2:$B$334,2,FALSE),"") ->  | C36: =IF($A36="","",VLOOKUP($A36,ethbysch!$A$3:$Q$493,17,FALSE)) ->  | D36: =IF($A36="","",VLOOKUP($A36,ethbysch!$A$3:$Q$493,4,FALSE)) ->  | E36: =IF($A36="","",VLOOKUP($A36,ethbysch!$A$3:$Q$493,6,FALSE)) ->  | F36: =IF($A36="","",VLOOKUP($A36,ethbysch!$A$3:$Q$493,8,FALSE)) ->  | G36: =IF($A36="","",VLOOKUP($A36,fsubc!$A$3:$M$508,6,FALSE)) ->  | H36: =IF($A36="","",VLOOKUP($A36,fsubc!$A$3:$M$508,8,FALSE)) ->  | I36: =IF($A36="","",VLOOKUP($A36,fsubc!$A$3:$M$508,12,FALSE)) ->  | J36: =IF($A36="","",VLOOKUP(VALUE($A36),Table10[],3,FALSE)) ->  | K36: =IF($A36="","",VLOOKUP($A36,'2013 SG'!$D$8:$BC$435,3,FALSE)) ->  | L36: =IF($A36="","",VLOOKUP($A36,'2013 SG'!$D$8:$BC$435,4,FALSE)) ->  | M36: =IF($A36="","",VLOOKUP($A36,'2013 SG'!$D$8:$BC$435,5,FALSE)) ->  | N36: =IF($A36="","",VLOOKUP($A36,'2013 SG'!$D$8:$BC$435,6,FALSE)) ->  | O36: =IF($A36="","",VLOOKUP($A36,'2013 SG'!$D$8:$BC$435,7,FALSE)) ->  | P36: =IF($A36="","",VLOOKUP($A36,'2013 SG'!$D$8:$BC$435,8,FALSE)) ->  | Q36: =IF($A36="","",VLOOKUP($A36,'2013 SG'!$D$8:$BC$435,9,FALSE)) ->  | R36: =IF($A36="","",VLOOKUP($A36,'2013 SG'!$D$8:$BC$435,10,FALSE)) ->  | S36: =IFERROR(VLOOKUP($A36,Schools1213PCTmeetNoCharter!$A$2:$F$344,5,FALSE)*0.01,"") ->  | T36: =IFERROR(VLOOKUP(A36,Schools1213PCTmeetNoCharter!$A$2:$F$344,3,FALSE),"") ->  | U36: =IFERROR(VLOOKUP($A36,Schools1213PCTmeetNoCharter!$A$2:$F$344,6,FALSE)*0.01,"") ->  | V36: =IFERROR(VLOOKUP(A36,Schools1213PCTmeetNoCharter!$A$2:$F$344,4,FALSE),"") -> 
A37: =IF(VLOOKUP($C$1,Group!$A$2:$BH$50,23,FALSE)="","",IF(TEXT(VLOOKUP($C$1,Group!$A$2:$BH$50,23,FALSE),"0000")=$A$1,"",TEXT(VLOOKUP($C$1,Group!$A$2:$BH$50,23,FALSE),"0000"))) ->  | B37: =IFERROR(VLOOKUP(A37,SchList!$A$2:$B$334,2,FALSE),"") ->  | C37: =IF($A37="","",VLOOKUP($A37,ethbysch!$A$3:$Q$493,17,FALSE)) ->  | D37: =IF($A37="","",VLOOKUP($A37,ethbysch!$A$3:$Q$493,4,FALSE)) ->  | E37: =IF($A37="","",VLOOKUP($A37,ethbysch!$A$3:$Q$493,6,FALSE)) ->  | F37: =IF($A37="","",VLOOKUP($A37,ethbysch!$A$3:$Q$493,8,FALSE)) ->  | G37: =IF($A37="","",VLOOKUP($A37,fsubc!$A$3:$M$508,6,FALSE)) ->  | H37: =IF($A37="","",VLOOKUP($A37,fsubc!$A$3:$M$508,8,FALSE)) ->  | I37: =IF($A37="","",VLOOKUP($A37,fsubc!$A$3:$M$508,12,FALSE)) ->  | J37: =IF($A37="","",VLOOKUP(VALUE($A37),Table10[],3,FALSE)) ->  | K37: =IF($A37="","",VLOOKUP($A37,'2013 SG'!$D$8:$BC$435,3,FALSE)) ->  | L37: =IF($A37="","",VLOOKUP($A37,'2013 SG'!$D$8:$BC$435,4,FALSE)) ->  | M37: =IF($A37="","",VLOOKUP($A37,'2013 SG'!$D$8:$BC$435,5,FALSE)) ->  | N37: =IF($A37="","",VLOOKUP($A37,'2013 SG'!$D$8:$BC$435,6,FALSE)) ->  | O37: =IF($A37="","",VLOOKUP($A37,'2013 SG'!$D$8:$BC$435,7,FALSE)) ->  | P37: =IF($A37="","",VLOOKUP($A37,'2013 SG'!$D$8:$BC$435,8,FALSE)) ->  | Q37: =IF($A37="","",VLOOKUP($A37,'2013 SG'!$D$8:$BC$435,9,FALSE)) ->  | R37: =IF($A37="","",VLOOKUP($A37,'2013 SG'!$D$8:$BC$435,10,FALSE)) ->  | S37: =IFERROR(VLOOKUP($A37,Schools1213PCTmeetNoCharter!$A$2:$F$344,5,FALSE)*0.01,"") ->  | T37: =IFERROR(VLOOKUP(A37,Schools1213PCTmeetNoCharter!$A$2:$F$344,3,FALSE),"") ->  | U37: =IFERROR(VLOOKUP($A37,Schools1213PCTmeetNoCharter!$A$2:$F$344,6,FALSE)*0.01,"") ->  | V37: =IFERROR(VLOOKUP(A37,Schools1213PCTmeetNoCharter!$A$2:$F$344,4,FALSE),"") -> 
A38: =IF(VLOOKUP($C$1,Group!$A$2:$BH$50,24,FALSE)="","",IF(TEXT(VLOOKUP($C$1,Group!$A$2:$BH$50,24,FALSE),"0000")=$A$1,"",TEXT(VLOOKUP($C$1,Group!$A$2:$BH$50,24,FALSE),"0000"))) ->  | B38: =IFERROR(VLOOKUP(A38,SchList!$A$2:$B$334,2,FALSE),"") ->  | C38: =IF($A38="","",VLOOKUP($A38,ethbysch!$A$3:$Q$493,17,FALSE)) ->  | D38: =IF($A38="","",VLOOKUP($A38,ethbysch!$A$3:$Q$493,4,FALSE)) ->  | E38: =IF($A38="","",VLOOKUP($A38,ethbysch!$A$3:$Q$493,6,FALSE)) ->  | F38: =IF($A38="","",VLOOKUP($A38,ethbysch!$A$3:$Q$493,8,FALSE)) ->  | G38: =IF($A38="","",VLOOKUP($A38,fsubc!$A$3:$M$508,6,FALSE)) ->  | H38: =IF($A38="","",VLOOKUP($A38,fsubc!$A$3:$M$508,8,FALSE)) ->  | I38: =IF($A38="","",VLOOKUP($A38,fsubc!$A$3:$M$508,12,FALSE)) ->  | J38: =IF($A38="","",VLOOKUP(VALUE($A38),Table10[],3,FALSE)) ->  | K38: =IF($A38="","",VLOOKUP($A38,'2013 SG'!$D$8:$BC$435,3,FALSE)) ->  | L38: =IF($A38="","",VLOOKUP($A38,'2013 SG'!$D$8:$BC$435,4,FALSE)) ->  | M38: =IF($A38="","",VLOOKUP($A38,'2013 SG'!$D$8:$BC$435,5,FALSE)) ->  | N38: =IF($A38="","",VLOOKUP($A38,'2013 SG'!$D$8:$BC$435,6,FALSE)) ->  | O38: =IF($A38="","",VLOOKUP($A38,'2013 SG'!$D$8:$BC$435,7,FALSE)) ->  | P38: =IF($A38="","",VLOOKUP($A38,'2013 SG'!$D$8:$BC$435,8,FALSE)) ->  | Q38: =IF($A38="","",VLOOKUP($A38,'2013 SG'!$D$8:$BC$435,9,FALSE)) ->  | R38: =IF($A38="","",VLOOKUP($A38,'2013 SG'!$D$8:$BC$435,10,FALSE)) ->  | S38: =IFERROR(VLOOKUP($A38,Schools1213PCTmeetNoCharter!$A$2:$F$344,5,FALSE)*0.01,"") ->  | T38: =IFERROR(VLOOKUP(A38,Schools1213PCTmeetNoCharter!$A$2:$F$344,3,FALSE),"") ->  | U38: =IFERROR(VLOOKUP($A38,Schools1213PCTmeetNoCharter!$A$2:$F$344,6,FALSE)*0.01,"") ->  | V38: =IFERROR(VLOOKUP(A38,Schools1213PCTmeetNoCharter!$A$2:$F$344,4,FALSE),"") -> 
A39: =IF(VLOOKUP($C$1,Group!$A$2:$BH$50,25,FALSE)="","",IF(TEXT(VLOOKUP($C$1,Group!$A$2:$BH$50,25,FALSE),"0000")=$A$1,"",TEXT(VLOOKUP($C$1,Group!$A$2:$BH$50,25,FALSE),"0000"))) ->  | B39: =IFERROR(VLOOKUP(A39,SchList!$A$2:$B$334,2,FALSE),"") ->  | C39: =IF($A39="","",VLOOKUP($A39,ethbysch!$A$3:$Q$493,17,FALSE)) ->  | D39: =IF($A39="","",VLOOKUP($A39,ethbysch!$A$3:$Q$493,4,FALSE)) ->  | E39: =IF($A39="","",VLOOKUP($A39,ethbysch!$A$3:$Q$493,6,FALSE)) ->  | F39: =IF($A39="","",VLOOKUP($A39,ethbysch!$A$3:$Q$493,8,FALSE)) ->  | G39: =IF($A39="","",VLOOKUP($A39,fsubc!$A$3:$M$508,6,FALSE)) ->  | H39: =IF($A39="","",VLOOKUP($A39,fsubc!$A$3:$M$508,8,FALSE)) ->  | I39: =IF($A39="","",VLOOKUP($A39,fsubc!$A$3:$M$508,12,FALSE)) ->  | J39: =IF($A39="","",VLOOKUP(VALUE($A39),Table10[],3,FALSE)) ->  | K39: =IF($A39="","",VLOOKUP($A39,'2013 SG'!$D$8:$BC$435,3,FALSE)) ->  | L39: =IF($A39="","",VLOOKUP($A39,'2013 SG'!$D$8:$BC$435,4,FALSE)) ->  | M39: =IF($A39="","",VLOOKUP($A39,'2013 SG'!$D$8:$BC$435,5,FALSE)) ->  | N39: =IF($A39="","",VLOOKUP($A39,'2013 SG'!$D$8:$BC$435,6,FALSE)) ->  | O39: =IF($A39="","",VLOOKUP($A39,'2013 SG'!$D$8:$BC$435,7,FALSE)) ->  | P39: =IF($A39="","",VLOOKUP($A39,'2013 SG'!$D$8:$BC$435,8,FALSE)) ->  | Q39: =IF($A39="","",VLOOKUP($A39,'2013 SG'!$D$8:$BC$435,9,FALSE)) ->  | R39: =IF($A39="","",VLOOKUP($A39,'2013 SG'!$D$8:$BC$435,10,FALSE)) ->  | S39: =IFERROR(VLOOKUP($A39,Schools1213PCTmeetNoCharter!$A$2:$F$344,5,FALSE)*0.01,"") ->  | T39: =IFERROR(VLOOKUP(A39,Schools1213PCTmeetNoCharter!$A$2:$F$344,3,FALSE),"") ->  | U39: =IFERROR(VLOOKUP($A39,Schools1213PCTmeetNoCharter!$A$2:$F$344,6,FALSE)*0.01,"") ->  | V39: =IFERROR(VLOOKUP(A39,Schools1213PCTmeetNoCharter!$A$2:$F$344,4,FALSE),"") -> 
A40: =IF(VLOOKUP($C$1,Group!$A$2:$BH$50,26,FALSE)="","",IF(TEXT(VLOOKUP($C$1,Group!$A$2:$BH$50,26,FALSE),"0000")=$A$1,"",TEXT(VLOOKUP($C$1,Group!$A$2:$BH$50,26,FALSE),"0000"))) ->  | B40: =IFERROR(VLOOKUP(A40,SchList!$A$2:$B$334,2,FALSE),"") ->  | C40: =IF($A40="","",VLOOKUP($A40,ethbysch!$A$3:$Q$493,17,FALSE)) ->  | D40: =IF($A40="","",VLOOKUP($A40,ethbysch!$A$3:$Q$493,4,FALSE)) ->  | E40: =IF($A40="","",VLOOKUP($A40,ethbysch!$A$3:$Q$493,6,FALSE)) ->  | F40: =IF($A40="","",VLOOKUP($A40,ethbysch!$A$3:$Q$493,8,FALSE)) ->  | G40: =IF($A40="","",VLOOKUP($A40,fsubc!$A$3:$M$508,6,FALSE)) ->  | H40: =IF($A40="","",VLOOKUP($A40,fsubc!$A$3:$M$508,8,FALSE)) ->  | I40: =IF($A40="","",VLOOKUP($A40,fsubc!$A$3:$M$508,12,FALSE)) ->  | J40: =IF($A40="","",VLOOKUP(VALUE($A40),Table10[],3,FALSE)) ->  | K40: =IF($A40="","",VLOOKUP($A40,'2013 SG'!$D$8:$BC$435,3,FALSE)) ->  | L40: =IF($A40="","",VLOOKUP($A40,'2013 SG'!$D$8:$BC$435,4,FALSE)) ->  | M40: =IF($A40="","",VLOOKUP($A40,'2013 SG'!$D$8:$BC$435,5,FALSE)) ->  | N40: =IF($A40="","",VLOOKUP($A40,'2013 SG'!$D$8:$BC$435,6,FALSE)) ->  | O40: =IF($A40="","",VLOOKUP($A40,'2013 SG'!$D$8:$BC$435,7,FALSE)) ->  | P40: =IF($A40="","",VLOOKUP($A40,'2013 SG'!$D$8:$BC$435,8,FALSE)) ->  | Q40: =IF($A40="","",VLOOKUP($A40,'2013 SG'!$D$8:$BC$435,9,FALSE)) ->  | R40: =IF($A40="","",VLOOKUP($A40,'2013 SG'!$D$8:$BC$435,10,FALSE)) ->  | S40: =IFERROR(VLOOKUP($A40,Schools1213PCTmeetNoCharter!$A$2:$F$344,5,FALSE)*0.01,"") ->  | T40: =IFERROR(VLOOKUP(A40,Schools1213PCTmeetNoCharter!$A$2:$F$344,3,FALSE),"") ->  | U40: =IFERROR(VLOOKUP($A40,Schools1213PCTmeetNoCharter!$A$2:$F$344,6,FALSE)*0.01,"") ->  | V40: =IFERROR(VLOOKUP(A40,Schools1213PCTmeetNoCharter!$A$2:$F$344,4,FALSE),"") -> 
A41: =IF(VLOOKUP($C$1,Group!$A$2:$BH$50,27,FALSE)="","",IF(TEXT(VLOOKUP($C$1,Group!$A$2:$BH$50,27,FALSE),"0000")=$A$1,"",TEXT(VLOOKUP($C$1,Group!$A$2:$BH$50,27,FALSE),"0000"))) ->  | B41: =IFERROR(VLOOKUP(A41,SchList!$A$2:$B$334,2,FALSE),"") ->  | C41: =IF($A41="","",VLOOKUP($A41,ethbysch!$A$3:$Q$493,17,FALSE)) ->  | D41: =IF($A41="","",VLOOKUP($A41,ethbysch!$A$3:$Q$493,4,FALSE)) ->  | E41: =IF($A41="","",VLOOKUP($A41,ethbysch!$A$3:$Q$493,6,FALSE)) ->  | F41: =IF($A41="","",VLOOKUP($A41,ethbysch!$A$3:$Q$493,8,FALSE)) ->  | G41: =IF($A41="","",VLOOKUP($A41,fsubc!$A$3:$M$508,6,FALSE)) ->  | H41: =IF($A41="","",VLOOKUP($A41,fsubc!$A$3:$M$508,8,FALSE)) ->  | I41: =IF($A41="","",VLOOKUP($A41,fsubc!$A$3:$M$508,12,FALSE)) ->  | J41: =IF($A41="","",VLOOKUP(VALUE($A41),Table10[],3,FALSE)) ->  | K41: =IF($A41="","",VLOOKUP($A41,'2013 SG'!$D$8:$BC$435,3,FALSE)) ->  | L41: =IF($A41="","",VLOOKUP($A41,'2013 SG'!$D$8:$BC$435,4,FALSE)) ->  | M41: =IF($A41="","",VLOOKUP($A41,'2013 SG'!$D$8:$BC$435,5,FALSE)) ->  | N41: =IF($A41="","",VLOOKUP($A41,'2013 SG'!$D$8:$BC$435,6,FALSE)) ->  | O41: =IF($A41="","",VLOOKUP($A41,'2013 SG'!$D$8:$BC$435,7,FALSE)) ->  | P41: =IF($A41="","",VLOOKUP($A41,'2013 SG'!$D$8:$BC$435,8,FALSE)) ->  | Q41: =IF($A41="","",VLOOKUP($A41,'2013 SG'!$D$8:$BC$435,9,FALSE)) ->  | R41: =IF($A41="","",VLOOKUP($A41,'2013 SG'!$D$8:$BC$435,10,FALSE)) ->  | S41: =IFERROR(VLOOKUP($A41,Schools1213PCTmeetNoCharter!$A$2:$F$344,5,FALSE)*0.01,"") ->  | T41: =IFERROR(VLOOKUP(A41,Schools1213PCTmeetNoCharter!$A$2:$F$344,3,FALSE),"") ->  | U41: =IFERROR(VLOOKUP($A41,Schools1213PCTmeetNoCharter!$A$2:$F$344,6,FALSE)*0.01,"") ->  | V41: =IFERROR(VLOOKUP(A41,Schools1213PCTmeetNoCharter!$A$2:$F$344,4,FALSE),"") -> 
A42: =IF(VLOOKUP($C$1,Group!$A$2:$BH$50,28,FALSE)="","",IF(TEXT(VLOOKUP($C$1,Group!$A$2:$BH$50,28,FALSE),"0000")=$A$1,"",TEXT(VLOOKUP($C$1,Group!$A$2:$BH$50,28,FALSE),"0000"))) ->  | B42: =IFERROR(VLOOKUP(A42,SchList!$A$2:$B$334,2,FALSE),"") ->  | C42: =IF($A42="","",VLOOKUP($A42,ethbysch!$A$3:$Q$493,17,FALSE)) ->  | D42: =IF($A42="","",VLOOKUP($A42,ethbysch!$A$3:$Q$493,4,FALSE)) ->  | E42: =IF($A42="","",VLOOKUP($A42,ethbysch!$A$3:$Q$493,6,FALSE)) ->  | F42: =IF($A42="","",VLOOKUP($A42,ethbysch!$A$3:$Q$493,8,FALSE)) ->  | G42: =IF($A42="","",VLOOKUP($A42,fsubc!$A$3:$M$508,6,FALSE)) ->  | H42: =IF($A42="","",VLOOKUP($A42,fsubc!$A$3:$M$508,8,FALSE)) ->  | I42: =IF($A42="","",VLOOKUP($A42,fsubc!$A$3:$M$508,12,FALSE)) ->  | J42: =IF($A42="","",VLOOKUP(VALUE($A42),Table10[],3,FALSE)) ->  | K42: =IF($A42="","",VLOOKUP($A42,'2013 SG'!$D$8:$BC$435,3,FALSE)) ->  | L42: =IF($A42="","",VLOOKUP($A42,'2013 SG'!$D$8:$BC$435,4,FALSE)) ->  | M42: =IF($A42="","",VLOOKUP($A42,'2013 SG'!$D$8:$BC$435,5,FALSE)) ->  | N42: =IF($A42="","",VLOOKUP($A42,'2013 SG'!$D$8:$BC$435,6,FALSE)) ->  | O42: =IF($A42="","",VLOOKUP($A42,'2013 SG'!$D$8:$BC$435,7,FALSE)) ->  | P42: =IF($A42="","",VLOOKUP($A42,'2013 SG'!$D$8:$BC$435,8,FALSE)) ->  | Q42: =IF($A42="","",VLOOKUP($A42,'2013 SG'!$D$8:$BC$435,9,FALSE)) ->  | R42: =IF($A42="","",VLOOKUP($A42,'2013 SG'!$D$8:$BC$435,10,FALSE)) ->  | S42: =IFERROR(VLOOKUP($A42,Schools1213PCTmeetNoCharter!$A$2:$F$344,5,FALSE)*0.01,"") ->  | T42: =IFERROR(VLOOKUP(A42,Schools1213PCTmeetNoCharter!$A$2:$F$344,3,FALSE),"") ->  | U42: =IFERROR(VLOOKUP($A42,Schools1213PCTmeetNoCharter!$A$2:$F$344,6,FALSE)*0.01,"") ->  | V42: =IFERROR(VLOOKUP(A42,Schools1213PCTmeetNoCharter!$A$2:$F$344,4,FALSE),"") -> 
A43: =IF(VLOOKUP($C$1,Group!$A$2:$BH$50,29,FALSE)="","",IF(TEXT(VLOOKUP($C$1,Group!$A$2:$BH$50,29,FALSE),"0000")=$A$1,"",TEXT(VLOOKUP($C$1,Group!$A$2:$BH$50,29,FALSE),"0000"))) ->  | B43: =IFERROR(VLOOKUP(A43,SchList!$A$2:$B$334,2,FALSE),"") ->  | C43: =IF($A43="","",VLOOKUP($A43,ethbysch!$A$3:$Q$493,17,FALSE)) ->  | D43: =IF($A43="","",VLOOKUP($A43,ethbysch!$A$3:$Q$493,4,FALSE)) ->  | E43: =IF($A43="","",VLOOKUP($A43,ethbysch!$A$3:$Q$493,6,FALSE)) ->  | F43: =IF($A43="","",VLOOKUP($A43,ethbysch!$A$3:$Q$493,8,FALSE)) ->  | G43: =IF($A43="","",VLOOKUP($A43,fsubc!$A$3:$M$508,6,FALSE)) ->  | H43: =IF($A43="","",VLOOKUP($A43,fsubc!$A$3:$M$508,8,FALSE)) ->  | I43: =IF($A43="","",VLOOKUP($A43,fsubc!$A$3:$M$508,12,FALSE)) ->  | J43: =IF($A43="","",VLOOKUP(VALUE($A43),Table10[],3,FALSE)) ->  | K43: =IF($A43="","",VLOOKUP($A43,'2013 SG'!$D$8:$BC$435,3,FALSE)) ->  | L43: =IF($A43="","",VLOOKUP($A43,'2013 SG'!$D$8:$BC$435,4,FALSE)) ->  | M43: =IF($A43="","",VLOOKUP($A43,'2013 SG'!$D$8:$BC$435,5,FALSE)) ->  | N43: =IF($A43="","",VLOOKUP($A43,'2013 SG'!$D$8:$BC$435,6,FALSE)) ->  | O43: =IF($A43="","",VLOOKUP($A43,'2013 SG'!$D$8:$BC$435,7,FALSE)) ->  | P43: =IF($A43="","",VLOOKUP($A43,'2013 SG'!$D$8:$BC$435,8,FALSE)) ->  | Q43: =IF($A43="","",VLOOKUP($A43,'2013 SG'!$D$8:$BC$435,9,FALSE)) ->  | R43: =IF($A43="","",VLOOKUP($A43,'2013 SG'!$D$8:$BC$435,10,FALSE)) ->  | S43: =IFERROR(VLOOKUP($A43,Schools1213PCTmeetNoCharter!$A$2:$F$344,5,FALSE)*0.01,"") ->  | T43: =IFERROR(VLOOKUP(A43,Schools1213PCTmeetNoCharter!$A$2:$F$344,3,FALSE),"") ->  | U43: =IFERROR(VLOOKUP($A43,Schools1213PCTmeetNoCharter!$A$2:$F$344,6,FALSE)*0.01,"") ->  | V43: =IFERROR(VLOOKUP(A43,Schools1213PCTmeetNoCharter!$A$2:$F$344,4,FALSE),"") -> 
A44: =IF(VLOOKUP($C$1,Group!$A$2:$BH$50,30,FALSE)="","",IF(TEXT(VLOOKUP($C$1,Group!$A$2:$BH$50,30,FALSE),"0000")=$A$1,"",TEXT(VLOOKUP($C$1,Group!$A$2:$BH$50,30,FALSE),"0000"))) ->  | B44: =IFERROR(VLOOKUP(A44,SchList!$A$2:$B$334,2,FALSE),"") ->  | C44: =IF($A44="","",VLOOKUP($A44,ethbysch!$A$3:$Q$493,17,FALSE)) ->  | D44: =IF($A44="","",VLOOKUP($A44,ethbysch!$A$3:$Q$493,4,FALSE)) ->  | E44: =IF($A44="","",VLOOKUP($A44,ethbysch!$A$3:$Q$493,6,FALSE)) ->  | F44: =IF($A44="","",VLOOKUP($A44,ethbysch!$A$3:$Q$493,8,FALSE)) ->  | G44: =IF($A44="","",VLOOKUP($A44,fsubc!$A$3:$M$508,6,FALSE)) ->  | H44: =IF($A44="","",VLOOKUP($A44,fsubc!$A$3:$M$508,8,FALSE)) ->  | I44: =IF($A44="","",VLOOKUP($A44,fsubc!$A$3:$M$508,12,FALSE)) ->  | J44: =IF($A44="","",VLOOKUP(VALUE($A44),Table10[],3,FALSE)) ->  | K44: =IF($A44="","",VLOOKUP($A44,'2013 SG'!$D$8:$BC$435,3,FALSE)) ->  | L44: =IF($A44="","",VLOOKUP($A44,'2013 SG'!$D$8:$BC$435,4,FALSE)) ->  | M44: =IF($A44="","",VLOOKUP($A44,'2013 SG'!$D$8:$BC$435,5,FALSE)) ->  | N44: =IF($A44="","",VLOOKUP($A44,'2013 SG'!$D$8:$BC$435,6,FALSE)) ->  | O44: =IF($A44="","",VLOOKUP($A44,'2013 SG'!$D$8:$BC$435,7,FALSE)) ->  | P44: =IF($A44="","",VLOOKUP($A44,'2013 SG'!$D$8:$BC$435,8,FALSE)) ->  | Q44: =IF($A44="","",VLOOKUP($A44,'2013 SG'!$D$8:$BC$435,9,FALSE)) ->  | R44: =IF($A44="","",VLOOKUP($A44,'2013 SG'!$D$8:$BC$435,10,FALSE)) ->  | S44: =IFERROR(VLOOKUP($A44,Schools1213PCTmeetNoCharter!$A$2:$F$344,5,FALSE)*0.01,"") ->  | T44: =IFERROR(VLOOKUP(A44,Schools1213PCTmeetNoCharter!$A$2:$F$344,3,FALSE),"") ->  | U44: =IFERROR(VLOOKUP($A44,Schools1213PCTmeetNoCharter!$A$2:$F$344,6,FALSE)*0.01,"") ->  | V44: =IFERROR(VLOOKUP(A44,Schools1213PCTmeetNoCharter!$A$2:$F$344,4,FALSE),"") -> 
A45: =IF(VLOOKUP($C$1,Group!$A$2:$BH$50,31,FALSE)="","",IF(TEXT(VLOOKUP($C$1,Group!$A$2:$BH$50,31,FALSE),"0000")=$A$1,"",TEXT(VLOOKUP($C$1,Group!$A$2:$BH$50,31,FALSE),"0000"))) ->  | B45: =IFERROR(VLOOKUP(A45,SchList!$A$2:$B$334,2,FALSE),"") ->  | C45: =IF($A45="","",VLOOKUP($A45,ethbysch!$A$3:$Q$493,17,FALSE)) ->  | D45: =IF($A45="","",VLOOKUP($A45,ethbysch!$A$3:$Q$493,4,FALSE)) ->  | E45: =IF($A45="","",VLOOKUP($A45,ethbysch!$A$3:$Q$493,6,FALSE)) ->  | F45: =IF($A45="","",VLOOKUP($A45,ethbysch!$A$3:$Q$493,8,FALSE)) ->  | G45: =IF($A45="","",VLOOKUP($A45,fsubc!$A$3:$M$508,6,FALSE)) ->  | H45: =IF($A45="","",VLOOKUP($A45,fsubc!$A$3:$M$508,8,FALSE)) ->  | I45: =IF($A45="","",VLOOKUP($A45,fsubc!$A$3:$M$508,12,FALSE)) ->  | J45: =IF($A45="","",VLOOKUP(VALUE($A45),Table10[],3,FALSE)) ->  | K45: =IF($A45="","",VLOOKUP($A45,'2013 SG'!$D$8:$BC$435,3,FALSE)) ->  | L45: =IF($A45="","",VLOOKUP($A45,'2013 SG'!$D$8:$BC$435,4,FALSE)) ->  | M45: =IF($A45="","",VLOOKUP($A45,'2013 SG'!$D$8:$BC$435,5,FALSE)) ->  | N45: =IF($A45="","",VLOOKUP($A45,'2013 SG'!$D$8:$BC$435,6,FALSE)) ->  | O45: =IF($A45="","",VLOOKUP($A45,'2013 SG'!$D$8:$BC$435,7,FALSE)) ->  | P45: =IF($A45="","",VLOOKUP($A45,'2013 SG'!$D$8:$BC$435,8,FALSE)) ->  | Q45: =IF($A45="","",VLOOKUP($A45,'2013 SG'!$D$8:$BC$435,9,FALSE)) ->  | R45: =IF($A45="","",VLOOKUP($A45,'2013 SG'!$D$8:$BC$435,10,FALSE)) ->  | S45: =IFERROR(VLOOKUP($A45,Schools1213PCTmeetNoCharter!$A$2:$F$344,5,FALSE)*0.01,"") ->  | T45: =IFERROR(VLOOKUP(A45,Schools1213PCTmeetNoCharter!$A$2:$F$344,3,FALSE),"") ->  | U45: =IFERROR(VLOOKUP($A45,Schools1213PCTmeetNoCharter!$A$2:$F$344,6,FALSE)*0.01,"") ->  | V45: =IFERROR(VLOOKUP(A45,Schools1213PCTmeetNoCharter!$A$2:$F$344,4,FALSE),"") -> 
A46: =IF(VLOOKUP($C$1,Group!$A$2:$BH$50,32,FALSE)="","",IF(TEXT(VLOOKUP($C$1,Group!$A$2:$BH$50,32,FALSE),"0000")=$A$1,"",TEXT(VLOOKUP($C$1,Group!$A$2:$BH$50,32,FALSE),"0000"))) ->  | B46: =IFERROR(VLOOKUP(A46,SchList!$A$2:$B$334,2,FALSE),"") ->  | C46: =IF($A46="","",VLOOKUP($A46,ethbysch!$A$3:$Q$493,17,FALSE)) ->  | D46: =IF($A46="","",VLOOKUP($A46,ethbysch!$A$3:$Q$493,4,FALSE)) ->  | E46: =IF($A46="","",VLOOKUP($A46,ethbysch!$A$3:$Q$493,6,FALSE)) ->  | F46: =IF($A46="","",VLOOKUP($A46,ethbysch!$A$3:$Q$493,8,FALSE)) ->  | G46: =IF($A46="","",VLOOKUP($A46,fsubc!$A$3:$M$508,6,FALSE)) ->  | H46: =IF($A46="","",VLOOKUP($A46,fsubc!$A$3:$M$508,8,FALSE)) ->  | I46: =IF($A46="","",VLOOKUP($A46,fsubc!$A$3:$M$508,12,FALSE)) ->  | J46: =IF($A46="","",VLOOKUP(VALUE($A46),Table10[],3,FALSE)) ->  | K46: =IF($A46="","",VLOOKUP($A46,'2013 SG'!$D$8:$BC$435,3,FALSE)) ->  | L46: =IF($A46="","",VLOOKUP($A46,'2013 SG'!$D$8:$BC$435,4,FALSE)) ->  | M46: =IF($A46="","",VLOOKUP($A46,'2013 SG'!$D$8:$BC$435,5,FALSE)) ->  | N46: =IF($A46="","",VLOOKUP($A46,'2013 SG'!$D$8:$BC$435,6,FALSE)) ->  | O46: =IF($A46="","",VLOOKUP($A46,'2013 SG'!$D$8:$BC$435,7,FALSE)) ->  | P46: =IF($A46="","",VLOOKUP($A46,'2013 SG'!$D$8:$BC$435,8,FALSE)) ->  | Q46: =IF($A46="","",VLOOKUP($A46,'2013 SG'!$D$8:$BC$435,9,FALSE)) ->  | R46: =IF($A46="","",VLOOKUP($A46,'2013 SG'!$D$8:$BC$435,10,FALSE)) ->  | S46: =IFERROR(VLOOKUP($A46,Schools1213PCTmeetNoCharter!$A$2:$F$344,5,FALSE)*0.01,"") ->  | T46: =IFERROR(VLOOKUP(A46,Schools1213PCTmeetNoCharter!$A$2:$F$344,3,FALSE),"") ->  | U46: =IFERROR(VLOOKUP($A46,Schools1213PCTmeetNoCharter!$A$2:$F$344,6,FALSE)*0.01,"") ->  | V46: =IFERROR(VLOOKUP(A46,Schools1213PCTmeetNoCharter!$A$2:$F$344,4,FALSE),"") -> 
A47: =IF(VLOOKUP($C$1,Group!$A$2:$BH$50,33,FALSE)="","",IF(TEXT(VLOOKUP($C$1,Group!$A$2:$BH$50,33,FALSE),"0000")=$A$1,"",TEXT(VLOOKUP($C$1,Group!$A$2:$BH$50,33,FALSE),"0000"))) ->  | B47: =IFERROR(VLOOKUP(A47,SchList!$A$2:$B$334,2,FALSE),"") ->  | C47: =IF($A47="","",VLOOKUP($A47,ethbysch!$A$3:$Q$493,17,FALSE)) ->  | D47: =IF($A47="","",VLOOKUP($A47,ethbysch!$A$3:$Q$493,4,FALSE)) ->  | E47: =IF($A47="","",VLOOKUP($A47,ethbysch!$A$3:$Q$493,6,FALSE)) ->  | F47: =IF($A47="","",VLOOKUP($A47,ethbysch!$A$3:$Q$493,8,FALSE)) ->  | G47: =IF($A47="","",VLOOKUP($A47,fsubc!$A$3:$M$508,6,FALSE)) ->  | H47: =IF($A47="","",VLOOKUP($A47,fsubc!$A$3:$M$508,8,FALSE)) ->  | I47: =IF($A47="","",VLOOKUP($A47,fsubc!$A$3:$M$508,12,FALSE)) ->  | J47: =IF($A47="","",VLOOKUP(VALUE($A47),Table10[],3,FALSE)) ->  | K47: =IF($A47="","",VLOOKUP($A47,'2013 SG'!$D$8:$BC$435,3,FALSE)) ->  | L47: =IF($A47="","",VLOOKUP($A47,'2013 SG'!$D$8:$BC$435,4,FALSE)) ->  | M47: =IF($A47="","",VLOOKUP($A47,'2013 SG'!$D$8:$BC$435,5,FALSE)) ->  | N47: =IF($A47="","",VLOOKUP($A47,'2013 SG'!$D$8:$BC$435,6,FALSE)) ->  | O47: =IF($A47="","",VLOOKUP($A47,'2013 SG'!$D$8:$BC$435,7,FALSE)) ->  | P47: =IF($A47="","",VLOOKUP($A47,'2013 SG'!$D$8:$BC$435,8,FALSE)) ->  | Q47: =IF($A47="","",VLOOKUP($A47,'2013 SG'!$D$8:$BC$435,9,FALSE)) ->  | R47: =IF($A47="","",VLOOKUP($A47,'2013 SG'!$D$8:$BC$435,10,FALSE)) ->  | S47: =IFERROR(VLOOKUP($A47,Schools1213PCTmeetNoCharter!$A$2:$F$344,5,FALSE)*0.01,"") ->  | T47: =IFERROR(VLOOKUP(A47,Schools1213PCTmeetNoCharter!$A$2:$F$344,3,FALSE),"") ->  | U47: =IFERROR(VLOOKUP($A47,Schools1213PCTmeetNoCharter!$A$2:$F$344,6,FALSE)*0.01,"") ->  | V47: =IFERROR(VLOOKUP(A47,Schools1213PCTmeetNoCharter!$A$2:$F$344,4,FALSE),"") -> 
A48: =IF(VLOOKUP($C$1,Group!$A$2:$BH$50,34,FALSE)="","",IF(TEXT(VLOOKUP($C$1,Group!$A$2:$BH$50,34,FALSE),"0000")=$A$1,"",TEXT(VLOOKUP($C$1,Group!$A$2:$BH$50,34,FALSE),"0000"))) ->  | B48: =IFERROR(VLOOKUP(A48,SchList!$A$2:$B$334,2,FALSE),"") ->  | C48: =IF($A48="","",VLOOKUP($A48,ethbysch!$A$3:$Q$493,17,FALSE)) ->  | D48: =IF($A48="","",VLOOKUP($A48,ethbysch!$A$3:$Q$493,4,FALSE)) ->  | E48: =IF($A48="","",VLOOKUP($A48,ethbysch!$A$3:$Q$493,6,FALSE)) ->  | F48: =IF($A48="","",VLOOKUP($A48,ethbysch!$A$3:$Q$493,8,FALSE)) ->  | G48: =IF($A48="","",VLOOKUP($A48,fsubc!$A$3:$M$508,6,FALSE)) ->  | H48: =IF($A48="","",VLOOKUP($A48,fsubc!$A$3:$M$508,8,FALSE)) ->  | I48: =IF($A48="","",VLOOKUP($A48,fsubc!$A$3:$M$508,12,FALSE)) ->  | J48: =IF($A48="","",VLOOKUP(VALUE($A48),Table10[],3,FALSE)) ->  | K48: =IF($A48="","",VLOOKUP($A48,'2013 SG'!$D$8:$BC$435,3,FALSE)) ->  | L48: =IF($A48="","",VLOOKUP($A48,'2013 SG'!$D$8:$BC$435,4,FALSE)) ->  | M48: =IF($A48="","",VLOOKUP($A48,'2013 SG'!$D$8:$BC$435,5,FALSE)) ->  | N48: =IF($A48="","",VLOOKUP($A48,'2013 SG'!$D$8:$BC$435,6,FALSE)) ->  | O48: =IF($A48="","",VLOOKUP($A48,'2013 SG'!$D$8:$BC$435,7,FALSE)) ->  | P48: =IF($A48="","",VLOOKUP($A48,'2013 SG'!$D$8:$BC$435,8,FALSE)) ->  | Q48: =IF($A48="","",VLOOKUP($A48,'2013 SG'!$D$8:$BC$435,9,FALSE)) ->  | R48: =IF($A48="","",VLOOKUP($A48,'2013 SG'!$D$8:$BC$435,10,FALSE)) ->  | S48: =IFERROR(VLOOKUP($A48,Schools1213PCTmeetNoCharter!$A$2:$F$344,5,FALSE)*0.01,"") ->  | T48: =IFERROR(VLOOKUP(A48,Schools1213PCTmeetNoCharter!$A$2:$F$344,3,FALSE),"") ->  | U48: =IFERROR(VLOOKUP($A48,Schools1213PCTmeetNoCharter!$A$2:$F$344,6,FALSE)*0.01,"") ->  | V48: =IFERROR(VLOOKUP(A48,Schools1213PCTmeetNoCharter!$A$2:$F$344,4,FALSE),"") -> 
A49: =IF(VLOOKUP($C$1,Group!$A$2:$BH$50,35,FALSE)="","",IF(TEXT(VLOOKUP($C$1,Group!$A$2:$BH$50,35,FALSE),"0000")=$A$1,"",TEXT(VLOOKUP($C$1,Group!$A$2:$BH$50,35,FALSE),"0000"))) ->  | B49: =IFERROR(VLOOKUP(A49,SchList!$A$2:$B$334,2,FALSE),"") ->  | C49: =IF($A49="","",VLOOKUP($A49,ethbysch!$A$3:$Q$493,17,FALSE)) ->  | D49: =IF($A49="","",VLOOKUP($A49,ethbysch!$A$3:$Q$493,4,FALSE)) ->  | E49: =IF($A49="","",VLOOKUP($A49,ethbysch!$A$3:$Q$493,6,FALSE)) ->  | F49: =IF($A49="","",VLOOKUP($A49,ethbysch!$A$3:$Q$493,8,FALSE)) ->  | G49: =IF($A49="","",VLOOKUP($A49,fsubc!$A$3:$M$508,6,FALSE)) ->  | H49: =IF($A49="","",VLOOKUP($A49,fsubc!$A$3:$M$508,8,FALSE)) ->  | I49: =IF($A49="","",VLOOKUP($A49,fsubc!$A$3:$M$508,12,FALSE)) ->  | J49: =IF($A49="","",VLOOKUP(VALUE($A49),Table10[],3,FALSE)) ->  | K49: =IF($A49="","",VLOOKUP($A49,'2013 SG'!$D$8:$BC$435,3,FALSE)) ->  | L49: =IF($A49="","",VLOOKUP($A49,'2013 SG'!$D$8:$BC$435,4,FALSE)) ->  | M49: =IF($A49="","",VLOOKUP($A49,'2013 SG'!$D$8:$BC$435,5,FALSE)) ->  | N49: =IF($A49="","",VLOOKUP($A49,'2013 SG'!$D$8:$BC$435,6,FALSE)) ->  | O49: =IF($A49="","",VLOOKUP($A49,'2013 SG'!$D$8:$BC$435,7,FALSE)) ->  | P49: =IF($A49="","",VLOOKUP($A49,'2013 SG'!$D$8:$BC$435,8,FALSE)) ->  | Q49: =IF($A49="","",VLOOKUP($A49,'2013 SG'!$D$8:$BC$435,9,FALSE)) ->  | R49: =IF($A49="","",VLOOKUP($A49,'2013 SG'!$D$8:$BC$435,10,FALSE)) ->  | S49: =IFERROR(VLOOKUP($A49,Schools1213PCTmeetNoCharter!$A$2:$F$344,5,FALSE)*0.01,"") ->  | T49: =IFERROR(VLOOKUP(A49,Schools1213PCTmeetNoCharter!$A$2:$F$344,3,FALSE),"") ->  | U49: =IFERROR(VLOOKUP($A49,Schools1213PCTmeetNoCharter!$A$2:$F$344,6,FALSE)*0.01,"") ->  | V49: =IFERROR(VLOOKUP(A49,Schools1213PCTmeetNoCharter!$A$2:$F$344,4,FALSE),"") -> 
A50: =IF(VLOOKUP($C$1,Group!$A$2:$BH$50,36,FALSE)="","",IF(TEXT(VLOOKUP($C$1,Group!$A$2:$BH$50,36,FALSE),"0000")=$A$1,"",TEXT(VLOOKUP($C$1,Group!$A$2:$BH$50,36,FALSE),"0000"))) ->  | B50: =IFERROR(VLOOKUP(A50,SchList!$A$2:$B$334,2,FALSE),"") ->  | C50: =IF($A50="","",VLOOKUP($A50,ethbysch!$A$3:$Q$493,17,FALSE)) ->  | D50: =IF($A50="","",VLOOKUP($A50,ethbysch!$A$3:$Q$493,4,FALSE)) ->  | E50: =IF($A50="","",VLOOKUP($A50,ethbysch!$A$3:$Q$493,6,FALSE)) ->  | F50: =IF($A50="","",VLOOKUP($A50,ethbysch!$A$3:$Q$493,8,FALSE)) ->  | G50: =IF($A50="","",VLOOKUP($A50,fsubc!$A$3:$M$508,6,FALSE)) ->  | H50: =IF($A50="","",VLOOKUP($A50,fsubc!$A$3:$M$508,8,FALSE)) ->  | I50: =IF($A50="","",VLOOKUP($A50,fsubc!$A$3:$M$508,12,FALSE)) ->  | J50: =IF($A50="","",VLOOKUP(VALUE($A50),Table10[],3,FALSE)) ->  | K50: =IF($A50="","",VLOOKUP($A50,'2013 SG'!$D$8:$BC$435,3,FALSE)) ->  | L50: =IF($A50="","",VLOOKUP($A50,'2013 SG'!$D$8:$BC$435,4,FALSE)) ->  | M50: =IF($A50="","",VLOOKUP($A50,'2013 SG'!$D$8:$BC$435,5,FALSE)) ->  | N50: =IF($A50="","",VLOOKUP($A50,'2013 SG'!$D$8:$BC$435,6,FALSE)) ->  | O50: =IF($A50="","",VLOOKUP($A50,'2013 SG'!$D$8:$BC$435,7,FALSE)) ->  | P50: =IF($A50="","",VLOOKUP($A50,'2013 SG'!$D$8:$BC$435,8,FALSE)) ->  | Q50: =IF($A50="","",VLOOKUP($A50,'2013 SG'!$D$8:$BC$435,9,FALSE)) ->  | R50: =IF($A50="","",VLOOKUP($A50,'2013 SG'!$D$8:$BC$435,10,FALSE)) ->  | S50: =IFERROR(VLOOKUP($A50,Schools1213PCTmeetNoCharter!$A$2:$F$344,5,FALSE)*0.01,"") ->  | T50: =IFERROR(VLOOKUP(A50,Schools1213PCTmeetNoCharter!$A$2:$F$344,3,FALSE),"") ->  | U50: =IFERROR(VLOOKUP($A50,Schools1213PCTmeetNoCharter!$A$2:$F$344,6,FALSE)*0.01,"") ->  | V50: =IFERROR(VLOOKUP(A50,Schools1213PCTmeetNoCharter!$A$2:$F$344,4,FALSE),"") -> 
A51: =IF(VLOOKUP($C$1,Group!$A$2:$BH$50,37,FALSE)="","",IF(TEXT(VLOOKUP($C$1,Group!$A$2:$BH$50,37,FALSE),"0000")=$A$1,"",TEXT(VLOOKUP($C$1,Group!$A$2:$BH$50,37,FALSE),"0000"))) ->  | B51: =IFERROR(VLOOKUP(A51,SchList!$A$2:$B$334,2,FALSE),"") ->  | C51: =IF($A51="","",VLOOKUP($A51,ethbysch!$A$3:$Q$493,17,FALSE)) ->  | D51: =IF($A51="","",VLOOKUP($A51,ethbysch!$A$3:$Q$493,4,FALSE)) ->  | E51: =IF($A51="","",VLOOKUP($A51,ethbysch!$A$3:$Q$493,6,FALSE)) ->  | F51: =IF($A51="","",VLOOKUP($A51,ethbysch!$A$3:$Q$493,8,FALSE)) ->  | G51: =IF($A51="","",VLOOKUP($A51,fsubc!$A$3:$M$508,6,FALSE)) ->  | H51: =IF($A51="","",VLOOKUP($A51,fsubc!$A$3:$M$508,8,FALSE)) ->  | I51: =IF($A51="","",VLOOKUP($A51,fsubc!$A$3:$M$508,12,FALSE)) ->  | J51: =IF($A51="","",VLOOKUP(VALUE($A51),Table10[],3,FALSE)) ->  | K51: =IF($A51="","",VLOOKUP($A51,'2013 SG'!$D$8:$BC$435,3,FALSE)) ->  | L51: =IF($A51="","",VLOOKUP($A51,'2013 SG'!$D$8:$BC$435,4,FALSE)) ->  | M51: =IF($A51="","",VLOOKUP($A51,'2013 SG'!$D$8:$BC$435,5,FALSE)) ->  | N51: =IF($A51="","",VLOOKUP($A51,'2013 SG'!$D$8:$BC$435,6,FALSE)) ->  | O51: =IF($A51="","",VLOOKUP($A51,'2013 SG'!$D$8:$BC$435,7,FALSE)) ->  | P51: =IF($A51="","",VLOOKUP($A51,'2013 SG'!$D$8:$BC$435,8,FALSE)) ->  | Q51: =IF($A51="","",VLOOKUP($A51,'2013 SG'!$D$8:$BC$435,9,FALSE)) ->  | R51: =IF($A51="","",VLOOKUP($A51,'2013 SG'!$D$8:$BC$435,10,FALSE)) ->  | S51: =IFERROR(VLOOKUP($A51,Schools1213PCTmeetNoCharter!$A$2:$F$344,5,FALSE)*0.01,"") ->  | T51: =IFERROR(VLOOKUP(A51,Schools1213PCTmeetNoCharter!$A$2:$F$344,3,FALSE),"") ->  | U51: =IFERROR(VLOOKUP($A51,Schools1213PCTmeetNoCharter!$A$2:$F$344,6,FALSE)*0.01,"") ->  | V51: =IFERROR(VLOOKUP(A51,Schools1213PCTmeetNoCharter!$A$2:$F$344,4,FALSE),"") -> 
A52: =IF(VLOOKUP($C$1,Group!$A$2:$BH$50,38,FALSE)="","",IF(TEXT(VLOOKUP($C$1,Group!$A$2:$BH$50,38,FALSE),"0000")=$A$1,"",TEXT(VLOOKUP($C$1,Group!$A$2:$BH$50,38,FALSE),"0000"))) ->  | B52: =IFERROR(VLOOKUP(A52,SchList!$A$2:$B$334,2,FALSE),"") ->  | C52: =IF($A52="","",VLOOKUP($A52,ethbysch!$A$3:$Q$493,17,FALSE)) ->  | D52: =IF($A52="","",VLOOKUP($A52,ethbysch!$A$3:$Q$493,4,FALSE)) ->  | E52: =IF($A52="","",VLOOKUP($A52,ethbysch!$A$3:$Q$493,6,FALSE)) ->  | F52: =IF($A52="","",VLOOKUP($A52,ethbysch!$A$3:$Q$493,8,FALSE)) ->  | G52: =IF($A52="","",VLOOKUP($A52,fsubc!$A$3:$M$508,6,FALSE)) ->  | H52: =IF($A52="","",VLOOKUP($A52,fsubc!$A$3:$M$508,8,FALSE)) ->  | I52: =IF($A52="","",VLOOKUP($A52,fsubc!$A$3:$M$508,12,FALSE)) ->  | J52: =IF($A52="","",VLOOKUP(VALUE($A52),Table10[],3,FALSE)) ->  | K52: =IF($A52="","",VLOOKUP($A52,'2013 SG'!$D$8:$BC$435,3,FALSE)) ->  | L52: =IF($A52="","",VLOOKUP($A52,'2013 SG'!$D$8:$BC$435,4,FALSE)) ->  | M52: =IF($A52="","",VLOOKUP($A52,'2013 SG'!$D$8:$BC$435,5,FALSE)) ->  | N52: =IF($A52="","",VLOOKUP($A52,'2013 SG'!$D$8:$BC$435,6,FALSE)) ->  | O52: =IF($A52="","",VLOOKUP($A52,'2013 SG'!$D$8:$BC$435,7,FALSE)) ->  | P52: =IF($A52="","",VLOOKUP($A52,'2013 SG'!$D$8:$BC$435,8,FALSE)) ->  | Q52: =IF($A52="","",VLOOKUP($A52,'2013 SG'!$D$8:$BC$435,9,FALSE)) ->  | R52: =IF($A52="","",VLOOKUP($A52,'2013 SG'!$D$8:$BC$435,10,FALSE)) ->  | S52: =IFERROR(VLOOKUP($A52,Schools1213PCTmeetNoCharter!$A$2:$F$344,5,FALSE)*0.01,"") ->  | T52: =IFERROR(VLOOKUP(A52,Schools1213PCTmeetNoCharter!$A$2:$F$344,3,FALSE),"") ->  | U52: =IFERROR(VLOOKUP($A52,Schools1213PCTmeetNoCharter!$A$2:$F$344,6,FALSE)*0.01,"") ->  | V52: =IFERROR(VLOOKUP(A52,Schools1213PCTmeetNoCharter!$A$2:$F$344,4,FALSE),"") -> 
A53: =IF(VLOOKUP($C$1,Group!$A$2:$BH$50,39,FALSE)="","",IF(TEXT(VLOOKUP($C$1,Group!$A$2:$BH$50,39,FALSE),"0000")=$A$1,"",TEXT(VLOOKUP($C$1,Group!$A$2:$BH$50,39,FALSE),"0000"))) ->  | B53: =IFERROR(VLOOKUP(A53,SchList!$A$2:$B$334,2,FALSE),"") ->  | C53: =IF($A53="","",VLOOKUP($A53,ethbysch!$A$3:$Q$493,17,FALSE)) ->  | D53: =IF($A53="","",VLOOKUP($A53,ethbysch!$A$3:$Q$493,4,FALSE)) ->  | E53: =IF($A53="","",VLOOKUP($A53,ethbysch!$A$3:$Q$493,6,FALSE)) ->  | F53: =IF($A53="","",VLOOKUP($A53,ethbysch!$A$3:$Q$493,8,FALSE)) ->  | G53: =IF($A53="","",VLOOKUP($A53,fsubc!$A$3:$M$508,6,FALSE)) ->  | H53: =IF($A53="","",VLOOKUP($A53,fsubc!$A$3:$M$508,8,FALSE)) ->  | I53: =IF($A53="","",VLOOKUP($A53,fsubc!$A$3:$M$508,12,FALSE)) ->  | J53: =IF($A53="","",VLOOKUP(VALUE($A53),Table10[],3,FALSE)) ->  | K53: =IF($A53="","",VLOOKUP($A53,'2013 SG'!$D$8:$BC$435,3,FALSE)) ->  | L53: =IF($A53="","",VLOOKUP($A53,'2013 SG'!$D$8:$BC$435,4,FALSE)) ->  | M53: =IF($A53="","",VLOOKUP($A53,'2013 SG'!$D$8:$BC$435,5,FALSE)) ->  | N53: =IF($A53="","",VLOOKUP($A53,'2013 SG'!$D$8:$BC$435,6,FALSE)) ->  | O53: =IF($A53="","",VLOOKUP($A53,'2013 SG'!$D$8:$BC$435,7,FALSE)) ->  | P53: =IF($A53="","",VLOOKUP($A53,'2013 SG'!$D$8:$BC$435,8,FALSE)) ->  | Q53: =IF($A53="","",VLOOKUP($A53,'2013 SG'!$D$8:$BC$435,9,FALSE)) ->  | R53: =IF($A53="","",VLOOKUP($A53,'2013 SG'!$D$8:$BC$435,10,FALSE)) ->  | S53: =IFERROR(VLOOKUP($A53,Schools1213PCTmeetNoCharter!$A$2:$F$344,5,FALSE)*0.01,"") ->  | T53: =IFERROR(VLOOKUP(A53,Schools1213PCTmeetNoCharter!$A$2:$F$344,3,FALSE),"") ->  | U53: =IFERROR(VLOOKUP($A53,Schools1213PCTmeetNoCharter!$A$2:$F$344,6,FALSE)*0.01,"") ->  | V53: =IFERROR(VLOOKUP(A53,Schools1213PCTmeetNoCharter!$A$2:$F$344,4,FALSE),"") -> 
A54: =IF(VLOOKUP($C$1,Group!$A$2:$BH$50,40,FALSE)="","",IF(TEXT(VLOOKUP($C$1,Group!$A$2:$BH$50,40,FALSE),"0000")=$A$1,"",TEXT(VLOOKUP($C$1,Group!$A$2:$BH$50,40,FALSE),"0000"))) ->  | B54: =IFERROR(VLOOKUP(A54,SchList!$A$2:$B$334,2,FALSE),"") ->  | C54: =IF($A54="","",VLOOKUP($A54,ethbysch!$A$3:$Q$493,17,FALSE)) ->  | D54: =IF($A54="","",VLOOKUP($A54,ethbysch!$A$3:$Q$493,4,FALSE)) ->  | E54: =IF($A54="","",VLOOKUP($A54,ethbysch!$A$3:$Q$493,6,FALSE)) ->  | F54: =IF($A54="","",VLOOKUP($A54,ethbysch!$A$3:$Q$493,8,FALSE)) ->  | G54: =IF($A54="","",VLOOKUP($A54,fsubc!$A$3:$M$508,6,FALSE)) ->  | H54: =IF($A54="","",VLOOKUP($A54,fsubc!$A$3:$M$508,8,FALSE)) ->  | I54: =IF($A54="","",VLOOKUP($A54,fsubc!$A$3:$M$508,12,FALSE)) ->  | J54: =IF($A54="","",VLOOKUP(VALUE($A54),Table10[],3,FALSE)) ->  | K54: =IF($A54="","",VLOOKUP($A54,'2013 SG'!$D$8:$BC$435,3,FALSE)) ->  | L54: =IF($A54="","",VLOOKUP($A54,'2013 SG'!$D$8:$BC$435,4,FALSE)) ->  | M54: =IF($A54="","",VLOOKUP($A54,'2013 SG'!$D$8:$BC$435,5,FALSE)) ->  | N54: =IF($A54="","",VLOOKUP($A54,'2013 SG'!$D$8:$BC$435,6,FALSE)) ->  | O54: =IF($A54="","",VLOOKUP($A54,'2013 SG'!$D$8:$BC$435,7,FALSE)) ->  | P54: =IF($A54="","",VLOOKUP($A54,'2013 SG'!$D$8:$BC$435,8,FALSE)) ->  | Q54: =IF($A54="","",VLOOKUP($A54,'2013 SG'!$D$8:$BC$435,9,FALSE)) ->  | R54: =IF($A54="","",VLOOKUP($A54,'2013 SG'!$D$8:$BC$435,10,FALSE)) ->  | S54: =IFERROR(VLOOKUP($A54,Schools1213PCTmeetNoCharter!$A$2:$F$344,5,FALSE)*0.01,"") ->  | T54: =IFERROR(VLOOKUP(A54,Schools1213PCTmeetNoCharter!$A$2:$F$344,3,FALSE),"") ->  | U54: =IFERROR(VLOOKUP($A54,Schools1213PCTmeetNoCharter!$A$2:$F$344,6,FALSE)*0.01,"") ->  | V54: =IFERROR(VLOOKUP(A54,Schools1213PCTmeetNoCharter!$A$2:$F$344,4,FALSE),"") -> 
A55: =IF(VLOOKUP($C$1,Group!$A$2:$BH$50,41,FALSE)="","",IF(TEXT(VLOOKUP($C$1,Group!$A$2:$BH$50,41,FALSE),"0000")=$A$1,"",TEXT(VLOOKUP($C$1,Group!$A$2:$BH$50,41,FALSE),"0000"))) ->  | B55: =IFERROR(VLOOKUP(A55,SchList!$A$2:$B$334,2,FALSE),"") ->  | C55: =IF($A55="","",VLOOKUP($A55,ethbysch!$A$3:$Q$493,17,FALSE)) ->  | D55: =IF($A55="","",VLOOKUP($A55,ethbysch!$A$3:$Q$493,4,FALSE)) ->  | E55: =IF($A55="","",VLOOKUP($A55,ethbysch!$A$3:$Q$493,6,FALSE)) ->  | F55: =IF($A55="","",VLOOKUP($A55,ethbysch!$A$3:$Q$493,8,FALSE)) ->  | G55: =IF($A55="","",VLOOKUP($A55,fsubc!$A$3:$M$508,6,FALSE)) ->  | H55: =IF($A55="","",VLOOKUP($A55,fsubc!$A$3:$M$508,8,FALSE)) ->  | I55: =IF($A55="","",VLOOKUP($A55,fsubc!$A$3:$M$508,12,FALSE)) ->  | J55: =IF($A55="","",VLOOKUP(VALUE($A55),Table10[],3,FALSE)) ->  | K55: =IF($A55="","",VLOOKUP($A55,'2013 SG'!$D$8:$BC$435,3,FALSE)) ->  | L55: =IF($A55="","",VLOOKUP($A55,'2013 SG'!$D$8:$BC$435,4,FALSE)) ->  | M55: =IF($A55="","",VLOOKUP($A55,'2013 SG'!$D$8:$BC$435,5,FALSE)) ->  | N55: =IF($A55="","",VLOOKUP($A55,'2013 SG'!$D$8:$BC$435,6,FALSE)) ->  | O55: =IF($A55="","",VLOOKUP($A55,'2013 SG'!$D$8:$BC$435,7,FALSE)) ->  | P55: =IF($A55="","",VLOOKUP($A55,'2013 SG'!$D$8:$BC$435,8,FALSE)) ->  | Q55: =IF($A55="","",VLOOKUP($A55,'2013 SG'!$D$8:$BC$435,9,FALSE)) ->  | R55: =IF($A55="","",VLOOKUP($A55,'2013 SG'!$D$8:$BC$435,10,FALSE)) ->  | S55: =IFERROR(VLOOKUP($A55,Schools1213PCTmeetNoCharter!$A$2:$F$344,5,FALSE)*0.01,"") ->  | T55: =IFERROR(VLOOKUP(A55,Schools1213PCTmeetNoCharter!$A$2:$F$344,3,FALSE),"") ->  | U55: =IFERROR(VLOOKUP($A55,Schools1213PCTmeetNoCharter!$A$2:$F$344,6,FALSE)*0.01,"") ->  | V55: =IFERROR(VLOOKUP(A55,Schools1213PCTmeetNoCharter!$A$2:$F$344,4,FALSE),"") -> 
A56: =IF(VLOOKUP($C$1,Group!$A$2:$BH$50,42,FALSE)="","",IF(TEXT(VLOOKUP($C$1,Group!$A$2:$BH$50,42,FALSE),"0000")=$A$1,"",TEXT(VLOOKUP($C$1,Group!$A$2:$BH$50,42,FALSE),"0000"))) ->  | B56: =IFERROR(VLOOKUP(A56,SchList!$A$2:$B$334,2,FALSE),"") ->  | C56: =IF($A56="","",VLOOKUP($A56,ethbysch!$A$3:$Q$493,17,FALSE)) ->  | D56: =IF($A56="","",VLOOKUP($A56,ethbysch!$A$3:$Q$493,4,FALSE)) ->  | E56: =IF($A56="","",VLOOKUP($A56,ethbysch!$A$3:$Q$493,6,FALSE)) ->  | F56: =IF($A56="","",VLOOKUP($A56,ethbysch!$A$3:$Q$493,8,FALSE)) ->  | G56: =IF($A56="","",VLOOKUP($A56,fsubc!$A$3:$M$508,6,FALSE)) ->  | H56: =IF($A56="","",VLOOKUP($A56,fsubc!$A$3:$M$508,8,FALSE)) ->  | I56: =IF($A56="","",VLOOKUP($A56,fsubc!$A$3:$M$508,12,FALSE)) ->  | J56: =IF($A56="","",VLOOKUP(VALUE($A56),Table10[],3,FALSE)) ->  | K56: =IF($A56="","",VLOOKUP($A56,'2013 SG'!$D$8:$BC$435,3,FALSE)) ->  | L56: =IF($A56="","",VLOOKUP($A56,'2013 SG'!$D$8:$BC$435,4,FALSE)) ->  | M56: =IF($A56="","",VLOOKUP($A56,'2013 SG'!$D$8:$BC$435,5,FALSE)) ->  | N56: =IF($A56="","",VLOOKUP($A56,'2013 SG'!$D$8:$BC$435,6,FALSE)) ->  | O56: =IF($A56="","",VLOOKUP($A56,'2013 SG'!$D$8:$BC$435,7,FALSE)) ->  | P56: =IF($A56="","",VLOOKUP($A56,'2013 SG'!$D$8:$BC$435,8,FALSE)) ->  | Q56: =IF($A56="","",VLOOKUP($A56,'2013 SG'!$D$8:$BC$435,9,FALSE)) ->  | R56: =IF($A56="","",VLOOKUP($A56,'2013 SG'!$D$8:$BC$435,10,FALSE)) ->  | S56: =IFERROR(VLOOKUP($A56,Schools1213PCTmeetNoCharter!$A$2:$F$344,5,FALSE)*0.01,"") ->  | T56: =IFERROR(VLOOKUP(A56,Schools1213PCTmeetNoCharter!$A$2:$F$344,3,FALSE),"") ->  | U56: =IFERROR(VLOOKUP($A56,Schools1213PCTmeetNoCharter!$A$2:$F$344,6,FALSE)*0.01,"") ->  | V56: =IFERROR(VLOOKUP(A56,Schools1213PCTmeetNoCharter!$A$2:$F$344,4,FALSE),"") -> 
A57: =IF(VLOOKUP($C$1,Group!$A$2:$BH$50,43,FALSE)="","",IF(TEXT(VLOOKUP($C$1,Group!$A$2:$BH$50,43,FALSE),"0000")=$A$1,"",TEXT(VLOOKUP($C$1,Group!$A$2:$BH$50,43,FALSE),"0000"))) ->  | B57: =IFERROR(VLOOKUP(A57,SchList!$A$2:$B$334,2,FALSE),"") ->  | C57: =IF($A57="","",VLOOKUP($A57,ethbysch!$A$3:$Q$493,17,FALSE)) ->  | D57: =IF($A57="","",VLOOKUP($A57,ethbysch!$A$3:$Q$493,4,FALSE)) ->  | E57: =IF($A57="","",VLOOKUP($A57,ethbysch!$A$3:$Q$493,6,FALSE)) ->  | F57: =IF($A57="","",VLOOKUP($A57,ethbysch!$A$3:$Q$493,8,FALSE)) ->  | G57: =IF($A57="","",VLOOKUP($A57,fsubc!$A$3:$M$508,6,FALSE)) ->  | H57: =IF($A57="","",VLOOKUP($A57,fsubc!$A$3:$M$508,8,FALSE)) ->  | I57: =IF($A57="","",VLOOKUP($A57,fsubc!$A$3:$M$508,12,FALSE)) ->  | J57: =IF($A57="","",VLOOKUP(VALUE($A57),Table10[],3,FALSE)) ->  | K57: =IF($A57="","",VLOOKUP($A57,'2013 SG'!$D$8:$BC$435,3,FALSE)) ->  | L57: =IF($A57="","",VLOOKUP($A57,'2013 SG'!$D$8:$BC$435,4,FALSE)) ->  | M57: =IF($A57="","",VLOOKUP($A57,'2013 SG'!$D$8:$BC$435,5,FALSE)) ->  | N57: =IF($A57="","",VLOOKUP($A57,'2013 SG'!$D$8:$BC$435,6,FALSE)) ->  | O57: =IF($A57="","",VLOOKUP($A57,'2013 SG'!$D$8:$BC$435,7,FALSE)) ->  | P57: =IF($A57="","",VLOOKUP($A57,'2013 SG'!$D$8:$BC$435,8,FALSE)) ->  | Q57: =IF($A57="","",VLOOKUP($A57,'2013 SG'!$D$8:$BC$435,9,FALSE)) ->  | R57: =IF($A57="","",VLOOKUP($A57,'2013 SG'!$D$8:$BC$435,10,FALSE)) ->  | S57: =IFERROR(VLOOKUP($A57,Schools1213PCTmeetNoCharter!$A$2:$F$344,5,FALSE)*0.01,"") ->  | T57: =IFERROR(VLOOKUP(A57,Schools1213PCTmeetNoCharter!$A$2:$F$344,3,FALSE),"") ->  | U57: =IFERROR(VLOOKUP($A57,Schools1213PCTmeetNoCharter!$A$2:$F$344,6,FALSE)*0.01,"") ->  | V57: =IFERROR(VLOOKUP(A57,Schools1213PCTmeetNoCharter!$A$2:$F$344,4,FALSE),"") -> 
A58: =IF(VLOOKUP($C$1,Group!$A$2:$BH$50,44,FALSE)="","",IF(TEXT(VLOOKUP($C$1,Group!$A$2:$BH$50,44,FALSE),"0000")=$A$1,"",TEXT(VLOOKUP($C$1,Group!$A$2:$BH$50,44,FALSE),"0000"))) ->  | B58: =IFERROR(VLOOKUP(A58,SchList!$A$2:$B$334,2,FALSE),"") ->  | C58: =IF($A58="","",VLOOKUP($A58,ethbysch!$A$3:$Q$493,17,FALSE)) ->  | D58: =IF($A58="","",VLOOKUP($A58,ethbysch!$A$3:$Q$493,4,FALSE)) ->  | E58: =IF($A58="","",VLOOKUP($A58,ethbysch!$A$3:$Q$493,6,FALSE)) ->  | F58: =IF($A58="","",VLOOKUP($A58,ethbysch!$A$3:$Q$493,8,FALSE)) ->  | G58: =IF($A58="","",VLOOKUP($A58,fsubc!$A$3:$M$508,6,FALSE)) ->  | H58: =IF($A58="","",VLOOKUP($A58,fsubc!$A$3:$M$508,8,FALSE)) ->  | I58: =IF($A58="","",VLOOKUP($A58,fsubc!$A$3:$M$508,12,FALSE)) ->  | J58: =IF($A58="","",VLOOKUP(VALUE($A58),Table10[],3,FALSE)) ->  | K58: =IF($A58="","",VLOOKUP($A58,'2013 SG'!$D$8:$BC$435,3,FALSE)) ->  | L58: =IF($A58="","",VLOOKUP($A58,'2013 SG'!$D$8:$BC$435,4,FALSE)) ->  | M58: =IF($A58="","",VLOOKUP($A58,'2013 SG'!$D$8:$BC$435,5,FALSE)) ->  | N58: =IF($A58="","",VLOOKUP($A58,'2013 SG'!$D$8:$BC$435,6,FALSE)) ->  | O58: =IF($A58="","",VLOOKUP($A58,'2013 SG'!$D$8:$BC$435,7,FALSE)) ->  | P58: =IF($A58="","",VLOOKUP($A58,'2013 SG'!$D$8:$BC$435,8,FALSE)) ->  | Q58: =IF($A58="","",VLOOKUP($A58,'2013 SG'!$D$8:$BC$435,9,FALSE)) ->  | R58: =IF($A58="","",VLOOKUP($A58,'2013 SG'!$D$8:$BC$435,10,FALSE)) ->  | S58: =IFERROR(VLOOKUP($A58,Schools1213PCTmeetNoCharter!$A$2:$F$344,5,FALSE)*0.01,"") ->  | T58: =IFERROR(VLOOKUP(A58,Schools1213PCTmeetNoCharter!$A$2:$F$344,3,FALSE),"") ->  | U58: =IFERROR(VLOOKUP($A58,Schools1213PCTmeetNoCharter!$A$2:$F$344,6,FALSE)*0.01,"") ->  | V58: =IFERROR(VLOOKUP(A58,Schools1213PCTmeetNoCharter!$A$2:$F$344,4,FALSE),"") -> 
A59: =IF(VLOOKUP($C$1,Group!$A$2:$BH$50,45,FALSE)="","",IF(TEXT(VLOOKUP($C$1,Group!$A$2:$BH$50,45,FALSE),"0000")=$A$1,"",TEXT(VLOOKUP($C$1,Group!$A$2:$BH$50,45,FALSE),"0000"))) ->  | B59: =IFERROR(VLOOKUP(A59,SchList!$A$2:$B$334,2,FALSE),"") ->  | C59: =IF($A59="","",VLOOKUP($A59,ethbysch!$A$3:$Q$493,17,FALSE)) ->  | D59: =IF($A59="","",VLOOKUP($A59,ethbysch!$A$3:$Q$493,4,FALSE)) ->  | E59: =IF($A59="","",VLOOKUP($A59,ethbysch!$A$3:$Q$493,6,FALSE)) ->  | F59: =IF($A59="","",VLOOKUP($A59,ethbysch!$A$3:$Q$493,8,FALSE)) ->  | G59: =IF($A59="","",VLOOKUP($A59,fsubc!$A$3:$M$508,6,FALSE)) ->  | H59: =IF($A59="","",VLOOKUP($A59,fsubc!$A$3:$M$508,8,FALSE)) ->  | I59: =IF($A59="","",VLOOKUP($A59,fsubc!$A$3:$M$508,12,FALSE)) ->  | J59: =IF($A59="","",VLOOKUP(VALUE($A59),Table10[],3,FALSE)) ->  | K59: =IF($A59="","",VLOOKUP($A59,'2013 SG'!$D$8:$BC$435,3,FALSE)) ->  | L59: =IF($A59="","",VLOOKUP($A59,'2013 SG'!$D$8:$BC$435,4,FALSE)) ->  | M59: =IF($A59="","",VLOOKUP($A59,'2013 SG'!$D$8:$BC$435,5,FALSE)) ->  | N59: =IF($A59="","",VLOOKUP($A59,'2013 SG'!$D$8:$BC$435,6,FALSE)) ->  | O59: =IF($A59="","",VLOOKUP($A59,'2013 SG'!$D$8:$BC$435,7,FALSE)) ->  | P59: =IF($A59="","",VLOOKUP($A59,'2013 SG'!$D$8:$BC$435,8,FALSE)) ->  | Q59: =IF($A59="","",VLOOKUP($A59,'2013 SG'!$D$8:$BC$435,9,FALSE)) ->  | R59: =IF($A59="","",VLOOKUP($A59,'2013 SG'!$D$8:$BC$435,10,FALSE)) ->  | S59: =IFERROR(VLOOKUP($A59,Schools1213PCTmeetNoCharter!$A$2:$F$344,5,FALSE)*0.01,"") ->  | T59: =IFERROR(VLOOKUP(A59,Schools1213PCTmeetNoCharter!$A$2:$F$344,3,FALSE),"") ->  | U59: =IFERROR(VLOOKUP($A59,Schools1213PCTmeetNoCharter!$A$2:$F$344,6,FALSE)*0.01,"") ->  | V59: =IFERROR(VLOOKUP(A59,Schools1213PCTmeetNoCharter!$A$2:$F$344,4,FALSE),"") -> 
A60: =IF(VLOOKUP($C$1,Group!$A$2:$BH$50,46,FALSE)="","",IF(TEXT(VLOOKUP($C$1,Group!$A$2:$BH$50,46,FALSE),"0000")=$A$1,"",TEXT(VLOOKUP($C$1,Group!$A$2:$BH$50,46,FALSE),"0000"))) ->  | B60: =IFERROR(VLOOKUP(A60,SchList!$A$2:$B$334,2,FALSE),"") ->  | C60: =IF($A60="","",VLOOKUP($A60,ethbysch!$A$3:$Q$493,17,FALSE)) ->  | D60: =IF($A60="","",VLOOKUP($A60,ethbysch!$A$3:$Q$493,4,FALSE)) ->  | E60: =IF($A60="","",VLOOKUP($A60,ethbysch!$A$3:$Q$493,6,FALSE)) ->  | F60: =IF($A60="","",VLOOKUP($A60,ethbysch!$A$3:$Q$493,8,FALSE)) ->  | G60: =IF($A60="","",VLOOKUP($A60,fsubc!$A$3:$M$508,6,FALSE)) ->  | H60: =IF($A60="","",VLOOKUP($A60,fsubc!$A$3:$M$508,8,FALSE)) ->  | I60: =IF($A60="","",VLOOKUP($A60,fsubc!$A$3:$M$508,12,FALSE)) ->  | J60: =IF($A60="","",VLOOKUP(VALUE($A60),Table10[],3,FALSE)) ->  | K60: =IF($A60="","",VLOOKUP($A60,'2013 SG'!$D$8:$BC$435,3,FALSE)) ->  | L60: =IF($A60="","",VLOOKUP($A60,'2013 SG'!$D$8:$BC$435,4,FALSE)) ->  | M60: =IF($A60="","",VLOOKUP($A60,'2013 SG'!$D$8:$BC$435,5,FALSE)) ->  | N60: =IF($A60="","",VLOOKUP($A60,'2013 SG'!$D$8:$BC$435,6,FALSE)) ->  | O60: =IF($A60="","",VLOOKUP($A60,'2013 SG'!$D$8:$BC$435,7,FALSE)) ->  | P60: =IF($A60="","",VLOOKUP($A60,'2013 SG'!$D$8:$BC$435,8,FALSE)) ->  | Q60: =IF($A60="","",VLOOKUP($A60,'2013 SG'!$D$8:$BC$435,9,FALSE)) ->  | R60: =IF($A60="","",VLOOKUP($A60,'2013 SG'!$D$8:$BC$435,10,FALSE)) ->  | S60: =IFERROR(VLOOKUP($A60,Schools1213PCTmeetNoCharter!$A$2:$F$344,5,FALSE)*0.01,"") ->  | T60: =IFERROR(VLOOKUP(A60,Schools1213PCTmeetNoCharter!$A$2:$F$344,3,FALSE),"") ->  | U60: =IFERROR(VLOOKUP($A60,Schools1213PCTmeetNoCharter!$A$2:$F$344,6,FALSE)*0.01,"") ->  | V60: =IFERROR(VLOOKUP(A60,Schools1213PCTmeetNoCharter!$A$2:$F$344,4,FALSE),"") -> 
A61: =IF(VLOOKUP($C$1,Group!$A$2:$BH$50,47,FALSE)="","",IF(TEXT(VLOOKUP($C$1,Group!$A$2:$BH$50,47,FALSE),"0000")=$A$1,"",TEXT(VLOOKUP($C$1,Group!$A$2:$BH$50,47,FALSE),"0000"))) ->  | B61: =IFERROR(VLOOKUP(A61,SchList!$A$2:$B$334,2,FALSE),"") ->  | C61: =IF($A61="","",VLOOKUP($A61,ethbysch!$A$3:$Q$493,17,FALSE)) ->  | D61: =IF($A61="","",VLOOKUP($A61,ethbysch!$A$3:$Q$493,4,FALSE)) ->  | E61: =IF($A61="","",VLOOKUP($A61,ethbysch!$A$3:$Q$493,6,FALSE)) ->  | F61: =IF($A61="","",VLOOKUP($A61,ethbysch!$A$3:$Q$493,8,FALSE)) ->  | G61: =IF($A61="","",VLOOKUP($A61,fsubc!$A$3:$M$508,6,FALSE)) ->  | H61: =IF($A61="","",VLOOKUP($A61,fsubc!$A$3:$M$508,8,FALSE)) ->  | I61: =IF($A61="","",VLOOKUP($A61,fsubc!$A$3:$M$508,12,FALSE)) ->  | J61: =IF($A61="","",VLOOKUP(VALUE($A61),Table10[],3,FALSE)) ->  | K61: =IF($A61="","",VLOOKUP($A61,'2013 SG'!$D$8:$BC$435,3,FALSE)) ->  | L61: =IF($A61="","",VLOOKUP($A61,'2013 SG'!$D$8:$BC$435,4,FALSE)) ->  | M61: =IF($A61="","",VLOOKUP($A61,'2013 SG'!$D$8:$BC$435,5,FALSE)) ->  | N61: =IF($A61="","",VLOOKUP($A61,'2013 SG'!$D$8:$BC$435,6,FALSE)) ->  | O61: =IF($A61="","",VLOOKUP($A61,'2013 SG'!$D$8:$BC$435,7,FALSE)) ->  | P61: =IF($A61="","",VLOOKUP($A61,'2013 SG'!$D$8:$BC$435,8,FALSE)) ->  | Q61: =IF($A61="","",VLOOKUP($A61,'2013 SG'!$D$8:$BC$435,9,FALSE)) ->  | R61: =IF($A61="","",VLOOKUP($A61,'2013 SG'!$D$8:$BC$435,10,FALSE)) ->  | S61: =IFERROR(VLOOKUP($A61,Schools1213PCTmeetNoCharter!$A$2:$F$344,5,FALSE)*0.01,"") ->  | T61: =IFERROR(VLOOKUP(A61,Schools1213PCTmeetNoCharter!$A$2:$F$344,3,FALSE),"") ->  | U61: =IFERROR(VLOOKUP($A61,Schools1213PCTmeetNoCharter!$A$2:$F$344,6,FALSE)*0.01,"") ->  | V61: =IFERROR(VLOOKUP(A61,Schools1213PCTmeetNoCharter!$A$2:$F$344,4,FALSE),"") -> 
A62: =IF(VLOOKUP($C$1,Group!$A$2:$BH$50,48,FALSE)="","",IF(TEXT(VLOOKUP($C$1,Group!$A$2:$BH$50,48,FALSE),"0000")=$A$1,"",TEXT(VLOOKUP($C$1,Group!$A$2:$BH$50,48,FALSE),"0000"))) ->  | B62: =IFERROR(VLOOKUP(A62,SchList!$A$2:$B$334,2,FALSE),"") ->  | C62: =IF($A62="","",VLOOKUP($A62,ethbysch!$A$3:$Q$493,17,FALSE)) ->  | D62: =IF($A62="","",VLOOKUP($A62,ethbysch!$A$3:$Q$493,4,FALSE)) ->  | E62: =IF($A62="","",VLOOKUP($A62,ethbysch!$A$3:$Q$493,6,FALSE)) ->  | F62: =IF($A62="","",VLOOKUP($A62,ethbysch!$A$3:$Q$493,8,FALSE)) ->  | G62: =IF($A62="","",VLOOKUP($A62,fsubc!$A$3:$M$508,6,FALSE)) ->  | H62: =IF($A62="","",VLOOKUP($A62,fsubc!$A$3:$M$508,8,FALSE)) ->  | I62: =IF($A62="","",VLOOKUP($A62,fsubc!$A$3:$M$508,12,FALSE)) ->  | J62: =IF($A62="","",VLOOKUP(VALUE($A62),Table10[],3,FALSE)) ->  | K62: =IF($A62="","",VLOOKUP($A62,'2013 SG'!$D$8:$BC$435,3,FALSE)) ->  | L62: =IF($A62="","",VLOOKUP($A62,'2013 SG'!$D$8:$BC$435,4,FALSE)) ->  | M62: =IF($A62="","",VLOOKUP($A62,'2013 SG'!$D$8:$BC$435,5,FALSE)) ->  | N62: =IF($A62="","",VLOOKUP($A62,'2013 SG'!$D$8:$BC$435,6,FALSE)) ->  | O62: =IF($A62="","",VLOOKUP($A62,'2013 SG'!$D$8:$BC$435,7,FALSE)) ->  | P62: =IF($A62="","",VLOOKUP($A62,'2013 SG'!$D$8:$BC$435,8,FALSE)) ->  | Q62: =IF($A62="","",VLOOKUP($A62,'2013 SG'!$D$8:$BC$435,9,FALSE)) ->  | R62: =IF($A62="","",VLOOKUP($A62,'2013 SG'!$D$8:$BC$435,10,FALSE)) ->  | S62: =IFERROR(VLOOKUP($A62,Schools1213PCTmeetNoCharter!$A$2:$F$344,5,FALSE)*0.01,"") ->  | T62: =IFERROR(VLOOKUP(A62,Schools1213PCTmeetNoCharter!$A$2:$F$344,3,FALSE),"") ->  | U62: =IFERROR(VLOOKUP($A62,Schools1213PCTmeetNoCharter!$A$2:$F$344,6,FALSE)*0.01,"") ->  | V62: =IFERROR(VLOOKUP(A62,Schools1213PCTmeetNoCharter!$A$2:$F$344,4,FALSE),"") -> 
A63: =IF(VLOOKUP($C$1,Group!$A$2:$BH$50,49,FALSE)="","",IF(TEXT(VLOOKUP($C$1,Group!$A$2:$BH$50,49,FALSE),"0000")=$A$1,"",TEXT(VLOOKUP($C$1,Group!$A$2:$BH$50,49,FALSE),"0000"))) ->  | B63: =IFERROR(VLOOKUP(A63,SchList!$A$2:$B$334,2,FALSE),"") ->  | C63: =IF($A63="","",VLOOKUP($A63,ethbysch!$A$3:$Q$493,17,FALSE)) ->  | D63: =IF($A63="","",VLOOKUP($A63,ethbysch!$A$3:$Q$493,4,FALSE)) ->  | E63: =IF($A63="","",VLOOKUP($A63,ethbysch!$A$3:$Q$493,6,FALSE)) ->  | F63: =IF($A63="","",VLOOKUP($A63,ethbysch!$A$3:$Q$493,8,FALSE)) ->  | G63: =IF($A63="","",VLOOKUP($A63,fsubc!$A$3:$M$508,6,FALSE)) ->  | H63: =IF($A63="","",VLOOKUP($A63,fsubc!$A$3:$M$508,8,FALSE)) ->  | I63: =IF($A63="","",VLOOKUP($A63,fsubc!$A$3:$M$508,12,FALSE)) ->  | J63: =IF($A63="","",VLOOKUP(VALUE($A63),Table10[],3,FALSE)) ->  | K63: =IF($A63="","",VLOOKUP($A63,'2013 SG'!$D$8:$BC$435,3,FALSE)) ->  | L63: =IF($A63="","",VLOOKUP($A63,'2013 SG'!$D$8:$BC$435,4,FALSE)) ->  | M63: =IF($A63="","",VLOOKUP($A63,'2013 SG'!$D$8:$BC$435,5,FALSE)) ->  | N63: =IF($A63="","",VLOOKUP($A63,'2013 SG'!$D$8:$BC$435,6,FALSE)) ->  | O63: =IF($A63="","",VLOOKUP($A63,'2013 SG'!$D$8:$BC$435,7,FALSE)) ->  | P63: =IF($A63="","",VLOOKUP($A63,'2013 SG'!$D$8:$BC$435,8,FALSE)) ->  | Q63: =IF($A63="","",VLOOKUP($A63,'2013 SG'!$D$8:$BC$435,9,FALSE)) ->  | R63: =IF($A63="","",VLOOKUP($A63,'2013 SG'!$D$8:$BC$435,10,FALSE)) ->  | S63: =IFERROR(VLOOKUP($A63,Schools1213PCTmeetNoCharter!$A$2:$F$344,5,FALSE)*0.01,"") ->  | T63: =IFERROR(VLOOKUP(A63,Schools1213PCTmeetNoCharter!$A$2:$F$344,3,FALSE),"") ->  | U63: =IFERROR(VLOOKUP($A63,Schools1213PCTmeetNoCharter!$A$2:$F$344,6,FALSE)*0.01,"") ->  | V63: =IFERROR(VLOOKUP(A63,Schools1213PCTmeetNoCharter!$A$2:$F$344,4,FALSE),"") -> 
A64: =IF(VLOOKUP($C$1,Group!$A$2:$BH$50,50,FALSE)="","",IF(TEXT(VLOOKUP($C$1,Group!$A$2:$BH$50,50,FALSE),"0000")=$A$1,"",TEXT(VLOOKUP($C$1,Group!$A$2:$BH$50,50,FALSE),"0000"))) ->  | B64: =IFERROR(VLOOKUP(A64,SchList!$A$2:$B$334,2,FALSE),"") ->  | C64: =IF($A64="","",VLOOKUP($A64,ethbysch!$A$3:$Q$493,17,FALSE)) ->  | D64: =IF($A64="","",VLOOKUP($A64,ethbysch!$A$3:$Q$493,4,FALSE)) ->  | E64: =IF($A64="","",VLOOKUP($A64,ethbysch!$A$3:$Q$493,6,FALSE)) ->  | F64: =IF($A64="","",VLOOKUP($A64,ethbysch!$A$3:$Q$493,8,FALSE)) ->  | G64: =IF($A64="","",VLOOKUP($A64,fsubc!$A$3:$M$508,6,FALSE)) ->  | H64: =IF($A64="","",VLOOKUP($A64,fsubc!$A$3:$M$508,8,FALSE)) ->  | I64: =IF($A64="","",VLOOKUP($A64,fsubc!$A$3:$M$508,12,FALSE)) ->  | J64: =IF($A64="","",VLOOKUP(VALUE($A64),Table10[],3,FALSE)) ->  | K64: =IF($A64="","",VLOOKUP($A64,'2013 SG'!$D$8:$BC$435,3,FALSE)) ->  | L64: =IF($A64="","",VLOOKUP($A64,'2013 SG'!$D$8:$BC$435,4,FALSE)) ->  | M64: =IF($A64="","",VLOOKUP($A64,'2013 SG'!$D$8:$BC$435,5,FALSE)) ->  | N64: =IF($A64="","",VLOOKUP($A64,'2013 SG'!$D$8:$BC$435,6,FALSE)) ->  | O64: =IF($A64="","",VLOOKUP($A64,'2013 SG'!$D$8:$BC$435,7,FALSE)) ->  | P64: =IF($A64="","",VLOOKUP($A64,'2013 SG'!$D$8:$BC$435,8,FALSE)) ->  | Q64: =IF($A64="","",VLOOKUP($A64,'2013 SG'!$D$8:$BC$435,9,FALSE)) ->  | R64: =IF($A64="","",VLOOKUP($A64,'2013 SG'!$D$8:$BC$435,10,FALSE)) ->  | S64: =IFERROR(VLOOKUP($A64,Schools1213PCTmeetNoCharter!$A$2:$F$344,5,FALSE)*0.01,"") ->  | T64: =IFERROR(VLOOKUP(A64,Schools1213PCTmeetNoCharter!$A$2:$F$344,3,FALSE),"") ->  | U64: =IFERROR(VLOOKUP($A64,Schools1213PCTmeetNoCharter!$A$2:$F$344,6,FALSE)*0.01,"") ->  | V64: =IFERROR(VLOOKUP(A64,Schools1213PCTmeetNoCharter!$A$2:$F$344,4,FALSE),"") -> 
A65: =IF(VLOOKUP($C$1,Group!$A$2:$BH$50,51,FALSE)="","",IF(TEXT(VLOOKUP($C$1,Group!$A$2:$BH$50,51,FALSE),"0000")=$A$1,"",TEXT(VLOOKUP($C$1,Group!$A$2:$BH$50,51,FALSE),"0000"))) ->  | B65: =IFERROR(VLOOKUP(A65,SchList!$A$2:$B$334,2,FALSE),"") ->  | C65: =IF($A65="","",VLOOKUP($A65,ethbysch!$A$3:$Q$493,17,FALSE)) ->  | D65: =IF($A65="","",VLOOKUP($A65,ethbysch!$A$3:$Q$493,4,FALSE)) ->  | E65: =IF($A65="","",VLOOKUP($A65,ethbysch!$A$3:$Q$493,6,FALSE)) ->  | F65: =IF($A65="","",VLOOKUP($A65,ethbysch!$A$3:$Q$493,8,FALSE)) ->  | G65: =IF($A65="","",VLOOKUP($A65,fsubc!$A$3:$M$508,6,FALSE)) ->  | H65: =IF($A65="","",VLOOKUP($A65,fsubc!$A$3:$M$508,8,FALSE)) ->  | I65: =IF($A65="","",VLOOKUP($A65,fsubc!$A$3:$M$508,12,FALSE)) ->  | J65: =IF($A65="","",VLOOKUP(VALUE($A65),Table10[],3,FALSE)) ->  | K65: =IF($A65="","",VLOOKUP($A65,'2013 SG'!$D$8:$BC$435,3,FALSE)) ->  | L65: =IF($A65="","",VLOOKUP($A65,'2013 SG'!$D$8:$BC$435,4,FALSE)) ->  | M65: =IF($A65="","",VLOOKUP($A65,'2013 SG'!$D$8:$BC$435,5,FALSE)) ->  | N65: =IF($A65="","",VLOOKUP($A65,'2013 SG'!$D$8:$BC$435,6,FALSE)) ->  | O65: =IF($A65="","",VLOOKUP($A65,'2013 SG'!$D$8:$BC$435,7,FALSE)) ->  | P65: =IF($A65="","",VLOOKUP($A65,'2013 SG'!$D$8:$BC$435,8,FALSE)) ->  | Q65: =IF($A65="","",VLOOKUP($A65,'2013 SG'!$D$8:$BC$435,9,FALSE)) ->  | R65: =IF($A65="","",VLOOKUP($A65,'2013 SG'!$D$8:$BC$435,10,FALSE)) ->  | S65: =IFERROR(VLOOKUP($A65,Schools1213PCTmeetNoCharter!$A$2:$F$344,5,FALSE)*0.01,"") ->  | T65: =IFERROR(VLOOKUP(A65,Schools1213PCTmeetNoCharter!$A$2:$F$344,3,FALSE),"") ->  | U65: =IFERROR(VLOOKUP($A65,Schools1213PCTmeetNoCharter!$A$2:$F$344,6,FALSE)*0.01,"") ->  | V65: =IFERROR(VLOOKUP(A65,Schools1213PCTmeetNoCharter!$A$2:$F$344,4,FALSE),"") -> 
A66: =IF(VLOOKUP($C$1,Group!$A$2:$BH$50,52,FALSE)="","",IF(TEXT(VLOOKUP($C$1,Group!$A$2:$BH$50,52,FALSE),"0000")=$A$1,"",TEXT(VLOOKUP($C$1,Group!$A$2:$BH$50,52,FALSE),"0000"))) ->  | B66: =IFERROR(VLOOKUP(A66,SchList!$A$2:$B$334,2,FALSE),"") ->  | C66: =IF($A66="","",VLOOKUP($A66,ethbysch!$A$3:$Q$493,17,FALSE)) ->  | D66: =IF($A66="","",VLOOKUP($A66,ethbysch!$A$3:$Q$493,4,FALSE)) ->  | E66: =IF($A66="","",VLOOKUP($A66,ethbysch!$A$3:$Q$493,6,FALSE)) ->  | F66: =IF($A66="","",VLOOKUP($A66,ethbysch!$A$3:$Q$493,8,FALSE)) ->  | G66: =IF($A66="","",VLOOKUP($A66,fsubc!$A$3:$M$508,6,FALSE)) ->  | H66: =IF($A66="","",VLOOKUP($A66,fsubc!$A$3:$M$508,8,FALSE)) ->  | I66: =IF($A66="","",VLOOKUP($A66,fsubc!$A$3:$M$508,12,FALSE)) ->  | J66: =IF($A66="","",VLOOKUP(VALUE($A66),Table10[],3,FALSE)) ->  | K66: =IF($A66="","",VLOOKUP($A66,'2013 SG'!$D$8:$BC$435,3,FALSE)) ->  | L66: =IF($A66="","",VLOOKUP($A66,'2013 SG'!$D$8:$BC$435,4,FALSE)) ->  | M66: =IF($A66="","",VLOOKUP($A66,'2013 SG'!$D$8:$BC$435,5,FALSE)) ->  | N66: =IF($A66="","",VLOOKUP($A66,'2013 SG'!$D$8:$BC$435,6,FALSE)) ->  | O66: =IF($A66="","",VLOOKUP($A66,'2013 SG'!$D$8:$BC$435,7,FALSE)) ->  | P66: =IF($A66="","",VLOOKUP($A66,'2013 SG'!$D$8:$BC$435,8,FALSE)) ->  | Q66: =IF($A66="","",VLOOKUP($A66,'2013 SG'!$D$8:$BC$435,9,FALSE)) ->  | R66: =IF($A66="","",VLOOKUP($A66,'2013 SG'!$D$8:$BC$435,10,FALSE)) ->  | S66: =IFERROR(VLOOKUP($A66,Schools1213PCTmeetNoCharter!$A$2:$F$344,5,FALSE)*0.01,"") ->  | T66: =IFERROR(VLOOKUP(A66,Schools1213PCTmeetNoCharter!$A$2:$F$344,3,FALSE),"") ->  | U66: =IFERROR(VLOOKUP($A66,Schools1213PCTmeetNoCharter!$A$2:$F$344,6,FALSE)*0.01,"") ->  | V66: =IFERROR(VLOOKUP(A66,Schools1213PCTmeetNoCharter!$A$2:$F$344,4,FALSE),"") -> 
A67: =IF(VLOOKUP($C$1,Group!$A$2:$BH$50,53,FALSE)="","",IF(TEXT(VLOOKUP($C$1,Group!$A$2:$BH$50,53,FALSE),"0000")=$A$1,"",TEXT(VLOOKUP($C$1,Group!$A$2:$BH$50,53,FALSE),"0000"))) ->  | B67: =IFERROR(VLOOKUP(A67,SchList!$A$2:$B$334,2,FALSE),"") ->  | C67: =IF($A67="","",VLOOKUP($A67,ethbysch!$A$3:$Q$493,17,FALSE)) ->  | D67: =IF($A67="","",VLOOKUP($A67,ethbysch!$A$3:$Q$493,4,FALSE)) ->  | E67: =IF($A67="","",VLOOKUP($A67,ethbysch!$A$3:$Q$493,6,FALSE)) ->  | F67: =IF($A67="","",VLOOKUP($A67,ethbysch!$A$3:$Q$493,8,FALSE)) ->  | G67: =IF($A67="","",VLOOKUP($A67,fsubc!$A$3:$M$508,6,FALSE)) ->  | H67: =IF($A67="","",VLOOKUP($A67,fsubc!$A$3:$M$508,8,FALSE)) ->  | I67: =IF($A67="","",VLOOKUP($A67,fsubc!$A$3:$M$508,12,FALSE)) ->  | J67: =IF($A67="","",VLOOKUP(VALUE($A67),Table10[],3,FALSE)) ->  | K67: =IF($A67="","",VLOOKUP($A67,'2013 SG'!$D$8:$BC$435,3,FALSE)) ->  | L67: =IF($A67="","",VLOOKUP($A67,'2013 SG'!$D$8:$BC$435,4,FALSE)) ->  | M67: =IF($A67="","",VLOOKUP($A67,'2013 SG'!$D$8:$BC$435,5,FALSE)) ->  | N67: =IF($A67="","",VLOOKUP($A67,'2013 SG'!$D$8:$BC$435,6,FALSE)) ->  | O67: =IF($A67="","",VLOOKUP($A67,'2013 SG'!$D$8:$BC$435,7,FALSE)) ->  | P67: =IF($A67="","",VLOOKUP($A67,'2013 SG'!$D$8:$BC$435,8,FALSE)) ->  | Q67: =IF($A67="","",VLOOKUP($A67,'2013 SG'!$D$8:$BC$435,9,FALSE)) ->  | R67: =IF($A67="","",VLOOKUP($A67,'2013 SG'!$D$8:$BC$435,10,FALSE)) ->  | S67: =IFERROR(VLOOKUP($A67,Schools1213PCTmeetNoCharter!$A$2:$F$344,5,FALSE)*0.01,"") ->  | T67: =IFERROR(VLOOKUP(A67,Schools1213PCTmeetNoCharter!$A$2:$F$344,3,FALSE),"") ->  | U67: =IFERROR(VLOOKUP($A67,Schools1213PCTmeetNoCharter!$A$2:$F$344,6,FALSE)*0.01,"") ->  | V67: =IFERROR(VLOOKUP(A67,Schools1213PCTmeetNoCharter!$A$2:$F$344,4,FALSE),"") -> 
A68: =IF(VLOOKUP($C$1,Group!$A$2:$BH$50,54,FALSE)="","",IF(TEXT(VLOOKUP($C$1,Group!$A$2:$BH$50,54,FALSE),"0000")=$A$1,"",TEXT(VLOOKUP($C$1,Group!$A$2:$BH$50,54,FALSE),"0000"))) ->  | B68: =IFERROR(VLOOKUP(A68,SchList!$A$2:$B$334,2,FALSE),"") ->  | C68: =IF($A68="","",VLOOKUP($A68,ethbysch!$A$3:$Q$493,17,FALSE)) ->  | D68: =IF($A68="","",VLOOKUP($A68,ethbysch!$A$3:$Q$493,4,FALSE)) ->  | E68: =IF($A68="","",VLOOKUP($A68,ethbysch!$A$3:$Q$493,6,FALSE)) ->  | F68: =IF($A68="","",VLOOKUP($A68,ethbysch!$A$3:$Q$493,8,FALSE)) ->  | G68: =IF($A68="","",VLOOKUP($A68,fsubc!$A$3:$M$508,6,FALSE)) ->  | H68: =IF($A68="","",VLOOKUP($A68,fsubc!$A$3:$M$508,8,FALSE)) ->  | I68: =IF($A68="","",VLOOKUP($A68,fsubc!$A$3:$M$508,12,FALSE)) ->  | J68: =IF($A68="","",VLOOKUP(VALUE($A68),Table10[],3,FALSE)) ->  | K68: =IF($A68="","",VLOOKUP($A68,'2013 SG'!$D$8:$BC$435,3,FALSE)) ->  | L68: =IF($A68="","",VLOOKUP($A68,'2013 SG'!$D$8:$BC$435,4,FALSE)) ->  | M68: =IF($A68="","",VLOOKUP($A68,'2013 SG'!$D$8:$BC$435,5,FALSE)) ->  | N68: =IF($A68="","",VLOOKUP($A68,'2013 SG'!$D$8:$BC$435,6,FALSE)) ->  | O68: =IF($A68="","",VLOOKUP($A68,'2013 SG'!$D$8:$BC$435,7,FALSE)) ->  | P68: =IF($A68="","",VLOOKUP($A68,'2013 SG'!$D$8:$BC$435,8,FALSE)) ->  | Q68: =IF($A68="","",VLOOKUP($A68,'2013 SG'!$D$8:$BC$435,9,FALSE)) ->  | R68: =IF($A68="","",VLOOKUP($A68,'2013 SG'!$D$8:$BC$435,10,FALSE)) ->  | S68: =IFERROR(VLOOKUP($A68,Schools1213PCTmeetNoCharter!$A$2:$F$344,5,FALSE)*0.01,"") ->  | T68: =IFERROR(VLOOKUP(A68,Schools1213PCTmeetNoCharter!$A$2:$F$344,3,FALSE),"") ->  | U68: =IFERROR(VLOOKUP($A68,Schools1213PCTmeetNoCharter!$A$2:$F$344,6,FALSE)*0.01,"") ->  | V68: =IFERROR(VLOOKUP(A68,Schools1213PCTmeetNoCharter!$A$2:$F$344,4,FALSE),"") -> 
A69: =IF(VLOOKUP($C$1,Group!$A$2:$BH$50,55,FALSE)="","",IF(TEXT(VLOOKUP($C$1,Group!$A$2:$BH$50,55,FALSE),"0000")=$A$1,"",TEXT(VLOOKUP($C$1,Group!$A$2:$BH$50,55,FALSE),"0000"))) ->  | B69: =IFERROR(VLOOKUP(A69,SchList!$A$2:$B$334,2,FALSE),"") ->  | C69: =IF($A69="","",VLOOKUP($A69,ethbysch!$A$3:$Q$493,17,FALSE)) ->  | D69: =IF($A69="","",VLOOKUP($A69,ethbysch!$A$3:$Q$493,4,FALSE)) ->  | E69: =IF($A69="","",VLOOKUP($A69,ethbysch!$A$3:$Q$493,6,FALSE)) ->  | F69: =IF($A69="","",VLOOKUP($A69,ethbysch!$A$3:$Q$493,8,FALSE)) ->  | G69: =IF($A69="","",VLOOKUP($A69,fsubc!$A$3:$M$508,6,FALSE)) ->  | H69: =IF($A69="","",VLOOKUP($A69,fsubc!$A$3:$M$508,8,FALSE)) ->  | I69: =IF($A69="","",VLOOKUP($A69,fsubc!$A$3:$M$508,12,FALSE)) ->  | J69: =IF($A69="","",VLOOKUP(VALUE($A69),Table10[],3,FALSE)) ->  | K69: =IF($A69="","",VLOOKUP($A69,'2013 SG'!$D$8:$BC$435,3,FALSE)) ->  | L69: =IF($A69="","",VLOOKUP($A69,'2013 SG'!$D$8:$BC$435,4,FALSE)) ->  | M69: =IF($A69="","",VLOOKUP($A69,'2013 SG'!$D$8:$BC$435,5,FALSE)) ->  | N69: =IF($A69="","",VLOOKUP($A69,'2013 SG'!$D$8:$BC$435,6,FALSE)) ->  | O69: =IF($A69="","",VLOOKUP($A69,'2013 SG'!$D$8:$BC$435,7,FALSE)) ->  | P69: =IF($A69="","",VLOOKUP($A69,'2013 SG'!$D$8:$BC$435,8,FALSE)) ->  | Q69: =IF($A69="","",VLOOKUP($A69,'2013 SG'!$D$8:$BC$435,9,FALSE)) ->  | R69: =IF($A69="","",VLOOKUP($A69,'2013 SG'!$D$8:$BC$435,10,FALSE)) ->  | S69: =IFERROR(VLOOKUP($A69,Schools1213PCTmeetNoCharter!$A$2:$F$344,5,FALSE)*0.01,"") ->  | T69: =IFERROR(VLOOKUP(A69,Schools1213PCTmeetNoCharter!$A$2:$F$344,3,FALSE),"") ->  | U69: =IFERROR(VLOOKUP($A69,Schools1213PCTmeetNoCharter!$A$2:$F$344,6,FALSE)*0.01,"") ->  | V69: =IFERROR(VLOOKUP(A69,Schools1213PCTmeetNoCharter!$A$2:$F$344,4,FALSE),"") -> 
A70: =IF(VLOOKUP($C$1,Group!$A$2:$BH$50,56,FALSE)="","",IF(TEXT(VLOOKUP($C$1,Group!$A$2:$BH$50,56,FALSE),"0000")=$A$1,"",TEXT(VLOOKUP($C$1,Group!$A$2:$BH$50,56,FALSE),"0000"))) ->  | B70: =IFERROR(VLOOKUP(A70,SchList!$A$2:$B$334,2,FALSE),"") ->  | C70: =IF($A70="","",VLOOKUP($A70,ethbysch!$A$3:$Q$493,17,FALSE)) ->  | D70: =IF($A70="","",VLOOKUP($A70,ethbysch!$A$3:$Q$493,4,FALSE)) ->  | E70: =IF($A70="","",VLOOKUP($A70,ethbysch!$A$3:$Q$493,6,FALSE)) ->  | F70: =IF($A70="","",VLOOKUP($A70,ethbysch!$A$3:$Q$493,8,FALSE)) ->  | G70: =IF($A70="","",VLOOKUP($A70,fsubc!$A$3:$M$508,6,FALSE)) ->  | H70: =IF($A70="","",VLOOKUP($A70,fsubc!$A$3:$M$508,8,FALSE)) ->  | I70: =IF($A70="","",VLOOKUP($A70,fsubc!$A$3:$M$508,12,FALSE)) ->  | J70: =IF($A70="","",VLOOKUP(VALUE($A70),Table10[],3,FALSE)) ->  | K70: =IF($A70="","",VLOOKUP($A70,'2013 SG'!$D$8:$BC$435,3,FALSE)) ->  | L70: =IF($A70="","",VLOOKUP($A70,'2013 SG'!$D$8:$BC$435,4,FALSE)) ->  | M70: =IF($A70="","",VLOOKUP($A70,'2013 SG'!$D$8:$BC$435,5,FALSE)) ->  | N70: =IF($A70="","",VLOOKUP($A70,'2013 SG'!$D$8:$BC$435,6,FALSE)) ->  | O70: =IF($A70="","",VLOOKUP($A70,'2013 SG'!$D$8:$BC$435,7,FALSE)) ->  | P70: =IF($A70="","",VLOOKUP($A70,'2013 SG'!$D$8:$BC$435,8,FALSE)) ->  | Q70: =IF($A70="","",VLOOKUP($A70,'2013 SG'!$D$8:$BC$435,9,FALSE)) ->  | R70: =IF($A70="","",VLOOKUP($A70,'2013 SG'!$D$8:$BC$435,10,FALSE)) ->  | S70: =IFERROR(VLOOKUP($A70,Schools1213PCTmeetNoCharter!$A$2:$F$344,5,FALSE)*0.01,"") ->  | T70: =IFERROR(VLOOKUP(A70,Schools1213PCTmeetNoCharter!$A$2:$F$344,3,FALSE),"") ->  | U70: =IFERROR(VLOOKUP($A70,Schools1213PCTmeetNoCharter!$A$2:$F$344,6,FALSE)*0.01,"") ->  | V70: =IFERROR(VLOOKUP(A70,Schools1213PCTmeetNoCharter!$A$2:$F$344,4,FALSE),"") -> 
A71: =IF(VLOOKUP($C$1,Group!$A$2:$BH$50,57,FALSE)="","",IF(TEXT(VLOOKUP($C$1,Group!$A$2:$BH$50,57,FALSE),"0000")=$A$1,"",TEXT(VLOOKUP($C$1,Group!$A$2:$BH$50,57,FALSE),"0000"))) ->  | B71: =IFERROR(VLOOKUP(A71,SchList!$A$2:$B$334,2,FALSE),"") ->  | C71: =IF($A71="","",VLOOKUP($A71,ethbysch!$A$3:$Q$493,17,FALSE)) ->  | D71: =IF($A71="","",VLOOKUP($A71,ethbysch!$A$3:$Q$493,4,FALSE)) ->  | E71: =IF($A71="","",VLOOKUP($A71,ethbysch!$A$3:$Q$493,6,FALSE)) ->  | F71: =IF($A71="","",VLOOKUP($A71,ethbysch!$A$3:$Q$493,8,FALSE)) ->  | G71: =IF($A71="","",VLOOKUP($A71,fsubc!$A$3:$M$508,6,FALSE)) ->  | H71: =IF($A71="","",VLOOKUP($A71,fsubc!$A$3:$M$508,8,FALSE)) ->  | I71: =IF($A71="","",VLOOKUP($A71,fsubc!$A$3:$M$508,12,FALSE)) ->  | J71: =IF($A71="","",VLOOKUP(VALUE($A71),Table10[],3,FALSE)) ->  | K71: =IF($A71="","",VLOOKUP($A71,'2013 SG'!$D$8:$BC$435,3,FALSE)) ->  | L71: =IF($A71="","",VLOOKUP($A71,'2013 SG'!$D$8:$BC$435,4,FALSE)) ->  | M71: =IF($A71="","",VLOOKUP($A71,'2013 SG'!$D$8:$BC$435,5,FALSE)) ->  | N71: =IF($A71="","",VLOOKUP($A71,'2013 SG'!$D$8:$BC$435,6,FALSE)) ->  | O71: =IF($A71="","",VLOOKUP($A71,'2013 SG'!$D$8:$BC$435,7,FALSE)) ->  | P71: =IF($A71="","",VLOOKUP($A71,'2013 SG'!$D$8:$BC$435,8,FALSE)) ->  | Q71: =IF($A71="","",VLOOKUP($A71,'2013 SG'!$D$8:$BC$435,9,FALSE)) ->  | R71: =IF($A71="","",VLOOKUP($A71,'2013 SG'!$D$8:$BC$435,10,FALSE)) ->  | S71: =IFERROR(VLOOKUP($A71,Schools1213PCTmeetNoCharter!$A$2:$F$344,5,FALSE)*0.01,"") ->  | T71: =IFERROR(VLOOKUP(A71,Schools1213PCTmeetNoCharter!$A$2:$F$344,3,FALSE),"") ->  | U71: =IFERROR(VLOOKUP($A71,Schools1213PCTmeetNoCharter!$A$2:$F$344,6,FALSE)*0.01,"") ->  | V71: =IFERROR(VLOOKUP(A71,Schools1213PCTmeetNoCharter!$A$2:$F$344,4,FALSE),"") -> 
A72: =IF(VLOOKUP($C$1,Group!$A$2:$BH$50,58,FALSE)="","",IF(TEXT(VLOOKUP($C$1,Group!$A$2:$BH$50,58,FALSE),"0000")=$A$1,"",TEXT(VLOOKUP($C$1,Group!$A$2:$BH$50,58,FALSE),"0000"))) ->  | B72: =IFERROR(VLOOKUP(A72,SchList!$A$2:$B$334,2,FALSE),"") ->  | C72: =IF($A72="","",VLOOKUP($A72,ethbysch!$A$3:$Q$493,17,FALSE)) ->  | D72: =IF($A72="","",VLOOKUP($A72,ethbysch!$A$3:$Q$493,4,FALSE)) ->  | E72: =IF($A72="","",VLOOKUP($A72,ethbysch!$A$3:$Q$493,6,FALSE)) ->  | F72: =IF($A72="","",VLOOKUP($A72,ethbysch!$A$3:$Q$493,8,FALSE)) ->  | G72: =IF($A72="","",VLOOKUP($A72,fsubc!$A$3:$M$508,6,FALSE)) ->  | H72: =IF($A72="","",VLOOKUP($A72,fsubc!$A$3:$M$508,8,FALSE)) ->  | I72: =IF($A72="","",VLOOKUP($A72,fsubc!$A$3:$M$508,12,FALSE)) ->  | J72: =IF($A72="","",VLOOKUP(VALUE($A72),Table10[],3,FALSE)) ->  | K72: =IF($A72="","",VLOOKUP($A72,'2013 SG'!$D$8:$BC$435,3,FALSE)) ->  | L72: =IF($A72="","",VLOOKUP($A72,'2013 SG'!$D$8:$BC$435,4,FALSE)) ->  | M72: =IF($A72="","",VLOOKUP($A72,'2013 SG'!$D$8:$BC$435,5,FALSE)) ->  | N72: =IF($A72="","",VLOOKUP($A72,'2013 SG'!$D$8:$BC$435,6,FALSE)) ->  | O72: =IF($A72="","",VLOOKUP($A72,'2013 SG'!$D$8:$BC$435,7,FALSE)) ->  | P72: =IF($A72="","",VLOOKUP($A72,'2013 SG'!$D$8:$BC$435,8,FALSE)) ->  | Q72: =IF($A72="","",VLOOKUP($A72,'2013 SG'!$D$8:$BC$435,9,FALSE)) ->  | R72: =IF($A72="","",VLOOKUP($A72,'2013 SG'!$D$8:$BC$435,10,FALSE)) ->  | S72: =IFERROR(VLOOKUP($A72,Schools1213PCTmeetNoCharter!$A$2:$F$344,5,FALSE)*0.01,"") ->  | T72: =IFERROR(VLOOKUP(A72,Schools1213PCTmeetNoCharter!$A$2:$F$344,3,FALSE),"") ->  | U72: =IFERROR(VLOOKUP($A72,Schools1213PCTmeetNoCharter!$A$2:$F$344,6,FALSE)*0.01,"") ->  | V72: =IFERROR(VLOOKUP(A72,Schools1213PCTmeetNoCharter!$A$2:$F$344,4,FALSE),"") -> 
A73: =IF(VLOOKUP($C$1,Group!$A$2:$BH$50,59,FALSE)="","",IF(TEXT(VLOOKUP($C$1,Group!$A$2:$BH$50,59,FALSE),"0000")=$A$1,"",TEXT(VLOOKUP($C$1,Group!$A$2:$BH$50,59,FALSE),"0000"))) ->  | B73: =IFERROR(VLOOKUP(A73,SchList!$A$2:$B$334,2,FALSE),"") ->  | C73: =IF($A73="","",VLOOKUP($A73,ethbysch!$A$3:$Q$493,17,FALSE)) ->  | D73: =IF($A73="","",VLOOKUP($A73,ethbysch!$A$3:$Q$493,4,FALSE)) ->  | E73: =IF($A73="","",VLOOKUP($A73,ethbysch!$A$3:$Q$493,6,FALSE)) ->  | F73: =IF($A73="","",VLOOKUP($A73,ethbysch!$A$3:$Q$493,8,FALSE)) ->  | G73: =IF($A73="","",VLOOKUP($A73,fsubc!$A$3:$M$508,6,FALSE)) ->  | H73: =IF($A73="","",VLOOKUP($A73,fsubc!$A$3:$M$508,8,FALSE)) ->  | I73: =IF($A73="","",VLOOKUP($A73,fsubc!$A$3:$M$508,12,FALSE)) ->  | J73: =IF($A73="","",VLOOKUP(VALUE($A73),Table10[],3,FALSE)) ->  | K73: =IF($A73="","",VLOOKUP($A73,'2013 SG'!$D$8:$BC$435,3,FALSE)) ->  | L73: =IF($A73="","",VLOOKUP($A73,'2013 SG'!$D$8:$BC$435,4,FALSE)) ->  | M73: =IF($A73="","",VLOOKUP($A73,'2013 SG'!$D$8:$BC$435,5,FALSE)) ->  | N73: =IF($A73="","",VLOOKUP($A73,'2013 SG'!$D$8:$BC$435,6,FALSE)) ->  | O73: =IF($A73="","",VLOOKUP($A73,'2013 SG'!$D$8:$BC$435,7,FALSE)) ->  | P73: =IF($A73="","",VLOOKUP($A73,'2013 SG'!$D$8:$BC$435,8,FALSE)) ->  | Q73: =IF($A73="","",VLOOKUP($A73,'2013 SG'!$D$8:$BC$435,9,FALSE)) ->  | R73: =IF($A73="","",VLOOKUP($A73,'2013 SG'!$D$8:$BC$435,10,FALSE)) ->  | S73: =IFERROR(VLOOKUP($A73,Schools1213PCTmeetNoCharter!$A$2:$F$344,5,FALSE)*0.01,"") ->  | T73: =IFERROR(VLOOKUP(A73,Schools1213PCTmeetNoCharter!$A$2:$F$344,3,FALSE),"") ->  | U73: =IFERROR(VLOOKUP($A73,Schools1213PCTmeetNoCharter!$A$2:$F$344,6,FALSE)*0.01,"") ->  | V73: =IFERROR(VLOOKUP(A73,Schools1213PCTmeetNoCharter!$A$2:$F$344,4,FALSE),"") -> 
A74: =IF(VLOOKUP($C$1,Group!$A$2:$BH$50,60,FALSE)="","",IF(TEXT(VLOOKUP($C$1,Group!$A$2:$BH$50,60,FALSE),"0000")=$A$1,"",TEXT(VLOOKUP($C$1,Group!$A$2:$BH$50,60,FALSE),"0000"))) ->  | B74: =IFERROR(VLOOKUP(A74,SchList!$A$2:$B$334,2,FALSE),"") ->  | C74: =IF($A74="","",VLOOKUP($A74,ethbysch!$A$3:$Q$493,17,FALSE)) ->  | D74: =IF($A74="","",VLOOKUP($A74,ethbysch!$A$3:$Q$493,4,FALSE)) ->  | E74: =IF($A74="","",VLOOKUP($A74,ethbysch!$A$3:$Q$493,6,FALSE)) ->  | F74: =IF($A74="","",VLOOKUP($A74,ethbysch!$A$3:$Q$493,8,FALSE)) ->  | G74: =IF($A74="","",VLOOKUP($A74,fsubc!$A$3:$M$508,6,FALSE)) ->  | H74: =IF($A74="","",VLOOKUP($A74,fsubc!$A$3:$M$508,8,FALSE)) ->  | I74: =IF($A74="","",VLOOKUP($A74,fsubc!$A$3:$M$508,12,FALSE)) ->  | J74: =IF($A74="","",VLOOKUP(VALUE($A74),Table10[],3,FALSE)) ->  | K74: =IF($A74="","",VLOOKUP($A74,'2013 SG'!$D$8:$BC$435,3,FALSE)) ->  | L74: =IF($A74="","",VLOOKUP($A74,'2013 SG'!$D$8:$BC$435,4,FALSE)) ->  | M74: =IF($A74="","",VLOOKUP($A74,'2013 SG'!$D$8:$BC$435,5,FALSE)) ->  | N74: =IF($A74="","",VLOOKUP($A74,'2013 SG'!$D$8:$BC$435,6,FALSE)) ->  | O74: =IF($A74="","",VLOOKUP($A74,'2013 SG'!$D$8:$BC$435,7,FALSE)) ->  | P74: =IF($A74="","",VLOOKUP($A74,'2013 SG'!$D$8:$BC$435,8,FALSE)) ->  | Q74: =IF($A74="","",VLOOKUP($A74,'2013 SG'!$D$8:$BC$435,9,FALSE)) ->  | R74: =IF($A74="","",VLOOKUP($A74,'2013 SG'!$D$8:$BC$435,10,FALSE)) ->  | S74: =IFERROR(VLOOKUP($A74,Schools1213PCTmeetNoCharter!$A$2:$F$344,5,FALSE)*0.01,"") ->  | T74: =IFERROR(VLOOKUP(A74,Schools1213PCTmeetNoCharter!$A$2:$F$344,3,FALSE),"") ->  | U74: =IFERROR(VLOOKUP($A74,Schools1213PCTmeetNoCharter!$A$2:$F$344,6,FALSE)*0.01,"") ->  | V74: =IFERROR(VLOOKUP(A74,Schools1213PCTmeetNoCharter!$A$2:$F$344,4,FALSE),"") -> 

Sheet ComparisonPrint (hidden)
A1: ='Select School'!B3 -> 9999 | B1: Group | C1: =VLOOKUP(A1,SchList!$A$2:$E$334,5,FALSE) -> 
C3: 1
I5: 5 | J5: =VLOOKUP(I5,SchList!$I$1:$J$334,2,FALSE) -> 7048
I6: 325 | J6: =VLOOKUP(I6,SchList!$I$1:$J$334,2,FALSE) -> 7049
I7: 124 | J7: =VLOOKUP(I7,SchList!$I$1:$J$334,2,FALSE) -> 7111
I8: 71 | J8: =VLOOKUP(I8,SchList!$I$1:$J$334,2,FALSE) -> 7141
A12: WL | B12: School Name | C12: Demographic Information (October 2012 FTE) | O12: 2013 School Grade Performance Measures | S12: Quality of Learning
C13: Total Students | D13: % White | E13: % African American | F13: % Hispanic | G13: % English Language Learner | H13: %Student With Disability | I13: % Free and Reduced Price Lunch | J13: Title I School | K13: % Satisfactory | O13: % Making Learning Gains | S13: Reading | U13: Math
K14: Reading | L14: Math | M14: Writing | N14: Science | O14: Reading-Overall | P14: Math Overall | Q14: Reading-Low 25% | R14: Math-Low25% | S14: Students Meeting/ Exceeding State Expectations | T14: Category | U14: Students Meeting/ Exceeding State Expectations | V14: Category
A15: =A1 -> 9999 | B15: =IFERROR(VLOOKUP(A15,SchList!$A$2:$B$334,2,FALSE),"") ->  | C15: =IF($A15="","",VLOOKUP($A15,ethbysch!$A$3:$Q$493,17,FALSE)) -> 353152 | D15: =IF($A15="","",VLOOKUP($A15,ethbysch!$A$3:$Q$493,4,FALSE)) -> 8.1 | E15: =IF($A15="","",VLOOKUP($A15,ethbysch!$A$3:$Q$493,6,FALSE)) -> 23.5 | F15: =IF($A15="","",VLOOKUP($A15,ethbysch!$A$3:$Q$493,8,FALSE)) -> 66.7 | G15: =IF($A15="","",VLOOKUP($A15,fsubc!$A$3:$M$508,6,FALSE)) -> 20.9 | H15: =IF($A15="","",VLOOKUP($A15,fsubc!$A$3:$M$508,8,FALSE)) -> 10.1 | I15: =IF($A15="","",VLOOKUP($A15,fsubc!$A$3:$M$508,12,FALSE)) -> 73 | J15: =IF($A15="","",VLOOKUP(VALUE($A15),Table10[],3,FALSE)) ->  | K15: =IF($A15="","",VLOOKUP($A15,'2013 SG'!$D$8:$BC$435,3,FALSE)) -> 57 | L15: =IF($A15="","",VLOOKUP($A15,'2013 SG'!$D$8:$BC$435,4,FALSE)) -> 59 | M15: =IF($A15="","",VLOOKUP($A15,'2013 SG'!$D$8:$BC$435,5,FALSE)) -> 58 | N15: =IF($A15="","",VLOOKUP($A15,'2013 SG'!$D$8:$BC$435,6,FALSE)) -> 54 | O15: =IF($A15="","",VLOOKUP($A15,'2013 SG'!$D$8:$BC$435,7,FALSE)) -> 68 | P15: =IF($A15="","",VLOOKUP($A15,'2013 SG'!$D$8:$BC$435,8,FALSE)) -> 67 | Q15: =IF($A15="","",VLOOKUP($A15,'2013 SG'!$D$8:$BC$435,9,FALSE)) -> 67 | R15: =IF($A15="","",VLOOKUP($A15,'2013 SG'!$D$8:$BC$435,10,FALSE)) -> 65 | S15: =IFERROR(VLOOKUP($A15,Schools1213PCTmeetNoCharter!$A$2:$F$344,5,FALSE)*0.01,"") ->  | T15: =IFERROR(VLOOKUP(A15,Schools1213PCTmeetNoCharter!$A$2:$F$344,3,FALSE),"") ->  | U15: =IFERROR(VLOOKUP($A15,Schools1213PCTmeetNoCharter!$A$2:$F$344,6,FALSE)*0.01,"") ->  | V15: =IFERROR(VLOOKUP(A15,Schools1213PCTmeetNoCharter!$A$2:$F$344,4,FALSE),"") -> 
A16: =IF(VLOOKUP($C$1,Group!$A$2:$BH$50,2,FALSE)="","",IF(TEXT(VLOOKUP($C$1,Group!$A$2:$BH$50,2,FALSE),"0000")=$A$1,"",TEXT(VLOOKUP($C$1,Group!$A$2:$BH$50,2,FALSE),"0000"))) ->  | B16: =IFERROR(VLOOKUP(A16,SchList!$A$2:$B$334,2,FALSE),"") ->  | C16: =IF($A16="","",VLOOKUP($A16,ethbysch!$A$3:$Q$493,17,FALSE)) ->  | D16: =IF($A16="","",VLOOKUP($A16,ethbysch!$A$3:$Q$493,4,FALSE)) ->  | E16: =IF($A16="","",VLOOKUP($A16,ethbysch!$A$3:$Q$493,6,FALSE)) ->  | F16: =IF($A16="","",VLOOKUP($A16,ethbysch!$A$3:$Q$493,8,FALSE)) ->  | G16: =IF($A16="","",VLOOKUP($A16,fsubc!$A$3:$M$508,6,FALSE)) ->  | H16: =IF($A16="","",VLOOKUP($A16,fsubc!$A$3:$M$508,8,FALSE)) ->  | I16: =IF($A16="","",VLOOKUP($A16,fsubc!$A$3:$M$508,12,FALSE)) ->  | J16: =IF($A16="","",VLOOKUP(VALUE($A16),Table10[],3,FALSE)) ->  | K16: =IF($A16="","",VLOOKUP($A16,'2013 SG'!$D$8:$BC$435,3,FALSE)) ->  | L16: =IF($A16="","",VLOOKUP($A16,'2013 SG'!$D$8:$BC$435,4,FALSE)) ->  | M16: =IF($A16="","",VLOOKUP($A16,'2013 SG'!$D$8:$BC$435,5,FALSE)) ->  | N16: =IF($A16="","",VLOOKUP($A16,'2013 SG'!$D$8:$BC$435,6,FALSE)) ->  | O16: =IF($A16="","",VLOOKUP($A16,'2013 SG'!$D$8:$BC$435,7,FALSE)) ->  | P16: =IF($A16="","",VLOOKUP($A16,'2013 SG'!$D$8:$BC$435,8,FALSE)) ->  | Q16: =IF($A16="","",VLOOKUP($A16,'2013 SG'!$D$8:$BC$435,9,FALSE)) ->  | R16: =IF($A16="","",VLOOKUP($A16,'2013 SG'!$D$8:$BC$435,10,FALSE)) ->  | S16: =IFERROR(VLOOKUP($A16,Schools1213PCTmeetNoCharter!$A$2:$F$344,5,FALSE)*0.01,"") ->  | T16: =IFERROR(VLOOKUP(A16,Schools1213PCTmeetNoCharter!$A$2:$F$344,3,FALSE),"") ->  | U16: =IFERROR(VLOOKUP($A16,Schools1213PCTmeetNoCharter!$A$2:$F$344,6,FALSE)*0.01,"") ->  | V16: =IFERROR(VLOOKUP(A16,Schools1213PCTmeetNoCharter!$A$2:$F$344,4,FALSE),"") -> 
A17: =IF(VLOOKUP($C$1,Group!$A$2:$BH$50,3,FALSE)="","",IF(TEXT(VLOOKUP($C$1,Group!$A$2:$BH$50,3,FALSE),"0000")=$A$1,"",TEXT(VLOOKUP($C$1,Group!$A$2:$BH$50,3,FALSE),"0000"))) ->  | B17: =IFERROR(VLOOKUP(A17,SchList!$A$2:$B$334,2,FALSE),"") ->  | C17: =IF($A17="","",VLOOKUP($A17,ethbysch!$A$3:$Q$493,17,FALSE)) ->  | D17: =IF($A17="","",VLOOKUP($A17,ethbysch!$A$3:$Q$493,4,FALSE)) ->  | E17: =IF($A17="","",VLOOKUP($A17,ethbysch!$A$3:$Q$493,6,FALSE)) ->  | F17: =IF($A17="","",VLOOKUP($A17,ethbysch!$A$3:$Q$493,8,FALSE)) ->  | G17: =IF($A17="","",VLOOKUP($A17,fsubc!$A$3:$M$508,6,FALSE)) ->  | H17: =IF($A17="","",VLOOKUP($A17,fsubc!$A$3:$M$508,8,FALSE)) ->  | I17: =IF($A17="","",VLOOKUP($A17,fsubc!$A$3:$M$508,12,FALSE)) ->  | J17: =IF($A17="","",VLOOKUP(VALUE($A17),Table10[],3,FALSE)) ->  | K17: =IF($A17="","",VLOOKUP($A17,'2013 SG'!$D$8:$BC$435,3,FALSE)) ->  | L17: =IF($A17="","",VLOOKUP($A17,'2013 SG'!$D$8:$BC$435,4,FALSE)) ->  | M17: =IF($A17="","",VLOOKUP($A17,'2013 SG'!$D$8:$BC$435,5,FALSE)) ->  | N17: =IF($A17="","",VLOOKUP($A17,'2013 SG'!$D$8:$BC$435,6,FALSE)) ->  | O17: =IF($A17="","",VLOOKUP($A17,'2013 SG'!$D$8:$BC$435,7,FALSE)) ->  | P17: =IF($A17="","",VLOOKUP($A17,'2013 SG'!$D$8:$BC$435,8,FALSE)) ->  | Q17: =IF($A17="","",VLOOKUP($A17,'2013 SG'!$D$8:$BC$435,9,FALSE)) ->  | R17: =IF($A17="","",VLOOKUP($A17,'2013 SG'!$D$8:$BC$435,10,FALSE)) ->  | S17: =IFERROR(VLOOKUP($A17,Schools1213PCTmeetNoCharter!$A$2:$F$344,5,FALSE)*0.01,"") ->  | T17: =IFERROR(VLOOKUP(A17,Schools1213PCTmeetNoCharter!$A$2:$F$344,3,FALSE),"") ->  | U17: =IFERROR(VLOOKUP($A17,Schools1213PCTmeetNoCharter!$A$2:$F$344,6,FALSE)*0.01,"") ->  | V17: =IFERROR(VLOOKUP(A17,Schools1213PCTmeetNoCharter!$A$2:$F$344,4,FALSE),"") -> 
A18: =IF(VLOOKUP($C$1,Group!$A$2:$BH$50,4,FALSE)="","",IF(TEXT(VLOOKUP($C$1,Group!$A$2:$BH$50,4,FALSE),"0000")=$A$1,"",TEXT(VLOOKUP($C$1,Group!$A$2:$BH$50,4,FALSE),"0000"))) ->  | B18: =IFERROR(VLOOKUP(A18,SchList!$A$2:$B$334,2,FALSE),"") ->  | C18: =IF($A18="","",VLOOKUP($A18,ethbysch!$A$3:$Q$493,17,FALSE)) ->  | D18: =IF($A18="","",VLOOKUP($A18,ethbysch!$A$3:$Q$493,4,FALSE)) ->  | E18: =IF($A18="","",VLOOKUP($A18,ethbysch!$A$3:$Q$493,6,FALSE)) ->  | F18: =IF($A18="","",VLOOKUP($A18,ethbysch!$A$3:$Q$493,8,FALSE)) ->  | G18: =IF($A18="","",VLOOKUP($A18,fsubc!$A$3:$M$508,6,FALSE)) ->  | H18: =IF($A18="","",VLOOKUP($A18,fsubc!$A$3:$M$508,8,FALSE)) ->  | I18: =IF($A18="","",VLOOKUP($A18,fsubc!$A$3:$M$508,12,FALSE)) ->  | J18: =IF($A18="","",VLOOKUP(VALUE($A18),Table10[],3,FALSE)) ->  | K18: =IF($A18="","",VLOOKUP($A18,'2013 SG'!$D$8:$BC$435,3,FALSE)) ->  | L18: =IF($A18="","",VLOOKUP($A18,'2013 SG'!$D$8:$BC$435,4,FALSE)) ->  | M18: =IF($A18="","",VLOOKUP($A18,'2013 SG'!$D$8:$BC$435,5,FALSE)) ->  | N18: =IF($A18="","",VLOOKUP($A18,'2013 SG'!$D$8:$BC$435,6,FALSE)) ->  | O18: =IF($A18="","",VLOOKUP($A18,'2013 SG'!$D$8:$BC$435,7,FALSE)) ->  | P18: =IF($A18="","",VLOOKUP($A18,'2013 SG'!$D$8:$BC$435,8,FALSE)) ->  | Q18: =IF($A18="","",VLOOKUP($A18,'2013 SG'!$D$8:$BC$435,9,FALSE)) ->  | R18: =IF($A18="","",VLOOKUP($A18,'2013 SG'!$D$8:$BC$435,10,FALSE)) ->  | S18: =IFERROR(VLOOKUP($A18,Schools1213PCTmeetNoCharter!$A$2:$F$344,5,FALSE)*0.01,"") ->  | T18: =IFERROR(VLOOKUP(A18,Schools1213PCTmeetNoCharter!$A$2:$F$344,3,FALSE),"") ->  | U18: =IFERROR(VLOOKUP($A18,Schools1213PCTmeetNoCharter!$A$2:$F$344,6,FALSE)*0.01,"") ->  | V18: =IFERROR(VLOOKUP(A18,Schools1213PCTmeetNoCharter!$A$2:$F$344,4,FALSE),"") -> 
A19: =IF(VLOOKUP($C$1,Group!$A$2:$BH$50,5,FALSE)="","",IF(TEXT(VLOOKUP($C$1,Group!$A$2:$BH$50,5,FALSE),"0000")=$A$1,"",TEXT(VLOOKUP($C$1,Group!$A$2:$BH$50,5,FALSE),"0000"))) ->  | B19: =IFERROR(VLOOKUP(A19,SchList!$A$2:$B$334,2,FALSE),"") ->  | C19: =IF($A19="","",VLOOKUP($A19,ethbysch!$A$3:$Q$493,17,FALSE)) ->  | D19: =IF($A19="","",VLOOKUP($A19,ethbysch!$A$3:$Q$493,4,FALSE)) ->  | E19: =IF($A19="","",VLOOKUP($A19,ethbysch!$A$3:$Q$493,6,FALSE)) ->  | F19: =IF($A19="","",VLOOKUP($A19,ethbysch!$A$3:$Q$493,8,FALSE)) ->  | G19: =IF($A19="","",VLOOKUP($A19,fsubc!$A$3:$M$508,6,FALSE)) ->  | H19: =IF($A19="","",VLOOKUP($A19,fsubc!$A$3:$M$508,8,FALSE)) ->  | I19: =IF($A19="","",VLOOKUP($A19,fsubc!$A$3:$M$508,12,FALSE)) ->  | J19: =IF($A19="","",VLOOKUP(VALUE($A19),Table10[],3,FALSE)) ->  | K19: =IF($A19="","",VLOOKUP($A19,'2013 SG'!$D$8:$BC$435,3,FALSE)) ->  | L19: =IF($A19="","",VLOOKUP($A19,'2013 SG'!$D$8:$BC$435,4,FALSE)) ->  | M19: =IF($A19="","",VLOOKUP($A19,'2013 SG'!$D$8:$BC$435,5,FALSE)) ->  | N19: =IF($A19="","",VLOOKUP($A19,'2013 SG'!$D$8:$BC$435,6,FALSE)) ->  | O19: =IF($A19="","",VLOOKUP($A19,'2013 SG'!$D$8:$BC$435,7,FALSE)) ->  | P19: =IF($A19="","",VLOOKUP($A19,'2013 SG'!$D$8:$BC$435,8,FALSE)) ->  | Q19: =IF($A19="","",VLOOKUP($A19,'2013 SG'!$D$8:$BC$435,9,FALSE)) ->  | R19: =IF($A19="","",VLOOKUP($A19,'2013 SG'!$D$8:$BC$435,10,FALSE)) ->  | S19: =IFERROR(VLOOKUP($A19,Schools1213PCTmeetNoCharter!$A$2:$F$344,5,FALSE)*0.01,"") ->  | T19: =IFERROR(VLOOKUP(A19,Schools1213PCTmeetNoCharter!$A$2:$F$344,3,FALSE),"") ->  | U19: =IFERROR(VLOOKUP($A19,Schools1213PCTmeetNoCharter!$A$2:$F$344,6,FALSE)*0.01,"") ->  | V19: =IFERROR(VLOOKUP(A19,Schools1213PCTmeetNoCharter!$A$2:$F$344,4,FALSE),"") -> 
A20: =IF(VLOOKUP($C$1,Group!$A$2:$BH$50,6,FALSE)="","",IF(TEXT(VLOOKUP($C$1,Group!$A$2:$BH$50,6,FALSE),"0000")=$A$1,"",TEXT(VLOOKUP($C$1,Group!$A$2:$BH$50,6,FALSE),"0000"))) ->  | B20: =IFERROR(VLOOKUP(A20,SchList!$A$2:$B$334,2,FALSE),"") ->  | C20: =IF($A20="","",VLOOKUP($A20,ethbysch!$A$3:$Q$493,17,FALSE)) ->  | D20: =IF($A20="","",VLOOKUP($A20,ethbysch!$A$3:$Q$493,4,FALSE)) ->  | E20: =IF($A20="","",VLOOKUP($A20,ethbysch!$A$3:$Q$493,6,FALSE)) ->  | F20: =IF($A20="","",VLOOKUP($A20,ethbysch!$A$3:$Q$493,8,FALSE)) ->  | G20: =IF($A20="","",VLOOKUP($A20,fsubc!$A$3:$M$508,6,FALSE)) ->  | H20: =IF($A20="","",VLOOKUP($A20,fsubc!$A$3:$M$508,8,FALSE)) ->  | I20: =IF($A20="","",VLOOKUP($A20,fsubc!$A$3:$M$508,12,FALSE)) ->  | J20: =IF($A20="","",VLOOKUP(VALUE($A20),Table10[],3,FALSE)) ->  | K20: =IF($A20="","",VLOOKUP($A20,'2013 SG'!$D$8:$BC$435,3,FALSE)) ->  | L20: =IF($A20="","",VLOOKUP($A20,'2013 SG'!$D$8:$BC$435,4,FALSE)) ->  | M20: =IF($A20="","",VLOOKUP($A20,'2013 SG'!$D$8:$BC$435,5,FALSE)) ->  | N20: =IF($A20="","",VLOOKUP($A20,'2013 SG'!$D$8:$BC$435,6,FALSE)) ->  | O20: =IF($A20="","",VLOOKUP($A20,'2013 SG'!$D$8:$BC$435,7,FALSE)) ->  | P20: =IF($A20="","",VLOOKUP($A20,'2013 SG'!$D$8:$BC$435,8,FALSE)) ->  | Q20: =IF($A20="","",VLOOKUP($A20,'2013 SG'!$D$8:$BC$435,9,FALSE)) ->  | R20: =IF($A20="","",VLOOKUP($A20,'2013 SG'!$D$8:$BC$435,10,FALSE)) ->  | S20: =IFERROR(VLOOKUP($A20,Schools1213PCTmeetNoCharter!$A$2:$F$344,5,FALSE)*0.01,"") ->  | T20: =IFERROR(VLOOKUP(A20,Schools1213PCTmeetNoCharter!$A$2:$F$344,3,FALSE),"") ->  | U20: =IFERROR(VLOOKUP($A20,Schools1213PCTmeetNoCharter!$A$2:$F$344,6,FALSE)*0.01,"") ->  | V20: =IFERROR(VLOOKUP(A20,Schools1213PCTmeetNoCharter!$A$2:$F$344,4,FALSE),"") -> 
A21: =IF(VLOOKUP($C$1,Group!$A$2:$BH$50,7,FALSE)="","",IF(TEXT(VLOOKUP($C$1,Group!$A$2:$BH$50,7,FALSE),"0000")=$A$1,"",TEXT(VLOOKUP($C$1,Group!$A$2:$BH$50,7,FALSE),"0000"))) ->  | B21: =IFERROR(VLOOKUP(A21,SchList!$A$2:$B$334,2,FALSE),"") ->  | C21: =IF($A21="","",VLOOKUP($A21,ethbysch!$A$3:$Q$493,17,FALSE)) ->  | D21: =IF($A21="","",VLOOKUP($A21,ethbysch!$A$3:$Q$493,4,FALSE)) ->  | E21: =IF($A21="","",VLOOKUP($A21,ethbysch!$A$3:$Q$493,6,FALSE)) ->  | F21: =IF($A21="","",VLOOKUP($A21,ethbysch!$A$3:$Q$493,8,FALSE)) ->  | G21: =IF($A21="","",VLOOKUP($A21,fsubc!$A$3:$M$508,6,FALSE)) ->  | H21: =IF($A21="","",VLOOKUP($A21,fsubc!$A$3:$M$508,8,FALSE)) ->  | I21: =IF($A21="","",VLOOKUP($A21,fsubc!$A$3:$M$508,12,FALSE)) ->  | J21: =IF($A21="","",VLOOKUP(VALUE($A21),Table10[],3,FALSE)) ->  | K21: =IF($A21="","",VLOOKUP($A21,'2013 SG'!$D$8:$BC$435,3,FALSE)) ->  | L21: =IF($A21="","",VLOOKUP($A21,'2013 SG'!$D$8:$BC$435,4,FALSE)) ->  | M21: =IF($A21="","",VLOOKUP($A21,'2013 SG'!$D$8:$BC$435,5,FALSE)) ->  | N21: =IF($A21="","",VLOOKUP($A21,'2013 SG'!$D$8:$BC$435,6,FALSE)) ->  | O21: =IF($A21="","",VLOOKUP($A21,'2013 SG'!$D$8:$BC$435,7,FALSE)) ->  | P21: =IF($A21="","",VLOOKUP($A21,'2013 SG'!$D$8:$BC$435,8,FALSE)) ->  | Q21: =IF($A21="","",VLOOKUP($A21,'2013 SG'!$D$8:$BC$435,9,FALSE)) ->  | R21: =IF($A21="","",VLOOKUP($A21,'2013 SG'!$D$8:$BC$435,10,FALSE)) ->  | S21: =IFERROR(VLOOKUP($A21,Schools1213PCTmeetNoCharter!$A$2:$F$344,5,FALSE)*0.01,"") ->  | T21: =IFERROR(VLOOKUP(A21,Schools1213PCTmeetNoCharter!$A$2:$F$344,3,FALSE),"") ->  | U21: =IFERROR(VLOOKUP($A21,Schools1213PCTmeetNoCharter!$A$2:$F$344,6,FALSE)*0.01,"") ->  | V21: =IFERROR(VLOOKUP(A21,Schools1213PCTmeetNoCharter!$A$2:$F$344,4,FALSE),"") -> 
A22: =IF(VLOOKUP($C$1,Group!$A$2:$BH$50,8,FALSE)="","",IF(TEXT(VLOOKUP($C$1,Group!$A$2:$BH$50,8,FALSE),"0000")=$A$1,"",TEXT(VLOOKUP($C$1,Group!$A$2:$BH$50,8,FALSE),"0000"))) ->  | B22: =IFERROR(VLOOKUP(A22,SchList!$A$2:$B$334,2,FALSE),"") ->  | C22: =IF($A22="","",VLOOKUP($A22,ethbysch!$A$3:$Q$493,17,FALSE)) ->  | D22: =IF($A22="","",VLOOKUP($A22,ethbysch!$A$3:$Q$493,4,FALSE)) ->  | E22: =IF($A22="","",VLOOKUP($A22,ethbysch!$A$3:$Q$493,6,FALSE)) ->  | F22: =IF($A22="","",VLOOKUP($A22,ethbysch!$A$3:$Q$493,8,FALSE)) ->  | G22: =IF($A22="","",VLOOKUP($A22,fsubc!$A$3:$M$508,6,FALSE)) ->  | H22: =IF($A22="","",VLOOKUP($A22,fsubc!$A$3:$M$508,8,FALSE)) ->  | I22: =IF($A22="","",VLOOKUP($A22,fsubc!$A$3:$M$508,12,FALSE)) ->  | J22: =IF($A22="","",VLOOKUP(VALUE($A22),Table10[],3,FALSE)) ->  | K22: =IF($A22="","",VLOOKUP($A22,'2013 SG'!$D$8:$BC$435,3,FALSE)) ->  | L22: =IF($A22="","",VLOOKUP($A22,'2013 SG'!$D$8:$BC$435,4,FALSE)) ->  | M22: =IF($A22="","",VLOOKUP($A22,'2013 SG'!$D$8:$BC$435,5,FALSE)) ->  | N22: =IF($A22="","",VLOOKUP($A22,'2013 SG'!$D$8:$BC$435,6,FALSE)) ->  | O22: =IF($A22="","",VLOOKUP($A22,'2013 SG'!$D$8:$BC$435,7,FALSE)) ->  | P22: =IF($A22="","",VLOOKUP($A22,'2013 SG'!$D$8:$BC$435,8,FALSE)) ->  | Q22: =IF($A22="","",VLOOKUP($A22,'2013 SG'!$D$8:$BC$435,9,FALSE)) ->  | R22: =IF($A22="","",VLOOKUP($A22,'2013 SG'!$D$8:$BC$435,10,FALSE)) ->  | S22: =IFERROR(VLOOKUP($A22,Schools1213PCTmeetNoCharter!$A$2:$F$344,5,FALSE)*0.01,"") ->  | T22: =IFERROR(VLOOKUP(A22,Schools1213PCTmeetNoCharter!$A$2:$F$344,3,FALSE),"") ->  | U22: =IFERROR(VLOOKUP($A22,Schools1213PCTmeetNoCharter!$A$2:$F$344,6,FALSE)*0.01,"") ->  | V22: =IFERROR(VLOOKUP(A22,Schools1213PCTmeetNoCharter!$A$2:$F$344,4,FALSE),"") -> 
A23: =IF(VLOOKUP($C$1,Group!$A$2:$BH$50,9,FALSE)="","",IF(TEXT(VLOOKUP($C$1,Group!$A$2:$BH$50,9,FALSE),"0000")=$A$1,"",TEXT(VLOOKUP($C$1,Group!$A$2:$BH$50,9,FALSE),"0000"))) ->  | B23: =IFERROR(VLOOKUP(A23,SchList!$A$2:$B$334,2,FALSE),"") ->  | C23: =IF($A23="","",VLOOKUP($A23,ethbysch!$A$3:$Q$493,17,FALSE)) ->  | D23: =IF($A23="","",VLOOKUP($A23,ethbysch!$A$3:$Q$493,4,FALSE)) ->  | E23: =IF($A23="","",VLOOKUP($A23,ethbysch!$A$3:$Q$493,6,FALSE)) ->  | F23: =IF($A23="","",VLOOKUP($A23,ethbysch!$A$3:$Q$493,8,FALSE)) ->  | G23: =IF($A23="","",VLOOKUP($A23,fsubc!$A$3:$M$508,6,FALSE)) ->  | H23: =IF($A23="","",VLOOKUP($A23,fsubc!$A$3:$M$508,8,FALSE)) ->  | I23: =IF($A23="","",VLOOKUP($A23,fsubc!$A$3:$M$508,12,FALSE)) ->  | J23: =IF($A23="","",VLOOKUP(VALUE($A23),Table10[],3,FALSE)) ->  | K23: =IF($A23="","",VLOOKUP($A23,'2013 SG'!$D$8:$BC$435,3,FALSE)) ->  | L23: =IF($A23="","",VLOOKUP($A23,'2013 SG'!$D$8:$BC$435,4,FALSE)) ->  | M23: =IF($A23="","",VLOOKUP($A23,'2013 SG'!$D$8:$BC$435,5,FALSE)) ->  | N23: =IF($A23="","",VLOOKUP($A23,'2013 SG'!$D$8:$BC$435,6,FALSE)) ->  | O23: =IF($A23="","",VLOOKUP($A23,'2013 SG'!$D$8:$BC$435,7,FALSE)) ->  | P23: =IF($A23="","",VLOOKUP($A23,'2013 SG'!$D$8:$BC$435,8,FALSE)) ->  | Q23: =IF($A23="","",VLOOKUP($A23,'2013 SG'!$D$8:$BC$435,9,FALSE)) ->  | R23: =IF($A23="","",VLOOKUP($A23,'2013 SG'!$D$8:$BC$435,10,FALSE)) ->  | S23: =IFERROR(VLOOKUP($A23,Schools1213PCTmeetNoCharter!$A$2:$F$344,5,FALSE)*0.01,"") ->  | T23: =IFERROR(VLOOKUP(A23,Schools1213PCTmeetNoCharter!$A$2:$F$344,3,FALSE),"") ->  | U23: =IFERROR(VLOOKUP($A23,Schools1213PCTmeetNoCharter!$A$2:$F$344,6,FALSE)*0.01,"") ->  | V23: =IFERROR(VLOOKUP(A23,Schools1213PCTmeetNoCharter!$A$2:$F$344,4,FALSE),"") -> 
A24: =IF(VLOOKUP($C$1,Group!$A$2:$BH$50,10,FALSE)="","",IF(TEXT(VLOOKUP($C$1,Group!$A$2:$BH$50,10,FALSE),"0000")=$A$1,"",TEXT(VLOOKUP($C$1,Group!$A$2:$BH$50,10,FALSE),"0000"))) ->  | B24: =IFERROR(VLOOKUP(A24,SchList!$A$2:$B$334,2,FALSE),"") ->  | C24: =IF($A24="","",VLOOKUP($A24,ethbysch!$A$3:$Q$493,17,FALSE)) ->  | D24: =IF($A24="","",VLOOKUP($A24,ethbysch!$A$3:$Q$493,4,FALSE)) ->  | E24: =IF($A24="","",VLOOKUP($A24,ethbysch!$A$3:$Q$493,6,FALSE)) ->  | F24: =IF($A24="","",VLOOKUP($A24,ethbysch!$A$3:$Q$493,8,FALSE)) ->  | G24: =IF($A24="","",VLOOKUP($A24,fsubc!$A$3:$M$508,6,FALSE)) ->  | H24: =IF($A24="","",VLOOKUP($A24,fsubc!$A$3:$M$508,8,FALSE)) ->  | I24: =IF($A24="","",VLOOKUP($A24,fsubc!$A$3:$M$508,12,FALSE)) ->  | J24: =IF($A24="","",VLOOKUP(VALUE($A24),Table10[],3,FALSE)) ->  | K24: =IF($A24="","",VLOOKUP($A24,'2013 SG'!$D$8:$BC$435,3,FALSE)) ->  | L24: =IF($A24="","",VLOOKUP($A24,'2013 SG'!$D$8:$BC$435,4,FALSE)) ->  | M24: =IF($A24="","",VLOOKUP($A24,'2013 SG'!$D$8:$BC$435,5,FALSE)) ->  | N24: =IF($A24="","",VLOOKUP($A24,'2013 SG'!$D$8:$BC$435,6,FALSE)) ->  | O24: =IF($A24="","",VLOOKUP($A24,'2013 SG'!$D$8:$BC$435,7,FALSE)) ->  | P24: =IF($A24="","",VLOOKUP($A24,'2013 SG'!$D$8:$BC$435,8,FALSE)) ->  | Q24: =IF($A24="","",VLOOKUP($A24,'2013 SG'!$D$8:$BC$435,9,FALSE)) ->  | R24: =IF($A24="","",VLOOKUP($A24,'2013 SG'!$D$8:$BC$435,10,FALSE)) ->  | S24: =IFERROR(VLOOKUP($A24,Schools1213PCTmeetNoCharter!$A$2:$F$344,5,FALSE)*0.01,"") ->  | T24: =IFERROR(VLOOKUP(A24,Schools1213PCTmeetNoCharter!$A$2:$F$344,3,FALSE),"") ->  | U24: =IFERROR(VLOOKUP($A24,Schools1213PCTmeetNoCharter!$A$2:$F$344,6,FALSE)*0.01,"") ->  | V24: =IFERROR(VLOOKUP(A24,Schools1213PCTmeetNoCharter!$A$2:$F$344,4,FALSE),"") -> 
A25: =IF(VLOOKUP($C$1,Group!$A$2:$BH$50,11,FALSE)="","",IF(TEXT(VLOOKUP($C$1,Group!$A$2:$BH$50,11,FALSE),"0000")=$A$1,"",TEXT(VLOOKUP($C$1,Group!$A$2:$BH$50,11,FALSE),"0000"))) ->  | B25: =IFERROR(VLOOKUP(A25,SchList!$A$2:$B$334,2,FALSE),"") ->  | C25: =IF($A25="","",VLOOKUP($A25,ethbysch!$A$3:$Q$493,17,FALSE)) ->  | D25: =IF($A25="","",VLOOKUP($A25,ethbysch!$A$3:$Q$493,4,FALSE)) ->  | E25: =IF($A25="","",VLOOKUP($A25,ethbysch!$A$3:$Q$493,6,FALSE)) ->  | F25: =IF($A25="","",VLOOKUP($A25,ethbysch!$A$3:$Q$493,8,FALSE)) ->  | G25: =IF($A25="","",VLOOKUP($A25,fsubc!$A$3:$M$508,6,FALSE)) ->  | H25: =IF($A25="","",VLOOKUP($A25,fsubc!$A$3:$M$508,8,FALSE)) ->  | I25: =IF($A25="","",VLOOKUP($A25,fsubc!$A$3:$M$508,12,FALSE)) ->  | J25: =IF($A25="","",VLOOKUP(VALUE($A25),Table10[],3,FALSE)) ->  | K25: =IF($A25="","",VLOOKUP($A25,'2013 SG'!$D$8:$BC$435,3,FALSE)) ->  | L25: =IF($A25="","",VLOOKUP($A25,'2013 SG'!$D$8:$BC$435,4,FALSE)) ->  | M25: =IF($A25="","",VLOOKUP($A25,'2013 SG'!$D$8:$BC$435,5,FALSE)) ->  | N25: =IF($A25="","",VLOOKUP($A25,'2013 SG'!$D$8:$BC$435,6,FALSE)) ->  | O25: =IF($A25="","",VLOOKUP($A25,'2013 SG'!$D$8:$BC$435,7,FALSE)) ->  | P25: =IF($A25="","",VLOOKUP($A25,'2013 SG'!$D$8:$BC$435,8,FALSE)) ->  | Q25: =IF($A25="","",VLOOKUP($A25,'2013 SG'!$D$8:$BC$435,9,FALSE)) ->  | R25: =IF($A25="","",VLOOKUP($A25,'2013 SG'!$D$8:$BC$435,10,FALSE)) ->  | S25: =IFERROR(VLOOKUP($A25,Schools1213PCTmeetNoCharter!$A$2:$F$344,5,FALSE)*0.01,"") ->  | T25: =IFERROR(VLOOKUP(A25,Schools1213PCTmeetNoCharter!$A$2:$F$344,3,FALSE),"") ->  | U25: =IFERROR(VLOOKUP($A25,Schools1213PCTmeetNoCharter!$A$2:$F$344,6,FALSE)*0.01,"") ->  | V25: =IFERROR(VLOOKUP(A25,Schools1213PCTmeetNoCharter!$A$2:$F$344,4,FALSE),"") -> 
A26: =IF(VLOOKUP($C$1,Group!$A$2:$BH$50,12,FALSE)="","",IF(TEXT(VLOOKUP($C$1,Group!$A$2:$BH$50,12,FALSE),"0000")=$A$1,"",TEXT(VLOOKUP($C$1,Group!$A$2:$BH$50,12,FALSE),"0000"))) ->  | B26: =IFERROR(VLOOKUP(A26,SchList!$A$2:$B$334,2,FALSE),"") ->  | C26: =IF($A26="","",VLOOKUP($A26,ethbysch!$A$3:$Q$493,17,FALSE)) ->  | D26: =IF($A26="","",VLOOKUP($A26,ethbysch!$A$3:$Q$493,4,FALSE)) ->  | E26: =IF($A26="","",VLOOKUP($A26,ethbysch!$A$3:$Q$493,6,FALSE)) ->  | F26: =IF($A26="","",VLOOKUP($A26,ethbysch!$A$3:$Q$493,8,FALSE)) ->  | G26: =IF($A26="","",VLOOKUP($A26,fsubc!$A$3:$M$508,6,FALSE)) ->  | H26: =IF($A26="","",VLOOKUP($A26,fsubc!$A$3:$M$508,8,FALSE)) ->  | I26: =IF($A26="","",VLOOKUP($A26,fsubc!$A$3:$M$508,12,FALSE)) ->  | J26: =IF($A26="","",VLOOKUP(VALUE($A26),Table10[],3,FALSE)) ->  | K26: =IF($A26="","",VLOOKUP($A26,'2013 SG'!$D$8:$BC$435,3,FALSE)) ->  | L26: =IF($A26="","",VLOOKUP($A26,'2013 SG'!$D$8:$BC$435,4,FALSE)) ->  | M26: =IF($A26="","",VLOOKUP($A26,'2013 SG'!$D$8:$BC$435,5,FALSE)) ->  | N26: =IF($A26="","",VLOOKUP($A26,'2013 SG'!$D$8:$BC$435,6,FALSE)) ->  | O26: =IF($A26="","",VLOOKUP($A26,'2013 SG'!$D$8:$BC$435,7,FALSE)) ->  | P26: =IF($A26="","",VLOOKUP($A26,'2013 SG'!$D$8:$BC$435,8,FALSE)) ->  | Q26: =IF($A26="","",VLOOKUP($A26,'2013 SG'!$D$8:$BC$435,9,FALSE)) ->  | R26: =IF($A26="","",VLOOKUP($A26,'2013 SG'!$D$8:$BC$435,10,FALSE)) ->  | S26: =IFERROR(VLOOKUP($A26,Schools1213PCTmeetNoCharter!$A$2:$F$344,5,FALSE)*0.01,"") ->  | T26: =IFERROR(VLOOKUP(A26,Schools1213PCTmeetNoCharter!$A$2:$F$344,3,FALSE),"") ->  | U26: =IFERROR(VLOOKUP($A26,Schools1213PCTmeetNoCharter!$A$2:$F$344,6,FALSE)*0.01,"") ->  | V26: =IFERROR(VLOOKUP(A26,Schools1213PCTmeetNoCharter!$A$2:$F$344,4,FALSE),"") -> 
A27: =IF(VLOOKUP($C$1,Group!$A$2:$BH$50,13,FALSE)="","",IF(TEXT(VLOOKUP($C$1,Group!$A$2:$BH$50,13,FALSE),"0000")=$A$1,"",TEXT(VLOOKUP($C$1,Group!$A$2:$BH$50,13,FALSE),"0000"))) ->  | B27: =IFERROR(VLOOKUP(A27,SchList!$A$2:$B$334,2,FALSE),"") ->  | C27: =IF($A27="","",VLOOKUP($A27,ethbysch!$A$3:$Q$493,17,FALSE)) ->  | D27: =IF($A27="","",VLOOKUP($A27,ethbysch!$A$3:$Q$493,4,FALSE)) ->  | E27: =IF($A27="","",VLOOKUP($A27,ethbysch!$A$3:$Q$493,6,FALSE)) ->  | F27: =IF($A27="","",VLOOKUP($A27,ethbysch!$A$3:$Q$493,8,FALSE)) ->  | G27: =IF($A27="","",VLOOKUP($A27,fsubc!$A$3:$M$508,6,FALSE)) ->  | H27: =IF($A27="","",VLOOKUP($A27,fsubc!$A$3:$M$508,8,FALSE)) ->  | I27: =IF($A27="","",VLOOKUP($A27,fsubc!$A$3:$M$508,12,FALSE)) ->  | J27: =IF($A27="","",VLOOKUP(VALUE($A27),Table10[],3,FALSE)) ->  | K27: =IF($A27="","",VLOOKUP($A27,'2013 SG'!$D$8:$BC$435,3,FALSE)) ->  | L27: =IF($A27="","",VLOOKUP($A27,'2013 SG'!$D$8:$BC$435,4,FALSE)) ->  | M27: =IF($A27="","",VLOOKUP($A27,'2013 SG'!$D$8:$BC$435,5,FALSE)) ->  | N27: =IF($A27="","",VLOOKUP($A27,'2013 SG'!$D$8:$BC$435,6,FALSE)) ->  | O27: =IF($A27="","",VLOOKUP($A27,'2013 SG'!$D$8:$BC$435,7,FALSE)) ->  | P27: =IF($A27="","",VLOOKUP($A27,'2013 SG'!$D$8:$BC$435,8,FALSE)) ->  | Q27: =IF($A27="","",VLOOKUP($A27,'2013 SG'!$D$8:$BC$435,9,FALSE)) ->  | R27: =IF($A27="","",VLOOKUP($A27,'2013 SG'!$D$8:$BC$435,10,FALSE)) ->  | S27: =IFERROR(VLOOKUP($A27,Schools1213PCTmeetNoCharter!$A$2:$F$344,5,FALSE)*0.01,"") ->  | T27: =IFERROR(VLOOKUP(A27,Schools1213PCTmeetNoCharter!$A$2:$F$344,3,FALSE),"") ->  | U27: =IFERROR(VLOOKUP($A27,Schools1213PCTmeetNoCharter!$A$2:$F$344,6,FALSE)*0.01,"") ->  | V27: =IFERROR(VLOOKUP(A27,Schools1213PCTmeetNoCharter!$A$2:$F$344,4,FALSE),"") -> 
A28: =IF(VLOOKUP($C$1,Group!$A$2:$BH$50,14,FALSE)="","",IF(TEXT(VLOOKUP($C$1,Group!$A$2:$BH$50,14,FALSE),"0000")=$A$1,"",TEXT(VLOOKUP($C$1,Group!$A$2:$BH$50,14,FALSE),"0000"))) ->  | B28: =IFERROR(VLOOKUP(A28,SchList!$A$2:$B$334,2,FALSE),"") ->  | C28: =IF($A28="","",VLOOKUP($A28,ethbysch!$A$3:$Q$493,17,FALSE)) ->  | D28: =IF($A28="","",VLOOKUP($A28,ethbysch!$A$3:$Q$493,4,FALSE)) ->  | E28: =IF($A28="","",VLOOKUP($A28,ethbysch!$A$3:$Q$493,6,FALSE)) ->  | F28: =IF($A28="","",VLOOKUP($A28,ethbysch!$A$3:$Q$493,8,FALSE)) ->  | G28: =IF($A28="","",VLOOKUP($A28,fsubc!$A$3:$M$508,6,FALSE)) ->  | H28: =IF($A28="","",VLOOKUP($A28,fsubc!$A$3:$M$508,8,FALSE)) ->  | I28: =IF($A28="","",VLOOKUP($A28,fsubc!$A$3:$M$508,12,FALSE)) ->  | J28: =IF($A28="","",VLOOKUP(VALUE($A28),Table10[],3,FALSE)) ->  | K28: =IF($A28="","",VLOOKUP($A28,'2013 SG'!$D$8:$BC$435,3,FALSE)) ->  | L28: =IF($A28="","",VLOOKUP($A28,'2013 SG'!$D$8:$BC$435,4,FALSE)) ->  | M28: =IF($A28="","",VLOOKUP($A28,'2013 SG'!$D$8:$BC$435,5,FALSE)) ->  | N28: =IF($A28="","",VLOOKUP($A28,'2013 SG'!$D$8:$BC$435,6,FALSE)) ->  | O28: =IF($A28="","",VLOOKUP($A28,'2013 SG'!$D$8:$BC$435,7,FALSE)) ->  | P28: =IF($A28="","",VLOOKUP($A28,'2013 SG'!$D$8:$BC$435,8,FALSE)) ->  | Q28: =IF($A28="","",VLOOKUP($A28,'2013 SG'!$D$8:$BC$435,9,FALSE)) ->  | R28: =IF($A28="","",VLOOKUP($A28,'2013 SG'!$D$8:$BC$435,10,FALSE)) ->  | S28: =IFERROR(VLOOKUP($A28,Schools1213PCTmeetNoCharter!$A$2:$F$344,5,FALSE)*0.01,"") ->  | T28: =IFERROR(VLOOKUP(A28,Schools1213PCTmeetNoCharter!$A$2:$F$344,3,FALSE),"") ->  | U28: =IFERROR(VLOOKUP($A28,Schools1213PCTmeetNoCharter!$A$2:$F$344,6,FALSE)*0.01,"") ->  | V28: =IFERROR(VLOOKUP(A28,Schools1213PCTmeetNoCharter!$A$2:$F$344,4,FALSE),"") -> 
A29: =IF(VLOOKUP($C$1,Group!$A$2:$BH$50,15,FALSE)="","",IF(TEXT(VLOOKUP($C$1,Group!$A$2:$BH$50,15,FALSE),"0000")=$A$1,"",TEXT(VLOOKUP($C$1,Group!$A$2:$BH$50,15,FALSE),"0000"))) ->  | B29: =IFERROR(VLOOKUP(A29,SchList!$A$2:$B$334,2,FALSE),"") ->  | C29: =IF($A29="","",VLOOKUP($A29,ethbysch!$A$3:$Q$493,17,FALSE)) ->  | D29: =IF($A29="","",VLOOKUP($A29,ethbysch!$A$3:$Q$493,4,FALSE)) ->  | E29: =IF($A29="","",VLOOKUP($A29,ethbysch!$A$3:$Q$493,6,FALSE)) ->  | F29: =IF($A29="","",VLOOKUP($A29,ethbysch!$A$3:$Q$493,8,FALSE)) ->  | G29: =IF($A29="","",VLOOKUP($A29,fsubc!$A$3:$M$508,6,FALSE)) ->  | H29: =IF($A29="","",VLOOKUP($A29,fsubc!$A$3:$M$508,8,FALSE)) ->  | I29: =IF($A29="","",VLOOKUP($A29,fsubc!$A$3:$M$508,12,FALSE)) ->  | J29: =IF($A29="","",VLOOKUP(VALUE($A29),Table10[],3,FALSE)) ->  | K29: =IF($A29="","",VLOOKUP($A29,'2013 SG'!$D$8:$BC$435,3,FALSE)) ->  | L29: =IF($A29="","",VLOOKUP($A29,'2013 SG'!$D$8:$BC$435,4,FALSE)) ->  | M29: =IF($A29="","",VLOOKUP($A29,'2013 SG'!$D$8:$BC$435,5,FALSE)) ->  | N29: =IF($A29="","",VLOOKUP($A29,'2013 SG'!$D$8:$BC$435,6,FALSE)) ->  | O29: =IF($A29="","",VLOOKUP($A29,'2013 SG'!$D$8:$BC$435,7,FALSE)) ->  | P29: =IF($A29="","",VLOOKUP($A29,'2013 SG'!$D$8:$BC$435,8,FALSE)) ->  | Q29: =IF($A29="","",VLOOKUP($A29,'2013 SG'!$D$8:$BC$435,9,FALSE)) ->  | R29: =IF($A29="","",VLOOKUP($A29,'2013 SG'!$D$8:$BC$435,10,FALSE)) ->  | S29: =IFERROR(VLOOKUP($A29,Schools1213PCTmeetNoCharter!$A$2:$F$344,5,FALSE)*0.01,"") ->  | T29: =IFERROR(VLOOKUP(A29,Schools1213PCTmeetNoCharter!$A$2:$F$344,3,FALSE),"") ->  | U29: =IFERROR(VLOOKUP($A29,Schools1213PCTmeetNoCharter!$A$2:$F$344,6,FALSE)*0.01,"") ->  | V29: =IFERROR(VLOOKUP(A29,Schools1213PCTmeetNoCharter!$A$2:$F$344,4,FALSE),"") -> 
A30: =IF(VLOOKUP($C$1,Group!$A$2:$BH$50,16,FALSE)="","",IF(TEXT(VLOOKUP($C$1,Group!$A$2:$BH$50,16,FALSE),"0000")=$A$1,"",TEXT(VLOOKUP($C$1,Group!$A$2:$BH$50,16,FALSE),"0000"))) ->  | B30: =IFERROR(VLOOKUP(A30,SchList!$A$2:$B$334,2,FALSE),"") ->  | C30: =IF($A30="","",VLOOKUP($A30,ethbysch!$A$3:$Q$493,17,FALSE)) ->  | D30: =IF($A30="","",VLOOKUP($A30,ethbysch!$A$3:$Q$493,4,FALSE)) ->  | E30: =IF($A30="","",VLOOKUP($A30,ethbysch!$A$3:$Q$493,6,FALSE)) ->  | F30: =IF($A30="","",VLOOKUP($A30,ethbysch!$A$3:$Q$493,8,FALSE)) ->  | G30: =IF($A30="","",VLOOKUP($A30,fsubc!$A$3:$M$508,6,FALSE)) ->  | H30: =IF($A30="","",VLOOKUP($A30,fsubc!$A$3:$M$508,8,FALSE)) ->  | I30: =IF($A30="","",VLOOKUP($A30,fsubc!$A$3:$M$508,12,FALSE)) ->  | J30: =IF($A30="","",VLOOKUP(VALUE($A30),Table10[],3,FALSE)) ->  | K30: =IF($A30="","",VLOOKUP($A30,'2013 SG'!$D$8:$BC$435,3,FALSE)) ->  | L30: =IF($A30="","",VLOOKUP($A30,'2013 SG'!$D$8:$BC$435,4,FALSE)) ->  | M30: =IF($A30="","",VLOOKUP($A30,'2013 SG'!$D$8:$BC$435,5,FALSE)) ->  | N30: =IF($A30="","",VLOOKUP($A30,'2013 SG'!$D$8:$BC$435,6,FALSE)) ->  | O30: =IF($A30="","",VLOOKUP($A30,'2013 SG'!$D$8:$BC$435,7,FALSE)) ->  | P30: =IF($A30="","",VLOOKUP($A30,'2013 SG'!$D$8:$BC$435,8,FALSE)) ->  | Q30: =IF($A30="","",VLOOKUP($A30,'2013 SG'!$D$8:$BC$435,9,FALSE)) ->  | R30: =IF($A30="","",VLOOKUP($A30,'2013 SG'!$D$8:$BC$435,10,FALSE)) ->  | S30: =IFERROR(VLOOKUP($A30,Schools1213PCTmeetNoCharter!$A$2:$F$344,5,FALSE)*0.01,"") ->  | T30: =IFERROR(VLOOKUP(A30,Schools1213PCTmeetNoCharter!$A$2:$F$344,3,FALSE),"") ->  | U30: =IFERROR(VLOOKUP($A30,Schools1213PCTmeetNoCharter!$A$2:$F$344,6,FALSE)*0.01,"") ->  | V30: =IFERROR(VLOOKUP(A30,Schools1213PCTmeetNoCharter!$A$2:$F$344,4,FALSE),"") -> 
A31: =IF(VLOOKUP($C$1,Group!$A$2:$BH$50,17,FALSE)="","",IF(TEXT(VLOOKUP($C$1,Group!$A$2:$BH$50,17,FALSE),"0000")=$A$1,"",TEXT(VLOOKUP($C$1,Group!$A$2:$BH$50,17,FALSE),"0000"))) ->  | B31: =IFERROR(VLOOKUP(A31,SchList!$A$2:$B$334,2,FALSE),"") ->  | C31: =IF($A31="","",VLOOKUP($A31,ethbysch!$A$3:$Q$493,17,FALSE)) ->  | D31: =IF($A31="","",VLOOKUP($A31,ethbysch!$A$3:$Q$493,4,FALSE)) ->  | E31: =IF($A31="","",VLOOKUP($A31,ethbysch!$A$3:$Q$493,6,FALSE)) ->  | F31: =IF($A31="","",VLOOKUP($A31,ethbysch!$A$3:$Q$493,8,FALSE)) ->  | G31: =IF($A31="","",VLOOKUP($A31,fsubc!$A$3:$M$508,6,FALSE)) ->  | H31: =IF($A31="","",VLOOKUP($A31,fsubc!$A$3:$M$508,8,FALSE)) ->  | I31: =IF($A31="","",VLOOKUP($A31,fsubc!$A$3:$M$508,12,FALSE)) ->  | J31: =IF($A31="","",VLOOKUP(VALUE($A31),Table10[],3,FALSE)) ->  | K31: =IF($A31="","",VLOOKUP($A31,'2013 SG'!$D$8:$BC$435,3,FALSE)) ->  | L31: =IF($A31="","",VLOOKUP($A31,'2013 SG'!$D$8:$BC$435,4,FALSE)) ->  | M31: =IF($A31="","",VLOOKUP($A31,'2013 SG'!$D$8:$BC$435,5,FALSE)) ->  | N31: =IF($A31="","",VLOOKUP($A31,'2013 SG'!$D$8:$BC$435,6,FALSE)) ->  | O31: =IF($A31="","",VLOOKUP($A31,'2013 SG'!$D$8:$BC$435,7,FALSE)) ->  | P31: =IF($A31="","",VLOOKUP($A31,'2013 SG'!$D$8:$BC$435,8,FALSE)) ->  | Q31: =IF($A31="","",VLOOKUP($A31,'2013 SG'!$D$8:$BC$435,9,FALSE)) ->  | R31: =IF($A31="","",VLOOKUP($A31,'2013 SG'!$D$8:$BC$435,10,FALSE)) ->  | S31: =IFERROR(VLOOKUP($A31,Schools1213PCTmeetNoCharter!$A$2:$F$344,5,FALSE)*0.01,"") ->  | T31: =IFERROR(VLOOKUP(A31,Schools1213PCTmeetNoCharter!$A$2:$F$344,3,FALSE),"") ->  | U31: =IFERROR(VLOOKUP($A31,Schools1213PCTmeetNoCharter!$A$2:$F$344,6,FALSE)*0.01,"") ->  | V31: =IFERROR(VLOOKUP(A31,Schools1213PCTmeetNoCharter!$A$2:$F$344,4,FALSE),"") -> 
A32: =IF(VLOOKUP($C$1,Group!$A$2:$BH$50,18,FALSE)="","",IF(TEXT(VLOOKUP($C$1,Group!$A$2:$BH$50,18,FALSE),"0000")=$A$1,"",TEXT(VLOOKUP($C$1,Group!$A$2:$BH$50,18,FALSE),"0000"))) ->  | B32: =IFERROR(VLOOKUP(A32,SchList!$A$2:$B$334,2,FALSE),"") ->  | C32: =IF($A32="","",VLOOKUP($A32,ethbysch!$A$3:$Q$493,17,FALSE)) ->  | D32: =IF($A32="","",VLOOKUP($A32,ethbysch!$A$3:$Q$493,4,FALSE)) ->  | E32: =IF($A32="","",VLOOKUP($A32,ethbysch!$A$3:$Q$493,6,FALSE)) ->  | F32: =IF($A32="","",VLOOKUP($A32,ethbysch!$A$3:$Q$493,8,FALSE)) ->  | G32: =IF($A32="","",VLOOKUP($A32,fsubc!$A$3:$M$508,6,FALSE)) ->  | H32: =IF($A32="","",VLOOKUP($A32,fsubc!$A$3:$M$508,8,FALSE)) ->  | I32: =IF($A32="","",VLOOKUP($A32,fsubc!$A$3:$M$508,12,FALSE)) ->  | J32: =IF($A32="","",VLOOKUP(VALUE($A32),Table10[],3,FALSE)) ->  | K32: =IF($A32="","",VLOOKUP($A32,'2013 SG'!$D$8:$BC$435,3,FALSE)) ->  | L32: =IF($A32="","",VLOOKUP($A32,'2013 SG'!$D$8:$BC$435,4,FALSE)) ->  | M32: =IF($A32="","",VLOOKUP($A32,'2013 SG'!$D$8:$BC$435,5,FALSE)) ->  | N32: =IF($A32="","",VLOOKUP($A32,'2013 SG'!$D$8:$BC$435,6,FALSE)) ->  | O32: =IF($A32="","",VLOOKUP($A32,'2013 SG'!$D$8:$BC$435,7,FALSE)) ->  | P32: =IF($A32="","",VLOOKUP($A32,'2013 SG'!$D$8:$BC$435,8,FALSE)) ->  | Q32: =IF($A32="","",VLOOKUP($A32,'2013 SG'!$D$8:$BC$435,9,FALSE)) ->  | R32: =IF($A32="","",VLOOKUP($A32,'2013 SG'!$D$8:$BC$435,10,FALSE)) ->  | S32: =IFERROR(VLOOKUP($A32,Schools1213PCTmeetNoCharter!$A$2:$F$344,5,FALSE)*0.01,"") ->  | T32: =IFERROR(VLOOKUP(A32,Schools1213PCTmeetNoCharter!$A$2:$F$344,3,FALSE),"") ->  | U32: =IFERROR(VLOOKUP($A32,Schools1213PCTmeetNoCharter!$A$2:$F$344,6,FALSE)*0.01,"") ->  | V32: =IFERROR(VLOOKUP(A32,Schools1213PCTmeetNoCharter!$A$2:$F$344,4,FALSE),"") -> 
A33: =IF(VLOOKUP($C$1,Group!$A$2:$BH$50,19,FALSE)="","",IF(TEXT(VLOOKUP($C$1,Group!$A$2:$BH$50,19,FALSE),"0000")=$A$1,"",TEXT(VLOOKUP($C$1,Group!$A$2:$BH$50,19,FALSE),"0000"))) ->  | B33: =IFERROR(VLOOKUP(A33,SchList!$A$2:$B$334,2,FALSE),"") ->  | C33: =IF($A33="","",VLOOKUP($A33,ethbysch!$A$3:$Q$493,17,FALSE)) ->  | D33: =IF($A33="","",VLOOKUP($A33,ethbysch!$A$3:$Q$493,4,FALSE)) ->  | E33: =IF($A33="","",VLOOKUP($A33,ethbysch!$A$3:$Q$493,6,FALSE)) ->  | F33: =IF($A33="","",VLOOKUP($A33,ethbysch!$A$3:$Q$493,8,FALSE)) ->  | G33: =IF($A33="","",VLOOKUP($A33,fsubc!$A$3:$M$508,6,FALSE)) ->  | H33: =IF($A33="","",VLOOKUP($A33,fsubc!$A$3:$M$508,8,FALSE)) ->  | I33: =IF($A33="","",VLOOKUP($A33,fsubc!$A$3:$M$508,12,FALSE)) ->  | J33: =IF($A33="","",VLOOKUP(VALUE($A33),Table10[],3,FALSE)) ->  | K33: =IF($A33="","",VLOOKUP($A33,'2013 SG'!$D$8:$BC$435,3,FALSE)) ->  | L33: =IF($A33="","",VLOOKUP($A33,'2013 SG'!$D$8:$BC$435,4,FALSE)) ->  | M33: =IF($A33="","",VLOOKUP($A33,'2013 SG'!$D$8:$BC$435,5,FALSE)) ->  | N33: =IF($A33="","",VLOOKUP($A33,'2013 SG'!$D$8:$BC$435,6,FALSE)) ->  | O33: =IF($A33="","",VLOOKUP($A33,'2013 SG'!$D$8:$BC$435,7,FALSE)) ->  | P33: =IF($A33="","",VLOOKUP($A33,'2013 SG'!$D$8:$BC$435,8,FALSE)) ->  | Q33: =IF($A33="","",VLOOKUP($A33,'2013 SG'!$D$8:$BC$435,9,FALSE)) ->  | R33: =IF($A33="","",VLOOKUP($A33,'2013 SG'!$D$8:$BC$435,10,FALSE)) ->  | S33: =IFERROR(VLOOKUP($A33,Schools1213PCTmeetNoCharter!$A$2:$F$344,5,FALSE)*0.01,"") ->  | T33: =IFERROR(VLOOKUP(A33,Schools1213PCTmeetNoCharter!$A$2:$F$344,3,FALSE),"") ->  | U33: =IFERROR(VLOOKUP($A33,Schools1213PCTmeetNoCharter!$A$2:$F$344,6,FALSE)*0.01,"") ->  | V33: =IFERROR(VLOOKUP(A33,Schools1213PCTmeetNoCharter!$A$2:$F$344,4,FALSE),"") -> 
A34: =IF(VLOOKUP($C$1,Group!$A$2:$BH$50,20,FALSE)="","",IF(TEXT(VLOOKUP($C$1,Group!$A$2:$BH$50,20,FALSE),"0000")=$A$1,"",TEXT(VLOOKUP($C$1,Group!$A$2:$BH$50,20,FALSE),"0000"))) ->  | B34: =IFERROR(VLOOKUP(A34,SchList!$A$2:$B$334,2,FALSE),"") ->  | C34: =IF($A34="","",VLOOKUP($A34,ethbysch!$A$3:$Q$493,17,FALSE)) ->  | D34: =IF($A34="","",VLOOKUP($A34,ethbysch!$A$3:$Q$493,4,FALSE)) ->  | E34: =IF($A34="","",VLOOKUP($A34,ethbysch!$A$3:$Q$493,6,FALSE)) ->  | F34: =IF($A34="","",VLOOKUP($A34,ethbysch!$A$3:$Q$493,8,FALSE)) ->  | G34: =IF($A34="","",VLOOKUP($A34,fsubc!$A$3:$M$508,6,FALSE)) ->  | H34: =IF($A34="","",VLOOKUP($A34,fsubc!$A$3:$M$508,8,FALSE)) ->  | I34: =IF($A34="","",VLOOKUP($A34,fsubc!$A$3:$M$508,12,FALSE)) ->  | J34: =IF($A34="","",VLOOKUP(VALUE($A34),Table10[],3,FALSE)) ->  | K34: =IF($A34="","",VLOOKUP($A34,'2013 SG'!$D$8:$BC$435,3,FALSE)) ->  | L34: =IF($A34="","",VLOOKUP($A34,'2013 SG'!$D$8:$BC$435,4,FALSE)) ->  | M34: =IF($A34="","",VLOOKUP($A34,'2013 SG'!$D$8:$BC$435,5,FALSE)) ->  | N34: =IF($A34="","",VLOOKUP($A34,'2013 SG'!$D$8:$BC$435,6,FALSE)) ->  | O34: =IF($A34="","",VLOOKUP($A34,'2013 SG'!$D$8:$BC$435,7,FALSE)) ->  | P34: =IF($A34="","",VLOOKUP($A34,'2013 SG'!$D$8:$BC$435,8,FALSE)) ->  | Q34: =IF($A34="","",VLOOKUP($A34,'2013 SG'!$D$8:$BC$435,9,FALSE)) ->  | R34: =IF($A34="","",VLOOKUP($A34,'2013 SG'!$D$8:$BC$435,10,FALSE)) ->  | S34: =IFERROR(VLOOKUP($A34,Schools1213PCTmeetNoCharter!$A$2:$F$344,5,FALSE)*0.01,"") ->  | T34: =IFERROR(VLOOKUP(A34,Schools1213PCTmeetNoCharter!$A$2:$F$344,3,FALSE),"") ->  | U34: =IFERROR(VLOOKUP($A34,Schools1213PCTmeetNoCharter!$A$2:$F$344,6,FALSE)*0.01,"") ->  | V34: =IFERROR(VLOOKUP(A34,Schools1213PCTmeetNoCharter!$A$2:$F$344,4,FALSE),"") -> 
A35: =IF(VLOOKUP($C$1,Group!$A$2:$BH$50,21,FALSE)="","",IF(TEXT(VLOOKUP($C$1,Group!$A$2:$BH$50,21,FALSE),"0000")=$A$1,"",TEXT(VLOOKUP($C$1,Group!$A$2:$BH$50,21,FALSE),"0000"))) ->  | B35: =IFERROR(VLOOKUP(A35,SchList!$A$2:$B$334,2,FALSE),"") ->  | C35: =IF($A35="","",VLOOKUP($A35,ethbysch!$A$3:$Q$493,17,FALSE)) ->  | D35: =IF($A35="","",VLOOKUP($A35,ethbysch!$A$3:$Q$493,4,FALSE)) ->  | E35: =IF($A35="","",VLOOKUP($A35,ethbysch!$A$3:$Q$493,6,FALSE)) ->  | F35: =IF($A35="","",VLOOKUP($A35,ethbysch!$A$3:$Q$493,8,FALSE)) ->  | G35: =IF($A35="","",VLOOKUP($A35,fsubc!$A$3:$M$508,6,FALSE)) ->  | H35: =IF($A35="","",VLOOKUP($A35,fsubc!$A$3:$M$508,8,FALSE)) ->  | I35: =IF($A35="","",VLOOKUP($A35,fsubc!$A$3:$M$508,12,FALSE)) ->  | J35: =IF($A35="","",VLOOKUP(VALUE($A35),Table10[],3,FALSE)) ->  | K35: =IF($A35="","",VLOOKUP($A35,'2013 SG'!$D$8:$BC$435,3,FALSE)) ->  | L35: =IF($A35="","",VLOOKUP($A35,'2013 SG'!$D$8:$BC$435,4,FALSE)) ->  | M35: =IF($A35="","",VLOOKUP($A35,'2013 SG'!$D$8:$BC$435,5,FALSE)) ->  | N35: =IF($A35="","",VLOOKUP($A35,'2013 SG'!$D$8:$BC$435,6,FALSE)) ->  | O35: =IF($A35="","",VLOOKUP($A35,'2013 SG'!$D$8:$BC$435,7,FALSE)) ->  | P35: =IF($A35="","",VLOOKUP($A35,'2013 SG'!$D$8:$BC$435,8,FALSE)) ->  | Q35: =IF($A35="","",VLOOKUP($A35,'2013 SG'!$D$8:$BC$435,9,FALSE)) ->  | R35: =IF($A35="","",VLOOKUP($A35,'2013 SG'!$D$8:$BC$435,10,FALSE)) ->  | S35: =IFERROR(VLOOKUP($A35,Schools1213PCTmeetNoCharter!$A$2:$F$344,5,FALSE)*0.01,"") ->  | T35: =IFERROR(VLOOKUP(A35,Schools1213PCTmeetNoCharter!$A$2:$F$344,3,FALSE),"") ->  | U35: =IFERROR(VLOOKUP($A35,Schools1213PCTmeetNoCharter!$A$2:$F$344,6,FALSE)*0.01,"") ->  | V35: =IFERROR(VLOOKUP(A35,Schools1213PCTmeetNoCharter!$A$2:$F$344,4,FALSE),"") -> 
A36: =IF(VLOOKUP($C$1,Group!$A$2:$BH$50,22,FALSE)="","",IF(TEXT(VLOOKUP($C$1,Group!$A$2:$BH$50,22,FALSE),"0000")=$A$1,"",TEXT(VLOOKUP($C$1,Group!$A$2:$BH$50,22,FALSE),"0000"))) ->  | B36: =IFERROR(VLOOKUP(A36,SchList!$A$2:$B$334,2,FALSE),"") ->  | C36: =IF($A36="","",VLOOKUP($A36,ethbysch!$A$3:$Q$493,17,FALSE)) ->  | D36: =IF($A36="","",VLOOKUP($A36,ethbysch!$A$3:$Q$493,4,FALSE)) ->  | E36: =IF($A36="","",VLOOKUP($A36,ethbysch!$A$3:$Q$493,6,FALSE)) ->  | F36: =IF($A36="","",VLOOKUP($A36,ethbysch!$A$3:$Q$493,8,FALSE)) ->  | G36: =IF($A36="","",VLOOKUP($A36,fsubc!$A$3:$M$508,6,FALSE)) ->  | H36: =IF($A36="","",VLOOKUP($A36,fsubc!$A$3:$M$508,8,FALSE)) ->  | I36: =IF($A36="","",VLOOKUP($A36,fsubc!$A$3:$M$508,12,FALSE)) ->  | J36: =IF($A36="","",VLOOKUP(VALUE($A36),Table10[],3,FALSE)) ->  | K36: =IF($A36="","",VLOOKUP($A36,'2013 SG'!$D$8:$BC$435,3,FALSE)) ->  | L36: =IF($A36="","",VLOOKUP($A36,'2013 SG'!$D$8:$BC$435,4,FALSE)) ->  | M36: =IF($A36="","",VLOOKUP($A36,'2013 SG'!$D$8:$BC$435,5,FALSE)) ->  | N36: =IF($A36="","",VLOOKUP($A36,'2013 SG'!$D$8:$BC$435,6,FALSE)) ->  | O36: =IF($A36="","",VLOOKUP($A36,'2013 SG'!$D$8:$BC$435,7,FALSE)) ->  | P36: =IF($A36="","",VLOOKUP($A36,'2013 SG'!$D$8:$BC$435,8,FALSE)) ->  | Q36: =IF($A36="","",VLOOKUP($A36,'2013 SG'!$D$8:$BC$435,9,FALSE)) ->  | R36: =IF($A36="","",VLOOKUP($A36,'2013 SG'!$D$8:$BC$435,10,FALSE)) ->  | S36: =IFERROR(VLOOKUP($A36,Schools1213PCTmeetNoCharter!$A$2:$F$344,5,FALSE)*0.01,"") ->  | T36: =IFERROR(VLOOKUP(A36,Schools1213PCTmeetNoCharter!$A$2:$F$344,3,FALSE),"") ->  | U36: =IFERROR(VLOOKUP($A36,Schools1213PCTmeetNoCharter!$A$2:$F$344,6,FALSE)*0.01,"") ->  | V36: =IFERROR(VLOOKUP(A36,Schools1213PCTmeetNoCharter!$A$2:$F$344,4,FALSE),"") -> 
A37: =IF(VLOOKUP($C$1,Group!$A$2:$BH$50,23,FALSE)="","",IF(TEXT(VLOOKUP($C$1,Group!$A$2:$BH$50,23,FALSE),"0000")=$A$1,"",TEXT(VLOOKUP($C$1,Group!$A$2:$BH$50,23,FALSE),"0000"))) ->  | B37: =IFERROR(VLOOKUP(A37,SchList!$A$2:$B$334,2,FALSE),"") ->  | C37: =IF($A37="","",VLOOKUP($A37,ethbysch!$A$3:$Q$493,17,FALSE)) ->  | D37: =IF($A37="","",VLOOKUP($A37,ethbysch!$A$3:$Q$493,4,FALSE)) ->  | E37: =IF($A37="","",VLOOKUP($A37,ethbysch!$A$3:$Q$493,6,FALSE)) ->  | F37: =IF($A37="","",VLOOKUP($A37,ethbysch!$A$3:$Q$493,8,FALSE)) ->  | G37: =IF($A37="","",VLOOKUP($A37,fsubc!$A$3:$M$508,6,FALSE)) ->  | H37: =IF($A37="","",VLOOKUP($A37,fsubc!$A$3:$M$508,8,FALSE)) ->  | I37: =IF($A37="","",VLOOKUP($A37,fsubc!$A$3:$M$508,12,FALSE)) ->  | J37: =IF($A37="","",VLOOKUP(VALUE($A37),Table10[],3,FALSE)) ->  | K37: =IF($A37="","",VLOOKUP($A37,'2013 SG'!$D$8:$BC$435,3,FALSE)) ->  | L37: =IF($A37="","",VLOOKUP($A37,'2013 SG'!$D$8:$BC$435,4,FALSE)) ->  | M37: =IF($A37="","",VLOOKUP($A37,'2013 SG'!$D$8:$BC$435,5,FALSE)) ->  | N37: =IF($A37="","",VLOOKUP($A37,'2013 SG'!$D$8:$BC$435,6,FALSE)) ->  | O37: =IF($A37="","",VLOOKUP($A37,'2013 SG'!$D$8:$BC$435,7,FALSE)) ->  | P37: =IF($A37="","",VLOOKUP($A37,'2013 SG'!$D$8:$BC$435,8,FALSE)) ->  | Q37: =IF($A37="","",VLOOKUP($A37,'2013 SG'!$D$8:$BC$435,9,FALSE)) ->  | R37: =IF($A37="","",VLOOKUP($A37,'2013 SG'!$D$8:$BC$435,10,FALSE)) ->  | S37: =IFERROR(VLOOKUP($A37,Schools1213PCTmeetNoCharter!$A$2:$F$344,5,FALSE)*0.01,"") ->  | T37: =IFERROR(VLOOKUP(A37,Schools1213PCTmeetNoCharter!$A$2:$F$344,3,FALSE),"") ->  | U37: =IFERROR(VLOOKUP($A37,Schools1213PCTmeetNoCharter!$A$2:$F$344,6,FALSE)*0.01,"") ->  | V37: =IFERROR(VLOOKUP(A37,Schools1213PCTmeetNoCharter!$A$2:$F$344,4,FALSE),"") -> 
A38: =IF(VLOOKUP($C$1,Group!$A$2:$BH$50,24,FALSE)="","",IF(TEXT(VLOOKUP($C$1,Group!$A$2:$BH$50,24,FALSE),"0000")=$A$1,"",TEXT(VLOOKUP($C$1,Group!$A$2:$BH$50,24,FALSE),"0000"))) ->  | B38: =IFERROR(VLOOKUP(A38,SchList!$A$2:$B$334,2,FALSE),"") ->  | C38: =IF($A38="","",VLOOKUP($A38,ethbysch!$A$3:$Q$493,17,FALSE)) ->  | D38: =IF($A38="","",VLOOKUP($A38,ethbysch!$A$3:$Q$493,4,FALSE)) ->  | E38: =IF($A38="","",VLOOKUP($A38,ethbysch!$A$3:$Q$493,6,FALSE)) ->  | F38: =IF($A38="","",VLOOKUP($A38,ethbysch!$A$3:$Q$493,8,FALSE)) ->  | G38: =IF($A38="","",VLOOKUP($A38,fsubc!$A$3:$M$508,6,FALSE)) ->  | H38: =IF($A38="","",VLOOKUP($A38,fsubc!$A$3:$M$508,8,FALSE)) ->  | I38: =IF($A38="","",VLOOKUP($A38,fsubc!$A$3:$M$508,12,FALSE)) ->  | J38: =IF($A38="","",VLOOKUP(VALUE($A38),Table10[],3,FALSE)) ->  | K38: =IF($A38="","",VLOOKUP($A38,'2013 SG'!$D$8:$BC$435,3,FALSE)) ->  | L38: =IF($A38="","",VLOOKUP($A38,'2013 SG'!$D$8:$BC$435,4,FALSE)) ->  | M38: =IF($A38="","",VLOOKUP($A38,'2013 SG'!$D$8:$BC$435,5,FALSE)) ->  | N38: =IF($A38="","",VLOOKUP($A38,'2013 SG'!$D$8:$BC$435,6,FALSE)) ->  | O38: =IF($A38="","",VLOOKUP($A38,'2013 SG'!$D$8:$BC$435,7,FALSE)) ->  | P38: =IF($A38="","",VLOOKUP($A38,'2013 SG'!$D$8:$BC$435,8,FALSE)) ->  | Q38: =IF($A38="","",VLOOKUP($A38,'2013 SG'!$D$8:$BC$435,9,FALSE)) ->  | R38: =IF($A38="","",VLOOKUP($A38,'2013 SG'!$D$8:$BC$435,10,FALSE)) ->  | S38: =IFERROR(VLOOKUP($A38,Schools1213PCTmeetNoCharter!$A$2:$F$344,5,FALSE)*0.01,"") ->  | T38: =IFERROR(VLOOKUP(A38,Schools1213PCTmeetNoCharter!$A$2:$F$344,3,FALSE),"") ->  | U38: =IFERROR(VLOOKUP($A38,Schools1213PCTmeetNoCharter!$A$2:$F$344,6,FALSE)*0.01,"") ->  | V38: =IFERROR(VLOOKUP(A38,Schools1213PCTmeetNoCharter!$A$2:$F$344,4,FALSE),"") -> 
A39: =IF(VLOOKUP($C$1,Group!$A$2:$BH$50,25,FALSE)="","",IF(TEXT(VLOOKUP($C$1,Group!$A$2:$BH$50,25,FALSE),"0000")=$A$1,"",TEXT(VLOOKUP($C$1,Group!$A$2:$BH$50,25,FALSE),"0000"))) ->  | B39: =IFERROR(VLOOKUP(A39,SchList!$A$2:$B$334,2,FALSE),"") ->  | C39: =IF($A39="","",VLOOKUP($A39,ethbysch!$A$3:$Q$493,17,FALSE)) ->  | D39: =IF($A39="","",VLOOKUP($A39,ethbysch!$A$3:$Q$493,4,FALSE)) ->  | E39: =IF($A39="","",VLOOKUP($A39,ethbysch!$A$3:$Q$493,6,FALSE)) ->  | F39: =IF($A39="","",VLOOKUP($A39,ethbysch!$A$3:$Q$493,8,FALSE)) ->  | G39: =IF($A39="","",VLOOKUP($A39,fsubc!$A$3:$M$508,6,FALSE)) ->  | H39: =IF($A39="","",VLOOKUP($A39,fsubc!$A$3:$M$508,8,FALSE)) ->  | I39: =IF($A39="","",VLOOKUP($A39,fsubc!$A$3:$M$508,12,FALSE)) ->  | J39: =IF($A39="","",VLOOKUP(VALUE($A39),Table10[],3,FALSE)) ->  | K39: =IF($A39="","",VLOOKUP($A39,'2013 SG'!$D$8:$BC$435,3,FALSE)) ->  | L39: =IF($A39="","",VLOOKUP($A39,'2013 SG'!$D$8:$BC$435,4,FALSE)) ->  | M39: =IF($A39="","",VLOOKUP($A39,'2013 SG'!$D$8:$BC$435,5,FALSE)) ->  | N39: =IF($A39="","",VLOOKUP($A39,'2013 SG'!$D$8:$BC$435,6,FALSE)) ->  | O39: =IF($A39="","",VLOOKUP($A39,'2013 SG'!$D$8:$BC$435,7,FALSE)) ->  | P39: =IF($A39="","",VLOOKUP($A39,'2013 SG'!$D$8:$BC$435,8,FALSE)) ->  | Q39: =IF($A39="","",VLOOKUP($A39,'2013 SG'!$D$8:$BC$435,9,FALSE)) ->  | R39: =IF($A39="","",VLOOKUP($A39,'2013 SG'!$D$8:$BC$435,10,FALSE)) ->  | S39: =IFERROR(VLOOKUP($A39,Schools1213PCTmeetNoCharter!$A$2:$F$344,5,FALSE)*0.01,"") ->  | T39: =IFERROR(VLOOKUP(A39,Schools1213PCTmeetNoCharter!$A$2:$F$344,3,FALSE),"") ->  | U39: =IFERROR(VLOOKUP($A39,Schools1213PCTmeetNoCharter!$A$2:$F$344,6,FALSE)*0.01,"") ->  | V39: =IFERROR(VLOOKUP(A39,Schools1213PCTmeetNoCharter!$A$2:$F$344,4,FALSE),"") -> 
A40: =IF(VLOOKUP($C$1,Group!$A$2:$BH$50,26,FALSE)="","",IF(TEXT(VLOOKUP($C$1,Group!$A$2:$BH$50,26,FALSE),"0000")=$A$1,"",TEXT(VLOOKUP($C$1,Group!$A$2:$BH$50,26,FALSE),"0000"))) ->  | B40: =IFERROR(VLOOKUP(A40,SchList!$A$2:$B$334,2,FALSE),"") ->  | C40: =IF($A40="","",VLOOKUP($A40,ethbysch!$A$3:$Q$493,17,FALSE)) ->  | D40: =IF($A40="","",VLOOKUP($A40,ethbysch!$A$3:$Q$493,4,FALSE)) ->  | E40: =IF($A40="","",VLOOKUP($A40,ethbysch!$A$3:$Q$493,6,FALSE)) ->  | F40: =IF($A40="","",VLOOKUP($A40,ethbysch!$A$3:$Q$493,8,FALSE)) ->  | G40: =IF($A40="","",VLOOKUP($A40,fsubc!$A$3:$M$508,6,FALSE)) ->  | H40: =IF($A40="","",VLOOKUP($A40,fsubc!$A$3:$M$508,8,FALSE)) ->  | I40: =IF($A40="","",VLOOKUP($A40,fsubc!$A$3:$M$508,12,FALSE)) ->  | J40: =IF($A40="","",VLOOKUP(VALUE($A40),Table10[],3,FALSE)) ->  | K40: =IF($A40="","",VLOOKUP($A40,'2013 SG'!$D$8:$BC$435,3,FALSE)) ->  | L40: =IF($A40="","",VLOOKUP($A40,'2013 SG'!$D$8:$BC$435,4,FALSE)) ->  | M40: =IF($A40="","",VLOOKUP($A40,'2013 SG'!$D$8:$BC$435,5,FALSE)) ->  | N40: =IF($A40="","",VLOOKUP($A40,'2013 SG'!$D$8:$BC$435,6,FALSE)) ->  | O40: =IF($A40="","",VLOOKUP($A40,'2013 SG'!$D$8:$BC$435,7,FALSE)) ->  | P40: =IF($A40="","",VLOOKUP($A40,'2013 SG'!$D$8:$BC$435,8,FALSE)) ->  | Q40: =IF($A40="","",VLOOKUP($A40,'2013 SG'!$D$8:$BC$435,9,FALSE)) ->  | R40: =IF($A40="","",VLOOKUP($A40,'2013 SG'!$D$8:$BC$435,10,FALSE)) ->  | S40: =IFERROR(VLOOKUP($A40,Schools1213PCTmeetNoCharter!$A$2:$F$344,5,FALSE)*0.01,"") ->  | T40: =IFERROR(VLOOKUP(A40,Schools1213PCTmeetNoCharter!$A$2:$F$344,3,FALSE),"") ->  | U40: =IFERROR(VLOOKUP($A40,Schools1213PCTmeetNoCharter!$A$2:$F$344,6,FALSE)*0.01,"") ->  | V40: =IFERROR(VLOOKUP(A40,Schools1213PCTmeetNoCharter!$A$2:$F$344,4,FALSE),"") -> 
A41: =IF(VLOOKUP($C$1,Group!$A$2:$BH$50,27,FALSE)="","",IF(TEXT(VLOOKUP($C$1,Group!$A$2:$BH$50,27,FALSE),"0000")=$A$1,"",TEXT(VLOOKUP($C$1,Group!$A$2:$BH$50,27,FALSE),"0000"))) ->  | B41: =IFERROR(VLOOKUP(A41,SchList!$A$2:$B$334,2,FALSE),"") ->  | C41: =IF($A41="","",VLOOKUP($A41,ethbysch!$A$3:$Q$493,17,FALSE)) ->  | D41: =IF($A41="","",VLOOKUP($A41,ethbysch!$A$3:$Q$493,4,FALSE)) ->  | E41: =IF($A41="","",VLOOKUP($A41,ethbysch!$A$3:$Q$493,6,FALSE)) ->  | F41: =IF($A41="","",VLOOKUP($A41,ethbysch!$A$3:$Q$493,8,FALSE)) ->  | G41: =IF($A41="","",VLOOKUP($A41,fsubc!$A$3:$M$508,6,FALSE)) ->  | H41: =IF($A41="","",VLOOKUP($A41,fsubc!$A$3:$M$508,8,FALSE)) ->  | I41: =IF($A41="","",VLOOKUP($A41,fsubc!$A$3:$M$508,12,FALSE)) ->  | J41: =IF($A41="","",VLOOKUP(VALUE($A41),Table10[],3,FALSE)) ->  | K41: =IF($A41="","",VLOOKUP($A41,'2013 SG'!$D$8:$BC$435,3,FALSE)) ->  | L41: =IF($A41="","",VLOOKUP($A41,'2013 SG'!$D$8:$BC$435,4,FALSE)) ->  | M41: =IF($A41="","",VLOOKUP($A41,'2013 SG'!$D$8:$BC$435,5,FALSE)) ->  | N41: =IF($A41="","",VLOOKUP($A41,'2013 SG'!$D$8:$BC$435,6,FALSE)) ->  | O41: =IF($A41="","",VLOOKUP($A41,'2013 SG'!$D$8:$BC$435,7,FALSE)) ->  | P41: =IF($A41="","",VLOOKUP($A41,'2013 SG'!$D$8:$BC$435,8,FALSE)) ->  | Q41: =IF($A41="","",VLOOKUP($A41,'2013 SG'!$D$8:$BC$435,9,FALSE)) ->  | R41: =IF($A41="","",VLOOKUP($A41,'2013 SG'!$D$8:$BC$435,10,FALSE)) ->  | S41: =IFERROR(VLOOKUP($A41,Schools1213PCTmeetNoCharter!$A$2:$F$344,5,FALSE)*0.01,"") ->  | T41: =IFERROR(VLOOKUP(A41,Schools1213PCTmeetNoCharter!$A$2:$F$344,3,FALSE),"") ->  | U41: =IFERROR(VLOOKUP($A41,Schools1213PCTmeetNoCharter!$A$2:$F$344,6,FALSE)*0.01,"") ->  | V41: =IFERROR(VLOOKUP(A41,Schools1213PCTmeetNoCharter!$A$2:$F$344,4,FALSE),"") -> 
A42: =IF(VLOOKUP($C$1,Group!$A$2:$BH$50,28,FALSE)="","",IF(TEXT(VLOOKUP($C$1,Group!$A$2:$BH$50,28,FALSE),"0000")=$A$1,"",TEXT(VLOOKUP($C$1,Group!$A$2:$BH$50,28,FALSE),"0000"))) ->  | B42: =IFERROR(VLOOKUP(A42,SchList!$A$2:$B$334,2,FALSE),"") ->  | C42: =IF($A42="","",VLOOKUP($A42,ethbysch!$A$3:$Q$493,17,FALSE)) ->  | D42: =IF($A42="","",VLOOKUP($A42,ethbysch!$A$3:$Q$493,4,FALSE)) ->  | E42: =IF($A42="","",VLOOKUP($A42,ethbysch!$A$3:$Q$493,6,FALSE)) ->  | F42: =IF($A42="","",VLOOKUP($A42,ethbysch!$A$3:$Q$493,8,FALSE)) ->  | G42: =IF($A42="","",VLOOKUP($A42,fsubc!$A$3:$M$508,6,FALSE)) ->  | H42: =IF($A42="","",VLOOKUP($A42,fsubc!$A$3:$M$508,8,FALSE)) ->  | I42: =IF($A42="","",VLOOKUP($A42,fsubc!$A$3:$M$508,12,FALSE)) ->  | J42: =IF($A42="","",VLOOKUP(VALUE($A42),Table10[],3,FALSE)) ->  | K42: =IF($A42="","",VLOOKUP($A42,'2013 SG'!$D$8:$BC$435,3,FALSE)) ->  | L42: =IF($A42="","",VLOOKUP($A42,'2013 SG'!$D$8:$BC$435,4,FALSE)) ->  | M42: =IF($A42="","",VLOOKUP($A42,'2013 SG'!$D$8:$BC$435,5,FALSE)) ->  | N42: =IF($A42="","",VLOOKUP($A42,'2013 SG'!$D$8:$BC$435,6,FALSE)) ->  | O42: =IF($A42="","",VLOOKUP($A42,'2013 SG'!$D$8:$BC$435,7,FALSE)) ->  | P42: =IF($A42="","",VLOOKUP($A42,'2013 SG'!$D$8:$BC$435,8,FALSE)) ->  | Q42: =IF($A42="","",VLOOKUP($A42,'2013 SG'!$D$8:$BC$435,9,FALSE)) ->  | R42: =IF($A42="","",VLOOKUP($A42,'2013 SG'!$D$8:$BC$435,10,FALSE)) ->  | S42: =IFERROR(VLOOKUP($A42,Schools1213PCTmeetNoCharter!$A$2:$F$344,5,FALSE)*0.01,"") ->  | T42: =IFERROR(VLOOKUP(A42,Schools1213PCTmeetNoCharter!$A$2:$F$344,3,FALSE),"") ->  | U42: =IFERROR(VLOOKUP($A42,Schools1213PCTmeetNoCharter!$A$2:$F$344,6,FALSE)*0.01,"") ->  | V42: =IFERROR(VLOOKUP(A42,Schools1213PCTmeetNoCharter!$A$2:$F$344,4,FALSE),"") -> 
A43: =IF(VLOOKUP($C$1,Group!$A$2:$BH$50,29,FALSE)="","",IF(TEXT(VLOOKUP($C$1,Group!$A$2:$BH$50,29,FALSE),"0000")=$A$1,"",TEXT(VLOOKUP($C$1,Group!$A$2:$BH$50,29,FALSE),"0000"))) ->  | B43: =IFERROR(VLOOKUP(A43,SchList!$A$2:$B$334,2,FALSE),"") ->  | C43: =IF($A43="","",VLOOKUP($A43,ethbysch!$A$3:$Q$493,17,FALSE)) ->  | D43: =IF($A43="","",VLOOKUP($A43,ethbysch!$A$3:$Q$493,4,FALSE)) ->  | E43: =IF($A43="","",VLOOKUP($A43,ethbysch!$A$3:$Q$493,6,FALSE)) ->  | F43: =IF($A43="","",VLOOKUP($A43,ethbysch!$A$3:$Q$493,8,FALSE)) ->  | G43: =IF($A43="","",VLOOKUP($A43,fsubc!$A$3:$M$508,6,FALSE)) ->  | H43: =IF($A43="","",VLOOKUP($A43,fsubc!$A$3:$M$508,8,FALSE)) ->  | I43: =IF($A43="","",VLOOKUP($A43,fsubc!$A$3:$M$508,12,FALSE)) ->  | J43: =IF($A43="","",VLOOKUP(VALUE($A43),Table10[],3,FALSE)) ->  | K43: =IF($A43="","",VLOOKUP($A43,'2013 SG'!$D$8:$BC$435,3,FALSE)) ->  | L43: =IF($A43="","",VLOOKUP($A43,'2013 SG'!$D$8:$BC$435,4,FALSE)) ->  | M43: =IF($A43="","",VLOOKUP($A43,'2013 SG'!$D$8:$BC$435,5,FALSE)) ->  | N43: =IF($A43="","",VLOOKUP($A43,'2013 SG'!$D$8:$BC$435,6,FALSE)) ->  | O43: =IF($A43="","",VLOOKUP($A43,'2013 SG'!$D$8:$BC$435,7,FALSE)) ->  | P43: =IF($A43="","",VLOOKUP($A43,'2013 SG'!$D$8:$BC$435,8,FALSE)) ->  | Q43: =IF($A43="","",VLOOKUP($A43,'2013 SG'!$D$8:$BC$435,9,FALSE)) ->  | R43: =IF($A43="","",VLOOKUP($A43,'2013 SG'!$D$8:$BC$435,10,FALSE)) ->  | S43: =IFERROR(VLOOKUP($A43,Schools1213PCTmeetNoCharter!$A$2:$F$344,5,FALSE)*0.01,"") ->  | T43: =IFERROR(VLOOKUP(A43,Schools1213PCTmeetNoCharter!$A$2:$F$344,3,FALSE),"") ->  | U43: =IFERROR(VLOOKUP($A43,Schools1213PCTmeetNoCharter!$A$2:$F$344,6,FALSE)*0.01,"") ->  | V43: =IFERROR(VLOOKUP(A43,Schools1213PCTmeetNoCharter!$A$2:$F$344,4,FALSE),"") -> 
A44: =IF(VLOOKUP($C$1,Group!$A$2:$BH$50,30,FALSE)="","",IF(TEXT(VLOOKUP($C$1,Group!$A$2:$BH$50,30,FALSE),"0000")=$A$1,"",TEXT(VLOOKUP($C$1,Group!$A$2:$BH$50,30,FALSE),"0000"))) ->  | B44: =IFERROR(VLOOKUP(A44,SchList!$A$2:$B$334,2,FALSE),"") ->  | C44: =IF($A44="","",VLOOKUP($A44,ethbysch!$A$3:$Q$493,17,FALSE)) ->  | D44: =IF($A44="","",VLOOKUP($A44,ethbysch!$A$3:$Q$493,4,FALSE)) ->  | E44: =IF($A44="","",VLOOKUP($A44,ethbysch!$A$3:$Q$493,6,FALSE)) ->  | F44: =IF($A44="","",VLOOKUP($A44,ethbysch!$A$3:$Q$493,8,FALSE)) ->  | G44: =IF($A44="","",VLOOKUP($A44,fsubc!$A$3:$M$508,6,FALSE)) ->  | H44: =IF($A44="","",VLOOKUP($A44,fsubc!$A$3:$M$508,8,FALSE)) ->  | I44: =IF($A44="","",VLOOKUP($A44,fsubc!$A$3:$M$508,12,FALSE)) ->  | J44: =IF($A44="","",VLOOKUP(VALUE($A44),Table10[],3,FALSE)) ->  | K44: =IF($A44="","",VLOOKUP($A44,'2013 SG'!$D$8:$BC$435,3,FALSE)) ->  | L44: =IF($A44="","",VLOOKUP($A44,'2013 SG'!$D$8:$BC$435,4,FALSE)) ->  | M44: =IF($A44="","",VLOOKUP($A44,'2013 SG'!$D$8:$BC$435,5,FALSE)) ->  | N44: =IF($A44="","",VLOOKUP($A44,'2013 SG'!$D$8:$BC$435,6,FALSE)) ->  | O44: =IF($A44="","",VLOOKUP($A44,'2013 SG'!$D$8:$BC$435,7,FALSE)) ->  | P44: =IF($A44="","",VLOOKUP($A44,'2013 SG'!$D$8:$BC$435,8,FALSE)) ->  | Q44: =IF($A44="","",VLOOKUP($A44,'2013 SG'!$D$8:$BC$435,9,FALSE)) ->  | R44: =IF($A44="","",VLOOKUP($A44,'2013 SG'!$D$8:$BC$435,10,FALSE)) ->  | S44: =IFERROR(VLOOKUP($A44,Schools1213PCTmeetNoCharter!$A$2:$F$344,5,FALSE)*0.01,"") ->  | T44: =IFERROR(VLOOKUP(A44,Schools1213PCTmeetNoCharter!$A$2:$F$344,3,FALSE),"") ->  | U44: =IFERROR(VLOOKUP($A44,Schools1213PCTmeetNoCharter!$A$2:$F$344,6,FALSE)*0.01,"") ->  | V44: =IFERROR(VLOOKUP(A44,Schools1213PCTmeetNoCharter!$A$2:$F$344,4,FALSE),"") -> 
A45: =IF(VLOOKUP($C$1,Group!$A$2:$BH$50,31,FALSE)="","",IF(TEXT(VLOOKUP($C$1,Group!$A$2:$BH$50,31,FALSE),"0000")=$A$1,"",TEXT(VLOOKUP($C$1,Group!$A$2:$BH$50,31,FALSE),"0000"))) ->  | B45: =IFERROR(VLOOKUP(A45,SchList!$A$2:$B$334,2,FALSE),"") ->  | C45: =IF($A45="","",VLOOKUP($A45,ethbysch!$A$3:$Q$493,17,FALSE)) ->  | D45: =IF($A45="","",VLOOKUP($A45,ethbysch!$A$3:$Q$493,4,FALSE)) ->  | E45: =IF($A45="","",VLOOKUP($A45,ethbysch!$A$3:$Q$493,6,FALSE)) ->  | F45: =IF($A45="","",VLOOKUP($A45,ethbysch!$A$3:$Q$493,8,FALSE)) ->  | G45: =IF($A45="","",VLOOKUP($A45,fsubc!$A$3:$M$508,6,FALSE)) ->  | H45: =IF($A45="","",VLOOKUP($A45,fsubc!$A$3:$M$508,8,FALSE)) ->  | I45: =IF($A45="","",VLOOKUP($A45,fsubc!$A$3:$M$508,12,FALSE)) ->  | J45: =IF($A45="","",VLOOKUP(VALUE($A45),Table10[],3,FALSE)) ->  | K45: =IF($A45="","",VLOOKUP($A45,'2013 SG'!$D$8:$BC$435,3,FALSE)) ->  | L45: =IF($A45="","",VLOOKUP($A45,'2013 SG'!$D$8:$BC$435,4,FALSE)) ->  | M45: =IF($A45="","",VLOOKUP($A45,'2013 SG'!$D$8:$BC$435,5,FALSE)) ->  | N45: =IF($A45="","",VLOOKUP($A45,'2013 SG'!$D$8:$BC$435,6,FALSE)) ->  | O45: =IF($A45="","",VLOOKUP($A45,'2013 SG'!$D$8:$BC$435,7,FALSE)) ->  | P45: =IF($A45="","",VLOOKUP($A45,'2013 SG'!$D$8:$BC$435,8,FALSE)) ->  | Q45: =IF($A45="","",VLOOKUP($A45,'2013 SG'!$D$8:$BC$435,9,FALSE)) ->  | R45: =IF($A45="","",VLOOKUP($A45,'2013 SG'!$D$8:$BC$435,10,FALSE)) ->  | S45: =IFERROR(VLOOKUP($A45,Schools1213PCTmeetNoCharter!$A$2:$F$344,5,FALSE)*0.01,"") ->  | T45: =IFERROR(VLOOKUP(A45,Schools1213PCTmeetNoCharter!$A$2:$F$344,3,FALSE),"") ->  | U45: =IFERROR(VLOOKUP($A45,Schools1213PCTmeetNoCharter!$A$2:$F$344,6,FALSE)*0.01,"") ->  | V45: =IFERROR(VLOOKUP(A45,Schools1213PCTmeetNoCharter!$A$2:$F$344,4,FALSE),"") -> 
A46: =IF(VLOOKUP($C$1,Group!$A$2:$BH$50,32,FALSE)="","",IF(TEXT(VLOOKUP($C$1,Group!$A$2:$BH$50,32,FALSE),"0000")=$A$1,"",TEXT(VLOOKUP($C$1,Group!$A$2:$BH$50,32,FALSE),"0000"))) ->  | B46: =IFERROR(VLOOKUP(A46,SchList!$A$2:$B$334,2,FALSE),"") ->  | C46: =IF($A46="","",VLOOKUP($A46,ethbysch!$A$3:$Q$493,17,FALSE)) ->  | D46: =IF($A46="","",VLOOKUP($A46,ethbysch!$A$3:$Q$493,4,FALSE)) ->  | E46: =IF($A46="","",VLOOKUP($A46,ethbysch!$A$3:$Q$493,6,FALSE)) ->  | F46: =IF($A46="","",VLOOKUP($A46,ethbysch!$A$3:$Q$493,8,FALSE)) ->  | G46: =IF($A46="","",VLOOKUP($A46,fsubc!$A$3:$M$508,6,FALSE)) ->  | H46: =IF($A46="","",VLOOKUP($A46,fsubc!$A$3:$M$508,8,FALSE)) ->  | I46: =IF($A46="","",VLOOKUP($A46,fsubc!$A$3:$M$508,12,FALSE)) ->  | J46: =IF($A46="","",VLOOKUP(VALUE($A46),Table10[],3,FALSE)) ->  | K46: =IF($A46="","",VLOOKUP($A46,'2013 SG'!$D$8:$BC$435,3,FALSE)) ->  | L46: =IF($A46="","",VLOOKUP($A46,'2013 SG'!$D$8:$BC$435,4,FALSE)) ->  | M46: =IF($A46="","",VLOOKUP($A46,'2013 SG'!$D$8:$BC$435,5,FALSE)) ->  | N46: =IF($A46="","",VLOOKUP($A46,'2013 SG'!$D$8:$BC$435,6,FALSE)) ->  | O46: =IF($A46="","",VLOOKUP($A46,'2013 SG'!$D$8:$BC$435,7,FALSE)) ->  | P46: =IF($A46="","",VLOOKUP($A46,'2013 SG'!$D$8:$BC$435,8,FALSE)) ->  | Q46: =IF($A46="","",VLOOKUP($A46,'2013 SG'!$D$8:$BC$435,9,FALSE)) ->  | R46: =IF($A46="","",VLOOKUP($A46,'2013 SG'!$D$8:$BC$435,10,FALSE)) ->  | S46: =IFERROR(VLOOKUP($A46,Schools1213PCTmeetNoCharter!$A$2:$F$344,5,FALSE)*0.01,"") ->  | T46: =IFERROR(VLOOKUP(A46,Schools1213PCTmeetNoCharter!$A$2:$F$344,3,FALSE),"") ->  | U46: =IFERROR(VLOOKUP($A46,Schools1213PCTmeetNoCharter!$A$2:$F$344,6,FALSE)*0.01,"") ->  | V46: =IFERROR(VLOOKUP(A46,Schools1213PCTmeetNoCharter!$A$2:$F$344,4,FALSE),"") -> 
A47: =IF(VLOOKUP($C$1,Group!$A$2:$BH$50,33,FALSE)="","",IF(TEXT(VLOOKUP($C$1,Group!$A$2:$BH$50,33,FALSE),"0000")=$A$1,"",TEXT(VLOOKUP($C$1,Group!$A$2:$BH$50,33,FALSE),"0000"))) ->  | B47: =IFERROR(VLOOKUP(A47,SchList!$A$2:$B$334,2,FALSE),"") ->  | C47: =IF($A47="","",VLOOKUP($A47,ethbysch!$A$3:$Q$493,17,FALSE)) ->  | D47: =IF($A47="","",VLOOKUP($A47,ethbysch!$A$3:$Q$493,4,FALSE)) ->  | E47: =IF($A47="","",VLOOKUP($A47,ethbysch!$A$3:$Q$493,6,FALSE)) ->  | F47: =IF($A47="","",VLOOKUP($A47,ethbysch!$A$3:$Q$493,8,FALSE)) ->  | G47: =IF($A47="","",VLOOKUP($A47,fsubc!$A$3:$M$508,6,FALSE)) ->  | H47: =IF($A47="","",VLOOKUP($A47,fsubc!$A$3:$M$508,8,FALSE)) ->  | I47: =IF($A47="","",VLOOKUP($A47,fsubc!$A$3:$M$508,12,FALSE)) ->  | J47: =IF($A47="","",VLOOKUP(VALUE($A47),Table10[],3,FALSE)) ->  | K47: =IF($A47="","",VLOOKUP($A47,'2013 SG'!$D$8:$BC$435,3,FALSE)) ->  | L47: =IF($A47="","",VLOOKUP($A47,'2013 SG'!$D$8:$BC$435,4,FALSE)) ->  | M47: =IF($A47="","",VLOOKUP($A47,'2013 SG'!$D$8:$BC$435,5,FALSE)) ->  | N47: =IF($A47="","",VLOOKUP($A47,'2013 SG'!$D$8:$BC$435,6,FALSE)) ->  | O47: =IF($A47="","",VLOOKUP($A47,'2013 SG'!$D$8:$BC$435,7,FALSE)) ->  | P47: =IF($A47="","",VLOOKUP($A47,'2013 SG'!$D$8:$BC$435,8,FALSE)) ->  | Q47: =IF($A47="","",VLOOKUP($A47,'2013 SG'!$D$8:$BC$435,9,FALSE)) ->  | R47: =IF($A47="","",VLOOKUP($A47,'2013 SG'!$D$8:$BC$435,10,FALSE)) ->  | S47: =IFERROR(VLOOKUP($A47,Schools1213PCTmeetNoCharter!$A$2:$F$344,5,FALSE)*0.01,"") ->  | T47: =IFERROR(VLOOKUP(A47,Schools1213PCTmeetNoCharter!$A$2:$F$344,3,FALSE),"") ->  | U47: =IFERROR(VLOOKUP($A47,Schools1213PCTmeetNoCharter!$A$2:$F$344,6,FALSE)*0.01,"") ->  | V47: =IFERROR(VLOOKUP(A47,Schools1213PCTmeetNoCharter!$A$2:$F$344,4,FALSE),"") -> 
A48: =IF(VLOOKUP($C$1,Group!$A$2:$BH$50,34,FALSE)="","",IF(TEXT(VLOOKUP($C$1,Group!$A$2:$BH$50,34,FALSE),"0000")=$A$1,"",TEXT(VLOOKUP($C$1,Group!$A$2:$BH$50,34,FALSE),"0000"))) ->  | B48: =IFERROR(VLOOKUP(A48,SchList!$A$2:$B$334,2,FALSE),"") ->  | C48: =IF($A48="","",VLOOKUP($A48,ethbysch!$A$3:$Q$493,17,FALSE)) ->  | D48: =IF($A48="","",VLOOKUP($A48,ethbysch!$A$3:$Q$493,4,FALSE)) ->  | E48: =IF($A48="","",VLOOKUP($A48,ethbysch!$A$3:$Q$493,6,FALSE)) ->  | F48: =IF($A48="","",VLOOKUP($A48,ethbysch!$A$3:$Q$493,8,FALSE)) ->  | G48: =IF($A48="","",VLOOKUP($A48,fsubc!$A$3:$M$508,6,FALSE)) ->  | H48: =IF($A48="","",VLOOKUP($A48,fsubc!$A$3:$M$508,8,FALSE)) ->  | I48: =IF($A48="","",VLOOKUP($A48,fsubc!$A$3:$M$508,12,FALSE)) ->  | J48: =IF($A48="","",VLOOKUP(VALUE($A48),Table10[],3,FALSE)) ->  | K48: =IF($A48="","",VLOOKUP($A48,'2013 SG'!$D$8:$BC$435,3,FALSE)) ->  | L48: =IF($A48="","",VLOOKUP($A48,'2013 SG'!$D$8:$BC$435,4,FALSE)) ->  | M48: =IF($A48="","",VLOOKUP($A48,'2013 SG'!$D$8:$BC$435,5,FALSE)) ->  | N48: =IF($A48="","",VLOOKUP($A48,'2013 SG'!$D$8:$BC$435,6,FALSE)) ->  | O48: =IF($A48="","",VLOOKUP($A48,'2013 SG'!$D$8:$BC$435,7,FALSE)) ->  | P48: =IF($A48="","",VLOOKUP($A48,'2013 SG'!$D$8:$BC$435,8,FALSE)) ->  | Q48: =IF($A48="","",VLOOKUP($A48,'2013 SG'!$D$8:$BC$435,9,FALSE)) ->  | R48: =IF($A48="","",VLOOKUP($A48,'2013 SG'!$D$8:$BC$435,10,FALSE)) ->  | S48: =IFERROR(VLOOKUP($A48,Schools1213PCTmeetNoCharter!$A$2:$F$344,5,FALSE)*0.01,"") ->  | T48: =IFERROR(VLOOKUP(A48,Schools1213PCTmeetNoCharter!$A$2:$F$344,3,FALSE),"") ->  | U48: =IFERROR(VLOOKUP($A48,Schools1213PCTmeetNoCharter!$A$2:$F$344,6,FALSE)*0.01,"") ->  | V48: =IFERROR(VLOOKUP(A48,Schools1213PCTmeetNoCharter!$A$2:$F$344,4,FALSE),"") -> 
A49: =IF(VLOOKUP($C$1,Group!$A$2:$BH$50,35,FALSE)="","",IF(TEXT(VLOOKUP($C$1,Group!$A$2:$BH$50,35,FALSE),"0000")=$A$1,"",TEXT(VLOOKUP($C$1,Group!$A$2:$BH$50,35,FALSE),"0000"))) ->  | B49: =IFERROR(VLOOKUP(A49,SchList!$A$2:$B$334,2,FALSE),"") ->  | C49: =IF($A49="","",VLOOKUP($A49,ethbysch!$A$3:$Q$493,17,FALSE)) ->  | D49: =IF($A49="","",VLOOKUP($A49,ethbysch!$A$3:$Q$493,4,FALSE)) ->  | E49: =IF($A49="","",VLOOKUP($A49,ethbysch!$A$3:$Q$493,6,FALSE)) ->  | F49: =IF($A49="","",VLOOKUP($A49,ethbysch!$A$3:$Q$493,8,FALSE)) ->  | G49: =IF($A49="","",VLOOKUP($A49,fsubc!$A$3:$M$508,6,FALSE)) ->  | H49: =IF($A49="","",VLOOKUP($A49,fsubc!$A$3:$M$508,8,FALSE)) ->  | I49: =IF($A49="","",VLOOKUP($A49,fsubc!$A$3:$M$508,12,FALSE)) ->  | J49: =IF($A49="","",VLOOKUP(VALUE($A49),Table10[],3,FALSE)) ->  | K49: =IF($A49="","",VLOOKUP($A49,'2013 SG'!$D$8:$BC$435,3,FALSE)) ->  | L49: =IF($A49="","",VLOOKUP($A49,'2013 SG'!$D$8:$BC$435,4,FALSE)) ->  | M49: =IF($A49="","",VLOOKUP($A49,'2013 SG'!$D$8:$BC$435,5,FALSE)) ->  | N49: =IF($A49="","",VLOOKUP($A49,'2013 SG'!$D$8:$BC$435,6,FALSE)) ->  | O49: =IF($A49="","",VLOOKUP($A49,'2013 SG'!$D$8:$BC$435,7,FALSE)) ->  | P49: =IF($A49="","",VLOOKUP($A49,'2013 SG'!$D$8:$BC$435,8,FALSE)) ->  | Q49: =IF($A49="","",VLOOKUP($A49,'2013 SG'!$D$8:$BC$435,9,FALSE)) ->  | R49: =IF($A49="","",VLOOKUP($A49,'2013 SG'!$D$8:$BC$435,10,FALSE)) ->  | S49: =IFERROR(VLOOKUP($A49,Schools1213PCTmeetNoCharter!$A$2:$F$344,5,FALSE)*0.01,"") ->  | T49: =IFERROR(VLOOKUP(A49,Schools1213PCTmeetNoCharter!$A$2:$F$344,3,FALSE),"") ->  | U49: =IFERROR(VLOOKUP($A49,Schools1213PCTmeetNoCharter!$A$2:$F$344,6,FALSE)*0.01,"") ->  | V49: =IFERROR(VLOOKUP(A49,Schools1213PCTmeetNoCharter!$A$2:$F$344,4,FALSE),"") -> 
A50: =IF(VLOOKUP($C$1,Group!$A$2:$BH$50,36,FALSE)="","",IF(TEXT(VLOOKUP($C$1,Group!$A$2:$BH$50,36,FALSE),"0000")=$A$1,"",TEXT(VLOOKUP($C$1,Group!$A$2:$BH$50,36,FALSE),"0000"))) ->  | B50: =IFERROR(VLOOKUP(A50,SchList!$A$2:$B$334,2,FALSE),"") ->  | C50: =IF($A50="","",VLOOKUP($A50,ethbysch!$A$3:$Q$493,17,FALSE)) ->  | D50: =IF($A50="","",VLOOKUP($A50,ethbysch!$A$3:$Q$493,4,FALSE)) ->  | E50: =IF($A50="","",VLOOKUP($A50,ethbysch!$A$3:$Q$493,6,FALSE)) ->  | F50: =IF($A50="","",VLOOKUP($A50,ethbysch!$A$3:$Q$493,8,FALSE)) ->  | G50: =IF($A50="","",VLOOKUP($A50,fsubc!$A$3:$M$508,6,FALSE)) ->  | H50: =IF($A50="","",VLOOKUP($A50,fsubc!$A$3:$M$508,8,FALSE)) ->  | I50: =IF($A50="","",VLOOKUP($A50,fsubc!$A$3:$M$508,12,FALSE)) ->  | J50: =IF($A50="","",VLOOKUP(VALUE($A50),Table10[],3,FALSE)) ->  | K50: =IF($A50="","",VLOOKUP($A50,'2013 SG'!$D$8:$BC$435,3,FALSE)) ->  | L50: =IF($A50="","",VLOOKUP($A50,'2013 SG'!$D$8:$BC$435,4,FALSE)) ->  | M50: =IF($A50="","",VLOOKUP($A50,'2013 SG'!$D$8:$BC$435,5,FALSE)) ->  | N50: =IF($A50="","",VLOOKUP($A50,'2013 SG'!$D$8:$BC$435,6,FALSE)) ->  | O50: =IF($A50="","",VLOOKUP($A50,'2013 SG'!$D$8:$BC$435,7,FALSE)) ->  | P50: =IF($A50="","",VLOOKUP($A50,'2013 SG'!$D$8:$BC$435,8,FALSE)) ->  | Q50: =IF($A50="","",VLOOKUP($A50,'2013 SG'!$D$8:$BC$435,9,FALSE)) ->  | R50: =IF($A50="","",VLOOKUP($A50,'2013 SG'!$D$8:$BC$435,10,FALSE)) ->  | S50: =IFERROR(VLOOKUP($A50,Schools1213PCTmeetNoCharter!$A$2:$F$344,5,FALSE)*0.01,"") ->  | T50: =IFERROR(VLOOKUP(A50,Schools1213PCTmeetNoCharter!$A$2:$F$344,3,FALSE),"") ->  | U50: =IFERROR(VLOOKUP($A50,Schools1213PCTmeetNoCharter!$A$2:$F$344,6,FALSE)*0.01,"") ->  | V50: =IFERROR(VLOOKUP(A50,Schools1213PCTmeetNoCharter!$A$2:$F$344,4,FALSE),"") -> 
A51: =IF(VLOOKUP($C$1,Group!$A$2:$BH$50,37,FALSE)="","",IF(TEXT(VLOOKUP($C$1,Group!$A$2:$BH$50,37,FALSE),"0000")=$A$1,"",TEXT(VLOOKUP($C$1,Group!$A$2:$BH$50,37,FALSE),"0000"))) ->  | B51: =IFERROR(VLOOKUP(A51,SchList!$A$2:$B$334,2,FALSE),"") ->  | C51: =IF($A51="","",VLOOKUP($A51,ethbysch!$A$3:$Q$493,17,FALSE)) ->  | D51: =IF($A51="","",VLOOKUP($A51,ethbysch!$A$3:$Q$493,4,FALSE)) ->  | E51: =IF($A51="","",VLOOKUP($A51,ethbysch!$A$3:$Q$493,6,FALSE)) ->  | F51: =IF($A51="","",VLOOKUP($A51,ethbysch!$A$3:$Q$493,8,FALSE)) ->  | G51: =IF($A51="","",VLOOKUP($A51,fsubc!$A$3:$M$508,6,FALSE)) ->  | H51: =IF($A51="","",VLOOKUP($A51,fsubc!$A$3:$M$508,8,FALSE)) ->  | I51: =IF($A51="","",VLOOKUP($A51,fsubc!$A$3:$M$508,12,FALSE)) ->  | J51: =IF($A51="","",VLOOKUP(VALUE($A51),Table10[],3,FALSE)) ->  | K51: =IF($A51="","",VLOOKUP($A51,'2013 SG'!$D$8:$BC$435,3,FALSE)) ->  | L51: =IF($A51="","",VLOOKUP($A51,'2013 SG'!$D$8:$BC$435,4,FALSE)) ->  | M51: =IF($A51="","",VLOOKUP($A51,'2013 SG'!$D$8:$BC$435,5,FALSE)) ->  | N51: =IF($A51="","",VLOOKUP($A51,'2013 SG'!$D$8:$BC$435,6,FALSE)) ->  | O51: =IF($A51="","",VLOOKUP($A51,'2013 SG'!$D$8:$BC$435,7,FALSE)) ->  | P51: =IF($A51="","",VLOOKUP($A51,'2013 SG'!$D$8:$BC$435,8,FALSE)) ->  | Q51: =IF($A51="","",VLOOKUP($A51,'2013 SG'!$D$8:$BC$435,9,FALSE)) ->  | R51: =IF($A51="","",VLOOKUP($A51,'2013 SG'!$D$8:$BC$435,10,FALSE)) ->  | S51: =IFERROR(VLOOKUP($A51,Schools1213PCTmeetNoCharter!$A$2:$F$344,5,FALSE)*0.01,"") ->  | T51: =IFERROR(VLOOKUP(A51,Schools1213PCTmeetNoCharter!$A$2:$F$344,3,FALSE),"") ->  | U51: =IFERROR(VLOOKUP($A51,Schools1213PCTmeetNoCharter!$A$2:$F$344,6,FALSE)*0.01,"") ->  | V51: =IFERROR(VLOOKUP(A51,Schools1213PCTmeetNoCharter!$A$2:$F$344,4,FALSE),"") -> 
A52: =IF(VLOOKUP($C$1,Group!$A$2:$BH$50,38,FALSE)="","",IF(TEXT(VLOOKUP($C$1,Group!$A$2:$BH$50,38,FALSE),"0000")=$A$1,"",TEXT(VLOOKUP($C$1,Group!$A$2:$BH$50,38,FALSE),"0000"))) ->  | B52: =IFERROR(VLOOKUP(A52,SchList!$A$2:$B$334,2,FALSE),"") ->  | C52: =IF($A52="","",VLOOKUP($A52,ethbysch!$A$3:$Q$493,17,FALSE)) ->  | D52: =IF($A52="","",VLOOKUP($A52,ethbysch!$A$3:$Q$493,4,FALSE)) ->  | E52: =IF($A52="","",VLOOKUP($A52,ethbysch!$A$3:$Q$493,6,FALSE)) ->  | F52: =IF($A52="","",VLOOKUP($A52,ethbysch!$A$3:$Q$493,8,FALSE)) ->  | G52: =IF($A52="","",VLOOKUP($A52,fsubc!$A$3:$M$508,6,FALSE)) ->  | H52: =IF($A52="","",VLOOKUP($A52,fsubc!$A$3:$M$508,8,FALSE)) ->  | I52: =IF($A52="","",VLOOKUP($A52,fsubc!$A$3:$M$508,12,FALSE)) ->  | J52: =IF($A52="","",VLOOKUP(VALUE($A52),Table10[],3,FALSE)) ->  | K52: =IF($A52="","",VLOOKUP($A52,'2013 SG'!$D$8:$BC$435,3,FALSE)) ->  | L52: =IF($A52="","",VLOOKUP($A52,'2013 SG'!$D$8:$BC$435,4,FALSE)) ->  | M52: =IF($A52="","",VLOOKUP($A52,'2013 SG'!$D$8:$BC$435,5,FALSE)) ->  | N52: =IF($A52="","",VLOOKUP($A52,'2013 SG'!$D$8:$BC$435,6,FALSE)) ->  | O52: =IF($A52="","",VLOOKUP($A52,'2013 SG'!$D$8:$BC$435,7,FALSE)) ->  | P52: =IF($A52="","",VLOOKUP($A52,'2013 SG'!$D$8:$BC$435,8,FALSE)) ->  | Q52: =IF($A52="","",VLOOKUP($A52,'2013 SG'!$D$8:$BC$435,9,FALSE)) ->  | R52: =IF($A52="","",VLOOKUP($A52,'2013 SG'!$D$8:$BC$435,10,FALSE)) ->  | S52: =IFERROR(VLOOKUP($A52,Schools1213PCTmeetNoCharter!$A$2:$F$344,5,FALSE)*0.01,"") ->  | T52: =IFERROR(VLOOKUP(A52,Schools1213PCTmeetNoCharter!$A$2:$F$344,3,FALSE),"") ->  | U52: =IFERROR(VLOOKUP($A52,Schools1213PCTmeetNoCharter!$A$2:$F$344,6,FALSE)*0.01,"") ->  | V52: =IFERROR(VLOOKUP(A52,Schools1213PCTmeetNoCharter!$A$2:$F$344,4,FALSE),"") -> 
A53: =IF(VLOOKUP($C$1,Group!$A$2:$BH$50,39,FALSE)="","",IF(TEXT(VLOOKUP($C$1,Group!$A$2:$BH$50,39,FALSE),"0000")=$A$1,"",TEXT(VLOOKUP($C$1,Group!$A$2:$BH$50,39,FALSE),"0000"))) ->  | B53: =IFERROR(VLOOKUP(A53,SchList!$A$2:$B$334,2,FALSE),"") ->  | C53: =IF($A53="","",VLOOKUP($A53,ethbysch!$A$3:$Q$493,17,FALSE)) ->  | D53: =IF($A53="","",VLOOKUP($A53,ethbysch!$A$3:$Q$493,4,FALSE)) ->  | E53: =IF($A53="","",VLOOKUP($A53,ethbysch!$A$3:$Q$493,6,FALSE)) ->  | F53: =IF($A53="","",VLOOKUP($A53,ethbysch!$A$3:$Q$493,8,FALSE)) ->  | G53: =IF($A53="","",VLOOKUP($A53,fsubc!$A$3:$M$508,6,FALSE)) ->  | H53: =IF($A53="","",VLOOKUP($A53,fsubc!$A$3:$M$508,8,FALSE)) ->  | I53: =IF($A53="","",VLOOKUP($A53,fsubc!$A$3:$M$508,12,FALSE)) ->  | J53: =IF($A53="","",VLOOKUP(VALUE($A53),Table10[],3,FALSE)) ->  | K53: =IF($A53="","",VLOOKUP($A53,'2013 SG'!$D$8:$BC$435,3,FALSE)) ->  | L53: =IF($A53="","",VLOOKUP($A53,'2013 SG'!$D$8:$BC$435,4,FALSE)) ->  | M53: =IF($A53="","",VLOOKUP($A53,'2013 SG'!$D$8:$BC$435,5,FALSE)) ->  | N53: =IF($A53="","",VLOOKUP($A53,'2013 SG'!$D$8:$BC$435,6,FALSE)) ->  | O53: =IF($A53="","",VLOOKUP($A53,'2013 SG'!$D$8:$BC$435,7,FALSE)) ->  | P53: =IF($A53="","",VLOOKUP($A53,'2013 SG'!$D$8:$BC$435,8,FALSE)) ->  | Q53: =IF($A53="","",VLOOKUP($A53,'2013 SG'!$D$8:$BC$435,9,FALSE)) ->  | R53: =IF($A53="","",VLOOKUP($A53,'2013 SG'!$D$8:$BC$435,10,FALSE)) ->  | S53: =IFERROR(VLOOKUP($A53,Schools1213PCTmeetNoCharter!$A$2:$F$344,5,FALSE)*0.01,"") ->  | T53: =IFERROR(VLOOKUP(A53,Schools1213PCTmeetNoCharter!$A$2:$F$344,3,FALSE),"") ->  | U53: =IFERROR(VLOOKUP($A53,Schools1213PCTmeetNoCharter!$A$2:$F$344,6,FALSE)*0.01,"") ->  | V53: =IFERROR(VLOOKUP(A53,Schools1213PCTmeetNoCharter!$A$2:$F$344,4,FALSE),"") -> 
A54: =IF(VLOOKUP($C$1,Group!$A$2:$BH$50,40,FALSE)="","",IF(TEXT(VLOOKUP($C$1,Group!$A$2:$BH$50,40,FALSE),"0000")=$A$1,"",TEXT(VLOOKUP($C$1,Group!$A$2:$BH$50,40,FALSE),"0000"))) ->  | B54: =IFERROR(VLOOKUP(A54,SchList!$A$2:$B$334,2,FALSE),"") ->  | C54: =IF($A54="","",VLOOKUP($A54,ethbysch!$A$3:$Q$493,17,FALSE)) ->  | D54: =IF($A54="","",VLOOKUP($A54,ethbysch!$A$3:$Q$493,4,FALSE)) ->  | E54: =IF($A54="","",VLOOKUP($A54,ethbysch!$A$3:$Q$493,6,FALSE)) ->  | F54: =IF($A54="","",VLOOKUP($A54,ethbysch!$A$3:$Q$493,8,FALSE)) ->  | G54: =IF($A54="","",VLOOKUP($A54,fsubc!$A$3:$M$508,6,FALSE)) ->  | H54: =IF($A54="","",VLOOKUP($A54,fsubc!$A$3:$M$508,8,FALSE)) ->  | I54: =IF($A54="","",VLOOKUP($A54,fsubc!$A$3:$M$508,12,FALSE)) ->  | J54: =IF($A54="","",VLOOKUP(VALUE($A54),Table10[],3,FALSE)) ->  | K54: =IF($A54="","",VLOOKUP($A54,'2013 SG'!$D$8:$BC$435,3,FALSE)) ->  | L54: =IF($A54="","",VLOOKUP($A54,'2013 SG'!$D$8:$BC$435,4,FALSE)) ->  | M54: =IF($A54="","",VLOOKUP($A54,'2013 SG'!$D$8:$BC$435,5,FALSE)) ->  | N54: =IF($A54="","",VLOOKUP($A54,'2013 SG'!$D$8:$BC$435,6,FALSE)) ->  | O54: =IF($A54="","",VLOOKUP($A54,'2013 SG'!$D$8:$BC$435,7,FALSE)) ->  | P54: =IF($A54="","",VLOOKUP($A54,'2013 SG'!$D$8:$BC$435,8,FALSE)) ->  | Q54: =IF($A54="","",VLOOKUP($A54,'2013 SG'!$D$8:$BC$435,9,FALSE)) ->  | R54: =IF($A54="","",VLOOKUP($A54,'2013 SG'!$D$8:$BC$435,10,FALSE)) ->  | S54: =IFERROR(VLOOKUP($A54,Schools1213PCTmeetNoCharter!$A$2:$F$344,5,FALSE)*0.01,"") ->  | T54: =IFERROR(VLOOKUP(A54,Schools1213PCTmeetNoCharter!$A$2:$F$344,3,FALSE),"") ->  | U54: =IFERROR(VLOOKUP($A54,Schools1213PCTmeetNoCharter!$A$2:$F$344,6,FALSE)*0.01,"") ->  | V54: =IFERROR(VLOOKUP(A54,Schools1213PCTmeetNoCharter!$A$2:$F$344,4,FALSE),"") -> 
A55: =IF(VLOOKUP($C$1,Group!$A$2:$BH$50,41,FALSE)="","",IF(TEXT(VLOOKUP($C$1,Group!$A$2:$BH$50,41,FALSE),"0000")=$A$1,"",TEXT(VLOOKUP($C$1,Group!$A$2:$BH$50,41,FALSE),"0000"))) ->  | B55: =IFERROR(VLOOKUP(A55,SchList!$A$2:$B$334,2,FALSE),"") ->  | C55: =IF($A55="","",VLOOKUP($A55,ethbysch!$A$3:$Q$493,17,FALSE)) ->  | D55: =IF($A55="","",VLOOKUP($A55,ethbysch!$A$3:$Q$493,4,FALSE)) ->  | E55: =IF($A55="","",VLOOKUP($A55,ethbysch!$A$3:$Q$493,6,FALSE)) ->  | F55: =IF($A55="","",VLOOKUP($A55,ethbysch!$A$3:$Q$493,8,FALSE)) ->  | G55: =IF($A55="","",VLOOKUP($A55,fsubc!$A$3:$M$508,6,FALSE)) ->  | H55: =IF($A55="","",VLOOKUP($A55,fsubc!$A$3:$M$508,8,FALSE)) ->  | I55: =IF($A55="","",VLOOKUP($A55,fsubc!$A$3:$M$508,12,FALSE)) ->  | J55: =IF($A55="","",VLOOKUP(VALUE($A55),Table10[],3,FALSE)) ->  | K55: =IF($A55="","",VLOOKUP($A55,'2013 SG'!$D$8:$BC$435,3,FALSE)) ->  | L55: =IF($A55="","",VLOOKUP($A55,'2013 SG'!$D$8:$BC$435,4,FALSE)) ->  | M55: =IF($A55="","",VLOOKUP($A55,'2013 SG'!$D$8:$BC$435,5,FALSE)) ->  | N55: =IF($A55="","",VLOOKUP($A55,'2013 SG'!$D$8:$BC$435,6,FALSE)) ->  | O55: =IF($A55="","",VLOOKUP($A55,'2013 SG'!$D$8:$BC$435,7,FALSE)) ->  | P55: =IF($A55="","",VLOOKUP($A55,'2013 SG'!$D$8:$BC$435,8,FALSE)) ->  | Q55: =IF($A55="","",VLOOKUP($A55,'2013 SG'!$D$8:$BC$435,9,FALSE)) ->  | R55: =IF($A55="","",VLOOKUP($A55,'2013 SG'!$D$8:$BC$435,10,FALSE)) ->  | S55: =IFERROR(VLOOKUP($A55,Schools1213PCTmeetNoCharter!$A$2:$F$344,5,FALSE)*0.01,"") ->  | T55: =IFERROR(VLOOKUP(A55,Schools1213PCTmeetNoCharter!$A$2:$F$344,3,FALSE),"") ->  | U55: =IFERROR(VLOOKUP($A55,Schools1213PCTmeetNoCharter!$A$2:$F$344,6,FALSE)*0.01,"") ->  | V55: =IFERROR(VLOOKUP(A55,Schools1213PCTmeetNoCharter!$A$2:$F$344,4,FALSE),"") -> 
A56: =IF(VLOOKUP($C$1,Group!$A$2:$BH$50,42,FALSE)="","",IF(TEXT(VLOOKUP($C$1,Group!$A$2:$BH$50,42,FALSE),"0000")=$A$1,"",TEXT(VLOOKUP($C$1,Group!$A$2:$BH$50,42,FALSE),"0000"))) ->  | B56: =IFERROR(VLOOKUP(A56,SchList!$A$2:$B$334,2,FALSE),"") ->  | C56: =IF($A56="","",VLOOKUP($A56,ethbysch!$A$3:$Q$493,17,FALSE)) ->  | D56: =IF($A56="","",VLOOKUP($A56,ethbysch!$A$3:$Q$493,4,FALSE)) ->  | E56: =IF($A56="","",VLOOKUP($A56,ethbysch!$A$3:$Q$493,6,FALSE)) ->  | F56: =IF($A56="","",VLOOKUP($A56,ethbysch!$A$3:$Q$493,8,FALSE)) ->  | G56: =IF($A56="","",VLOOKUP($A56,fsubc!$A$3:$M$508,6,FALSE)) ->  | H56: =IF($A56="","",VLOOKUP($A56,fsubc!$A$3:$M$508,8,FALSE)) ->  | I56: =IF($A56="","",VLOOKUP($A56,fsubc!$A$3:$M$508,12,FALSE)) ->  | J56: =IF($A56="","",VLOOKUP(VALUE($A56),Table10[],3,FALSE)) ->  | K56: =IF($A56="","",VLOOKUP($A56,'2013 SG'!$D$8:$BC$435,3,FALSE)) ->  | L56: =IF($A56="","",VLOOKUP($A56,'2013 SG'!$D$8:$BC$435,4,FALSE)) ->  | M56: =IF($A56="","",VLOOKUP($A56,'2013 SG'!$D$8:$BC$435,5,FALSE)) ->  | N56: =IF($A56="","",VLOOKUP($A56,'2013 SG'!$D$8:$BC$435,6,FALSE)) ->  | O56: =IF($A56="","",VLOOKUP($A56,'2013 SG'!$D$8:$BC$435,7,FALSE)) ->  | P56: =IF($A56="","",VLOOKUP($A56,'2013 SG'!$D$8:$BC$435,8,FALSE)) ->  | Q56: =IF($A56="","",VLOOKUP($A56,'2013 SG'!$D$8:$BC$435,9,FALSE)) ->  | R56: =IF($A56="","",VLOOKUP($A56,'2013 SG'!$D$8:$BC$435,10,FALSE)) ->  | S56: =IFERROR(VLOOKUP($A56,Schools1213PCTmeetNoCharter!$A$2:$F$344,5,FALSE)*0.01,"") ->  | T56: =IFERROR(VLOOKUP(A56,Schools1213PCTmeetNoCharter!$A$2:$F$344,3,FALSE),"") ->  | U56: =IFERROR(VLOOKUP($A56,Schools1213PCTmeetNoCharter!$A$2:$F$344,6,FALSE)*0.01,"") ->  | V56: =IFERROR(VLOOKUP(A56,Schools1213PCTmeetNoCharter!$A$2:$F$344,4,FALSE),"") -> 
A57: =IF(VLOOKUP($C$1,Group!$A$2:$BH$50,43,FALSE)="","",IF(TEXT(VLOOKUP($C$1,Group!$A$2:$BH$50,43,FALSE),"0000")=$A$1,"",TEXT(VLOOKUP($C$1,Group!$A$2:$BH$50,43,FALSE),"0000"))) ->  | B57: =IFERROR(VLOOKUP(A57,SchList!$A$2:$B$334,2,FALSE),"") ->  | C57: =IF($A57="","",VLOOKUP($A57,ethbysch!$A$3:$Q$493,17,FALSE)) ->  | D57: =IF($A57="","",VLOOKUP($A57,ethbysch!$A$3:$Q$493,4,FALSE)) ->  | E57: =IF($A57="","",VLOOKUP($A57,ethbysch!$A$3:$Q$493,6,FALSE)) ->  | F57: =IF($A57="","",VLOOKUP($A57,ethbysch!$A$3:$Q$493,8,FALSE)) ->  | G57: =IF($A57="","",VLOOKUP($A57,fsubc!$A$3:$M$508,6,FALSE)) ->  | H57: =IF($A57="","",VLOOKUP($A57,fsubc!$A$3:$M$508,8,FALSE)) ->  | I57: =IF($A57="","",VLOOKUP($A57,fsubc!$A$3:$M$508,12,FALSE)) ->  | J57: =IF($A57="","",VLOOKUP(VALUE($A57),Table10[],3,FALSE)) ->  | K57: =IF($A57="","",VLOOKUP($A57,'2013 SG'!$D$8:$BC$435,3,FALSE)) ->  | L57: =IF($A57="","",VLOOKUP($A57,'2013 SG'!$D$8:$BC$435,4,FALSE)) ->  | M57: =IF($A57="","",VLOOKUP($A57,'2013 SG'!$D$8:$BC$435,5,FALSE)) ->  | N57: =IF($A57="","",VLOOKUP($A57,'2013 SG'!$D$8:$BC$435,6,FALSE)) ->  | O57: =IF($A57="","",VLOOKUP($A57,'2013 SG'!$D$8:$BC$435,7,FALSE)) ->  | P57: =IF($A57="","",VLOOKUP($A57,'2013 SG'!$D$8:$BC$435,8,FALSE)) ->  | Q57: =IF($A57="","",VLOOKUP($A57,'2013 SG'!$D$8:$BC$435,9,FALSE)) ->  | R57: =IF($A57="","",VLOOKUP($A57,'2013 SG'!$D$8:$BC$435,10,FALSE)) ->  | S57: =IFERROR(VLOOKUP($A57,Schools1213PCTmeetNoCharter!$A$2:$F$344,5,FALSE)*0.01,"") ->  | T57: =IFERROR(VLOOKUP(A57,Schools1213PCTmeetNoCharter!$A$2:$F$344,3,FALSE),"") ->  | U57: =IFERROR(VLOOKUP($A57,Schools1213PCTmeetNoCharter!$A$2:$F$344,6,FALSE)*0.01,"") ->  | V57: =IFERROR(VLOOKUP(A57,Schools1213PCTmeetNoCharter!$A$2:$F$344,4,FALSE),"") -> 
A58: =IF(VLOOKUP($C$1,Group!$A$2:$BH$50,44,FALSE)="","",IF(TEXT(VLOOKUP($C$1,Group!$A$2:$BH$50,44,FALSE),"0000")=$A$1,"",TEXT(VLOOKUP($C$1,Group!$A$2:$BH$50,44,FALSE),"0000"))) ->  | B58: =IFERROR(VLOOKUP(A58,SchList!$A$2:$B$334,2,FALSE),"") ->  | C58: =IF($A58="","",VLOOKUP($A58,ethbysch!$A$3:$Q$493,17,FALSE)) ->  | D58: =IF($A58="","",VLOOKUP($A58,ethbysch!$A$3:$Q$493,4,FALSE)) ->  | E58: =IF($A58="","",VLOOKUP($A58,ethbysch!$A$3:$Q$493,6,FALSE)) ->  | F58: =IF($A58="","",VLOOKUP($A58,ethbysch!$A$3:$Q$493,8,FALSE)) ->  | G58: =IF($A58="","",VLOOKUP($A58,fsubc!$A$3:$M$508,6,FALSE)) ->  | H58: =IF($A58="","",VLOOKUP($A58,fsubc!$A$3:$M$508,8,FALSE)) ->  | I58: =IF($A58="","",VLOOKUP($A58,fsubc!$A$3:$M$508,12,FALSE)) ->  | J58: =IF($A58="","",VLOOKUP(VALUE($A58),Table10[],3,FALSE)) ->  | K58: =IF($A58="","",VLOOKUP($A58,'2013 SG'!$D$8:$BC$435,3,FALSE)) ->  | L58: =IF($A58="","",VLOOKUP($A58,'2013 SG'!$D$8:$BC$435,4,FALSE)) ->  | M58: =IF($A58="","",VLOOKUP($A58,'2013 SG'!$D$8:$BC$435,5,FALSE)) ->  | N58: =IF($A58="","",VLOOKUP($A58,'2013 SG'!$D$8:$BC$435,6,FALSE)) ->  | O58: =IF($A58="","",VLOOKUP($A58,'2013 SG'!$D$8:$BC$435,7,FALSE)) ->  | P58: =IF($A58="","",VLOOKUP($A58,'2013 SG'!$D$8:$BC$435,8,FALSE)) ->  | Q58: =IF($A58="","",VLOOKUP($A58,'2013 SG'!$D$8:$BC$435,9,FALSE)) ->  | R58: =IF($A58="","",VLOOKUP($A58,'2013 SG'!$D$8:$BC$435,10,FALSE)) ->  | S58: =IFERROR(VLOOKUP($A58,Schools1213PCTmeetNoCharter!$A$2:$F$344,5,FALSE)*0.01,"") ->  | T58: =IFERROR(VLOOKUP(A58,Schools1213PCTmeetNoCharter!$A$2:$F$344,3,FALSE),"") ->  | U58: =IFERROR(VLOOKUP($A58,Schools1213PCTmeetNoCharter!$A$2:$F$344,6,FALSE)*0.01,"") ->  | V58: =IFERROR(VLOOKUP(A58,Schools1213PCTmeetNoCharter!$A$2:$F$344,4,FALSE),"") -> 
A59: =IF(VLOOKUP($C$1,Group!$A$2:$BH$50,45,FALSE)="","",IF(TEXT(VLOOKUP($C$1,Group!$A$2:$BH$50,45,FALSE),"0000")=$A$1,"",TEXT(VLOOKUP($C$1,Group!$A$2:$BH$50,45,FALSE),"0000"))) ->  | B59: =IFERROR(VLOOKUP(A59,SchList!$A$2:$B$334,2,FALSE),"") ->  | C59: =IF($A59="","",VLOOKUP($A59,ethbysch!$A$3:$Q$493,17,FALSE)) ->  | D59: =IF($A59="","",VLOOKUP($A59,ethbysch!$A$3:$Q$493,4,FALSE)) ->  | E59: =IF($A59="","",VLOOKUP($A59,ethbysch!$A$3:$Q$493,6,FALSE)) ->  | F59: =IF($A59="","",VLOOKUP($A59,ethbysch!$A$3:$Q$493,8,FALSE)) ->  | G59: =IF($A59="","",VLOOKUP($A59,fsubc!$A$3:$M$508,6,FALSE)) ->  | H59: =IF($A59="","",VLOOKUP($A59,fsubc!$A$3:$M$508,8,FALSE)) ->  | I59: =IF($A59="","",VLOOKUP($A59,fsubc!$A$3:$M$508,12,FALSE)) ->  | J59: =IF($A59="","",VLOOKUP(VALUE($A59),Table10[],3,FALSE)) ->  | K59: =IF($A59="","",VLOOKUP($A59,'2013 SG'!$D$8:$BC$435,3,FALSE)) ->  | L59: =IF($A59="","",VLOOKUP($A59,'2013 SG'!$D$8:$BC$435,4,FALSE)) ->  | M59: =IF($A59="","",VLOOKUP($A59,'2013 SG'!$D$8:$BC$435,5,FALSE)) ->  | N59: =IF($A59="","",VLOOKUP($A59,'2013 SG'!$D$8:$BC$435,6,FALSE)) ->  | O59: =IF($A59="","",VLOOKUP($A59,'2013 SG'!$D$8:$BC$435,7,FALSE)) ->  | P59: =IF($A59="","",VLOOKUP($A59,'2013 SG'!$D$8:$BC$435,8,FALSE)) ->  | Q59: =IF($A59="","",VLOOKUP($A59,'2013 SG'!$D$8:$BC$435,9,FALSE)) ->  | R59: =IF($A59="","",VLOOKUP($A59,'2013 SG'!$D$8:$BC$435,10,FALSE)) ->  | S59: =IFERROR(VLOOKUP($A59,Schools1213PCTmeetNoCharter!$A$2:$F$344,5,FALSE)*0.01,"") ->  | T59: =IFERROR(VLOOKUP(A59,Schools1213PCTmeetNoCharter!$A$2:$F$344,3,FALSE),"") ->  | U59: =IFERROR(VLOOKUP($A59,Schools1213PCTmeetNoCharter!$A$2:$F$344,6,FALSE)*0.01,"") ->  | V59: =IFERROR(VLOOKUP(A59,Schools1213PCTmeetNoCharter!$A$2:$F$344,4,FALSE),"") -> 
A60: =IF(VLOOKUP($C$1,Group!$A$2:$BH$50,46,FALSE)="","",IF(TEXT(VLOOKUP($C$1,Group!$A$2:$BH$50,46,FALSE),"0000")=$A$1,"",TEXT(VLOOKUP($C$1,Group!$A$2:$BH$50,46,FALSE),"0000"))) ->  | B60: =IFERROR(VLOOKUP(A60,SchList!$A$2:$B$334,2,FALSE),"") ->  | C60: =IF($A60="","",VLOOKUP($A60,ethbysch!$A$3:$Q$493,17,FALSE)) ->  | D60: =IF($A60="","",VLOOKUP($A60,ethbysch!$A$3:$Q$493,4,FALSE)) ->  | E60: =IF($A60="","",VLOOKUP($A60,ethbysch!$A$3:$Q$493,6,FALSE)) ->  | F60: =IF($A60="","",VLOOKUP($A60,ethbysch!$A$3:$Q$493,8,FALSE)) ->  | G60: =IF($A60="","",VLOOKUP($A60,fsubc!$A$3:$M$508,6,FALSE)) ->  | H60: =IF($A60="","",VLOOKUP($A60,fsubc!$A$3:$M$508,8,FALSE)) ->  | I60: =IF($A60="","",VLOOKUP($A60,fsubc!$A$3:$M$508,12,FALSE)) ->  | J60: =IF($A60="","",VLOOKUP(VALUE($A60),Table10[],3,FALSE)) ->  | K60: =IF($A60="","",VLOOKUP($A60,'2013 SG'!$D$8:$BC$435,3,FALSE)) ->  | L60: =IF($A60="","",VLOOKUP($A60,'2013 SG'!$D$8:$BC$435,4,FALSE)) ->  | M60: =IF($A60="","",VLOOKUP($A60,'2013 SG'!$D$8:$BC$435,5,FALSE)) ->  | N60: =IF($A60="","",VLOOKUP($A60,'2013 SG'!$D$8:$BC$435,6,FALSE)) ->  | O60: =IF($A60="","",VLOOKUP($A60,'2013 SG'!$D$8:$BC$435,7,FALSE)) ->  | P60: =IF($A60="","",VLOOKUP($A60,'2013 SG'!$D$8:$BC$435,8,FALSE)) ->  | Q60: =IF($A60="","",VLOOKUP($A60,'2013 SG'!$D$8:$BC$435,9,FALSE)) ->  | R60: =IF($A60="","",VLOOKUP($A60,'2013 SG'!$D$8:$BC$435,10,FALSE)) ->  | S60: =IFERROR(VLOOKUP($A60,Schools1213PCTmeetNoCharter!$A$2:$F$344,5,FALSE)*0.01,"") ->  | T60: =IFERROR(VLOOKUP(A60,Schools1213PCTmeetNoCharter!$A$2:$F$344,3,FALSE),"") ->  | U60: =IFERROR(VLOOKUP($A60,Schools1213PCTmeetNoCharter!$A$2:$F$344,6,FALSE)*0.01,"") ->  | V60: =IFERROR(VLOOKUP(A60,Schools1213PCTmeetNoCharter!$A$2:$F$344,4,FALSE),"") -> 
A61: =IF(VLOOKUP($C$1,Group!$A$2:$BH$50,47,FALSE)="","",IF(TEXT(VLOOKUP($C$1,Group!$A$2:$BH$50,47,FALSE),"0000")=$A$1,"",TEXT(VLOOKUP($C$1,Group!$A$2:$BH$50,47,FALSE),"0000"))) ->  | B61: =IFERROR(VLOOKUP(A61,SchList!$A$2:$B$334,2,FALSE),"") ->  | C61: =IF($A61="","",VLOOKUP($A61,ethbysch!$A$3:$Q$493,17,FALSE)) ->  | D61: =IF($A61="","",VLOOKUP($A61,ethbysch!$A$3:$Q$493,4,FALSE)) ->  | E61: =IF($A61="","",VLOOKUP($A61,ethbysch!$A$3:$Q$493,6,FALSE)) ->  | F61: =IF($A61="","",VLOOKUP($A61,ethbysch!$A$3:$Q$493,8,FALSE)) ->  | G61: =IF($A61="","",VLOOKUP($A61,fsubc!$A$3:$M$508,6,FALSE)) ->  | H61: =IF($A61="","",VLOOKUP($A61,fsubc!$A$3:$M$508,8,FALSE)) ->  | I61: =IF($A61="","",VLOOKUP($A61,fsubc!$A$3:$M$508,12,FALSE)) ->  | J61: =IF($A61="","",VLOOKUP(VALUE($A61),Table10[],3,FALSE)) ->  | K61: =IF($A61="","",VLOOKUP($A61,'2013 SG'!$D$8:$BC$435,3,FALSE)) ->  | L61: =IF($A61="","",VLOOKUP($A61,'2013 SG'!$D$8:$BC$435,4,FALSE)) ->  | M61: =IF($A61="","",VLOOKUP($A61,'2013 SG'!$D$8:$BC$435,5,FALSE)) ->  | N61: =IF($A61="","",VLOOKUP($A61,'2013 SG'!$D$8:$BC$435,6,FALSE)) ->  | O61: =IF($A61="","",VLOOKUP($A61,'2013 SG'!$D$8:$BC$435,7,FALSE)) ->  | P61: =IF($A61="","",VLOOKUP($A61,'2013 SG'!$D$8:$BC$435,8,FALSE)) ->  | Q61: =IF($A61="","",VLOOKUP($A61,'2013 SG'!$D$8:$BC$435,9,FALSE)) ->  | R61: =IF($A61="","",VLOOKUP($A61,'2013 SG'!$D$8:$BC$435,10,FALSE)) ->  | S61: =IFERROR(VLOOKUP($A61,Schools1213PCTmeetNoCharter!$A$2:$F$344,5,FALSE)*0.01,"") ->  | T61: =IFERROR(VLOOKUP(A61,Schools1213PCTmeetNoCharter!$A$2:$F$344,3,FALSE),"") ->  | U61: =IFERROR(VLOOKUP($A61,Schools1213PCTmeetNoCharter!$A$2:$F$344,6,FALSE)*0.01,"") ->  | V61: =IFERROR(VLOOKUP(A61,Schools1213PCTmeetNoCharter!$A$2:$F$344,4,FALSE),"") -> 
A62: =IF(VLOOKUP($C$1,Group!$A$2:$BH$50,48,FALSE)="","",IF(TEXT(VLOOKUP($C$1,Group!$A$2:$BH$50,48,FALSE),"0000")=$A$1,"",TEXT(VLOOKUP($C$1,Group!$A$2:$BH$50,48,FALSE),"0000"))) ->  | B62: =IFERROR(VLOOKUP(A62,SchList!$A$2:$B$334,2,FALSE),"") ->  | C62: =IF($A62="","",VLOOKUP($A62,ethbysch!$A$3:$Q$493,17,FALSE)) ->  | D62: =IF($A62="","",VLOOKUP($A62,ethbysch!$A$3:$Q$493,4,FALSE)) ->  | E62: =IF($A62="","",VLOOKUP($A62,ethbysch!$A$3:$Q$493,6,FALSE)) ->  | F62: =IF($A62="","",VLOOKUP($A62,ethbysch!$A$3:$Q$493,8,FALSE)) ->  | G62: =IF($A62="","",VLOOKUP($A62,fsubc!$A$3:$M$508,6,FALSE)) ->  | H62: =IF($A62="","",VLOOKUP($A62,fsubc!$A$3:$M$508,8,FALSE)) ->  | I62: =IF($A62="","",VLOOKUP($A62,fsubc!$A$3:$M$508,12,FALSE)) ->  | J62: =IF($A62="","",VLOOKUP(VALUE($A62),Table10[],3,FALSE)) ->  | K62: =IF($A62="","",VLOOKUP($A62,'2013 SG'!$D$8:$BC$435,3,FALSE)) ->  | L62: =IF($A62="","",VLOOKUP($A62,'2013 SG'!$D$8:$BC$435,4,FALSE)) ->  | M62: =IF($A62="","",VLOOKUP($A62,'2013 SG'!$D$8:$BC$435,5,FALSE)) ->  | N62: =IF($A62="","",VLOOKUP($A62,'2013 SG'!$D$8:$BC$435,6,FALSE)) ->  | O62: =IF($A62="","",VLOOKUP($A62,'2013 SG'!$D$8:$BC$435,7,FALSE)) ->  | P62: =IF($A62="","",VLOOKUP($A62,'2013 SG'!$D$8:$BC$435,8,FALSE)) ->  | Q62: =IF($A62="","",VLOOKUP($A62,'2013 SG'!$D$8:$BC$435,9,FALSE)) ->  | R62: =IF($A62="","",VLOOKUP($A62,'2013 SG'!$D$8:$BC$435,10,FALSE)) ->  | S62: =IFERROR(VLOOKUP($A62,Schools1213PCTmeetNoCharter!$A$2:$F$344,5,FALSE)*0.01,"") ->  | T62: =IFERROR(VLOOKUP(A62,Schools1213PCTmeetNoCharter!$A$2:$F$344,3,FALSE),"") ->  | U62: =IFERROR(VLOOKUP($A62,Schools1213PCTmeetNoCharter!$A$2:$F$344,6,FALSE)*0.01,"") ->  | V62: =IFERROR(VLOOKUP(A62,Schools1213PCTmeetNoCharter!$A$2:$F$344,4,FALSE),"") -> 
A63: =IF(VLOOKUP($C$1,Group!$A$2:$BH$50,49,FALSE)="","",IF(TEXT(VLOOKUP($C$1,Group!$A$2:$BH$50,49,FALSE),"0000")=$A$1,"",TEXT(VLOOKUP($C$1,Group!$A$2:$BH$50,49,FALSE),"0000"))) ->  | B63: =IFERROR(VLOOKUP(A63,SchList!$A$2:$B$334,2,FALSE),"") ->  | C63: =IF($A63="","",VLOOKUP($A63,ethbysch!$A$3:$Q$493,17,FALSE)) ->  | D63: =IF($A63="","",VLOOKUP($A63,ethbysch!$A$3:$Q$493,4,FALSE)) ->  | E63: =IF($A63="","",VLOOKUP($A63,ethbysch!$A$3:$Q$493,6,FALSE)) ->  | F63: =IF($A63="","",VLOOKUP($A63,ethbysch!$A$3:$Q$493,8,FALSE)) ->  | G63: =IF($A63="","",VLOOKUP($A63,fsubc!$A$3:$M$508,6,FALSE)) ->  | H63: =IF($A63="","",VLOOKUP($A63,fsubc!$A$3:$M$508,8,FALSE)) ->  | I63: =IF($A63="","",VLOOKUP($A63,fsubc!$A$3:$M$508,12,FALSE)) ->  | J63: =IF($A63="","",VLOOKUP(VALUE($A63),Table10[],3,FALSE)) ->  | K63: =IF($A63="","",VLOOKUP($A63,'2013 SG'!$D$8:$BC$435,3,FALSE)) ->  | L63: =IF($A63="","",VLOOKUP($A63,'2013 SG'!$D$8:$BC$435,4,FALSE)) ->  | M63: =IF($A63="","",VLOOKUP($A63,'2013 SG'!$D$8:$BC$435,5,FALSE)) ->  | N63: =IF($A63="","",VLOOKUP($A63,'2013 SG'!$D$8:$BC$435,6,FALSE)) ->  | O63: =IF($A63="","",VLOOKUP($A63,'2013 SG'!$D$8:$BC$435,7,FALSE)) ->  | P63: =IF($A63="","",VLOOKUP($A63,'2013 SG'!$D$8:$BC$435,8,FALSE)) ->  | Q63: =IF($A63="","",VLOOKUP($A63,'2013 SG'!$D$8:$BC$435,9,FALSE)) ->  | R63: =IF($A63="","",VLOOKUP($A63,'2013 SG'!$D$8:$BC$435,10,FALSE)) ->  | S63: =IFERROR(VLOOKUP($A63,Schools1213PCTmeetNoCharter!$A$2:$F$344,5,FALSE)*0.01,"") ->  | T63: =IFERROR(VLOOKUP(A63,Schools1213PCTmeetNoCharter!$A$2:$F$344,3,FALSE),"") ->  | U63: =IFERROR(VLOOKUP($A63,Schools1213PCTmeetNoCharter!$A$2:$F$344,6,FALSE)*0.01,"") ->  | V63: =IFERROR(VLOOKUP(A63,Schools1213PCTmeetNoCharter!$A$2:$F$344,4,FALSE),"") -> 
A64: =IF(VLOOKUP($C$1,Group!$A$2:$BH$50,50,FALSE)="","",IF(TEXT(VLOOKUP($C$1,Group!$A$2:$BH$50,50,FALSE),"0000")=$A$1,"",TEXT(VLOOKUP($C$1,Group!$A$2:$BH$50,50,FALSE),"0000"))) ->  | B64: =IFERROR(VLOOKUP(A64,SchList!$A$2:$B$334,2,FALSE),"") ->  | C64: =IF($A64="","",VLOOKUP($A64,ethbysch!$A$3:$Q$493,17,FALSE)) ->  | D64: =IF($A64="","",VLOOKUP($A64,ethbysch!$A$3:$Q$493,4,FALSE)) ->  | E64: =IF($A64="","",VLOOKUP($A64,ethbysch!$A$3:$Q$493,6,FALSE)) ->  | F64: =IF($A64="","",VLOOKUP($A64,ethbysch!$A$3:$Q$493,8,FALSE)) ->  | G64: =IF($A64="","",VLOOKUP($A64,fsubc!$A$3:$M$508,6,FALSE)) ->  | H64: =IF($A64="","",VLOOKUP($A64,fsubc!$A$3:$M$508,8,FALSE)) ->  | I64: =IF($A64="","",VLOOKUP($A64,fsubc!$A$3:$M$508,12,FALSE)) ->  | J64: =IF($A64="","",VLOOKUP(VALUE($A64),Table10[],3,FALSE)) ->  | K64: =IF($A64="","",VLOOKUP($A64,'2013 SG'!$D$8:$BC$435,3,FALSE)) ->  | L64: =IF($A64="","",VLOOKUP($A64,'2013 SG'!$D$8:$BC$435,4,FALSE)) ->  | M64: =IF($A64="","",VLOOKUP($A64,'2013 SG'!$D$8:$BC$435,5,FALSE)) ->  | N64: =IF($A64="","",VLOOKUP($A64,'2013 SG'!$D$8:$BC$435,6,FALSE)) ->  | O64: =IF($A64="","",VLOOKUP($A64,'2013 SG'!$D$8:$BC$435,7,FALSE)) ->  | P64: =IF($A64="","",VLOOKUP($A64,'2013 SG'!$D$8:$BC$435,8,FALSE)) ->  | Q64: =IF($A64="","",VLOOKUP($A64,'2013 SG'!$D$8:$BC$435,9,FALSE)) ->  | R64: =IF($A64="","",VLOOKUP($A64,'2013 SG'!$D$8:$BC$435,10,FALSE)) ->  | S64: =IFERROR(VLOOKUP($A64,Schools1213PCTmeetNoCharter!$A$2:$F$344,5,FALSE)*0.01,"") ->  | T64: =IFERROR(VLOOKUP(A64,Schools1213PCTmeetNoCharter!$A$2:$F$344,3,FALSE),"") ->  | U64: =IFERROR(VLOOKUP($A64,Schools1213PCTmeetNoCharter!$A$2:$F$344,6,FALSE)*0.01,"") ->  | V64: =IFERROR(VLOOKUP(A64,Schools1213PCTmeetNoCharter!$A$2:$F$344,4,FALSE),"") -> 
A65: =IF(VLOOKUP($C$1,Group!$A$2:$BH$50,51,FALSE)="","",IF(TEXT(VLOOKUP($C$1,Group!$A$2:$BH$50,51,FALSE),"0000")=$A$1,"",TEXT(VLOOKUP($C$1,Group!$A$2:$BH$50,51,FALSE),"0000"))) ->  | B65: =IFERROR(VLOOKUP(A65,SchList!$A$2:$B$334,2,FALSE),"") ->  | C65: =IF($A65="","",VLOOKUP($A65,ethbysch!$A$3:$Q$493,17,FALSE)) ->  | D65: =IF($A65="","",VLOOKUP($A65,ethbysch!$A$3:$Q$493,4,FALSE)) ->  | E65: =IF($A65="","",VLOOKUP($A65,ethbysch!$A$3:$Q$493,6,FALSE)) ->  | F65: =IF($A65="","",VLOOKUP($A65,ethbysch!$A$3:$Q$493,8,FALSE)) ->  | G65: =IF($A65="","",VLOOKUP($A65,fsubc!$A$3:$M$508,6,FALSE)) ->  | H65: =IF($A65="","",VLOOKUP($A65,fsubc!$A$3:$M$508,8,FALSE)) ->  | I65: =IF($A65="","",VLOOKUP($A65,fsubc!$A$3:$M$508,12,FALSE)) ->  | J65: =IF($A65="","",VLOOKUP(VALUE($A65),Table10[],3,FALSE)) ->  | K65: =IF($A65="","",VLOOKUP($A65,'2013 SG'!$D$8:$BC$435,3,FALSE)) ->  | L65: =IF($A65="","",VLOOKUP($A65,'2013 SG'!$D$8:$BC$435,4,FALSE)) ->  | M65: =IF($A65="","",VLOOKUP($A65,'2013 SG'!$D$8:$BC$435,5,FALSE)) ->  | N65: =IF($A65="","",VLOOKUP($A65,'2013 SG'!$D$8:$BC$435,6,FALSE)) ->  | O65: =IF($A65="","",VLOOKUP($A65,'2013 SG'!$D$8:$BC$435,7,FALSE)) ->  | P65: =IF($A65="","",VLOOKUP($A65,'2013 SG'!$D$8:$BC$435,8,FALSE)) ->  | Q65: =IF($A65="","",VLOOKUP($A65,'2013 SG'!$D$8:$BC$435,9,FALSE)) ->  | R65: =IF($A65="","",VLOOKUP($A65,'2013 SG'!$D$8:$BC$435,10,FALSE)) ->  | S65: =IFERROR(VLOOKUP($A65,Schools1213PCTmeetNoCharter!$A$2:$F$344,5,FALSE)*0.01,"") ->  | T65: =IFERROR(VLOOKUP(A65,Schools1213PCTmeetNoCharter!$A$2:$F$344,3,FALSE),"") ->  | U65: =IFERROR(VLOOKUP($A65,Schools1213PCTmeetNoCharter!$A$2:$F$344,6,FALSE)*0.01,"") ->  | V65: =IFERROR(VLOOKUP(A65,Schools1213PCTmeetNoCharter!$A$2:$F$344,4,FALSE),"") -> 
A66: =IF(VLOOKUP($C$1,Group!$A$2:$BH$50,52,FALSE)="","",IF(TEXT(VLOOKUP($C$1,Group!$A$2:$BH$50,52,FALSE),"0000")=$A$1,"",TEXT(VLOOKUP($C$1,Group!$A$2:$BH$50,52,FALSE),"0000"))) ->  | B66: =IFERROR(VLOOKUP(A66,SchList!$A$2:$B$334,2,FALSE),"") ->  | C66: =IF($A66="","",VLOOKUP($A66,ethbysch!$A$3:$Q$493,17,FALSE)) ->  | D66: =IF($A66="","",VLOOKUP($A66,ethbysch!$A$3:$Q$493,4,FALSE)) ->  | E66: =IF($A66="","",VLOOKUP($A66,ethbysch!$A$3:$Q$493,6,FALSE)) ->  | F66: =IF($A66="","",VLOOKUP($A66,ethbysch!$A$3:$Q$493,8,FALSE)) ->  | G66: =IF($A66="","",VLOOKUP($A66,fsubc!$A$3:$M$508,6,FALSE)) ->  | H66: =IF($A66="","",VLOOKUP($A66,fsubc!$A$3:$M$508,8,FALSE)) ->  | I66: =IF($A66="","",VLOOKUP($A66,fsubc!$A$3:$M$508,12,FALSE)) ->  | J66: =IF($A66="","",VLOOKUP(VALUE($A66),Table10[],3,FALSE)) ->  | K66: =IF($A66="","",VLOOKUP($A66,'2013 SG'!$D$8:$BC$435,3,FALSE)) ->  | L66: =IF($A66="","",VLOOKUP($A66,'2013 SG'!$D$8:$BC$435,4,FALSE)) ->  | M66: =IF($A66="","",VLOOKUP($A66,'2013 SG'!$D$8:$BC$435,5,FALSE)) ->  | N66: =IF($A66="","",VLOOKUP($A66,'2013 SG'!$D$8:$BC$435,6,FALSE)) ->  | O66: =IF($A66="","",VLOOKUP($A66,'2013 SG'!$D$8:$BC$435,7,FALSE)) ->  | P66: =IF($A66="","",VLOOKUP($A66,'2013 SG'!$D$8:$BC$435,8,FALSE)) ->  | Q66: =IF($A66="","",VLOOKUP($A66,'2013 SG'!$D$8:$BC$435,9,FALSE)) ->  | R66: =IF($A66="","",VLOOKUP($A66,'2013 SG'!$D$8:$BC$435,10,FALSE)) ->  | S66: =IFERROR(VLOOKUP($A66,Schools1213PCTmeetNoCharter!$A$2:$F$344,5,FALSE)*0.01,"") ->  | T66: =IFERROR(VLOOKUP(A66,Schools1213PCTmeetNoCharter!$A$2:$F$344,3,FALSE),"") ->  | U66: =IFERROR(VLOOKUP($A66,Schools1213PCTmeetNoCharter!$A$2:$F$344,6,FALSE)*0.01,"") ->  | V66: =IFERROR(VLOOKUP(A66,Schools1213PCTmeetNoCharter!$A$2:$F$344,4,FALSE),"") -> 
A67: =IF(VLOOKUP($C$1,Group!$A$2:$BH$50,53,FALSE)="","",IF(TEXT(VLOOKUP($C$1,Group!$A$2:$BH$50,53,FALSE),"0000")=$A$1,"",TEXT(VLOOKUP($C$1,Group!$A$2:$BH$50,53,FALSE),"0000"))) ->  | B67: =IFERROR(VLOOKUP(A67,SchList!$A$2:$B$334,2,FALSE),"") ->  | C67: =IF($A67="","",VLOOKUP($A67,ethbysch!$A$3:$Q$493,17,FALSE)) ->  | D67: =IF($A67="","",VLOOKUP($A67,ethbysch!$A$3:$Q$493,4,FALSE)) ->  | E67: =IF($A67="","",VLOOKUP($A67,ethbysch!$A$3:$Q$493,6,FALSE)) ->  | F67: =IF($A67="","",VLOOKUP($A67,ethbysch!$A$3:$Q$493,8,FALSE)) ->  | G67: =IF($A67="","",VLOOKUP($A67,fsubc!$A$3:$M$508,6,FALSE)) ->  | H67: =IF($A67="","",VLOOKUP($A67,fsubc!$A$3:$M$508,8,FALSE)) ->  | I67: =IF($A67="","",VLOOKUP($A67,fsubc!$A$3:$M$508,12,FALSE)) ->  | J67: =IF($A67="","",VLOOKUP(VALUE($A67),Table10[],3,FALSE)) ->  | K67: =IF($A67="","",VLOOKUP($A67,'2013 SG'!$D$8:$BC$435,3,FALSE)) ->  | L67: =IF($A67="","",VLOOKUP($A67,'2013 SG'!$D$8:$BC$435,4,FALSE)) ->  | M67: =IF($A67="","",VLOOKUP($A67,'2013 SG'!$D$8:$BC$435,5,FALSE)) ->  | N67: =IF($A67="","",VLOOKUP($A67,'2013 SG'!$D$8:$BC$435,6,FALSE)) ->  | O67: =IF($A67="","",VLOOKUP($A67,'2013 SG'!$D$8:$BC$435,7,FALSE)) ->  | P67: =IF($A67="","",VLOOKUP($A67,'2013 SG'!$D$8:$BC$435,8,FALSE)) ->  | Q67: =IF($A67="","",VLOOKUP($A67,'2013 SG'!$D$8:$BC$435,9,FALSE)) ->  | R67: =IF($A67="","",VLOOKUP($A67,'2013 SG'!$D$8:$BC$435,10,FALSE)) ->  | S67: =IFERROR(VLOOKUP($A67,Schools1213PCTmeetNoCharter!$A$2:$F$344,5,FALSE)*0.01,"") ->  | T67: =IFERROR(VLOOKUP(A67,Schools1213PCTmeetNoCharter!$A$2:$F$344,3,FALSE),"") ->  | U67: =IFERROR(VLOOKUP($A67,Schools1213PCTmeetNoCharter!$A$2:$F$344,6,FALSE)*0.01,"") ->  | V67: =IFERROR(VLOOKUP(A67,Schools1213PCTmeetNoCharter!$A$2:$F$344,4,FALSE),"") -> 
A68: =IF(VLOOKUP($C$1,Group!$A$2:$BH$50,54,FALSE)="","",IF(TEXT(VLOOKUP($C$1,Group!$A$2:$BH$50,54,FALSE),"0000")=$A$1,"",TEXT(VLOOKUP($C$1,Group!$A$2:$BH$50,54,FALSE),"0000"))) ->  | B68: =IFERROR(VLOOKUP(A68,SchList!$A$2:$B$334,2,FALSE),"") ->  | C68: =IF($A68="","",VLOOKUP($A68,ethbysch!$A$3:$Q$493,17,FALSE)) ->  | D68: =IF($A68="","",VLOOKUP($A68,ethbysch!$A$3:$Q$493,4,FALSE)) ->  | E68: =IF($A68="","",VLOOKUP($A68,ethbysch!$A$3:$Q$493,6,FALSE)) ->  | F68: =IF($A68="","",VLOOKUP($A68,ethbysch!$A$3:$Q$493,8,FALSE)) ->  | G68: =IF($A68="","",VLOOKUP($A68,fsubc!$A$3:$M$508,6,FALSE)) ->  | H68: =IF($A68="","",VLOOKUP($A68,fsubc!$A$3:$M$508,8,FALSE)) ->  | I68: =IF($A68="","",VLOOKUP($A68,fsubc!$A$3:$M$508,12,FALSE)) ->  | J68: =IF($A68="","",VLOOKUP(VALUE($A68),Table10[],3,FALSE)) ->  | K68: =IF($A68="","",VLOOKUP($A68,'2013 SG'!$D$8:$BC$435,3,FALSE)) ->  | L68: =IF($A68="","",VLOOKUP($A68,'2013 SG'!$D$8:$BC$435,4,FALSE)) ->  | M68: =IF($A68="","",VLOOKUP($A68,'2013 SG'!$D$8:$BC$435,5,FALSE)) ->  | N68: =IF($A68="","",VLOOKUP($A68,'2013 SG'!$D$8:$BC$435,6,FALSE)) ->  | O68: =IF($A68="","",VLOOKUP($A68,'2013 SG'!$D$8:$BC$435,7,FALSE)) ->  | P68: =IF($A68="","",VLOOKUP($A68,'2013 SG'!$D$8:$BC$435,8,FALSE)) ->  | Q68: =IF($A68="","",VLOOKUP($A68,'2013 SG'!$D$8:$BC$435,9,FALSE)) ->  | R68: =IF($A68="","",VLOOKUP($A68,'2013 SG'!$D$8:$BC$435,10,FALSE)) ->  | S68: =IFERROR(VLOOKUP($A68,Schools1213PCTmeetNoCharter!$A$2:$F$344,5,FALSE)*0.01,"") ->  | T68: =IFERROR(VLOOKUP(A68,Schools1213PCTmeetNoCharter!$A$2:$F$344,3,FALSE),"") ->  | U68: =IFERROR(VLOOKUP($A68,Schools1213PCTmeetNoCharter!$A$2:$F$344,6,FALSE)*0.01,"") ->  | V68: =IFERROR(VLOOKUP(A68,Schools1213PCTmeetNoCharter!$A$2:$F$344,4,FALSE),"") -> 
